Workbook

Sheet CLEAR_SHEET (hidden)
A1: FOUNTAIN_INSTANCE_URL | B1: FountainLive
A2: externalModelId | B2: 7674
A3: EXTERNAL_MODEL_NAME | B3: PR24OC20_ODI risk - Bespoke PCs RoRE Pay
A4: EXTERNAL_MODEL_CODE | B4: EXTMDL_7674
A5: EXTERNAL_MODEL_FAMILY | B5: EXTERNAL
A6: companyId | B6: 0
A7: F_Inputs_Report_ID | B7: 28873
A8: F_Inputs_TEAM | B8: IPL
A9: F_Inputs_USER | B9: OFWAT\Abdulah.Shammout
A10: F_Inputs_NAME | B10: Bespoke ODI Risk Model Inputs
A11: F_Inputs_TITLE | B11: Bespoke ODI Risk Model Inputs
A12: inputRunId | B12: 0
A13: tagId | B13: 0
A14: inputSheetLastUpdated | B14: 10 Jul 2025 11:12:03
A15: F_Outputs_Report_ID | B15: 30685
A16: F_Outputs_TEAM | B16: IPL
A17: F_Outputs_USER | B17: OFWAT\Meher.Lota
A18: F_Outputs_TITLE | B18: Input- PR24OC20_ODI risk - Bespoke PCs R_Fout
A19: outputRunId | B19: 209
A20: outputRunName | B20: Run12 - Post PR24 FD - Corrections
A21: outputSheetLastSent | B21: 10 Jul 2025 11:20:23

Sheet Cover
A1: =RIGHT(CELL("filename", $A$1), LEN(CELL("filename", $A$1)) - SEARCH("]", CELL("filename", $A$1))) -> 
B3: PR24 ODI risk - Bespoke PCs RoRE Payments model
B5: Model code | C5: PR2OC20
B6: Version number: | C6: 3
B7: File name: | C7: =MID(CELL("filename"), FIND("[", CELL("filename"), 1) + 1, FIND("]", CELL("filename"), 1) - FIND("[", CELL("filename"), 1) - 1) -> 
B8: Date: | C8: 2025-08-01
B10: For enquiries please contact: | C10: PR24@ofwat.gov.uk

Sheet Corrections log
B1: Corrections log
B3: Version | C3: Number | D3: Issue identified | E3: Correction | F3: Document Reference
B4: 2 | C4: 1 | D4: Incorrect price control allocations for SVE | E4: PCA Water corrected from 50% to 28.90% in sheet Inp_Cons, in cell L21. PCA Wastewater corrected from 50% to 71.10% in sheet Inp_Cons, in cell L30.
B5: 3 | C5: 1 | D5: Cap and collar for Wonderful Windermere PC applied incorrectly. | E5: Additional row 29 added into sheet 'WW_Cap&Collar Conversion" to adjust the collar to account for performance difference from previous year only. Corrected cells X49:AA49 in sheet 'PostCap_Payments' as the cap is reached in year 1, there are no payments in the following years. | F5: NA
B6: 3 | C6: 2 | D6: Appointee RoRE calcutions used P10 payments before caps & collars had been applied. | E6: Corrected cells H20:AA25 in sheet "Payment as %RoRE_Appointee" to pull payments after caps and collars have been applied. | F6: NA

Sheet Conceptual Model
A1: =RIGHT(CELL("filename", A1), LEN(CELL("filename", A1)) - SEARCH("]", CELL("filename", A1))) -> 
B5: Conceptual Model - ODI risk - Bespoke PCs RoRE Payments model
A36: END

Sheet F_Inputs
C1: Bespoke ODI Risk Model Inputs | E1: Run on 10 Jul 2025 11:12
A2: Acronym | B2: Reference | C2: Item description | D2: Unit | E2: Model | F2: Constant | G2: 2025-26 | H2: 2026-27 | I2: 2027-28 | J2: 2028-29 | K2: 2029-30
F4: Price Review 2024 | G4: Price Review 2024 | H4: Price Review 2024 | I4: Price Review 2024 | J4: Price Review 2024 | K4: Price Review 2024
F5: Run 11 - PR24 FD Data | G5: Run 11 - PR24 FD Data | H5: Run 11 - PR24 FD Data | I5: Run 11 - PR24 FD Data | J5: Run 11 - PR24 FD Data | K5: Run 11 - PR24 FD Data
F6: Latest | G6: Latest | H6: Latest | I6: Latest | J6: Latest | K6: Latest
A7: ANH | B7: C_PR24FM_PBI_106 | C7: Pre 2020 RCV - real (WR) | D7: £m | E7: Price Review 2024 | G7: 176.3056076 | H7: 168.7454676 | I7: 161.5095131 | J7: 154.5838427 | K7: 147.9551511
A8: ANH | B8: C_PR24FM_PBI_107 | C8: Pre 2020 RCV - real (WN) | D8: £m | E8: Price Review 2024 | G8: 2657.887135 | H8: 2558.857657 | I8: 2463.51789 | J8: 2371.730362 | K8: 2283.362719
A9: ANH | B9: C_PR24FM_PBI_108 | C9: Pre 2020 RCV - real (WWN) | D9: £m | E9: Price Review 2024 | G9: 3951.796801 | H9: 3782.340268 | I9: 3620.15018 | J9: 3464.914946 | K9: 3316.336337
A10: ANH | B10: C_PR24FM_PBI_109 | C10: Pre 2020 RCV - real (BR) | D10: £m | E10: Price Review 2024 | G10: 273.0708724 | H10: 257.4581791 | I10: 242.738134 | J10: 228.8597002 | K10: 215.774759
A11: ANH | B11: C_PR24FM_PBI_110 | C11: Pre 2020 RCV - real (ADDN1) | D11: £m | E11: Price Review 2024 | G11: 0 | H11: 0 | I11: 0 | J11: 0 | K11: 0
A12: ANH | B12: C_PR24FM_PBI_111 | C12: Pre 2020 RCV - real (ADDN2) | D12: £m | E12: Price Review 2024 | G12: 0 | H12: 0 | I12: 0 | J12: 0 | K12: 0
A13: ANH | B13: C_PR24FM_PBI_112 | C13: 2020-25 RCV - real (WR) | D13: £m | E13: Price Review 2024 | G13: 63.50870167 | H13: 60.78539251 | I13: 58.17886125 | J13: 55.68410035 | K13: 53.296317
A14: ANH | B14: C_PR24FM_PBI_113 | C14: 2020-25 RCV - real (WN) | D14: £m | E14: Price Review 2024 | G14: 1171.014605 | H14: 1127.384097 | I14: 1085.379206 | J14: 1044.939364 | K14: 1006.006258
A15: ANH | B15: C_PR24FM_PBI_114 | C15: 2020-25 RCV - real (WWN) | D15: £m | E15: Price Review 2024 | G15: 1409.548401 | H15: 1349.105722 | I15: 1291.254879 | J15: 1235.88473 | K15: 1182.888903
A16: ANH | B16: C_PR24FM_PBI_115 | C16: 2020-25 RCV - real (BR) | D16: £m | E16: Price Review 2024 | G16: 65.24837656 | H16: 61.51783262 | I16: 58.0005807 | J16: 54.68442594 | K16: 51.5578707
A17: ANH | B17: C_PR24FM_PBI_116 | C17: 2020-25 RCV - real (ADDN1) | D17: £m | E17: Price Review 2024 | G17: 0 | H17: 0 | I17: 0 | J17: 0 | K17: 0
A18: ANH | B18: C_PR24FM_PBI_117 | C18: 2020-25 RCV - real (ADDN2) | D18: £m | E18: Price Review 2024 | G18: 0 | H18: 0 | I18: 0 | J18: 0 | K18: 0
A19: ANH | B19: C_PR24FM_PBI_118 | C19: Post 2025 RCV - real (WR) | D19: £m | E19: Price Review 2024 | G19: 166.7440685 | H19: 317.0056807 | I19: 491.8844915 | J19: 634.3012573 | K19: 690.0552758
A20: ANH | B20: C_PR24FM_PBI_119 | C20: Post 2025 RCV - real (WN) | D20: £m | E20: Price Review 2024 | G20: 308.5696081 | H20: 687.2599572 | I20: 1118.494878 | J20: 1517.182893 | K20: 1959.283983
A21: ANH | B21: C_PR24FM_PBI_120 | C21: Post 2025 RCV - real (WWN) | D21: £m | E21: Price Review 2024 | G21: 420.4696447 | H21: 1050.903176 | I21: 1731.310488 | J21: 2467.790266 | K21: 2883.188188
A22: ANH | B22: C_PR24FM_PBI_121 | C22: Post 2025 RCV - real (BR) | D22: £m | E22: Price Review 2024 | G22: 38.86048102 | H22: 115.4092107 | I22: 194.2244047 | J22: 256.6561215 | K22: 293.0455883
A23: ANH | B23: C_PR24FM_PBI_122 | C23: Post 2025 RCV - real (ADDN1) | D23: £m | E23: Price Review 2024 | G23: 0 | H23: 0 | I23: 0 | J23: 0 | K23: 0
A24: ANH | B24: C_PR24FM_PBI_123 | C24: Post 2025 RCV - real (ADDN2) | D24: £m | E24: Price Review 2024 | G24: 0 | H24: 0 | I24: 0 | J24: 0 | K24: 0
A25: ANH | B25: C_PCL_LPR_PR24 | C25: Performance Commitment Level for PR24 Bespoke Performance Comittment - Low Pressure | D25: Time | E25: Price Review 2024
A26: ANH | B26: C_PCL_LCC_PR24 | C26: Performance Commitment Level for PR24 Bespoke Performance Comittment - Lower Carbon Concrete Assets | D26: % | E26: Price Review 2024 | G26: 0 | H26: 0 | I26: 0 | J26: 0 | K26: 0.05
A27: ANH | B27: C_PCL_CC_PR24 | C27: Performance Commitment Level for PR24 Bespoke Performance Comittment - Capital Carbon | D27: % | E27: Price Review 2024
A28: ANH | B28: C_PCL_EGG_PR24 | C28: Performance Commitment Level for PR24 Bespoke Performance Comittment - Embodied Greenhouse Gas Emissions | D28: % | E28: Price Review 2024
A29: ANH | B29: C_PCL_SWC_PR24 | C29: Performance Commitment Level for PR24 Bespoke Performance Comittment - Streetworks | D29: Number | E29: Price Review 2024
A30: ANH | B30: C_PCL_WW_PR24 | C30: Performance Commitment Level for PR24 Bespoke Performance Comittment - Wonderful Windermere | D30: Kg | E30: Price Review 2024
A31: ANH | B31: C_ODIRATE_LPR_PR24 | C31: Underperformance rate for PR24 Bespoke Performance Commitment - Low Pressure | D31: £m | E31: Price Review 2024
A32: ANH | B32: C_ODIRATE_CC_OUT_PR24 | C32: Outperformance rate for PR24 Bespoke Performance Commitment - Capital Carbon | D32: £m | E32: Price Review 2024
A33: ANH | B33: C_ODIRATE_CC_UNDER_PR24 | C33: Underperformance rate for PR24 Bespoke Performance Commitment - Capital Carbon | D33: £m | E33: Price Review 2024
A34: ANH | B34: C_ODIRATE_EGG_OUT_PR24 | C34: Outperformance rate for PR24 Bespoke Performance Commitment - Embodied Greenhouse Gas Emissions | D34: £m | E34: Price Review 2024
A35: ANH | B35: C_ODIRATE_EGG_UNDER_PR24 | C35: Underperformance rate for PR24 Bespoke Performance Commitment - Embodied Greenhouse Gas Emissions | D35: £m | E35: Price Review 2024
A36: ANH | B36: C_ODIRATE_LCC_OUT_PR24 | C36: Outperformance rate for PR24 Bespoke Performance Commitment - Lower Carbon Concrete Assets | D36: £m | E36: Price Review 2024 | F36: 0.000188
A37: ANH | B37: C_ODIRATE_LCC_UNDER_PR24 | C37: Underperformance rate for PR24 Bespoke Performance Commitment - Lower Carbon Concrete Assets | D37: £m | E37: Price Review 2024 | F37: 9.4e-05
A38: ANH | B38: C_ODIRATE_SWC_PR24 | C38: Outperformance rate for PR24 Bespoke Performance Commitment - Streetworks | D38: £m | E38: Price Review 2024
A39: ANH | B39: C_ODIRATE_WW_PR24 | C39: Underperformance rate for PR24 Bespoke Performance Commitment - Wonderful Windermere | D39: £m | E39: Price Review 2024
A40: ANH | B40: C_ODIRISK_LPR_COLL_PR24 | C40: PR24 Risk Protections for Bespoke Performance Commitments - Payment Collar as % RoRE for Low Pressure | D40: % | E40: Price Review 2024
A41: ANH | B41: C_ODIRISK_EGG_CAP_PR24 | C41: PR24 Risk Protections for Bespoke Performance Commitments - Payment Cap as % RoRE for Embodied Greenhouse Gas Emissions | D41: % | E41: Price Review 2024
A42: ANH | B42: C_ODIRISK_EGG_COLL_PR24 | C42: PR24 Risk Protections for Bespoke Performance Commitments - Payment Collar as % RoRE for Embodied Greenhouse Gas Emissions | D42: % | E42: Price Review 2024
A43: ANH | B43: C_ODIRISK_WW_CAP_PR24 | C43: PR24 Risk Protections for Bespoke Performance Commitments - Performance Cap in Kg for Wonderful Windermere | D43: Kg | E43: Price Review 2024
A44: ANH | B44: C_ODIRISK_WW_COLL_PR24 | C44: PR24 Risk Protections for Bespoke Performance Commitments - Performance Collar in Kg for Wonderful Windermere | D44: Kg | E44: Price Review 2024
A45: ANH | B45: C_ODIRISK_CC_CAP_PR24 | C45: PR24 Risk Protections for Bespoke Performance Commitments - Payment Cap as % RoRE for Capital Carbon | D45: % | E45: Price Review 2024
A46: ANH | B46: C_ODIRISK_CC_COLL_PR24 | C46: PR24 Risk Protections for Bespoke Performance Commitments - Payment Collar as % RoRE for Capital Carbon | D46: % | E46: Price Review 2024
A47: ANH | B47: C_ODIRISK_SWC_CAP_PR24 | C47: PR24 Risk Protections for Bespoke Performance Commitments - Payment Cap as % RoRE for Streetworks | D47: % | E47: Price Review 2024
A48: ANH | B48: C_ODIRISK_LCC_CAP_PR24 | C48: PR24 Risk Protections for Bespoke Performance Commitments - Payment Cap as % RoRE for Lower Carbon Concrete Assets | D48: % | E48: Price Review 2024 | F48: 0.005
A49: ANH | B49: C_ODIRISK_LCC_COLL_PR24 | C49: PR24 Risk Protections for Bespoke Performance Commitments - Payment Collar as % RoRE for Lower Carbon Concrete Assets | D49: % | E49: Price Review 2024 | F49: -0.005
A50: ANH | B50: C_ODIRISK_CC_DDBND_PR24 | C50: Performance deadband for PR24 Bespoke Performance Commitment - Capital Carbon | D50: % | E50: Price Review 2024
A51: ANH | B51: C_ODIRISK_EGG_DDBND_PR24 | C51: Performance deadband for PR24 Bespoke Performance Commitment - Embodied Greenhouse Gas Emissions | D51: % | E51: Price Review 2024
A52: ANH | B52: C_ODIRISK_LCC_DDBND_PR24 | C52: Performance deadband for PR24 Bespoke Performance Commitment - Lower Carbon Concrete Assets | D52: % | E52: Price Review 2024 | G52: 0 | H52: 0 | I52: 0 | J52: 0 | K52: 0
A53: SVE | B53: C_PR24FM_PBI_106 | C53: Pre 2020 RCV - real (WR) | D53: £m | E53: Price Review 2024 | G53: 353.7345018 | H53: 340.0995644 | I53: 326.990195 | J53: 314.3861351 | K53: 302.2679073
A54: SVE | B54: C_PR24FM_PBI_107 | C54: Pre 2020 RCV - real (WN) | D54: £m | E54: Price Review 2024 | G54: 3856.002541 | H54: 3681.152182 | I54: 3514.230409 | J54: 3354.8777 | K54: 3202.750837
A55: SVE | B55: C_PR24FM_PBI_108 | C55: Pre 2020 RCV - real (WWN) | D55: £m | E55: Price Review 2024 | G55: 3541.027496 | H55: 3384.376444 | I55: 3234.655458 | J55: 3091.557958 | K55: 2954.79093
A56: SVE | B56: C_PR24FM_PBI_109 | C56: Pre 2020 RCV - real (BR) | D56: £m | E56: Price Review 2024 | G56: 408.2200135 | H56: 381.5122215 | I56: 356.5517866 | J56: 333.224388 | K56: 311.4231844
A57: SVE | B57: C_PR24FM_PBI_110 | C57: Pre 2020 RCV - real (ADDN1) | D57: £m | E57: Price Review 2024 | G57: 0 | H57: 0 | I57: 0 | J57: 0 | K57: 0
A58: SVE | B58: C_PR24FM_PBI_111 | C58: Pre 2020 RCV - real (ADDN2) | D58: £m | E58: Price Review 2024 | G58: 0 | H58: 0 | I58: 0 | J58: 0 | K58: 0
A59: SVE | B59: C_PR24FM_PBI_112 | C59: 2020-25 RCV - real (WR) | D59: £m | E59: Price Review 2024 | G59: 130.864564 | H59: 125.8203002 | I59: 120.970471 | J59: 116.3075818 | K59: 111.8244268
A60: SVE | B60: C_PR24FM_PBI_113 | C60: 2020-25 RCV - real (WN) | D60: £m | E60: Price Review 2024 | G60: 1459.809769 | H60: 1393.614723 | I60: 1330.421291 | J60: 1270.093364 | K60: 1212.501006
A61: SVE | B61: C_PR24FM_PBI_114 | C61: 2020-25 RCV - real (WWN) | D61: £m | E61: Price Review 2024 | G61: 1771.917484 | H61: 1693.529858 | I61: 1618.610013 | J61: 1547.004536 | K61: 1478.566805
A62: SVE | B62: C_PR24FM_PBI_115 | C62: 2020-25 RCV - real (BR) | D62: £m | E62: Price Review 2024 | G62: 178.2221121 | H62: 166.5619315 | I62: 155.6646181 | J62: 145.4802613 | K62: 135.9622161
A63: SVE | B63: C_PR24FM_PBI_116 | C63: 2020-25 RCV - real (ADDN1) | D63: £m | E63: Price Review 2024 | G63: 0 | H63: 0 | I63: 0 | J63: 0 | K63: 0
A64: SVE | B64: C_PR24FM_PBI_117 | C64: 2020-25 RCV - real (ADDN2) | D64: £m | E64: Price Review 2024 | G64: 0 | H64: 0 | I64: 0 | J64: 0 | K64: 0
A65: SVE | B65: C_PR24FM_PBI_118 | C65: Post 2025 RCV - real (WR) | D65: £m | E65: Price Review 2024 | G65: 107.7393951 | H65: 205.2519901 | I65: 286.7021043 | J65: 351.5629108 | K65: 413.1815311
A66: SVE | B66: C_PR24FM_PBI_119 | C66: Post 2025 RCV - real (WN) | D66: £m | E66: Price Review 2024 | G66: 418.5353643 | H66: 865.1966235 | I66: 1372.553281 | J66: 1804.604115 | K66: 2115.213069
A67: SVE | B67: C_PR24FM_PBI_120 | C67: Post 2025 RCV - real (WWN) | D67: £m | E67: Price Review 2024 | G67: 877.0069 | H67: 1867.403086 | I67: 2737.995814 | J67: 3522.030459 | K67: 4101.571418
A68: SVE | B68: C_PR24FM_PBI_121 | C68: Post 2025 RCV - real (BR) | D68: £m | E68: Price Review 2024 | G68: 182.6678365 | H68: 416.1417239 | I68: 573.2033775 | J68: 725.6385664 | K68: 847.7995591
A69: SVE | B69: C_PR24FM_PBI_122 | C69: Post 2025 RCV - real (ADDN1) | D69: £m | E69: Price Review 2024 | G69: 0 | H69: 0 | I69: 0 | J69: 0 | K69: 0
A70: SVE | B70: C_PR24FM_PBI_123 | C70: Post 2025 RCV - real (ADDN2) | D70: £m | E70: Price Review 2024 | G70: 0 | H70: 0 | I70: 0 | J70: 0 | K70: 0
A71: SVE | B71: C_PCL_LPR_PR24 | C71: Performance Commitment Level for PR24 Bespoke Performance Comittment - Low Pressure | D71: Time | E71: Price Review 2024
A72: SVE | B72: C_PCL_LCC_PR24 | C72: Performance Commitment Level for PR24 Bespoke Performance Comittment - Lower Carbon Concrete Assets | D72: % | E72: Price Review 2024
A73: SVE | B73: C_PCL_CC_PR24 | C73: Performance Commitment Level for PR24 Bespoke Performance Comittment - Capital Carbon | D73: % | E73: Price Review 2024 | G73: 0 | H73: 0 | I73: 0 | J73: 0 | K73: 0.05
A74: SVE | B74: C_PCL_EGG_PR24 | C74: Performance Commitment Level for PR24 Bespoke Performance Comittment - Embodied Greenhouse Gas Emissions | D74: % | E74: Price Review 2024
A75: SVE | B75: C_PCL_SWC_PR24 | C75: Performance Commitment Level for PR24 Bespoke Performance Comittment - Streetworks | D75: Number | E75: Price Review 2024
A76: SVE | B76: C_PCL_WW_PR24 | C76: Performance Commitment Level for PR24 Bespoke Performance Comittment - Wonderful Windermere | D76: Kg | E76: Price Review 2024
A77: SVE | B77: C_ODIRATE_LPR_PR24 | C77: Underperformance rate for PR24 Bespoke Performance Commitment - Low Pressure | D77: £m | E77: Price Review 2024
A78: SVE | B78: C_ODIRATE_CC_OUT_PR24 | C78: Outperformance rate for PR24 Bespoke Performance Commitment - Capital Carbon | D78: £m | E78: Price Review 2024 | F78: 0.000188
A79: SVE | B79: C_ODIRATE_CC_UNDER_PR24 | C79: Underperformance rate for PR24 Bespoke Performance Commitment - Capital Carbon | D79: £m | E79: Price Review 2024 | F79: 9.4e-05
A80: SVE | B80: C_ODIRATE_EGG_OUT_PR24 | C80: Outperformance rate for PR24 Bespoke Performance Commitment - Embodied Greenhouse Gas Emissions | D80: £m | E80: Price Review 2024
A81: SVE | B81: C_ODIRATE_EGG_UNDER_PR24 | C81: Underperformance rate for PR24 Bespoke Performance Commitment - Embodied Greenhouse Gas Emissions | D81: £m | E81: Price Review 2024
A82: SVE | B82: C_ODIRATE_LCC_OUT_PR24 | C82: Outperformance rate for PR24 Bespoke Performance Commitment - Lower Carbon Concrete Assets | D82: £m | E82: Price Review 2024
A83: SVE | B83: C_ODIRATE_LCC_UNDER_PR24 | C83: Underperformance rate for PR24 Bespoke Performance Commitment - Lower Carbon Concrete Assets | D83: £m | E83: Price Review 2024
A84: SVE | B84: C_ODIRATE_SWC_PR24 | C84: Outperformance rate for PR24 Bespoke Performance Commitment - Streetworks | D84: £m | E84: Price Review 2024
A85: SVE | B85: C_ODIRATE_WW_PR24 | C85: Underperformance rate for PR24 Bespoke Performance Commitment - Wonderful Windermere | D85: £m | E85: Price Review 2024
A86: SVE | B86: C_ODIRISK_LPR_COLL_PR24 | C86: PR24 Risk Protections for Bespoke Performance Commitments - Payment Collar as % RoRE for Low Pressure | D86: % | E86: Price Review 2024
A87: SVE | B87: C_ODIRISK_EGG_CAP_PR24 | C87: PR24 Risk Protections for Bespoke Performance Commitments - Payment Cap as % RoRE for Embodied Greenhouse Gas Emissions | D87: % | E87: Price Review 2024
A88: SVE | B88: C_ODIRISK_EGG_COLL_PR24 | C88: PR24 Risk Protections for Bespoke Performance Commitments - Payment Collar as % RoRE for Embodied Greenhouse Gas Emissions | D88: % | E88: Price Review 2024
A89: SVE | B89: C_ODIRISK_WW_CAP_PR24 | C89: PR24 Risk Protections for Bespoke Performance Commitments - Performance Cap in Kg for Wonderful Windermere | D89: Kg | E89: Price Review 2024
A90: SVE | B90: C_ODIRISK_WW_COLL_PR24 | C90: PR24 Risk Protections for Bespoke Performance Commitments - Performance Collar in Kg for Wonderful Windermere | D90: Kg | E90: Price Review 2024
A91: SVE | B91: C_ODIRISK_CC_CAP_PR24 | C91: PR24 Risk Protections for Bespoke Performance Commitments - Payment Cap as % RoRE for Capital Carbon | D91: % | E91: Price Review 2024 | F91: 0.005
A92: SVE | B92: C_ODIRISK_CC_COLL_PR24 | C92: PR24 Risk Protections for Bespoke Performance Commitments - Payment Collar as % RoRE for Capital Carbon | D92: % | E92: Price Review 2024 | F92: -0.005
A93: SVE | B93: C_ODIRISK_SWC_CAP_PR24 | C93: PR24 Risk Protections for Bespoke Performance Commitments - Payment Cap as % RoRE for Streetworks | D93: % | E93: Price Review 2024
A94: SVE | B94: C_ODIRISK_LCC_CAP_PR24 | C94: PR24 Risk Protections for Bespoke Performance Commitments - Payment Cap as % RoRE for Lower Carbon Concrete Assets | D94: % | E94: Price Review 2024
A95: SVE | B95: C_ODIRISK_LCC_COLL_PR24 | C95: PR24 Risk Protections for Bespoke Performance Commitments - Payment Collar as % RoRE for Lower Carbon Concrete Assets | D95: % | E95: Price Review 2024
A96: SVE | B96: C_ODIRISK_CC_DDBND_PR24 | C96: Performance deadband for PR24 Bespoke Performance Commitment - Capital Carbon | D96: % | E96: Price Review 2024 | G96: 0 | H96: 0 | I96: 0 | J96: 0 | K96: 0
A97: SVE | B97: C_ODIRISK_EGG_DDBND_PR24 | C97: Performance deadband for PR24 Bespoke Performance Commitment - Embodied Greenhouse Gas Emissions | D97: % | E97: Price Review 2024
A98: SVE | B98: C_ODIRISK_LCC_DDBND_PR24 | C98: Performance deadband for PR24 Bespoke Performance Commitment - Lower Carbon Concrete Assets | D98: % | E98: Price Review 2024
A99: SWB | B99: C_PR24FM_PBI_106 | C99: Pre 2020 RCV - real (WR) | D99: £m | E99: Price Review 2024
A100: SWB | B100: C_PR24FM_PBI_107 | C100: Pre 2020 RCV - real (WN) | D100: £m | E100: Price Review 2024
A101: SWB | B101: C_PR24FM_PBI_108 | C101: Pre 2020 RCV - real (WWN) | D101: £m | E101: Price Review 2024
A102: SWB | B102: C_PR24FM_PBI_109 | C102: Pre 2020 RCV - real (BR) | D102: £m | E102: Price Review 2024
A103: SWB | B103: C_PR24FM_PBI_110 | C103: Pre 2020 RCV - real (ADDN1) | D103: £m | E103: Price Review 2024
A104: SWB | B104: C_PR24FM_PBI_111 | C104: Pre 2020 RCV - real (ADDN2) | D104: £m | E104: Price Review 2024
A105: SWB | B105: C_PR24FM_PBI_112 | C105: 2020-25 RCV - real (WR) | D105: £m | E105: Price Review 2024
A106: SWB | B106: C_PR24FM_PBI_113 | C106: 2020-25 RCV - real (WN) | D106: £m | E106: Price Review 2024
A107: SWB | B107: C_PR24FM_PBI_114 | C107: 2020-25 RCV - real (WWN) | D107: £m | E107: Price Review 2024
A108: SWB | B108: C_PR24FM_PBI_115 | C108: 2020-25 RCV - real (BR) | D108: £m | E108: Price Review 2024
A109: SWB | B109: C_PR24FM_PBI_116 | C109: 2020-25 RCV - real (ADDN1) | D109: £m | E109: Price Review 2024
A110: SWB | B110: C_PR24FM_PBI_117 | C110: 2020-25 RCV - real (ADDN2) | D110: £m | E110: Price Review 2024
A111: SWB | B111: C_PR24FM_PBI_118 | C111: Post 2025 RCV - real (WR) | D111: £m | E111: Price Review 2024
A112: SWB | B112: C_PR24FM_PBI_119 | C112: Post 2025 RCV - real (WN) | D112: £m | E112: Price Review 2024
A113: SWB | B113: C_PR24FM_PBI_120 | C113: Post 2025 RCV - real (WWN) | D113: £m | E113: Price Review 2024
A114: SWB | B114: C_PR24FM_PBI_121 | C114: Post 2025 RCV - real (BR) | D114: £m | E114: Price Review 2024
A115: SWB | B115: C_PR24FM_PBI_122 | C115: Post 2025 RCV - real (ADDN1) | D115: £m | E115: Price Review 2024
A116: SWB | B116: C_PR24FM_PBI_123 | C116: Post 2025 RCV - real (ADDN2) | D116: £m | E116: Price Review 2024
A117: SWB | B117: C_PCL_LPR_PR24 | C117: Performance Commitment Level for PR24 Bespoke Performance Comittment - Low Pressure | D117: Time | E117: Price Review 2024
A118: SWB | B118: C_PCL_LCC_PR24 | C118: Performance Commitment Level for PR24 Bespoke Performance Comittment - Lower Carbon Concrete Assets | D118: % | E118: Price Review 2024
A119: SWB | B119: C_PCL_CC_PR24 | C119: Performance Commitment Level for PR24 Bespoke Performance Comittment - Capital Carbon | D119: % | E119: Price Review 2024
A120: SWB | B120: C_PCL_EGG_PR24 | C120: Performance Commitment Level for PR24 Bespoke Performance Comittment - Embodied Greenhouse Gas Emissions | D120: % | E120: Price Review 2024 | G120: 0 | H120: 0 | I120: 0 | J120: 0 | K120: 0.05
A121: SWB | B121: C_PCL_SWC_PR24 | C121: Performance Commitment Level for PR24 Bespoke Performance Comittment - Streetworks | D121: Number | E121: Price Review 2024
A122: SWB | B122: C_PCL_WW_PR24 | C122: Performance Commitment Level for PR24 Bespoke Performance Comittment - Wonderful Windermere | D122: Kg | E122: Price Review 2024
A123: SWB | B123: C_ODIRATE_LPR_PR24 | C123: Underperformance rate for PR24 Bespoke Performance Commitment - Low Pressure | D123: £m | E123: Price Review 2024
A124: SWB | B124: C_ODIRATE_CC_OUT_PR24 | C124: Outperformance rate for PR24 Bespoke Performance Commitment - Capital Carbon | D124: £m | E124: Price Review 2024
A125: SWB | B125: C_ODIRATE_CC_UNDER_PR24 | C125: Underperformance rate for PR24 Bespoke Performance Commitment - Capital Carbon | D125: £m | E125: Price Review 2024
A126: SWB | B126: C_ODIRATE_EGG_OUT_PR24 | C126: Outperformance rate for PR24 Bespoke Performance Commitment - Embodied Greenhouse Gas Emissions | D126: £m | E126: Price Review 2024 | F126: 0.000188
A127: SWB | B127: C_ODIRATE_EGG_UNDER_PR24 | C127: Underperformance rate for PR24 Bespoke Performance Commitment - Embodied Greenhouse Gas Emissions | D127: £m | E127: Price Review 2024 | F127: 9.4e-05
A128: SWB | B128: C_ODIRATE_LCC_OUT_PR24 | C128: Outperformance rate for PR24 Bespoke Performance Commitment - Lower Carbon Concrete Assets | D128: £m | E128: Price Review 2024
A129: SWB | B129: C_ODIRATE_LCC_UNDER_PR24 | C129: Underperformance rate for PR24 Bespoke Performance Commitment - Lower Carbon Concrete Assets | D129: £m | E129: Price Review 2024
A130: SWB | B130: C_ODIRATE_SWC_PR24 | C130: Outperformance rate for PR24 Bespoke Performance Commitment - Streetworks | D130: £m | E130: Price Review 2024
A131: SWB | B131: C_ODIRATE_WW_PR24 | C131: Underperformance rate for PR24 Bespoke Performance Commitment - Wonderful Windermere | D131: £m | E131: Price Review 2024
A132: SWB | B132: C_ODIRISK_LPR_COLL_PR24 | C132: PR24 Risk Protections for Bespoke Performance Commitments - Payment Collar as % RoRE for Low Pressure | D132: % | E132: Price Review 2024
A133: SWB | B133: C_ODIRISK_EGG_CAP_PR24 | C133: PR24 Risk Protections for Bespoke Performance Commitments - Payment Cap as % RoRE for Embodied Greenhouse Gas Emissions | D133: % | E133: Price Review 2024 | F133: 0.005
A134: SWB | B134: C_ODIRISK_EGG_COLL_PR24 | C134: PR24 Risk Protections for Bespoke Performance Commitments - Payment Collar as % RoRE for Embodied Greenhouse Gas Emissions | D134: % | E134: Price Review 2024 | F134: -0.005
A135: SWB | B135: C_ODIRISK_WW_CAP_PR24 | C135: PR24 Risk Protections for Bespoke Performance Commitments - Performance Cap in Kg for Wonderful Windermere | D135: Kg | E135: Price Review 2024
A136: SWB | B136: C_ODIRISK_WW_COLL_PR24 | C136: PR24 Risk Protections for Bespoke Performance Commitments - Performance Collar in Kg for Wonderful Windermere | D136: Kg | E136: Price Review 2024
A137: SWB | B137: C_ODIRISK_CC_CAP_PR24 | C137: PR24 Risk Protections for Bespoke Performance Commitments - Payment Cap as % RoRE for Capital Carbon | D137: % | E137: Price Review 2024
A138: SWB | B138: C_ODIRISK_CC_COLL_PR24 | C138: PR24 Risk Protections for Bespoke Performance Commitments - Payment Collar as % RoRE for Capital Carbon | D138: % | E138: Price Review 2024
A139: SWB | B139: C_ODIRISK_SWC_CAP_PR24 | C139: PR24 Risk Protections for Bespoke Performance Commitments - Payment Cap as % RoRE for Streetworks | D139: % | E139: Price Review 2024
A140: SWB | B140: C_ODIRISK_LCC_CAP_PR24 | C140: PR24 Risk Protections for Bespoke Performance Commitments - Payment Cap as % RoRE for Lower Carbon Concrete Assets | D140: % | E140: Price Review 2024
A141: SWB | B141: C_ODIRISK_LCC_COLL_PR24 | C141: PR24 Risk Protections for Bespoke Performance Commitments - Payment Collar as % RoRE for Lower Carbon Concrete Assets | D141: % | E141: Price Review 2024
A142: SWB | B142: C_ODIRISK_CC_DDBND_PR24 | C142: Performance deadband for PR24 Bespoke Performance Commitment - Capital Carbon | D142: % | E142: Price Review 2024
A143: SWB | B143: C_ODIRISK_EGG_DDBND_PR24 | C143: Performance deadband for PR24 Bespoke Performance Commitment - Embodied Greenhouse Gas Emissions | D143: % | E143: Price Review 2024 | G143: 0 | H143: 0 | I143: 0 | J143: 0 | K143: 0
A144: SWB | B144: C_ODIRISK_LCC_DDBND_PR24 | C144: Performance deadband for PR24 Bespoke Performance Commitment - Lower Carbon Concrete Assets | D144: % | E144: Price Review 2024
A145: TMS | B145: C_PR24FM_PBI_106 | C145: Pre 2020 RCV - real (WR) | D145: £m | E145: Price Review 2024 | G145: 288.1497752 | H145: 278.5255727 | I145: 269.2228186 | J145: 260.2307765 | K145: 251.5390685
A146: TMS | B146: C_PR24FM_PBI_107 | C146: Pre 2020 RCV - real (WN) | D146: £m | E146: Price Review 2024 | G146: 5618.61299 | H146: 5390.497302 | I146: 5171.643112 | J146: 4961.674402 | K146: 4760.230421
A147: TMS | B147: C_PR24FM_PBI_108 | C147: Pre 2020 RCV - real (WWN) | D147: £m | E147: Price Review 2024 | G147: 4468.10128 | H147: 4267.036722 | I147: 4075.02007 | J147: 3891.644166 | K147: 3716.520179
A148: TMS | B148: C_PR24FM_PBI_109 | C148: Pre 2020 RCV - real (BR) | D148: £m | E148: Price Review 2024 | G148: 1395.992502 | H148: 1328.147266 | I148: 1263.599309 | J148: 1202.188383 | K148: 1143.762027
A149: TMS | B149: C_PR24FM_PBI_110 | C149: Pre 2020 RCV - real (ADDN1) | D149: £m | E149: Price Review 2024 | G149: 1571.85033 | H149: 1567.920704 | I149: 1564.000902 | J149: 1560.0909 | K149: 1556.190673
A150: TMS | B150: C_PR24FM_PBI_111 | C150: Pre 2020 RCV - real (ADDN2) | D150: £m | E150: Price Review 2024 | G150: 0 | H150: 0 | I150: 0 | J150: 0 | K150: 0
A151: TMS | B151: C_PR24FM_PBI_112 | C151: 2020-25 RCV - real (WR) | D151: £m | E151: Price Review 2024 | G151: 166.867684 | H151: 161.2943033 | I151: 155.9070736 | J151: 150.6997773 | K151: 145.6664048
A152: TMS | B152: C_PR24FM_PBI_113 | C152: 2020-25 RCV - real (WN) | D152: £m | E152: Price Review 2024 | G152: 2387.059023 | H152: 2290.144427 | I152: 2197.164563 | J152: 2107.959682 | K152: 2022.376519
A153: TMS | B153: C_PR24FM_PBI_114 | C153: 2020-25 RCV - real (WWN) | D153: £m | E153: Price Review 2024 | G153: 1870.360553 | H153: 1786.194328 | I153: 1705.815583 | J153: 1629.053882 | K153: 1555.746457
A154: TMS | B154: C_PR24FM_PBI_115 | C154: 2020-25 RCV - real (BR) | D154: £m | E154: Price Review 2024 | G154: 312.3676433 | H154: 297.1865758 | I154: 282.7433082 | J154: 269.0019835 | K154: 255.9284871
A155: TMS | B155: C_PR24FM_PBI_116 | C155: 2020-25 RCV - real (ADDN1) | D155: £m | E155: Price Review 2024 | G155: 103.5401463 | H155: 103.2812959 | I155: 103.0230927 | J155: 102.7655349 | K155: 102.5086211
A156: TMS | B156: C_PR24FM_PBI_117 | C156: 2020-25 RCV - real (ADDN2) | D156: £m | E156: Price Review 2024 | G156: 0 | H156: 0 | I156: 0 | J156: 0 | K156: 0
A157: TMS | B157: C_PR24FM_PBI_118 | C157: Post 2025 RCV - real (WR) | D157: £m | E157: Price Review 2024 | G157: 71.72746614 | H157: 154.3608301 | I157: 240.1100282 | J157: 303.2544985 | K157: 371.7301979
A158: TMS | B158: C_PR24FM_PBI_119 | C158: Post 2025 RCV - real (WN) | D158: £m | E158: Price Review 2024 | G158: 816.8276673 | H158: 1663.350975 | I158: 2509.167961 | J158: 3335.884668 | K158: 4335.059768
A159: TMS | B159: C_PR24FM_PBI_120 | C159: Post 2025 RCV - real (WWN) | D159: £m | E159: Price Review 2024 | G159: 773.8577709 | H159: 1581.872542 | I159: 2474.032159 | J159: 3653.83236 | K159: 5297.731838
A160: TMS | B160: C_PR24FM_PBI_121 | C160: Post 2025 RCV - real (BR) | D160: £m | E160: Price Review 2024 | G160: 80.42859936 | H160: 162.7169021 | I160: 269.4755146 | J160: 411.9276714 | K160: 639.4934489
A161: TMS | B161: C_PR24FM_PBI_122 | C161: Post 2025 RCV - real (ADDN1) | D161: £m | E161: Price Review 2024 | G161: -66.69091352 | H161: -52.32110975 | I161: -37.44431835 | J161: -29.9565062 | K161: -24.44784454
A162: TMS | B162: C_PR24FM_PBI_123 | C162: Post 2025 RCV - real (ADDN2) | D162: £m | E162: Price Review 2024 | G162: 0 | H162: 0 | I162: 0 | J162: 0 | K162: 0
A163: TMS | B163: C_PCL_LPR_PR24 | C163: Performance Commitment Level for PR24 Bespoke Performance Comittment - Low Pressure | D163: Time | E163: Price Review 2024
A164: TMS | B164: C_PCL_LCC_PR24 | C164: Performance Commitment Level for PR24 Bespoke Performance Comittment - Lower Carbon Concrete Assets | D164: % | E164: Price Review 2024
A165: TMS | B165: C_PCL_CC_PR24 | C165: Performance Commitment Level for PR24 Bespoke Performance Comittment - Capital Carbon | D165: % | E165: Price Review 2024
A166: TMS | B166: C_PCL_EGG_PR24 | C166: Performance Commitment Level for PR24 Bespoke Performance Comittment - Embodied Greenhouse Gas Emissions | D166: % | E166: Price Review 2024
A167: TMS | B167: C_PCL_SWC_PR24 | C167: Performance Commitment Level for PR24 Bespoke Performance Comittment - Streetworks | D167: Number | E167: Price Review 2024 | K167: 22
A168: TMS | B168: C_PCL_WW_PR24 | C168: Performance Commitment Level for PR24 Bespoke Performance Comittment - Wonderful Windermere | D168: Kg | E168: Price Review 2024
A169: TMS | B169: C_ODIRATE_LPR_PR24 | C169: Underperformance rate for PR24 Bespoke Performance Commitment - Low Pressure | D169: £m | E169: Price Review 2024
A170: TMS | B170: C_ODIRATE_CC_OUT_PR24 | C170: Outperformance rate for PR24 Bespoke Performance Commitment - Capital Carbon | D170: £m | E170: Price Review 2024
A171: TMS | B171: C_ODIRATE_CC_UNDER_PR24 | C171: Underperformance rate for PR24 Bespoke Performance Commitment - Capital Carbon | D171: £m | E171: Price Review 2024
A172: TMS | B172: C_ODIRATE_EGG_OUT_PR24 | C172: Outperformance rate for PR24 Bespoke Performance Commitment - Embodied Greenhouse Gas Emissions | D172: £m | E172: Price Review 2024
A173: TMS | B173: C_ODIRATE_EGG_UNDER_PR24 | C173: Underperformance rate for PR24 Bespoke Performance Commitment - Embodied Greenhouse Gas Emissions | D173: £m | E173: Price Review 2024
A174: TMS | B174: C_ODIRATE_LCC_OUT_PR24 | C174: Outperformance rate for PR24 Bespoke Performance Commitment - Lower Carbon Concrete Assets | D174: £m | E174: Price Review 2024
A175: TMS | B175: C_ODIRATE_LCC_UNDER_PR24 | C175: Underperformance rate for PR24 Bespoke Performance Commitment - Lower Carbon Concrete Assets | D175: £m | E175: Price Review 2024
A176: TMS | B176: C_ODIRATE_SWC_PR24 | C176: Outperformance rate for PR24 Bespoke Performance Commitment - Streetworks | D176: £m | E176: Price Review 2024 | F176: 0.12355
A177: TMS | B177: C_ODIRATE_WW_PR24 | C177: Underperformance rate for PR24 Bespoke Performance Commitment - Wonderful Windermere | D177: £m | E177: Price Review 2024
A178: TMS | B178: C_ODIRISK_LPR_COLL_PR24 | C178: PR24 Risk Protections for Bespoke Performance Commitments - Payment Collar as % RoRE for Low Pressure | D178: % | E178: Price Review 2024
A179: TMS | B179: C_ODIRISK_EGG_CAP_PR24 | C179: PR24 Risk Protections for Bespoke Performance Commitments - Payment Cap as % RoRE for Embodied Greenhouse Gas Emissions | D179: % | E179: Price Review 2024
A180: TMS | B180: C_ODIRISK_EGG_COLL_PR24 | C180: PR24 Risk Protections for Bespoke Performance Commitments - Payment Collar as % RoRE for Embodied Greenhouse Gas Emissions | D180: % | E180: Price Review 2024
A181: TMS | B181: C_ODIRISK_WW_CAP_PR24 | C181: PR24 Risk Protections for Bespoke Performance Commitments - Performance Cap in Kg for Wonderful Windermere | D181: Kg | E181: Price Review 2024
A182: TMS | B182: C_ODIRISK_WW_COLL_PR24 | C182: PR24 Risk Protections for Bespoke Performance Commitments - Performance Collar in Kg for Wonderful Windermere | D182: Kg | E182: Price Review 2024
A183: TMS | B183: C_ODIRISK_CC_CAP_PR24 | C183: PR24 Risk Protections for Bespoke Performance Commitments - Payment Cap as % RoRE for Capital Carbon | D183: % | E183: Price Review 2024
A184: TMS | B184: C_ODIRISK_CC_COLL_PR24 | C184: PR24 Risk Protections for Bespoke Performance Commitments - Payment Collar as % RoRE for Capital Carbon | D184: % | E184: Price Review 2024
A185: TMS | B185: C_ODIRISK_SWC_CAP_PR24 | C185: PR24 Risk Protections for Bespoke Performance Commitments - Payment Cap as % RoRE for Streetworks | D185: % | E185: Price Review 2024 | F185: 0.005
A186: TMS | B186: C_ODIRISK_LCC_CAP_PR24 | C186: PR24 Risk Protections for Bespoke Performance Commitments - Payment Cap as % RoRE for Lower Carbon Concrete Assets | D186: % | E186: Price Review 2024
A187: TMS | B187: C_ODIRISK_LCC_COLL_PR24 | C187: PR24 Risk Protections for Bespoke Performance Commitments - Payment Collar as % RoRE for Lower Carbon Concrete Assets | D187: % | E187: Price Review 2024
A188: TMS | B188: C_ODIRISK_CC_DDBND_PR24 | C188: Performance deadband for PR24 Bespoke Performance Commitment - Capital Carbon | D188: % | E188: Price Review 2024
A189: TMS | B189: C_ODIRISK_EGG_DDBND_PR24 | C189: Performance deadband for PR24 Bespoke Performance Commitment - Embodied Greenhouse Gas Emissions | D189: % | E189: Price Review 2024
A190: TMS | B190: C_ODIRISK_LCC_DDBND_PR24 | C190: Performance deadband for PR24 Bespoke Performance Commitment - Lower Carbon Concrete Assets | D190: % | E190: Price Review 2024
A191: SRN | B191: C_PR24FM_PBI_106 | C191: Pre 2020 RCV - real (WR) | D191: £m | E191: Price Review 2024 | G191: 69.99072215 | H191: 66.93230438 | I191: 64.00753173 | J191: 61.21056427 | K191: 58.53581721
A192: SRN | B192: C_PR24FM_PBI_107 | C192: Pre 2020 RCV - real (WN) | D192: £m | E192: Price Review 2024 | G192: 941.9142195 | H192: 902.0354579 | I192: 863.8450832 | J192: 827.2716124 | K192: 792.2465892
A193: SRN | B193: C_PR24FM_PBI_108 | C193: Pre 2020 RCV - real (WWN) | D193: £m | E193: Price Review 2024 | G193: 3237.086453 | H193: 3098.148662 | I193: 2965.174169 | J193: 2837.907025 | K193: 2716.102267
A194: SRN | B194: C_PR24FM_PBI_109 | C194: Pre 2020 RCV - real (BR) | D194: £m | E194: Price Review 2024 | G194: 139.2997352 | H194: 130.6831826 | I194: 122.5996172 | J194: 115.0160704 | K194: 107.9016131
A195: SRN | B195: C_PR24FM_PBI_110 | C195: Pre 2020 RCV - real (ADDN1) | D195: £m | E195: Price Review 2024 | G195: 0 | H195: 0 | I195: 0 | J195: 0 | K195: 0
A196: SRN | B196: C_PR24FM_PBI_111 | C196: Pre 2020 RCV - real (ADDN2) | D196: £m | E196: Price Review 2024 | G196: 0 | H196: 0 | I196: 0 | J196: 0 | K196: 0
A197: SRN | B197: C_PR24FM_PBI_112 | C197: 2020-25 RCV - real (WR) | D197: £m | E197: Price Review 2024 | G197: 65.20747088 | H197: 62.3580691 | I197: 59.63317898 | J197: 57.02735968 | K197: 54.53540811
A198: SRN | B198: C_PR24FM_PBI_113 | C198: 2020-25 RCV - real (WN) | D198: £m | E198: Price Review 2024 | G198: 649.2899579 | H198: 621.8003215 | I198: 595.4745412 | J198: 570.2633418 | K198: 546.119534
A199: SRN | B199: C_PR24FM_PBI_114 | C199: 2020-25 RCV - real (WWN) | D199: £m | E199: Price Review 2024 | G199: 1278.428117 | H199: 1223.557176 | I199: 1171.041331 | J199: 1120.779499 | K199: 1072.674937
A200: SRN | B200: C_PR24FM_PBI_115 | C200: 2020-25 RCV - real (BR) | D200: £m | E200: Price Review 2024 | G200: 80.69926325 | H200: 75.70751329 | I200: 71.02453403 | J200: 66.63122608 | K200: 62.50967147
A201: SRN | B201: C_PR24FM_PBI_116 | C201: 2020-25 RCV - real (ADDN1) | D201: £m | E201: Price Review 2024 | G201: 0 | H201: 0 | I201: 0 | J201: 0 | K201: 0
... 173 more rows

Sheet Assumptions
A1: Company | B1: PC | C1: Details / assumptions | D1: Source
A2: Affinity Water [AFW] | B2: Low pressure | C2: P10 performance - we use the company's latest performance data (2022-23), assuming there are no improvements in performance | D2: Affinity Water, 'PR24 Business plan tables - version 7' - OUT10
C3: P90 performance - we use our performance estimations for the company | D3: Ofwat, 'Low Pressure Bespoke PC - PCL model', July 2024
C4: We use 1440 to convert values measured in hh:mm:ss to minutes
C5: Price control allocations as submitted by company | D5: Affinity Water, 'PR24 Business plan tables - version 7' - OUT7
A6: Thames Water [TMS] | B6: Streetworks collaboration | C6: P10 performance - we assume the company delivers 0 collaborative streetworks projects over 2025-30
C7: P90 performance - we use Thames Water' proposed cap of 100 delivered projects over 2025-30 | D7: Thames Water, 'Bespoke PC: Collaboration in London Annex 2', p5
C8: This PC is reported at the end of period, but for the purpose of the modelling we will use annual values
C9: Price control allocations as submitted by company | D9: Thames Water, 'TMS55 PR24 Data tables' - OUT7
A10: Hafren Dyfrdwy [HDD] | B10: Lead pipe replacement | C10: P10 performance - we assume the company delivers the replacement of lead pipes in 0 properties over 2025-30
C11: P90 performance - we use our cap of 0.5% RoRE
C12: Price control allocations as submitted by company | D12: Hafren Dyfrdwy, 'Annex 6F - Bespoke ODI Data Tables'- OUT7
A13: Anglian Water, Severn Trent Water, South West Water, United Utilties | B13: Embedded GHG | C13: Embedded GHG' includes the 4 bespoke PCs focussed on reducing carbon emissions: Lower carbon concrete assets (ANH), Capital carbon (SVE) and Embodied greenhouse gas emissions (SWB and UUW)
A14: Anglian Water [ANH] | B14: Lower carbon concrete assets | C14: P10 performance - we assume the company performs at proposed baseline | D14: Anglian Water, 'ANH03 - PR24 data tables' - OUT10
C15: P90 performance - we assume a performance of 5% higher than the PCL performance
C16: Performance is cumulative
C17: Price control allocations as submitted by company | D17: Anglian Water, 'ANH03 - PR24 data tables' - OUT7
A18: Severn Trent Water [SVE] | B18: Capital carbon | C18: P10 performance - we assume the company performs at baseline proposed in query response
C19: P90 performance - we assume a performance of 5% higher than the PCL performance
C20: Performance is cumulative
C21: Price control allocations as submitted by company | D21: Severn Trent Water, 'Appendix 5b.3 SVE PR24 ODI Data Table Submission' - OUT7
A22: South West Water, South West area [SWB] | B22: Embodied greenhouse gas emissions | C22: P10 performance - we assume the company performs at proposed baseline | D22: South West Water, 'PR24 data tables - bespoke PCs - alternative to OUT10 SWB' - OUT10
C23: Total capital delivery spend as submitted by company in query response
C24: P90 performance - we assume a performance of 5% higher than the PCL performance
C25: Price control allocations as submitted by company | D25: South West Water, 'PR24 data tables - bespoke PCs - alternative to OUT10 SWB' - OUT7
A26: United Utilities [UUW] | B26: Embodied greenhouse gas emissions | C26: P10 performance - given company's proposed baseline already includes a reduction of 22,400tCO2e, as the company explained in a query response, we consider a P10 performance an increase of 22,400 tCO2e relative to the baseline
C27: P90 performance - we assume a performance of 5% higher than the PCL performance
C28: This PC is reported at the end of period, but for the purpose of the modelling we will use annual values.
C29: Performance is cumulative for purpose of modelling
C30: Price control allocations as submitted by company | D30: United Utilities, 'UUW30 Performance Commitments Technical Document', p207
A31: United Utilities [UUW] | B31: Wonderful Windermere | C31: P10 performance - we assume the company does not deliver any phosphorus reduction
C32: P90 performance - we use UUW's proposed cap of 1899.9kg | D32: United Utilities, 'UUW30 Performance Commitments Technical Document', p219
C33: Performance is cumulative
C34: Assumed company breaches cap in year 1 - no payments in following years
C35: Price control allocations as submitted by company | D35: United Utilities, 'UUW30 Performance Commitments Technical Document', p217
A37: END

Sheet RCV Combine
A1: RCV Combine
F2: 10
E3: Company | F3: Measure | G3: Type | H3: Helper | J3: 2025-26 | K3: 2026-27 | L3: 2027-28 | M3: 2028-29 | N3: 2029-30
A7: RCV - real (WR) - [Values for SWB reported under SBB] [Values for BRL reported as ADD1 under SBB]
B9: Pre 2020 RCV - real (WR)
E11: ANH | F11: Pre 2020 RCV - real (WR) | G11: £m | H11: ANH | J11: =SUMIFS(F_Inputs!G$7:G$374,F_Inputs!$A$7:$A$374,$H11,F_Inputs!$C$7:$C$374,$F11) -> 176.3056076 | K11: =SUMIFS(F_Inputs!H$7:H$374,F_Inputs!$A$7:$A$374,$H11,F_Inputs!$C$7:$C$374,$F11) -> 168.7454676 | L11: =SUMIFS(F_Inputs!I$7:I$374,F_Inputs!$A$7:$A$374,$H11,F_Inputs!$C$7:$C$374,$F11) -> 161.5095131 | M11: =SUMIFS(F_Inputs!J$7:J$374,F_Inputs!$A$7:$A$374,$H11,F_Inputs!$C$7:$C$374,$F11) -> 154.5838427 | N11: =SUMIFS(F_Inputs!K$7:K$374,F_Inputs!$A$7:$A$374,$H11,F_Inputs!$C$7:$C$374,$F11) -> 147.9551511
E12: SVE | F12: Pre 2020 RCV - real (WR) | G12: £m | H12: SVE | J12: =SUMIFS(F_Inputs!G$7:G$374,F_Inputs!$A$7:$A$374,$H12,F_Inputs!$C$7:$C$374,$F12) -> 353.7345018 | K12: =SUMIFS(F_Inputs!H$7:H$374,F_Inputs!$A$7:$A$374,$H12,F_Inputs!$C$7:$C$374,$F12) -> 340.0995644 | L12: =SUMIFS(F_Inputs!I$7:I$374,F_Inputs!$A$7:$A$374,$H12,F_Inputs!$C$7:$C$374,$F12) -> 326.990195 | M12: =SUMIFS(F_Inputs!J$7:J$374,F_Inputs!$A$7:$A$374,$H12,F_Inputs!$C$7:$C$374,$F12) -> 314.3861351 | N12: =SUMIFS(F_Inputs!K$7:K$374,F_Inputs!$A$7:$A$374,$H12,F_Inputs!$C$7:$C$374,$F12) -> 302.2679073
E13: SWB | F13: Pre 2020 RCV - real (WR) | G13: £m | H13: SBB | J13: =SUMIFS(F_Inputs!G$7:G$374,F_Inputs!$A$7:$A$374,$H13,F_Inputs!$C$7:$C$374,$F13) -> 142.2150431 | K13: =SUMIFS(F_Inputs!H$7:H$374,F_Inputs!$A$7:$A$374,$H13,F_Inputs!$C$7:$C$374,$F13) -> 138.6581196 | L13: =SUMIFS(F_Inputs!I$7:I$374,F_Inputs!$A$7:$A$374,$H13,F_Inputs!$C$7:$C$374,$F13) -> 135.1901579 | M13: =SUMIFS(F_Inputs!J$7:J$374,F_Inputs!$A$7:$A$374,$H13,F_Inputs!$C$7:$C$374,$F13) -> 131.8089329 | N13: =SUMIFS(F_Inputs!K$7:K$374,F_Inputs!$A$7:$A$374,$H13,F_Inputs!$C$7:$C$374,$F13) -> 128.5122754
E14: TMS | F14: Pre 2020 RCV - real (WR) | G14: £m | H14: TMS | J14: =SUMIFS(F_Inputs!G$7:G$374,F_Inputs!$A$7:$A$374,$H14,F_Inputs!$C$7:$C$374,$F14) -> 288.1497752 | K14: =SUMIFS(F_Inputs!H$7:H$374,F_Inputs!$A$7:$A$374,$H14,F_Inputs!$C$7:$C$374,$F14) -> 278.5255727 | L14: =SUMIFS(F_Inputs!I$7:I$374,F_Inputs!$A$7:$A$374,$H14,F_Inputs!$C$7:$C$374,$F14) -> 269.2228186 | M14: =SUMIFS(F_Inputs!J$7:J$374,F_Inputs!$A$7:$A$374,$H14,F_Inputs!$C$7:$C$374,$F14) -> 260.2307765 | N14: =SUMIFS(F_Inputs!K$7:K$374,F_Inputs!$A$7:$A$374,$H14,F_Inputs!$C$7:$C$374,$F14) -> 251.5390685
E15: UUW | F15: Pre 2020 RCV - real (WR) | G15: £m | H15: NWT | J15: =SUMIFS(F_Inputs!G$7:G$374,F_Inputs!$A$7:$A$374,$H15,F_Inputs!$C$7:$C$374,$F15) -> 596.2332319 | K15: =SUMIFS(F_Inputs!H$7:H$374,F_Inputs!$A$7:$A$374,$H15,F_Inputs!$C$7:$C$374,$F15) -> 580.8725109 | L15: =SUMIFS(F_Inputs!I$7:I$374,F_Inputs!$A$7:$A$374,$H15,F_Inputs!$C$7:$C$374,$F15) -> 564.694583 | M15: =SUMIFS(F_Inputs!J$7:J$374,F_Inputs!$A$7:$A$374,$H15,F_Inputs!$C$7:$C$374,$F15) -> 549.0881646 | N15: =SUMIFS(F_Inputs!K$7:K$374,F_Inputs!$A$7:$A$374,$H15,F_Inputs!$C$7:$C$374,$F15) -> 533.8642936
E16: AFW | F16: Pre 2020 RCV - real (WR) | G16: £m | H16: AFW | J16: =SUMIFS(F_Inputs!G$7:G$374,F_Inputs!$A$7:$A$374,$H16,F_Inputs!$C$7:$C$374,$F16) -> 93.28124608 | K16: =SUMIFS(F_Inputs!H$7:H$374,F_Inputs!$A$7:$A$374,$H16,F_Inputs!$C$7:$C$374,$F16) -> 89.08359001 | L16: =SUMIFS(F_Inputs!I$7:I$374,F_Inputs!$A$7:$A$374,$H16,F_Inputs!$C$7:$C$374,$F16) -> 85.07482846 | M16: =SUMIFS(F_Inputs!J$7:J$374,F_Inputs!$A$7:$A$374,$H16,F_Inputs!$C$7:$C$374,$F16) -> 81.24646118 | N16: =SUMIFS(F_Inputs!K$7:K$374,F_Inputs!$A$7:$A$374,$H16,F_Inputs!$C$7:$C$374,$F16) -> 77.59037042
B18: 2020-25 RCV - real (WR)
E20: ANH | F20: 2020-25 RCV - real (WR) | G20: £m | H20: ANH | J20: =SUMIFS(F_Inputs!G$7:G$374,F_Inputs!$A$7:$A$374,$H20,F_Inputs!$C$7:$C$374,$F20) -> 63.50870167 | K20: =SUMIFS(F_Inputs!H$7:H$374,F_Inputs!$A$7:$A$374,$H20,F_Inputs!$C$7:$C$374,$F20) -> 60.78539251 | L20: =SUMIFS(F_Inputs!I$7:I$374,F_Inputs!$A$7:$A$374,$H20,F_Inputs!$C$7:$C$374,$F20) -> 58.17886125 | M20: =SUMIFS(F_Inputs!J$7:J$374,F_Inputs!$A$7:$A$374,$H20,F_Inputs!$C$7:$C$374,$F20) -> 55.68410035 | N20: =SUMIFS(F_Inputs!K$7:K$374,F_Inputs!$A$7:$A$374,$H20,F_Inputs!$C$7:$C$374,$F20) -> 53.296317
E21: SVE | F21: 2020-25 RCV - real (WR) | G21: £m | H21: SVE | J21: =SUMIFS(F_Inputs!G$7:G$374,F_Inputs!$A$7:$A$374,$H21,F_Inputs!$C$7:$C$374,$F21) -> 130.864564 | K21: =SUMIFS(F_Inputs!H$7:H$374,F_Inputs!$A$7:$A$374,$H21,F_Inputs!$C$7:$C$374,$F21) -> 125.8203002 | L21: =SUMIFS(F_Inputs!I$7:I$374,F_Inputs!$A$7:$A$374,$H21,F_Inputs!$C$7:$C$374,$F21) -> 120.970471 | M21: =SUMIFS(F_Inputs!J$7:J$374,F_Inputs!$A$7:$A$374,$H21,F_Inputs!$C$7:$C$374,$F21) -> 116.3075818 | N21: =SUMIFS(F_Inputs!K$7:K$374,F_Inputs!$A$7:$A$374,$H21,F_Inputs!$C$7:$C$374,$F21) -> 111.8244268
E22: SWB | F22: 2020-25 RCV - real (WR) | G22: £m | H22: SBB | J22: =SUMIFS(F_Inputs!G$7:G$374,F_Inputs!$A$7:$A$374,$H22,F_Inputs!$C$7:$C$374,$F22) -> 121.6160655 | K22: =SUMIFS(F_Inputs!H$7:H$374,F_Inputs!$A$7:$A$374,$H22,F_Inputs!$C$7:$C$374,$F22) -> 118.5743406 | L22: =SUMIFS(F_Inputs!I$7:I$374,F_Inputs!$A$7:$A$374,$H22,F_Inputs!$C$7:$C$374,$F22) -> 115.6086919 | M22: =SUMIFS(F_Inputs!J$7:J$374,F_Inputs!$A$7:$A$374,$H22,F_Inputs!$C$7:$C$374,$F22) -> 112.7172166 | N22: =SUMIFS(F_Inputs!K$7:K$374,F_Inputs!$A$7:$A$374,$H22,F_Inputs!$C$7:$C$374,$F22) -> 109.8980598
E23: TMS | F23: 2020-25 RCV - real (WR) | G23: £m | H23: TMS | J23: =SUMIFS(F_Inputs!G$7:G$374,F_Inputs!$A$7:$A$374,$H23,F_Inputs!$C$7:$C$374,$F23) -> 166.867684 | K23: =SUMIFS(F_Inputs!H$7:H$374,F_Inputs!$A$7:$A$374,$H23,F_Inputs!$C$7:$C$374,$F23) -> 161.2943033 | L23: =SUMIFS(F_Inputs!I$7:I$374,F_Inputs!$A$7:$A$374,$H23,F_Inputs!$C$7:$C$374,$F23) -> 155.9070736 | M23: =SUMIFS(F_Inputs!J$7:J$374,F_Inputs!$A$7:$A$374,$H23,F_Inputs!$C$7:$C$374,$F23) -> 150.6997773 | N23: =SUMIFS(F_Inputs!K$7:K$374,F_Inputs!$A$7:$A$374,$H23,F_Inputs!$C$7:$C$374,$F23) -> 145.6664048
E24: UUW | F24: 2020-25 RCV - real (WR) | G24: £m | H24: NWT | J24: =SUMIFS(F_Inputs!G$7:G$374,F_Inputs!$A$7:$A$374,$H24,F_Inputs!$C$7:$C$374,$F24) -> 105.2472501 | K24: =SUMIFS(F_Inputs!H$7:H$374,F_Inputs!$A$7:$A$374,$H24,F_Inputs!$C$7:$C$374,$F24) -> 102.5357715 | L24: =SUMIFS(F_Inputs!I$7:I$374,F_Inputs!$A$7:$A$374,$H24,F_Inputs!$C$7:$C$374,$F24) -> 99.68003933 | M24: =SUMIFS(F_Inputs!J$7:J$374,F_Inputs!$A$7:$A$374,$H24,F_Inputs!$C$7:$C$374,$F24) -> 96.92519015 | N24: =SUMIFS(F_Inputs!K$7:K$374,F_Inputs!$A$7:$A$374,$H24,F_Inputs!$C$7:$C$374,$F24) -> 94.23786837
E25: AFW | F25: 2020-25 RCV - real (WR) | G25: £m | H25: AFW | J25: =SUMIFS(F_Inputs!G$7:G$374,F_Inputs!$A$7:$A$374,$H25,F_Inputs!$C$7:$C$374,$F25) -> 109.359962 | K25: =SUMIFS(F_Inputs!H$7:H$374,F_Inputs!$A$7:$A$374,$H25,F_Inputs!$C$7:$C$374,$F25) -> 104.4387637 | L25: =SUMIFS(F_Inputs!I$7:I$374,F_Inputs!$A$7:$A$374,$H25,F_Inputs!$C$7:$C$374,$F25) -> 99.73901931 | M25: =SUMIFS(F_Inputs!J$7:J$374,F_Inputs!$A$7:$A$374,$H25,F_Inputs!$C$7:$C$374,$F25) -> 95.25076344 | N25: =SUMIFS(F_Inputs!K$7:K$374,F_Inputs!$A$7:$A$374,$H25,F_Inputs!$C$7:$C$374,$F25) -> 90.96447909
B27: Post 2025 RCV - real (WR)
E29: ANH | F29: Post 2025 RCV - real (WR) | G29: £m | H29: ANH | J29: =SUMIFS(F_Inputs!G$7:G$374,F_Inputs!$A$7:$A$374,$H29,F_Inputs!$C$7:$C$374,$F29) -> 166.7440685 | K29: =SUMIFS(F_Inputs!H$7:H$374,F_Inputs!$A$7:$A$374,$H29,F_Inputs!$C$7:$C$374,$F29) -> 317.0056807 | L29: =SUMIFS(F_Inputs!I$7:I$374,F_Inputs!$A$7:$A$374,$H29,F_Inputs!$C$7:$C$374,$F29) -> 491.8844915 | M29: =SUMIFS(F_Inputs!J$7:J$374,F_Inputs!$A$7:$A$374,$H29,F_Inputs!$C$7:$C$374,$F29) -> 634.3012573 | N29: =SUMIFS(F_Inputs!K$7:K$374,F_Inputs!$A$7:$A$374,$H29,F_Inputs!$C$7:$C$374,$F29) -> 690.0552758
E30: SVE | F30: Post 2025 RCV - real (WR) | G30: £m | H30: SVE | J30: =SUMIFS(F_Inputs!G$7:G$374,F_Inputs!$A$7:$A$374,$H30,F_Inputs!$C$7:$C$374,$F30) -> 107.7393951 | K30: =SUMIFS(F_Inputs!H$7:H$374,F_Inputs!$A$7:$A$374,$H30,F_Inputs!$C$7:$C$374,$F30) -> 205.2519901 | L30: =SUMIFS(F_Inputs!I$7:I$374,F_Inputs!$A$7:$A$374,$H30,F_Inputs!$C$7:$C$374,$F30) -> 286.7021043 | M30: =SUMIFS(F_Inputs!J$7:J$374,F_Inputs!$A$7:$A$374,$H30,F_Inputs!$C$7:$C$374,$F30) -> 351.5629108 | N30: =SUMIFS(F_Inputs!K$7:K$374,F_Inputs!$A$7:$A$374,$H30,F_Inputs!$C$7:$C$374,$F30) -> 413.1815311
E31: SWB | F31: Post 2025 RCV - real (WR) | G31: £m | H31: SBB | J31: =SUMIFS(F_Inputs!G$7:G$374,F_Inputs!$A$7:$A$374,$H31,F_Inputs!$C$7:$C$374,$F31) -> 18.83653627 | K31: =SUMIFS(F_Inputs!H$7:H$374,F_Inputs!$A$7:$A$374,$H31,F_Inputs!$C$7:$C$374,$F31) -> 33.51140802 | L31: =SUMIFS(F_Inputs!I$7:I$374,F_Inputs!$A$7:$A$374,$H31,F_Inputs!$C$7:$C$374,$F31) -> 50.88169459 | M31: =SUMIFS(F_Inputs!J$7:J$374,F_Inputs!$A$7:$A$374,$H31,F_Inputs!$C$7:$C$374,$F31) -> 78.83396602 | N31: =SUMIFS(F_Inputs!K$7:K$374,F_Inputs!$A$7:$A$374,$H31,F_Inputs!$C$7:$C$374,$F31) -> 110.6413313
E32: TMS | F32: Post 2025 RCV - real (WR) | G32: £m | H32: TMS | J32: =SUMIFS(F_Inputs!G$7:G$374,F_Inputs!$A$7:$A$374,$H32,F_Inputs!$C$7:$C$374,$F32) -> 71.72746614 | K32: =SUMIFS(F_Inputs!H$7:H$374,F_Inputs!$A$7:$A$374,$H32,F_Inputs!$C$7:$C$374,$F32) -> 154.3608301 | L32: =SUMIFS(F_Inputs!I$7:I$374,F_Inputs!$A$7:$A$374,$H32,F_Inputs!$C$7:$C$374,$F32) -> 240.1100282 | M32: =SUMIFS(F_Inputs!J$7:J$374,F_Inputs!$A$7:$A$374,$H32,F_Inputs!$C$7:$C$374,$F32) -> 303.2544985 | N32: =SUMIFS(F_Inputs!K$7:K$374,F_Inputs!$A$7:$A$374,$H32,F_Inputs!$C$7:$C$374,$F32) -> 371.7301979
E33: UUW | F33: Post 2025 RCV - real (WR) | G33: £m | H33: NWT | J33: =SUMIFS(F_Inputs!G$7:G$374,F_Inputs!$A$7:$A$374,$H33,F_Inputs!$C$7:$C$374,$F33) -> 64.36654608 | K33: =SUMIFS(F_Inputs!H$7:H$374,F_Inputs!$A$7:$A$374,$H33,F_Inputs!$C$7:$C$374,$F33) -> 114.0612235 | L33: =SUMIFS(F_Inputs!I$7:I$374,F_Inputs!$A$7:$A$374,$H33,F_Inputs!$C$7:$C$374,$F33) -> 177.8122537 | M33: =SUMIFS(F_Inputs!J$7:J$374,F_Inputs!$A$7:$A$374,$H33,F_Inputs!$C$7:$C$374,$F33) -> 226.479416 | N33: =SUMIFS(F_Inputs!K$7:K$374,F_Inputs!$A$7:$A$374,$H33,F_Inputs!$C$7:$C$374,$F33) -> 257.8842109
E34: AFW | F34: Post 2025 RCV - real (WR) | G34: £m | H34: AFW | J34: =SUMIFS(F_Inputs!G$7:G$374,F_Inputs!$A$7:$A$374,$H34,F_Inputs!$C$7:$C$374,$F34) -> 25.12561924 | K34: =SUMIFS(F_Inputs!H$7:H$374,F_Inputs!$A$7:$A$374,$H34,F_Inputs!$C$7:$C$374,$F34) -> 47.39972079 | L34: =SUMIFS(F_Inputs!I$7:I$374,F_Inputs!$A$7:$A$374,$H34,F_Inputs!$C$7:$C$374,$F34) -> 67.40259289 | M34: =SUMIFS(F_Inputs!J$7:J$374,F_Inputs!$A$7:$A$374,$H34,F_Inputs!$C$7:$C$374,$F34) -> 78.04739566 | N34: =SUMIFS(F_Inputs!K$7:K$374,F_Inputs!$A$7:$A$374,$H34,F_Inputs!$C$7:$C$374,$F34) -> 86.38000879
B36: Closing RCV - real (WR)
E38: ANH | F38: Closing RCV - real (WR) | G38: £m | H38: ANH | J38: =SUM(J11,J20,J29) -> 406.5583777 | K38: 546.5365408 | L38: 711.5728659 | M38: 844.5692003 | N38: 891.3067439
E39: SVE | F39: Closing RCV - real (WR) | G39: £m | H39: SVE | J39: 592.3384609 | K39: 671.1718547 | L39: 734.6627703 | M39: 782.2566277 | N39: 827.2738652
E40: SWB | F40: Closing RCV - real (WR) | G40: £m | H40: SBB | J40: 282.6676448 | K40: 290.7438682 | L40: 301.6805443 | M40: 323.3601156 | N40: 349.0516664
E41: TMS | F41: Closing RCV - real (WR) | G41: £m | H41: TMS | J41: 526.7449253 | K41: 594.1807061 | L41: 665.2399204 | M41: 714.1850523 | N41: 768.9356712
E42: UUW | F42: Closing RCV - real (WR) | G42: £m | H42: NWT | J42: 765.8470281 | K42: 797.4695059 | L42: 842.1868761 | M42: 872.4927707 | N42: 885.9863729
E43: AFW | F43: Closing RCV - real (WR) | G43: £m | H43: AFW | J43: 227.7668273 | K43: 240.9220745 | L43: 252.2164407 | M43: 254.5446203 | N43: 254.9348583
A45: RCV - real (WN) - [Values for SWB reported under SBB] [Values for BRL reported as ADD2 under SBB]
B47: Pre 2020 RCV - real (WN)
E49: ANH | F49: Pre 2020 RCV - real (WN) | G49: £m | H49: ANH | J49: =SUMIFS(F_Inputs!G$7:G$374,F_Inputs!$A$7:$A$374,$H49,F_Inputs!$C$7:$C$374,$F49) -> 2657.887135 | K49: =SUMIFS(F_Inputs!H$7:H$374,F_Inputs!$A$7:$A$374,$H49,F_Inputs!$C$7:$C$374,$F49) -> 2558.857657 | L49: =SUMIFS(F_Inputs!I$7:I$374,F_Inputs!$A$7:$A$374,$H49,F_Inputs!$C$7:$C$374,$F49) -> 2463.51789 | M49: =SUMIFS(F_Inputs!J$7:J$374,F_Inputs!$A$7:$A$374,$H49,F_Inputs!$C$7:$C$374,$F49) -> 2371.730362 | N49: =SUMIFS(F_Inputs!K$7:K$374,F_Inputs!$A$7:$A$374,$H49,F_Inputs!$C$7:$C$374,$F49) -> 2283.362719
E50: SVE | F50: Pre 2020 RCV - real (WN) | G50: £m | H50: SVE | J50: =SUMIFS(F_Inputs!G$7:G$374,F_Inputs!$A$7:$A$374,$H50,F_Inputs!$C$7:$C$374,$F50) -> 3856.002541 | K50: =SUMIFS(F_Inputs!H$7:H$374,F_Inputs!$A$7:$A$374,$H50,F_Inputs!$C$7:$C$374,$F50) -> 3681.152182 | L50: =SUMIFS(F_Inputs!I$7:I$374,F_Inputs!$A$7:$A$374,$H50,F_Inputs!$C$7:$C$374,$F50) -> 3514.230409 | M50: =SUMIFS(F_Inputs!J$7:J$374,F_Inputs!$A$7:$A$374,$H50,F_Inputs!$C$7:$C$374,$F50) -> 3354.8777 | N50: =SUMIFS(F_Inputs!K$7:K$374,F_Inputs!$A$7:$A$374,$H50,F_Inputs!$C$7:$C$374,$F50) -> 3202.750837
E51: SWB | F51: Pre 2020 RCV - real (WN) | G51: £m | H51: SBB | J51: =SUMIFS(F_Inputs!G$7:G$374,F_Inputs!$A$7:$A$374,$H51,F_Inputs!$C$7:$C$374,$F51) -> 1295.927109 | K51: =SUMIFS(F_Inputs!H$7:H$374,F_Inputs!$A$7:$A$374,$H51,F_Inputs!$C$7:$C$374,$F51) -> 1240.514877 | L51: =SUMIFS(F_Inputs!I$7:I$374,F_Inputs!$A$7:$A$374,$H51,F_Inputs!$C$7:$C$374,$F51) -> 1187.472004 | M51: =SUMIFS(F_Inputs!J$7:J$374,F_Inputs!$A$7:$A$374,$H51,F_Inputs!$C$7:$C$374,$F51) -> 1136.697179 | N51: =SUMIFS(F_Inputs!K$7:K$374,F_Inputs!$A$7:$A$374,$H51,F_Inputs!$C$7:$C$374,$F51) -> 1088.093421
E52: TMS | F52: Pre 2020 RCV - real (WN) | G52: £m | H52: TMS | J52: =SUMIFS(F_Inputs!G$7:G$374,F_Inputs!$A$7:$A$374,$H52,F_Inputs!$C$7:$C$374,$F52) -> 5618.61299 | K52: =SUMIFS(F_Inputs!H$7:H$374,F_Inputs!$A$7:$A$374,$H52,F_Inputs!$C$7:$C$374,$F52) -> 5390.497302 | L52: =SUMIFS(F_Inputs!I$7:I$374,F_Inputs!$A$7:$A$374,$H52,F_Inputs!$C$7:$C$374,$F52) -> 5171.643112 | M52: =SUMIFS(F_Inputs!J$7:J$374,F_Inputs!$A$7:$A$374,$H52,F_Inputs!$C$7:$C$374,$F52) -> 4961.674402 | N52: =SUMIFS(F_Inputs!K$7:K$374,F_Inputs!$A$7:$A$374,$H52,F_Inputs!$C$7:$C$374,$F52) -> 4760.230421
E53: UUW | F53: Pre 2020 RCV - real (WN) | G53: £m | H53: NWT | J53: =SUMIFS(F_Inputs!G$7:G$374,F_Inputs!$A$7:$A$374,$H53,F_Inputs!$C$7:$C$374,$F53) -> 2990.330491 | K53: =SUMIFS(F_Inputs!H$7:H$374,F_Inputs!$A$7:$A$374,$H53,F_Inputs!$C$7:$C$374,$F53) -> 2834.921578 | L53: =SUMIFS(F_Inputs!I$7:I$374,F_Inputs!$A$7:$A$374,$H53,F_Inputs!$C$7:$C$374,$F53) -> 2690.354279 | M53: =SUMIFS(F_Inputs!J$7:J$374,F_Inputs!$A$7:$A$374,$H53,F_Inputs!$C$7:$C$374,$F53) -> 2552.74321 | N53: =SUMIFS(F_Inputs!K$7:K$374,F_Inputs!$A$7:$A$374,$H53,F_Inputs!$C$7:$C$374,$F53) -> 2419.799809
E54: AFW | F54: Pre 2020 RCV - real (WN) | G54: £m | H54: AFW | J54: =SUMIFS(F_Inputs!G$7:G$374,F_Inputs!$A$7:$A$374,$H54,F_Inputs!$C$7:$C$374,$F54) -> 987.3376095 | K54: =SUMIFS(F_Inputs!H$7:H$374,F_Inputs!$A$7:$A$374,$H54,F_Inputs!$C$7:$C$374,$F54) -> 945.7717603 | L54: =SUMIFS(F_Inputs!I$7:I$374,F_Inputs!$A$7:$A$374,$H54,F_Inputs!$C$7:$C$374,$F54) -> 905.9557885 | M54: =SUMIFS(F_Inputs!J$7:J$374,F_Inputs!$A$7:$A$374,$H54,F_Inputs!$C$7:$C$374,$F54) -> 867.8160262 | N54: =SUMIFS(F_Inputs!K$7:K$374,F_Inputs!$A$7:$A$374,$H54,F_Inputs!$C$7:$C$374,$F54) -> 831.2819068
B56: 2020-25 RCV - real (WN)
E58: ANH | F58: 2020-25 RCV - real (WN) | G58: £m | H58: ANH | J58: =SUMIFS(F_Inputs!G$7:G$374,F_Inputs!$A$7:$A$374,$H58,F_Inputs!$C$7:$C$374,$F58) -> 1171.014605 | K58: =SUMIFS(F_Inputs!H$7:H$374,F_Inputs!$A$7:$A$374,$H58,F_Inputs!$C$7:$C$374,$F58) -> 1127.384097 | L58: =SUMIFS(F_Inputs!I$7:I$374,F_Inputs!$A$7:$A$374,$H58,F_Inputs!$C$7:$C$374,$F58) -> 1085.379206 | M58: =SUMIFS(F_Inputs!J$7:J$374,F_Inputs!$A$7:$A$374,$H58,F_Inputs!$C$7:$C$374,$F58) -> 1044.939364 | N58: =SUMIFS(F_Inputs!K$7:K$374,F_Inputs!$A$7:$A$374,$H58,F_Inputs!$C$7:$C$374,$F58) -> 1006.006258
E59: SVE | F59: 2020-25 RCV - real (WN) | G59: £m | H59: SVE | J59: =SUMIFS(F_Inputs!G$7:G$374,F_Inputs!$A$7:$A$374,$H59,F_Inputs!$C$7:$C$374,$F59) -> 1459.809769 | K59: =SUMIFS(F_Inputs!H$7:H$374,F_Inputs!$A$7:$A$374,$H59,F_Inputs!$C$7:$C$374,$F59) -> 1393.614723 | L59: =SUMIFS(F_Inputs!I$7:I$374,F_Inputs!$A$7:$A$374,$H59,F_Inputs!$C$7:$C$374,$F59) -> 1330.421291 | M59: =SUMIFS(F_Inputs!J$7:J$374,F_Inputs!$A$7:$A$374,$H59,F_Inputs!$C$7:$C$374,$F59) -> 1270.093364 | N59: =SUMIFS(F_Inputs!K$7:K$374,F_Inputs!$A$7:$A$374,$H59,F_Inputs!$C$7:$C$374,$F59) -> 1212.501006
E60: SWB | F60: 2020-25 RCV - real (WN) | G60: £m | H60: SBB | J60: =SUMIFS(F_Inputs!G$7:G$374,F_Inputs!$A$7:$A$374,$H60,F_Inputs!$C$7:$C$374,$F60) -> 491.277406 | K60: =SUMIFS(F_Inputs!H$7:H$374,F_Inputs!$A$7:$A$374,$H60,F_Inputs!$C$7:$C$374,$F60) -> 470.2709952 | L60: =SUMIFS(F_Inputs!I$7:I$374,F_Inputs!$A$7:$A$374,$H60,F_Inputs!$C$7:$C$374,$F60) -> 450.1627924 | M60: =SUMIFS(F_Inputs!J$7:J$374,F_Inputs!$A$7:$A$374,$H60,F_Inputs!$C$7:$C$374,$F60) -> 430.9143914 | N60: =SUMIFS(F_Inputs!K$7:K$374,F_Inputs!$A$7:$A$374,$H60,F_Inputs!$C$7:$C$374,$F60) -> 412.489028
E61: TMS | F61: 2020-25 RCV - real (WN) | G61: £m | H61: TMS | J61: =SUMIFS(F_Inputs!G$7:G$374,F_Inputs!$A$7:$A$374,$H61,F_Inputs!$C$7:$C$374,$F61) -> 2387.059023 | K61: =SUMIFS(F_Inputs!H$7:H$374,F_Inputs!$A$7:$A$374,$H61,F_Inputs!$C$7:$C$374,$F61) -> 2290.144427 | L61: =SUMIFS(F_Inputs!I$7:I$374,F_Inputs!$A$7:$A$374,$H61,F_Inputs!$C$7:$C$374,$F61) -> 2197.164563 | M61: =SUMIFS(F_Inputs!J$7:J$374,F_Inputs!$A$7:$A$374,$H61,F_Inputs!$C$7:$C$374,$F61) -> 2107.959682 | N61: =SUMIFS(F_Inputs!K$7:K$374,F_Inputs!$A$7:$A$374,$H61,F_Inputs!$C$7:$C$374,$F61) -> 2022.376519
E62: UUW | F62: 2020-25 RCV - real (WN) | G62: £m | H62: NWT | J62: =SUMIFS(F_Inputs!G$7:G$374,F_Inputs!$A$7:$A$374,$H62,F_Inputs!$C$7:$C$374,$F62) -> 684.8196196 | K62: =SUMIFS(F_Inputs!H$7:H$374,F_Inputs!$A$7:$A$374,$H62,F_Inputs!$C$7:$C$374,$F62) -> 649.2292148 | L62: =SUMIFS(F_Inputs!I$7:I$374,F_Inputs!$A$7:$A$374,$H62,F_Inputs!$C$7:$C$374,$F62) -> 616.1216629 | M62: =SUMIFS(F_Inputs!J$7:J$374,F_Inputs!$A$7:$A$374,$H62,F_Inputs!$C$7:$C$374,$F62) -> 584.6071662 | N62: =SUMIFS(F_Inputs!K$7:K$374,F_Inputs!$A$7:$A$374,$H62,F_Inputs!$C$7:$C$374,$F62) -> 554.1616185
E63: AFW | F63: 2020-25 RCV - real (WN) | G63: £m | H63: AFW | J63: =SUMIFS(F_Inputs!G$7:G$374,F_Inputs!$A$7:$A$374,$H63,F_Inputs!$C$7:$C$374,$F63) -> 464.4689275 | K63: =SUMIFS(F_Inputs!H$7:H$374,F_Inputs!$A$7:$A$374,$H63,F_Inputs!$C$7:$C$374,$F63) -> 444.9152863 | L63: =SUMIFS(F_Inputs!I$7:I$374,F_Inputs!$A$7:$A$374,$H63,F_Inputs!$C$7:$C$374,$F63) -> 426.1848322 | M63: =SUMIFS(F_Inputs!J$7:J$374,F_Inputs!$A$7:$A$374,$H63,F_Inputs!$C$7:$C$374,$F63) -> 408.2429101 | N63: =SUMIFS(F_Inputs!K$7:K$374,F_Inputs!$A$7:$A$374,$H63,F_Inputs!$C$7:$C$374,$F63) -> 391.0563236
B65: Post 2025 RCV - real (WN)
E67: ANH | F67: Post 2025 RCV - real (WN) | G67: £m | H67: ANH | J67: =SUMIFS(F_Inputs!G$7:G$374,F_Inputs!$A$7:$A$374,$H67,F_Inputs!$C$7:$C$374,$F67) -> 308.5696081 | K67: =SUMIFS(F_Inputs!H$7:H$374,F_Inputs!$A$7:$A$374,$H67,F_Inputs!$C$7:$C$374,$F67) -> 687.2599572 | L67: =SUMIFS(F_Inputs!I$7:I$374,F_Inputs!$A$7:$A$374,$H67,F_Inputs!$C$7:$C$374,$F67) -> 1118.494878 | M67: =SUMIFS(F_Inputs!J$7:J$374,F_Inputs!$A$7:$A$374,$H67,F_Inputs!$C$7:$C$374,$F67) -> 1517.182893 | N67: =SUMIFS(F_Inputs!K$7:K$374,F_Inputs!$A$7:$A$374,$H67,F_Inputs!$C$7:$C$374,$F67) -> 1959.283983
E68: SVE | F68: Post 2025 RCV - real (WN) | G68: £m | H68: SVE | J68: =SUMIFS(F_Inputs!G$7:G$374,F_Inputs!$A$7:$A$374,$H68,F_Inputs!$C$7:$C$374,$F68) -> 418.5353643 | K68: =SUMIFS(F_Inputs!H$7:H$374,F_Inputs!$A$7:$A$374,$H68,F_Inputs!$C$7:$C$374,$F68) -> 865.1966235 | L68: =SUMIFS(F_Inputs!I$7:I$374,F_Inputs!$A$7:$A$374,$H68,F_Inputs!$C$7:$C$374,$F68) -> 1372.553281 | M68: =SUMIFS(F_Inputs!J$7:J$374,F_Inputs!$A$7:$A$374,$H68,F_Inputs!$C$7:$C$374,$F68) -> 1804.604115 | N68: =SUMIFS(F_Inputs!K$7:K$374,F_Inputs!$A$7:$A$374,$H68,F_Inputs!$C$7:$C$374,$F68) -> 2115.213069
E69: SWB | F69: Post 2025 RCV - real (WN) | G69: £m | H69: SBB | J69: =SUMIFS(F_Inputs!G$7:G$374,F_Inputs!$A$7:$A$374,$H69,F_Inputs!$C$7:$C$374,$F69) -> 146.614703 | K69: =SUMIFS(F_Inputs!H$7:H$374,F_Inputs!$A$7:$A$374,$H69,F_Inputs!$C$7:$C$374,$F69) -> 271.3290981 | L69: =SUMIFS(F_Inputs!I$7:I$374,F_Inputs!$A$7:$A$374,$H69,F_Inputs!$C$7:$C$374,$F69) -> 372.2753666 | M69: =SUMIFS(F_Inputs!J$7:J$374,F_Inputs!$A$7:$A$374,$H69,F_Inputs!$C$7:$C$374,$F69) -> 455.1361713 | N69: =SUMIFS(F_Inputs!K$7:K$374,F_Inputs!$A$7:$A$374,$H69,F_Inputs!$C$7:$C$374,$F69) -> 513.0879245
E70: TMS | F70: Post 2025 RCV - real (WN) | G70: £m | H70: TMS | J70: =SUMIFS(F_Inputs!G$7:G$374,F_Inputs!$A$7:$A$374,$H70,F_Inputs!$C$7:$C$374,$F70) -> 816.8276673 | K70: =SUMIFS(F_Inputs!H$7:H$374,F_Inputs!$A$7:$A$374,$H70,F_Inputs!$C$7:$C$374,$F70) -> 1663.350975 | L70: =SUMIFS(F_Inputs!I$7:I$374,F_Inputs!$A$7:$A$374,$H70,F_Inputs!$C$7:$C$374,$F70) -> 2509.167961 | M70: =SUMIFS(F_Inputs!J$7:J$374,F_Inputs!$A$7:$A$374,$H70,F_Inputs!$C$7:$C$374,$F70) -> 3335.884668 | N70: =SUMIFS(F_Inputs!K$7:K$374,F_Inputs!$A$7:$A$374,$H70,F_Inputs!$C$7:$C$374,$F70) -> 4335.059768
E71: UUW | F71: Post 2025 RCV - real (WN) | G71: £m | H71: NWT | J71: =SUMIFS(F_Inputs!G$7:G$374,F_Inputs!$A$7:$A$374,$H71,F_Inputs!$C$7:$C$374,$F71) -> 285.9747225 | K71: =SUMIFS(F_Inputs!H$7:H$374,F_Inputs!$A$7:$A$374,$H71,F_Inputs!$C$7:$C$374,$F71) -> 544.7229785 | L71: =SUMIFS(F_Inputs!I$7:I$374,F_Inputs!$A$7:$A$374,$H71,F_Inputs!$C$7:$C$374,$F71) -> 830.8551556 | M71: =SUMIFS(F_Inputs!J$7:J$374,F_Inputs!$A$7:$A$374,$H71,F_Inputs!$C$7:$C$374,$F71) -> 1054.653029 | N71: =SUMIFS(F_Inputs!K$7:K$374,F_Inputs!$A$7:$A$374,$H71,F_Inputs!$C$7:$C$374,$F71) -> 1230.039667
E72: AFW | F72: Post 2025 RCV - real (WN) | G72: £m | H72: AFW | J72: =SUMIFS(F_Inputs!G$7:G$374,F_Inputs!$A$7:$A$374,$H72,F_Inputs!$C$7:$C$374,$F72) -> 153.5177553 | K72: =SUMIFS(F_Inputs!H$7:H$374,F_Inputs!$A$7:$A$374,$H72,F_Inputs!$C$7:$C$374,$F72) -> 319.3217385 | L72: =SUMIFS(F_Inputs!I$7:I$374,F_Inputs!$A$7:$A$374,$H72,F_Inputs!$C$7:$C$374,$F72) -> 474.3821126 | M72: =SUMIFS(F_Inputs!J$7:J$374,F_Inputs!$A$7:$A$374,$H72,F_Inputs!$C$7:$C$374,$F72) -> 611.1035159 | N72: =SUMIFS(F_Inputs!K$7:K$374,F_Inputs!$A$7:$A$374,$H72,F_Inputs!$C$7:$C$374,$F72) -> 697.8829708
B74: Closing RCV - real (WN)
E76: ANH | F76: Closing RCV - real (WN) | G76: £m | H76: ANH | J76: =SUM(J49,J58,J67) -> 4137.471348 | K76: 4373.501711 | L76: 4667.391974 | M76: 4933.852618 | N76: 5248.652961
E77: SVE | F77: Closing RCV - real (WN) | G77: £m | H77: SVE | J77: 5734.347674 | K77: 5939.963529 | L77: 6217.204981 | M77: 6429.575179 | N77: 6530.464912
E78: SWB | F78: Closing RCV - real (WN) | G78: £m | H78: SBB | J78: 1933.819218 | K78: 1982.114971 | L78: 2009.910163 | M78: 2022.747741 | N78: 2013.670374
E79: TMS | F79: Closing RCV - real (WN) | G79: £m | H79: TMS | J79: 8822.49968 | K79: 9343.992704 | L79: 9877.975636 | M79: 10405.51875 | N79: 11117.66671
E80: UUW | F80: Closing RCV - real (WN) | G80: £m | H80: NWT | J80: 3961.124833 | K80: 4028.873771 | L80: 4137.331098 | M80: 4192.003406 | N80: 4204.001095
E81: AFW | F81: Closing RCV - real (WN) | G81: £m | H81: AFW | J81: 1605.324292 | K81: 1710.008785 | L81: 1806.522733 | M81: 1887.162452 | N81: 1920.221201
A83: RCV - real (BR) - [Values for SWB reported under SBB]
B85: Pre 2020 RCV - real (BR)
E87: ANH | F87: Pre 2020 RCV - real (BR) | G87: £m | H87: ANH | J87: =SUMIFS(F_Inputs!G$7:G$374,F_Inputs!$A$7:$A$374,$H87,F_Inputs!$C$7:$C$374,$F87) -> 273.0708724 | K87: =SUMIFS(F_Inputs!H$7:H$374,F_Inputs!$A$7:$A$374,$H87,F_Inputs!$C$7:$C$374,$F87) -> 257.4581791 | L87: =SUMIFS(F_Inputs!I$7:I$374,F_Inputs!$A$7:$A$374,$H87,F_Inputs!$C$7:$C$374,$F87) -> 242.738134 | M87: =SUMIFS(F_Inputs!J$7:J$374,F_Inputs!$A$7:$A$374,$H87,F_Inputs!$C$7:$C$374,$F87) -> 228.8597002 | N87: =SUMIFS(F_Inputs!K$7:K$374,F_Inputs!$A$7:$A$374,$H87,F_Inputs!$C$7:$C$374,$F87) -> 215.774759
E88: SVE | F88: Pre 2020 RCV - real (BR) | G88: £m | H88: SVE | J88: =SUMIFS(F_Inputs!G$7:G$374,F_Inputs!$A$7:$A$374,$H88,F_Inputs!$C$7:$C$374,$F88) -> 408.2200135 | K88: =SUMIFS(F_Inputs!H$7:H$374,F_Inputs!$A$7:$A$374,$H88,F_Inputs!$C$7:$C$374,$F88) -> 381.5122215 | L88: =SUMIFS(F_Inputs!I$7:I$374,F_Inputs!$A$7:$A$374,$H88,F_Inputs!$C$7:$C$374,$F88) -> 356.5517866 | M88: =SUMIFS(F_Inputs!J$7:J$374,F_Inputs!$A$7:$A$374,$H88,F_Inputs!$C$7:$C$374,$F88) -> 333.224388 | N88: =SUMIFS(F_Inputs!K$7:K$374,F_Inputs!$A$7:$A$374,$H88,F_Inputs!$C$7:$C$374,$F88) -> 311.4231844
E89: SWB | F89: Pre 2020 RCV - real (BR) | G89: £m | H89: SBB | J89: =SUMIFS(F_Inputs!G$7:G$374,F_Inputs!$A$7:$A$374,$H89,F_Inputs!$C$7:$C$374,$F89) -> 57.5390474 | K89: =SUMIFS(F_Inputs!H$7:H$374,F_Inputs!$A$7:$A$374,$H89,F_Inputs!$C$7:$C$374,$F89) -> 53.38024771 | L89: =SUMIFS(F_Inputs!I$7:I$374,F_Inputs!$A$7:$A$374,$H89,F_Inputs!$C$7:$C$374,$F89) -> 49.52203719 | M89: =SUMIFS(F_Inputs!J$7:J$374,F_Inputs!$A$7:$A$374,$H89,F_Inputs!$C$7:$C$374,$F89) -> 45.94268991 | N89: =SUMIFS(F_Inputs!K$7:K$374,F_Inputs!$A$7:$A$374,$H89,F_Inputs!$C$7:$C$374,$F89) -> 42.62205021
E90: TMS | F90: Pre 2020 RCV - real (BR) | G90: £m | H90: TMS | J90: =SUMIFS(F_Inputs!G$7:G$374,F_Inputs!$A$7:$A$374,$H90,F_Inputs!$C$7:$C$374,$F90) -> 1395.992502 | K90: =SUMIFS(F_Inputs!H$7:H$374,F_Inputs!$A$7:$A$374,$H90,F_Inputs!$C$7:$C$374,$F90) -> 1328.147266 | L90: =SUMIFS(F_Inputs!I$7:I$374,F_Inputs!$A$7:$A$374,$H90,F_Inputs!$C$7:$C$374,$F90) -> 1263.599309 | M90: =SUMIFS(F_Inputs!J$7:J$374,F_Inputs!$A$7:$A$374,$H90,F_Inputs!$C$7:$C$374,$F90) -> 1202.188383 | N90: =SUMIFS(F_Inputs!K$7:K$374,F_Inputs!$A$7:$A$374,$H90,F_Inputs!$C$7:$C$374,$F90) -> 1143.762027
E91: UUW | F91: Pre 2020 RCV - real (BR) | G91: £m | H91: NWT | J91: =SUMIFS(F_Inputs!G$7:G$374,F_Inputs!$A$7:$A$374,$H91,F_Inputs!$C$7:$C$374,$F91) -> 304.0193517 | K91: =SUMIFS(F_Inputs!H$7:H$374,F_Inputs!$A$7:$A$374,$H91,F_Inputs!$C$7:$C$374,$F91) -> 279.6978036 | L91: =SUMIFS(F_Inputs!I$7:I$374,F_Inputs!$A$7:$A$374,$H91,F_Inputs!$C$7:$C$374,$F91) -> 257.3219793 | M91: =SUMIFS(F_Inputs!J$7:J$374,F_Inputs!$A$7:$A$374,$H91,F_Inputs!$C$7:$C$374,$F91) -> 236.736221 | N91: =SUMIFS(F_Inputs!K$7:K$374,F_Inputs!$A$7:$A$374,$H91,F_Inputs!$C$7:$C$374,$F91) -> 217.7973233
E92: AFW | F92: Pre 2020 RCV - real (BR) | G92: £m
B94: 2020-25 RCV - real (BR)
E96: ANH | F96: 2020-25 RCV - real (BR) | G96: £m | H96: ANH | J96: =SUMIFS(F_Inputs!G$7:G$374,F_Inputs!$A$7:$A$374,$H96,F_Inputs!$C$7:$C$374,$F96) -> 65.24837656 | K96: =SUMIFS(F_Inputs!H$7:H$374,F_Inputs!$A$7:$A$374,$H96,F_Inputs!$C$7:$C$374,$F96) -> 61.51783262 | L96: =SUMIFS(F_Inputs!I$7:I$374,F_Inputs!$A$7:$A$374,$H96,F_Inputs!$C$7:$C$374,$F96) -> 58.0005807 | M96: =SUMIFS(F_Inputs!J$7:J$374,F_Inputs!$A$7:$A$374,$H96,F_Inputs!$C$7:$C$374,$F96) -> 54.68442594 | N96: =SUMIFS(F_Inputs!K$7:K$374,F_Inputs!$A$7:$A$374,$H96,F_Inputs!$C$7:$C$374,$F96) -> 51.5578707
E97: SVE | F97: 2020-25 RCV - real (BR) | G97: £m | H97: SVE | J97: =SUMIFS(F_Inputs!G$7:G$374,F_Inputs!$A$7:$A$374,$H97,F_Inputs!$C$7:$C$374,$F97) -> 178.2221121 | K97: =SUMIFS(F_Inputs!H$7:H$374,F_Inputs!$A$7:$A$374,$H97,F_Inputs!$C$7:$C$374,$F97) -> 166.5619315 | L97: =SUMIFS(F_Inputs!I$7:I$374,F_Inputs!$A$7:$A$374,$H97,F_Inputs!$C$7:$C$374,$F97) -> 155.6646181 | M97: =SUMIFS(F_Inputs!J$7:J$374,F_Inputs!$A$7:$A$374,$H97,F_Inputs!$C$7:$C$374,$F97) -> 145.4802613 | N97: =SUMIFS(F_Inputs!K$7:K$374,F_Inputs!$A$7:$A$374,$H97,F_Inputs!$C$7:$C$374,$F97) -> 135.9622161
E98: SWB | F98: 2020-25 RCV - real (BR) | G98: £m | H98: SBB | J98: =SUMIFS(F_Inputs!G$7:G$374,F_Inputs!$A$7:$A$374,$H98,F_Inputs!$C$7:$C$374,$F98) -> 23.66297524 | K98: =SUMIFS(F_Inputs!H$7:H$374,F_Inputs!$A$7:$A$374,$H98,F_Inputs!$C$7:$C$374,$F98) -> 21.95266583 | L98: =SUMIFS(F_Inputs!I$7:I$374,F_Inputs!$A$7:$A$374,$H98,F_Inputs!$C$7:$C$374,$F98) -> 20.36597394 | M98: =SUMIFS(F_Inputs!J$7:J$374,F_Inputs!$A$7:$A$374,$H98,F_Inputs!$C$7:$C$374,$F98) -> 18.89396475 | N98: =SUMIFS(F_Inputs!K$7:K$374,F_Inputs!$A$7:$A$374,$H98,F_Inputs!$C$7:$C$374,$F98) -> 17.52834925
E99: TMS | F99: 2020-25 RCV - real (BR) | G99: £m | H99: TMS | J99: =SUMIFS(F_Inputs!G$7:G$374,F_Inputs!$A$7:$A$374,$H99,F_Inputs!$C$7:$C$374,$F99) -> 312.3676433 | K99: =SUMIFS(F_Inputs!H$7:H$374,F_Inputs!$A$7:$A$374,$H99,F_Inputs!$C$7:$C$374,$F99) -> 297.1865758 | L99: =SUMIFS(F_Inputs!I$7:I$374,F_Inputs!$A$7:$A$374,$H99,F_Inputs!$C$7:$C$374,$F99) -> 282.7433082 | M99: =SUMIFS(F_Inputs!J$7:J$374,F_Inputs!$A$7:$A$374,$H99,F_Inputs!$C$7:$C$374,$F99) -> 269.0019835 | N99: =SUMIFS(F_Inputs!K$7:K$374,F_Inputs!$A$7:$A$374,$H99,F_Inputs!$C$7:$C$374,$F99) -> 255.9284871
E100: UUW | F100: 2020-25 RCV - real (BR) | G100: £m | H100: NWT | J100: =SUMIFS(F_Inputs!G$7:G$374,F_Inputs!$A$7:$A$374,$H100,F_Inputs!$C$7:$C$374,$F100) -> 137.9751101 | K100: =SUMIFS(F_Inputs!H$7:H$374,F_Inputs!$A$7:$A$374,$H100,F_Inputs!$C$7:$C$374,$F100) -> 126.9371013 | L100: =SUMIFS(F_Inputs!I$7:I$374,F_Inputs!$A$7:$A$374,$H100,F_Inputs!$C$7:$C$374,$F100) -> 116.7821332 | M100: =SUMIFS(F_Inputs!J$7:J$374,F_Inputs!$A$7:$A$374,$H100,F_Inputs!$C$7:$C$374,$F100) -> 107.4395626 | N100: =SUMIFS(F_Inputs!K$7:K$374,F_Inputs!$A$7:$A$374,$H100,F_Inputs!$C$7:$C$374,$F100) -> 98.84439757
E101: AFW | F101: 2020-25 RCV - real (BR) | G101: £m
B103: Post 2025 RCV - real (BR)
E105: ANH | F105: Post 2025 RCV - real (BR) | G105: £m | H105: ANH | J105: =SUMIFS(F_Inputs!G$7:G$374,F_Inputs!$A$7:$A$374,$H105,F_Inputs!$C$7:$C$374,$F105) -> 38.86048102 | K105: =SUMIFS(F_Inputs!H$7:H$374,F_Inputs!$A$7:$A$374,$H105,F_Inputs!$C$7:$C$374,$F105) -> 115.4092107 | L105: =SUMIFS(F_Inputs!I$7:I$374,F_Inputs!$A$7:$A$374,$H105,F_Inputs!$C$7:$C$374,$F105) -> 194.2244047 | M105: =SUMIFS(F_Inputs!J$7:J$374,F_Inputs!$A$7:$A$374,$H105,F_Inputs!$C$7:$C$374,$F105) -> 256.6561215 | N105: =SUMIFS(F_Inputs!K$7:K$374,F_Inputs!$A$7:$A$374,$H105,F_Inputs!$C$7:$C$374,$F105) -> 293.0455883
E106: SVE | F106: Post 2025 RCV - real (BR) | G106: £m | H106: SVE | J106: =SUMIFS(F_Inputs!G$7:G$374,F_Inputs!$A$7:$A$374,$H106,F_Inputs!$C$7:$C$374,$F106) -> 182.6678365 | K106: =SUMIFS(F_Inputs!H$7:H$374,F_Inputs!$A$7:$A$374,$H106,F_Inputs!$C$7:$C$374,$F106) -> 416.1417239 | L106: =SUMIFS(F_Inputs!I$7:I$374,F_Inputs!$A$7:$A$374,$H106,F_Inputs!$C$7:$C$374,$F106) -> 573.2033775 | M106: =SUMIFS(F_Inputs!J$7:J$374,F_Inputs!$A$7:$A$374,$H106,F_Inputs!$C$7:$C$374,$F106) -> 725.6385664 | N106: =SUMIFS(F_Inputs!K$7:K$374,F_Inputs!$A$7:$A$374,$H106,F_Inputs!$C$7:$C$374,$F106) -> 847.7995591
E107: SWB | F107: Post 2025 RCV - real (BR) | G107: £m | H107: SBB | J107: =SUMIFS(F_Inputs!G$7:G$374,F_Inputs!$A$7:$A$374,$H107,F_Inputs!$C$7:$C$374,$F107) -> 22.07151413 | K107: =SUMIFS(F_Inputs!H$7:H$374,F_Inputs!$A$7:$A$374,$H107,F_Inputs!$C$7:$C$374,$F107) -> 47.86754562 | L107: =SUMIFS(F_Inputs!I$7:I$374,F_Inputs!$A$7:$A$374,$H107,F_Inputs!$C$7:$C$374,$F107) -> 69.60349281 | M107: =SUMIFS(F_Inputs!J$7:J$374,F_Inputs!$A$7:$A$374,$H107,F_Inputs!$C$7:$C$374,$F107) -> 90.95296398 | N107: =SUMIFS(F_Inputs!K$7:K$374,F_Inputs!$A$7:$A$374,$H107,F_Inputs!$C$7:$C$374,$F107) -> 107.2271567
E108: TMS | F108: Post 2025 RCV - real (BR) | G108: £m | H108: TMS | J108: =SUMIFS(F_Inputs!G$7:G$374,F_Inputs!$A$7:$A$374,$H108,F_Inputs!$C$7:$C$374,$F108) -> 80.42859936 | K108: =SUMIFS(F_Inputs!H$7:H$374,F_Inputs!$A$7:$A$374,$H108,F_Inputs!$C$7:$C$374,$F108) -> 162.7169021 | L108: =SUMIFS(F_Inputs!I$7:I$374,F_Inputs!$A$7:$A$374,$H108,F_Inputs!$C$7:$C$374,$F108) -> 269.4755146 | M108: =SUMIFS(F_Inputs!J$7:J$374,F_Inputs!$A$7:$A$374,$H108,F_Inputs!$C$7:$C$374,$F108) -> 411.9276714 | N108: =SUMIFS(F_Inputs!K$7:K$374,F_Inputs!$A$7:$A$374,$H108,F_Inputs!$C$7:$C$374,$F108) -> 639.4934489
E109: UUW | F109: Post 2025 RCV - real (BR) | G109: £m | H109: NWT | J109: =SUMIFS(F_Inputs!G$7:G$374,F_Inputs!$A$7:$A$374,$H109,F_Inputs!$C$7:$C$374,$F109) -> 93.49354563 | K109: =SUMIFS(F_Inputs!H$7:H$374,F_Inputs!$A$7:$A$374,$H109,F_Inputs!$C$7:$C$374,$F109) -> 193.8345404 | L109: =SUMIFS(F_Inputs!I$7:I$374,F_Inputs!$A$7:$A$374,$H109,F_Inputs!$C$7:$C$374,$F109) -> 275.4455278 | M109: =SUMIFS(F_Inputs!J$7:J$374,F_Inputs!$A$7:$A$374,$H109,F_Inputs!$C$7:$C$374,$F109) -> 336.0085623 | N109: =SUMIFS(F_Inputs!K$7:K$374,F_Inputs!$A$7:$A$374,$H109,F_Inputs!$C$7:$C$374,$F109) -> 359.1817389
E110: AFW | F110: Post 2025 RCV - real (BR) | G110: £m
B112: Closing RCV - real (BR)
E114: ANH | F114: Closing RCV - real (BR) | G114: £m | H114: ANH | J114: =SUM(J87,J96,J105) -> 377.1797299 | K114: 434.3852224 | L114: 494.9631193 | M114: 540.2002476 | N114: 560.3782181
E115: SVE | F115: Closing RCV - real (BR) | G115: £m | H115: SVE | J115: 769.1099622 | K115: 964.2158768 | L115: 1085.419782 | M115: 1204.343216 | N115: 1295.18496
E116: SWB | F116: Closing RCV - real (BR) | G116: £m | H116: SBB | J116: 103.2735368 | K116: 123.2004592 | L116: 139.4915039 | M116: 155.7896186 | N116: 167.3775561
E117: TMS | F117: Closing RCV - real (BR) | G117: £m | H117: TMS | J117: 1788.788745 | K117: 1788.050744 | L117: 1815.818132 | M117: 1883.118038 | N117: 2039.183963
E118: UUW | F118: Closing RCV - real (BR) | G118: £m | H118: NWT | J118: 535.4880075 | K118: 600.4694453 | L118: 649.5496404 | M118: 680.1843458 | N118: 675.8234597
E119: AFW | F119: Closing RCV - real (BR) | G119: £m | H119: AFW | J119: 0 | K119: 0 | L119: 0 | M119: 0 | N119: 0
A121: RCV - real (WWN) - [Values for SWB reported under SBB]
B123: Pre 2020 RCV - real (WWN)
E125: ANH | F125: Pre 2020 RCV - real (WWN) | G125: £m | H125: ANH | J125: =SUMIFS(F_Inputs!G$7:G$374,F_Inputs!$A$7:$A$374,$H125,F_Inputs!$C$7:$C$374,$F125) -> 3951.796801 | K125: =SUMIFS(F_Inputs!H$7:H$374,F_Inputs!$A$7:$A$374,$H125,F_Inputs!$C$7:$C$374,$F125) -> 3782.340268 | L125: =SUMIFS(F_Inputs!I$7:I$374,F_Inputs!$A$7:$A$374,$H125,F_Inputs!$C$7:$C$374,$F125) -> 3620.15018 | M125: =SUMIFS(F_Inputs!J$7:J$374,F_Inputs!$A$7:$A$374,$H125,F_Inputs!$C$7:$C$374,$F125) -> 3464.914946 | N125: =SUMIFS(F_Inputs!K$7:K$374,F_Inputs!$A$7:$A$374,$H125,F_Inputs!$C$7:$C$374,$F125) -> 3316.336337
E126: SVE | F126: Pre 2020 RCV - real (WWN) | G126: £m | H126: SVE | J126: =SUMIFS(F_Inputs!G$7:G$374,F_Inputs!$A$7:$A$374,$H126,F_Inputs!$C$7:$C$374,$F126) -> 3541.027496 | K126: =SUMIFS(F_Inputs!H$7:H$374,F_Inputs!$A$7:$A$374,$H126,F_Inputs!$C$7:$C$374,$F126) -> 3384.376444 | L126: =SUMIFS(F_Inputs!I$7:I$374,F_Inputs!$A$7:$A$374,$H126,F_Inputs!$C$7:$C$374,$F126) -> 3234.655458 | M126: =SUMIFS(F_Inputs!J$7:J$374,F_Inputs!$A$7:$A$374,$H126,F_Inputs!$C$7:$C$374,$F126) -> 3091.557958 | N126: =SUMIFS(F_Inputs!K$7:K$374,F_Inputs!$A$7:$A$374,$H126,F_Inputs!$C$7:$C$374,$F126) -> 2954.79093
E127: SWB | F127: Pre 2020 RCV - real (WWN) | G127: £m | H127: SBB | J127: =SUMIFS(F_Inputs!G$7:G$374,F_Inputs!$A$7:$A$374,$H127,F_Inputs!$C$7:$C$374,$F127) -> 1507.066524 | K127: =SUMIFS(F_Inputs!H$7:H$374,F_Inputs!$A$7:$A$374,$H127,F_Inputs!$C$7:$C$374,$F127) -> 1437.168236 | L127: =SUMIFS(F_Inputs!I$7:I$374,F_Inputs!$A$7:$A$374,$H127,F_Inputs!$C$7:$C$374,$F127) -> 1370.511855 | M127: =SUMIFS(F_Inputs!J$7:J$374,F_Inputs!$A$7:$A$374,$H127,F_Inputs!$C$7:$C$374,$F127) -> 1306.947021 | N127: =SUMIFS(F_Inputs!K$7:K$374,F_Inputs!$A$7:$A$374,$H127,F_Inputs!$C$7:$C$374,$F127) -> 1246.330347
E128: TMS | F128: Pre 2020 RCV - real (WWN) | G128: £m | H128: TMS | J128: =SUMIFS(F_Inputs!G$7:G$374,F_Inputs!$A$7:$A$374,$H128,F_Inputs!$C$7:$C$374,$F128) -> 4468.10128 | K128: =SUMIFS(F_Inputs!H$7:H$374,F_Inputs!$A$7:$A$374,$H128,F_Inputs!$C$7:$C$374,$F128) -> 4267.036722 | L128: =SUMIFS(F_Inputs!I$7:I$374,F_Inputs!$A$7:$A$374,$H128,F_Inputs!$C$7:$C$374,$F128) -> 4075.02007 | M128: =SUMIFS(F_Inputs!J$7:J$374,F_Inputs!$A$7:$A$374,$H128,F_Inputs!$C$7:$C$374,$F128) -> 3891.644166 | N128: =SUMIFS(F_Inputs!K$7:K$374,F_Inputs!$A$7:$A$374,$H128,F_Inputs!$C$7:$C$374,$F128) -> 3716.520179
E129: UUW | F129: Pre 2020 RCV - real (WWN) | G129: £m | H129: NWT | J129: =SUMIFS(F_Inputs!G$7:G$374,F_Inputs!$A$7:$A$374,$H129,F_Inputs!$C$7:$C$374,$F129) -> 6393.001804 | K129: =SUMIFS(F_Inputs!H$7:H$374,F_Inputs!$A$7:$A$374,$H129,F_Inputs!$C$7:$C$374,$F129) -> 6164.939227 | L129: =SUMIFS(F_Inputs!I$7:I$374,F_Inputs!$A$7:$A$374,$H129,F_Inputs!$C$7:$C$374,$F129) -> 5956.95381 | M129: =SUMIFS(F_Inputs!J$7:J$374,F_Inputs!$A$7:$A$374,$H129,F_Inputs!$C$7:$C$374,$F129) -> 5764.843493 | N129: =SUMIFS(F_Inputs!K$7:K$374,F_Inputs!$A$7:$A$374,$H129,F_Inputs!$C$7:$C$374,$F129) -> 5576.44421
E130: AFW | F130: Pre 2020 RCV - real (WWN) | G130: £m
B132: 2020-25 RCV - real (WWN)
E134: ANH | F134: 2020-25 RCV - real (WWN) | G134: £m | H134: ANH | J134: =SUMIFS(F_Inputs!G$7:G$374,F_Inputs!$A$7:$A$374,$H134,F_Inputs!$C$7:$C$374,$F134) -> 1409.548401 | K134: =SUMIFS(F_Inputs!H$7:H$374,F_Inputs!$A$7:$A$374,$H134,F_Inputs!$C$7:$C$374,$F134) -> 1349.105722 | L134: =SUMIFS(F_Inputs!I$7:I$374,F_Inputs!$A$7:$A$374,$H134,F_Inputs!$C$7:$C$374,$F134) -> 1291.254879 | M134: =SUMIFS(F_Inputs!J$7:J$374,F_Inputs!$A$7:$A$374,$H134,F_Inputs!$C$7:$C$374,$F134) -> 1235.88473 | N134: =SUMIFS(F_Inputs!K$7:K$374,F_Inputs!$A$7:$A$374,$H134,F_Inputs!$C$7:$C$374,$F134) -> 1182.888903
E135: SVE | F135: 2020-25 RCV - real (WWN) | G135: £m | H135: SVE | J135: =SUMIFS(F_Inputs!G$7:G$374,F_Inputs!$A$7:$A$374,$H135,F_Inputs!$C$7:$C$374,$F135) -> 1771.917484 | K135: =SUMIFS(F_Inputs!H$7:H$374,F_Inputs!$A$7:$A$374,$H135,F_Inputs!$C$7:$C$374,$F135) -> 1693.529858 | L135: =SUMIFS(F_Inputs!I$7:I$374,F_Inputs!$A$7:$A$374,$H135,F_Inputs!$C$7:$C$374,$F135) -> 1618.610013 | M135: =SUMIFS(F_Inputs!J$7:J$374,F_Inputs!$A$7:$A$374,$H135,F_Inputs!$C$7:$C$374,$F135) -> 1547.004536 | N135: =SUMIFS(F_Inputs!K$7:K$374,F_Inputs!$A$7:$A$374,$H135,F_Inputs!$C$7:$C$374,$F135) -> 1478.566805
E136: SWB | F136: 2020-25 RCV - real (WWN) | G136: £m | H136: SBB | J136: =SUMIFS(F_Inputs!G$7:G$374,F_Inputs!$A$7:$A$374,$H136,F_Inputs!$C$7:$C$374,$F136) -> 563.69475 | K136: =SUMIFS(F_Inputs!H$7:H$374,F_Inputs!$A$7:$A$374,$H136,F_Inputs!$C$7:$C$374,$F136) -> 537.5503843 | L136: =SUMIFS(F_Inputs!I$7:I$374,F_Inputs!$A$7:$A$374,$H136,F_Inputs!$C$7:$C$374,$F136) -> 512.6186037 | M136: =SUMIFS(F_Inputs!J$7:J$374,F_Inputs!$A$7:$A$374,$H136,F_Inputs!$C$7:$C$374,$F136) -> 488.8431681 | N136: =SUMIFS(F_Inputs!K$7:K$374,F_Inputs!$A$7:$A$374,$H136,F_Inputs!$C$7:$C$374,$F136) -> 466.1704458
E137: TMS | F137: 2020-25 RCV - real (WWN) | G137: £m | H137: TMS | J137: =SUMIFS(F_Inputs!G$7:G$374,F_Inputs!$A$7:$A$374,$H137,F_Inputs!$C$7:$C$374,$F137) -> 1870.360553 | K137: =SUMIFS(F_Inputs!H$7:H$374,F_Inputs!$A$7:$A$374,$H137,F_Inputs!$C$7:$C$374,$F137) -> 1786.194328 | L137: =SUMIFS(F_Inputs!I$7:I$374,F_Inputs!$A$7:$A$374,$H137,F_Inputs!$C$7:$C$374,$F137) -> 1705.815583 | M137: =SUMIFS(F_Inputs!J$7:J$374,F_Inputs!$A$7:$A$374,$H137,F_Inputs!$C$7:$C$374,$F137) -> 1629.053882 | N137: =SUMIFS(F_Inputs!K$7:K$374,F_Inputs!$A$7:$A$374,$H137,F_Inputs!$C$7:$C$374,$F137) -> 1555.746457
E138: UUW | F138: 2020-25 RCV - real (WWN) | G138: £m | H138: NWT | J138: =SUMIFS(F_Inputs!G$7:G$374,F_Inputs!$A$7:$A$374,$H138,F_Inputs!$C$7:$C$374,$F138) -> 1846.674372 | K138: =SUMIFS(F_Inputs!H$7:H$374,F_Inputs!$A$7:$A$374,$H138,F_Inputs!$C$7:$C$374,$F138) -> 1780.796506 | L138: =SUMIFS(F_Inputs!I$7:I$374,F_Inputs!$A$7:$A$374,$H138,F_Inputs!$C$7:$C$374,$F138) -> 1720.718103 | M138: =SUMIFS(F_Inputs!J$7:J$374,F_Inputs!$A$7:$A$374,$H138,F_Inputs!$C$7:$C$374,$F138) -> 1665.225361 | N138: =SUMIFS(F_Inputs!K$7:K$374,F_Inputs!$A$7:$A$374,$H138,F_Inputs!$C$7:$C$374,$F138) -> 1610.804584
E139: AFW | F139: 2020-25 RCV - real (WWN) | G139: £m
B141: Post 2025 RCV - real (WWN)
E143: ANH | F143: Post 2025 RCV - real (WWN) | G143: £m | H143: ANH | J143: =SUMIFS(F_Inputs!G$7:G$374,F_Inputs!$A$7:$A$374,$H143,F_Inputs!$C$7:$C$374,$F143) -> 420.4696447 | K143: =SUMIFS(F_Inputs!H$7:H$374,F_Inputs!$A$7:$A$374,$H143,F_Inputs!$C$7:$C$374,$F143) -> 1050.903176 | L143: =SUMIFS(F_Inputs!I$7:I$374,F_Inputs!$A$7:$A$374,$H143,F_Inputs!$C$7:$C$374,$F143) -> 1731.310488 | M143: =SUMIFS(F_Inputs!J$7:J$374,F_Inputs!$A$7:$A$374,$H143,F_Inputs!$C$7:$C$374,$F143) -> 2467.790266 | N143: =SUMIFS(F_Inputs!K$7:K$374,F_Inputs!$A$7:$A$374,$H143,F_Inputs!$C$7:$C$374,$F143) -> 2883.188188
E144: SVE | F144: Post 2025 RCV - real (WWN) | G144: £m | H144: SVE | J144: =SUMIFS(F_Inputs!G$7:G$374,F_Inputs!$A$7:$A$374,$H144,F_Inputs!$C$7:$C$374,$F144) -> 877.0069 | K144: =SUMIFS(F_Inputs!H$7:H$374,F_Inputs!$A$7:$A$374,$H144,F_Inputs!$C$7:$C$374,$F144) -> 1867.403086 | L144: =SUMIFS(F_Inputs!I$7:I$374,F_Inputs!$A$7:$A$374,$H144,F_Inputs!$C$7:$C$374,$F144) -> 2737.995814 | M144: =SUMIFS(F_Inputs!J$7:J$374,F_Inputs!$A$7:$A$374,$H144,F_Inputs!$C$7:$C$374,$F144) -> 3522.030459 | N144: =SUMIFS(F_Inputs!K$7:K$374,F_Inputs!$A$7:$A$374,$H144,F_Inputs!$C$7:$C$374,$F144) -> 4101.571418
E145: SWB | F145: Post 2025 RCV - real (WWN) | G145: £m | H145: SBB | J145: =SUMIFS(F_Inputs!G$7:G$374,F_Inputs!$A$7:$A$374,$H145,F_Inputs!$C$7:$C$374,$F145) -> 258.4270131 | K145: =SUMIFS(F_Inputs!H$7:H$374,F_Inputs!$A$7:$A$374,$H145,F_Inputs!$C$7:$C$374,$F145) -> 520.2735356 | L145: =SUMIFS(F_Inputs!I$7:I$374,F_Inputs!$A$7:$A$374,$H145,F_Inputs!$C$7:$C$374,$F145) -> 747.768402 | M145: =SUMIFS(F_Inputs!J$7:J$374,F_Inputs!$A$7:$A$374,$H145,F_Inputs!$C$7:$C$374,$F145) -> 974.0792894 | N145: =SUMIFS(F_Inputs!K$7:K$374,F_Inputs!$A$7:$A$374,$H145,F_Inputs!$C$7:$C$374,$F145) -> 1119.96104
E146: TMS | F146: Post 2025 RCV - real (WWN) | G146: £m | H146: TMS | J146: =SUMIFS(F_Inputs!G$7:G$374,F_Inputs!$A$7:$A$374,$H146,F_Inputs!$C$7:$C$374,$F146) -> 773.8577709 | K146: =SUMIFS(F_Inputs!H$7:H$374,F_Inputs!$A$7:$A$374,$H146,F_Inputs!$C$7:$C$374,$F146) -> 1581.872542 | L146: =SUMIFS(F_Inputs!I$7:I$374,F_Inputs!$A$7:$A$374,$H146,F_Inputs!$C$7:$C$374,$F146) -> 2474.032159 | M146: =SUMIFS(F_Inputs!J$7:J$374,F_Inputs!$A$7:$A$374,$H146,F_Inputs!$C$7:$C$374,$F146) -> 3653.83236 | N146: =SUMIFS(F_Inputs!K$7:K$374,F_Inputs!$A$7:$A$374,$H146,F_Inputs!$C$7:$C$374,$F146) -> 5297.731838
E147: UUW | F147: Post 2025 RCV - real (WWN) | G147: £m | H147: NWT | J147: =SUMIFS(F_Inputs!G$7:G$374,F_Inputs!$A$7:$A$374,$H147,F_Inputs!$C$7:$C$374,$F147) -> 905.0758815 | K147: =SUMIFS(F_Inputs!H$7:H$374,F_Inputs!$A$7:$A$374,$H147,F_Inputs!$C$7:$C$374,$F147) -> 1953.469811 | L147: =SUMIFS(F_Inputs!I$7:I$374,F_Inputs!$A$7:$A$374,$H147,F_Inputs!$C$7:$C$374,$F147) -> 3179.082469 | M147: =SUMIFS(F_Inputs!J$7:J$374,F_Inputs!$A$7:$A$374,$H147,F_Inputs!$C$7:$C$374,$F147) -> 4152.237204 | N147: =SUMIFS(F_Inputs!K$7:K$374,F_Inputs!$A$7:$A$374,$H147,F_Inputs!$C$7:$C$374,$F147) -> 4543.963355
E148: AFW | F148: Post 2025 RCV - real (WWN) | G148: £m
B150: Closing RCV - real (WWN)
E152: ANH | F152: Closing RCV - real (WWN) | G152: £m | H152: ANH | J152: =SUM(J125,J134,J143) -> 5781.814847 | K152: 6182.349166 | L152: 6642.715547 | M152: 7168.589943 | N152: 7382.413427
E153: SVE | F153: Closing RCV - real (WWN) | G153: £m | H153: SVE | J153: 6189.95188 | K153: 6945.309388 | L153: 7591.261284 | M153: 8160.592954 | N153: 8534.929154
E154: SWB | F154: Closing RCV - real (WWN) | G154: £m | H154: SBB | J154: 2329.188287 | K154: 2494.992155 | L154: 2630.898861 | M154: 2769.869479 | N154: 2832.461833
E155: TMS | F155: Closing RCV - real (WWN) | G155: £m | H155: TMS | J155: 7112.319603 | K155: 7635.103592 | L155: 8254.867811 | M155: 9174.530408 | N155: 10569.99847
E156: UUW | F156: Closing RCV - real (WWN) | G156: £m | H156: NWT | J156: 9144.752058 | K156: 9899.205544 | L156: 10856.75438 | M156: 11582.30606 | N156: 11731.21215
E157: AFW | F157: Closing RCV - real (WWN) | G157: £m | H157: AFW | J157: 0 | K157: 0 | L157: 0 | M157: 0 | N157: 0
A159: RCV - real (ADD1) [Thames Tideway Tunnel to be included in TMS' appointee equity
B161: Pre 2020 RCV - real (ADDN1)
E163: TMS | F163: Pre 2020 RCV - real (ADDN1) | G163: £m | H163: TMS | J163: =SUMIFS(F_Inputs!G$7:G$374,F_Inputs!$A$7:$A$374,$H163,F_Inputs!$C$7:$C$374,$F163) -> 1571.85033 | K163: =SUMIFS(F_Inputs!H$7:H$374,F_Inputs!$A$7:$A$374,$H163,F_Inputs!$C$7:$C$374,$F163) -> 1567.920704 | L163: =SUMIFS(F_Inputs!I$7:I$374,F_Inputs!$A$7:$A$374,$H163,F_Inputs!$C$7:$C$374,$F163) -> 1564.000902 | M163: =SUMIFS(F_Inputs!J$7:J$374,F_Inputs!$A$7:$A$374,$H163,F_Inputs!$C$7:$C$374,$F163) -> 1560.0909 | N163: =SUMIFS(F_Inputs!K$7:K$374,F_Inputs!$A$7:$A$374,$H163,F_Inputs!$C$7:$C$374,$F163) -> 1556.190673
B165: 2020-25 RCV - real (ADDN1)
E167: TMS | F167: 2020-25 RCV - real (ADDN1) | G167: £m | H167: TMS | J167: =SUMIFS(F_Inputs!G$7:G$374,F_Inputs!$A$7:$A$374,$H167,F_Inputs!$C$7:$C$374,$F167) -> 103.5401463 | K167: =SUMIFS(F_Inputs!H$7:H$374,F_Inputs!$A$7:$A$374,$H167,F_Inputs!$C$7:$C$374,$F167) -> 103.2812959 | L167: =SUMIFS(F_Inputs!I$7:I$374,F_Inputs!$A$7:$A$374,$H167,F_Inputs!$C$7:$C$374,$F167) -> 103.0230927 | M167: =SUMIFS(F_Inputs!J$7:J$374,F_Inputs!$A$7:$A$374,$H167,F_Inputs!$C$7:$C$374,$F167) -> 102.7655349 | N167: =SUMIFS(F_Inputs!K$7:K$374,F_Inputs!$A$7:$A$374,$H167,F_Inputs!$C$7:$C$374,$F167) -> 102.5086211
B169: Post 2025 RCV - real (ADDN1)
E171: TMS | F171: Post 2025 RCV - real (ADDN1) | G171: £m | H171: TMS | J171: =SUMIFS(F_Inputs!G$7:G$374,F_Inputs!$A$7:$A$374,$H171,F_Inputs!$C$7:$C$374,$F171) -> -66.69091352 | K171: =SUMIFS(F_Inputs!H$7:H$374,F_Inputs!$A$7:$A$374,$H171,F_Inputs!$C$7:$C$374,$F171) -> -52.32110975 | L171: =SUMIFS(F_Inputs!I$7:I$374,F_Inputs!$A$7:$A$374,$H171,F_Inputs!$C$7:$C$374,$F171) -> -37.44431835 | M171: =SUMIFS(F_Inputs!J$7:J$374,F_Inputs!$A$7:$A$374,$H171,F_Inputs!$C$7:$C$374,$F171) -> -29.9565062 | N171: =SUMIFS(F_Inputs!K$7:K$374,F_Inputs!$A$7:$A$374,$H171,F_Inputs!$C$7:$C$374,$F171) -> -24.44784454
B173: Closing RCV - real (ADDN1)
E175: TMS | F175: Closing RCV - real (ADDN1) | G175: £m | H175: TMS | J175: =SUM(J163,J167,J171) -> 1608.699563 | K175: =SUM(K163,K167,K171) -> 1618.88089 | L175: =SUM(L163,L167,L171) -> 1629.579677 | M175: =SUM(M163,M167,M171) -> 1632.899929 | N175: =SUM(N163,N167,N171) -> 1634.25145
A177: END

Sheet RCV to RE
A1: =RIGHT(CELL("filename", A1), LEN(CELL("filename", A1)) - SEARCH("]", CELL("filename", A1))) -> 
H2: 2025-26 | N2: 2026-27 | T2: 2027-28 | Z2: 2028-29 | AF2: 2029-30
E3: Company | F3: Measure | G3: Units | H3: Total | J3: Pre 2020-25 | K3: 2020-25 | L3: Post 2025 | N3: Total | P3: Pre 2020-25 | Q3: 2020-25 | R3: Post 2025 | T3: Total | V3: Pre 2020-25 | W3: 2020-25 | X3: Post 2025 | Z3: Total | AB3: Pre 2020-25 | AC3: 2020-25 | AD3: Post 2025 | AF3: Total | AH3: Pre 2020-25 | AI3: 2020-25 | AJ3: Post 2025
A7: Water Regulated Equity
B9: Closing RCV - Real (Water Resources)
E11: ANH | F11: Closing RCV - Real (Water Resources) | G11: £m | H11: =SUM(J11:L11) -> 406.5583777 | J11: ='RCV Combine'!J11 -> 176.3056076 | K11: ='RCV Combine'!J20 -> 63.50870167 | L11: ='RCV Combine'!J29 -> 166.7440685 | N11: =SUM(P11:R11) -> 546.5365408 | P11: ='RCV Combine'!K11 -> 168.7454676 | Q11: ='RCV Combine'!K20 -> 60.78539251 | R11: ='RCV Combine'!K29 -> 317.0056807 | T11: =SUM(V11:X11) -> 711.5728659 | V11: ='RCV Combine'!L11 -> 161.5095131 | W11: ='RCV Combine'!L20 -> 58.17886125 | X11: ='RCV Combine'!L29 -> 491.8844915 | Z11: =SUM(AB11:AD11) -> 844.5692003 | AB11: ='RCV Combine'!M11 -> 154.5838427 | AC11: ='RCV Combine'!M20 -> 55.68410035 | AD11: ='RCV Combine'!M29 -> 634.3012573 | AF11: =SUM(AH11:AJ11) -> 891.3067439 | AH11: ='RCV Combine'!N11 -> 147.9551511 | AI11: ='RCV Combine'!N20 -> 53.296317 | AJ11: ='RCV Combine'!N29 -> 690.0552758
E12: SVE | F12: Closing RCV - Real (Water Resources) | G12: £m | H12: =SUM(J12:L12) -> 592.3384609 | J12: ='RCV Combine'!J12 -> 353.7345018 | K12: ='RCV Combine'!J21 -> 130.864564 | L12: ='RCV Combine'!J30 -> 107.7393951 | N12: 671.1718547 | P12: ='RCV Combine'!K12 -> 340.0995644 | Q12: ='RCV Combine'!K21 -> 125.8203002 | R12: ='RCV Combine'!K30 -> 205.2519901 | T12: 734.6627703 | V12: ='RCV Combine'!L12 -> 326.990195 | W12: ='RCV Combine'!L21 -> 120.970471 | X12: ='RCV Combine'!L30 -> 286.7021043 | Z12: 782.2566277 | AB12: ='RCV Combine'!M12 -> 314.3861351 | AC12: ='RCV Combine'!M21 -> 116.3075818 | AD12: ='RCV Combine'!M30 -> 351.5629108 | AF12: 827.2738652 | AH12: ='RCV Combine'!N12 -> 302.2679073 | AI12: ='RCV Combine'!N21 -> 111.8244268 | AJ12: ='RCV Combine'!N30 -> 413.1815311
E13: SWB | F13: Closing RCV - Real (Water Resources) | G13: £m | H13: 282.6676448 | J13: ='RCV Combine'!J13 -> 142.2150431 | K13: ='RCV Combine'!J22 -> 121.6160655 | L13: ='RCV Combine'!J31 -> 18.83653627 | N13: 290.7438682 | P13: ='RCV Combine'!K13 -> 138.6581196 | Q13: ='RCV Combine'!K22 -> 118.5743406 | R13: ='RCV Combine'!K31 -> 33.51140802 | T13: 301.6805443 | V13: ='RCV Combine'!L13 -> 135.1901579 | W13: ='RCV Combine'!L22 -> 115.6086919 | X13: ='RCV Combine'!L31 -> 50.88169459 | Z13: 323.3601156 | AB13: ='RCV Combine'!M13 -> 131.8089329 | AC13: ='RCV Combine'!M22 -> 112.7172166 | AD13: ='RCV Combine'!M31 -> 78.83396602 | AF13: 349.0516664 | AH13: ='RCV Combine'!N13 -> 128.5122754 | AI13: ='RCV Combine'!N22 -> 109.8980598 | AJ13: ='RCV Combine'!N31 -> 110.6413313
E14: TMS | F14: Closing RCV - Real (Water Resources) | G14: £m | H14: 526.7449253 | J14: ='RCV Combine'!J14 -> 288.1497752 | K14: ='RCV Combine'!J23 -> 166.867684 | L14: ='RCV Combine'!J32 -> 71.72746614 | N14: 594.1807061 | P14: ='RCV Combine'!K14 -> 278.5255727 | Q14: ='RCV Combine'!K23 -> 161.2943033 | R14: ='RCV Combine'!K32 -> 154.3608301 | T14: 665.2399204 | V14: ='RCV Combine'!L14 -> 269.2228186 | W14: ='RCV Combine'!L23 -> 155.9070736 | X14: ='RCV Combine'!L32 -> 240.1100282 | Z14: 714.1850523 | AB14: ='RCV Combine'!M14 -> 260.2307765 | AC14: ='RCV Combine'!M23 -> 150.6997773 | AD14: ='RCV Combine'!M32 -> 303.2544985 | AF14: 768.9356712 | AH14: ='RCV Combine'!N14 -> 251.5390685 | AI14: ='RCV Combine'!N23 -> 145.6664048 | AJ14: ='RCV Combine'!N32 -> 371.7301979
E15: UUW | F15: Closing RCV - Real (Water Resources) | G15: £m | H15: 765.8470281 | J15: ='RCV Combine'!J15 -> 596.2332319 | K15: ='RCV Combine'!J24 -> 105.2472501 | L15: ='RCV Combine'!J33 -> 64.36654608 | N15: 797.4695059 | P15: ='RCV Combine'!K15 -> 580.8725109 | Q15: ='RCV Combine'!K24 -> 102.5357715 | R15: ='RCV Combine'!K33 -> 114.0612235 | T15: 842.1868761 | V15: ='RCV Combine'!L15 -> 564.694583 | W15: ='RCV Combine'!L24 -> 99.68003933 | X15: ='RCV Combine'!L33 -> 177.8122537 | Z15: 872.4927707 | AB15: ='RCV Combine'!M15 -> 549.0881646 | AC15: ='RCV Combine'!M24 -> 96.92519015 | AD15: ='RCV Combine'!M33 -> 226.479416 | AF15: 885.9863729 | AH15: ='RCV Combine'!N15 -> 533.8642936 | AI15: ='RCV Combine'!N24 -> 94.23786837 | AJ15: ='RCV Combine'!N33 -> 257.8842109
E16: AFW | F16: Closing RCV - Real (Water Resources) | G16: £m | H16: 227.7668273 | J16: ='RCV Combine'!J16 -> 93.28124608 | K16: ='RCV Combine'!J25 -> 109.359962 | L16: ='RCV Combine'!J34 -> 25.12561924 | N16: 240.9220745 | P16: ='RCV Combine'!K16 -> 89.08359001 | Q16: ='RCV Combine'!K25 -> 104.4387637 | R16: ='RCV Combine'!K34 -> 47.39972079 | T16: 252.2164407 | V16: ='RCV Combine'!L16 -> 85.07482846 | W16: ='RCV Combine'!L25 -> 99.73901931 | X16: ='RCV Combine'!L34 -> 67.40259289 | Z16: 254.5446203 | AB16: ='RCV Combine'!M16 -> 81.24646118 | AC16: ='RCV Combine'!M25 -> 95.25076344 | AD16: ='RCV Combine'!M34 -> 78.04739566 | AF16: 254.9348583 | AH16: ='RCV Combine'!N16 -> 77.59037042 | AI16: ='RCV Combine'!N25 -> 90.96447909 | AJ16: ='RCV Combine'!N34 -> 86.38000879
B18: Closing RCV - Real (Water Network Plus)
E20: ANH | F20: Closing RCV - Real (Water Network Plus) | G20: £m | H20: =SUM(J20:L20) -> 4137.471348 | J20: ='RCV Combine'!J49 -> 2657.887135 | K20: ='RCV Combine'!J58 -> 1171.014605 | L20: ='RCV Combine'!J67 -> 308.5696081 | N20: =SUM(P20:R20) -> 4373.501711 | P20: ='RCV Combine'!K49 -> 2558.857657 | Q20: ='RCV Combine'!K58 -> 1127.384097 | R20: ='RCV Combine'!K67 -> 687.2599572 | T20: =SUM(V20:X20) -> 4667.391974 | V20: ='RCV Combine'!L49 -> 2463.51789 | W20: ='RCV Combine'!L58 -> 1085.379206 | X20: ='RCV Combine'!L67 -> 1118.494878 | Z20: =SUM(AB20:AD20) -> 4933.852618 | AB20: ='RCV Combine'!M49 -> 2371.730362 | AC20: ='RCV Combine'!M58 -> 1044.939364 | AD20: ='RCV Combine'!M67 -> 1517.182893 | AF20: =SUM(AH20:AJ20) -> 5248.652961 | AH20: ='RCV Combine'!N49 -> 2283.362719 | AI20: ='RCV Combine'!N58 -> 1006.006258 | AJ20: ='RCV Combine'!N67 -> 1959.283983
E21: SVE | F21: Closing RCV - Real (Water Network Plus) | G21: £m | H21: =SUM(J21:L21) -> 5734.347674 | J21: ='RCV Combine'!J50 -> 3856.002541 | K21: ='RCV Combine'!J59 -> 1459.809769 | L21: ='RCV Combine'!J68 -> 418.5353643 | N21: 5939.963529 | P21: ='RCV Combine'!K50 -> 3681.152182 | Q21: ='RCV Combine'!K59 -> 1393.614723 | R21: ='RCV Combine'!K68 -> 865.1966235 | T21: 6217.204981 | V21: ='RCV Combine'!L50 -> 3514.230409 | W21: ='RCV Combine'!L59 -> 1330.421291 | X21: ='RCV Combine'!L68 -> 1372.553281 | Z21: 6429.575179 | AB21: ='RCV Combine'!M50 -> 3354.8777 | AC21: ='RCV Combine'!M59 -> 1270.093364 | AD21: ='RCV Combine'!M68 -> 1804.604115 | AF21: 6530.464912 | AH21: ='RCV Combine'!N50 -> 3202.750837 | AI21: ='RCV Combine'!N59 -> 1212.501006 | AJ21: ='RCV Combine'!N68 -> 2115.213069
E22: SWB | F22: Closing RCV - Real (Water Network Plus) | G22: £m | H22: 1933.819218 | J22: ='RCV Combine'!J51 -> 1295.927109 | K22: ='RCV Combine'!J60 -> 491.277406 | L22: ='RCV Combine'!J69 -> 146.614703 | N22: 1982.114971 | P22: ='RCV Combine'!K51 -> 1240.514877 | Q22: ='RCV Combine'!K60 -> 470.2709952 | R22: ='RCV Combine'!K69 -> 271.3290981 | T22: 2009.910163 | V22: ='RCV Combine'!L51 -> 1187.472004 | W22: ='RCV Combine'!L60 -> 450.1627924 | X22: ='RCV Combine'!L69 -> 372.2753666 | Z22: 2022.747741 | AB22: ='RCV Combine'!M51 -> 1136.697179 | AC22: ='RCV Combine'!M60 -> 430.9143914 | AD22: ='RCV Combine'!M69 -> 455.1361713 | AF22: 2013.670374 | AH22: ='RCV Combine'!N51 -> 1088.093421 | AI22: ='RCV Combine'!N60 -> 412.489028 | AJ22: ='RCV Combine'!N69 -> 513.0879245
E23: TMS | F23: Closing RCV - Real (Water Network Plus) | G23: £m | H23: 8822.49968 | J23: ='RCV Combine'!J52 -> 5618.61299 | K23: ='RCV Combine'!J61 -> 2387.059023 | L23: ='RCV Combine'!J70 -> 816.8276673 | N23: 9343.992704 | P23: ='RCV Combine'!K52 -> 5390.497302 | Q23: ='RCV Combine'!K61 -> 2290.144427 | R23: ='RCV Combine'!K70 -> 1663.350975 | T23: 9877.975636 | V23: ='RCV Combine'!L52 -> 5171.643112 | W23: ='RCV Combine'!L61 -> 2197.164563 | X23: ='RCV Combine'!L70 -> 2509.167961 | Z23: 10405.51875 | AB23: ='RCV Combine'!M52 -> 4961.674402 | AC23: ='RCV Combine'!M61 -> 2107.959682 | AD23: ='RCV Combine'!M70 -> 3335.884668 | AF23: 11117.66671 | AH23: ='RCV Combine'!N52 -> 4760.230421 | AI23: ='RCV Combine'!N61 -> 2022.376519 | AJ23: ='RCV Combine'!N70 -> 4335.059768
E24: UUW | F24: Closing RCV - Real (Water Network Plus) | G24: £m | H24: 3961.124833 | J24: ='RCV Combine'!J53 -> 2990.330491 | K24: ='RCV Combine'!J62 -> 684.8196196 | L24: ='RCV Combine'!J71 -> 285.9747225 | N24: 4028.873771 | P24: ='RCV Combine'!K53 -> 2834.921578 | Q24: ='RCV Combine'!K62 -> 649.2292148 | R24: ='RCV Combine'!K71 -> 544.7229785 | T24: 4137.331098 | V24: ='RCV Combine'!L53 -> 2690.354279 | W24: ='RCV Combine'!L62 -> 616.1216629 | X24: ='RCV Combine'!L71 -> 830.8551556 | Z24: 4192.003406 | AB24: ='RCV Combine'!M53 -> 2552.74321 | AC24: ='RCV Combine'!M62 -> 584.6071662 | AD24: ='RCV Combine'!M71 -> 1054.653029 | AF24: 4204.001095 | AH24: ='RCV Combine'!N53 -> 2419.799809 | AI24: ='RCV Combine'!N62 -> 554.1616185 | AJ24: ='RCV Combine'!N71 -> 1230.039667
E25: AFW | F25: Closing RCV - Real (Water Network Plus) | G25: £m | H25: 1605.324292 | J25: ='RCV Combine'!J54 -> 987.3376095 | K25: ='RCV Combine'!J63 -> 464.4689275 | L25: ='RCV Combine'!J72 -> 153.5177553 | N25: 1710.008785 | P25: ='RCV Combine'!K54 -> 945.7717603 | Q25: ='RCV Combine'!K63 -> 444.9152863 | R25: ='RCV Combine'!K72 -> 319.3217385 | T25: 1806.522733 | V25: ='RCV Combine'!L54 -> 905.9557885 | W25: ='RCV Combine'!L63 -> 426.1848322 | X25: ='RCV Combine'!L72 -> 474.3821126 | Z25: 1887.162452 | AB25: ='RCV Combine'!M54 -> 867.8160262 | AC25: ='RCV Combine'!M63 -> 408.2429101 | AD25: ='RCV Combine'!M72 -> 611.1035159 | AF25: 1920.221201 | AH25: ='RCV Combine'!N54 -> 831.2819068 | AI25: ='RCV Combine'!N63 -> 391.0563236 | AJ25: ='RCV Combine'!N72 -> 697.8829708
B27: Closing RCV - Real (Water)
E29: ANH | F29: Closing RCV - Real (Water) | G29: £m | H29: =SUM(H11,H20) -> 4544.029725 | N29: =SUM(N11,N20) -> 4920.038252 | T29: =SUM(T11,T20) -> 5378.96484 | Z29: =SUM(Z11,Z20) -> 5778.421819 | AF29: =SUM(AF11,AF20) -> 6139.959704 | AL29: =SUM(AL11,AL20) -> 0 | AR29: =SUM(AR11,AR20) -> 0 | AX29: =SUM(AX11,AX20) -> 0 | BD29: =SUM(BD11,BD20) -> 0 | BJ29: =SUM(BJ11,BJ20) -> 0 | BP29: =SUM(BP11,BP20) -> 0 | BV29: =SUM(BV11,BV20) -> 0 | CB29: =SUM(CB11,CB20) -> 0 | CH29: =SUM(CH11,CH20) -> 0 | CN29: =SUM(CN11,CN20) -> 0 | CT29: =SUM(CT11,CT20) -> 0 | CZ29: =SUM(CZ11,CZ20) -> 0 | DF29: =SUM(DF11,DF20) -> 0 | DL29: =SUM(DL11,DL20) -> 0 | DR29: =SUM(DR11,DR20) -> 0 | DX29: =SUM(DX11,DX20) -> 0 | ED29: =SUM(ED11,ED20) -> 0 | EJ29: =SUM(EJ11,EJ20) -> 0 | EP29: =SUM(EP11,EP20) -> 0 | EV29: =SUM(EV11,EV20) -> 0 | FB29: =SUM(FB11,FB20) -> 0 | FH29: =SUM(FH11,FH20) -> 0 | FN29: =SUM(FN11,FN20) -> 0 | FT29: =SUM(FT11,FT20) -> 0 | FZ29: =SUM(FZ11,FZ20) -> 0 | GF29: =SUM(GF11,GF20) -> 0 | GL29: =SUM(GL11,GL20) -> 0 | GR29: =SUM(GR11,GR20) -> 0 | GX29: =SUM(GX11,GX20) -> 0 | HD29: =SUM(HD11,HD20) -> 0 | HJ29: =SUM(HJ11,HJ20) -> 0 | HP29: =SUM(HP11,HP20) -> 0 | HV29: =SUM(HV11,HV20) -> 0 | IB29: =SUM(IB11,IB20) -> 0 | IH29: =SUM(IH11,IH20) -> 0 | IN29: =SUM(IN11,IN20) -> 0 | IT29: =SUM(IT11,IT20) -> 0 | IZ29: =SUM(IZ11,IZ20) -> 0 | JF29: =SUM(JF11,JF20) -> 0 | JL29: =SUM(JL11,JL20) -> 0 | JR29: =SUM(JR11,JR20) -> 0 | JX29: =SUM(JX11,JX20) -> 0 | KD29: =SUM(KD11,KD20) -> 0 | KJ29: =SUM(KJ11,KJ20) -> 0 | KP29: =SUM(KP11,KP20) -> 0 | KV29: =SUM(KV11,KV20) -> 0 | LB29: =SUM(LB11,LB20) -> 0 | LH29: =SUM(LH11,LH20) -> 0 | LN29: =SUM(LN11,LN20) -> 0 | LT29: =SUM(LT11,LT20) -> 0 | LZ29: =SUM(LZ11,LZ20) -> 0 | MF29: =SUM(MF11,MF20) -> 0 | ML29: =SUM(ML11,ML20) -> 0 | MR29: =SUM(MR11,MR20) -> 0 | MX29: =SUM(MX11,MX20) -> 0 | ND29: =SUM(ND11,ND20) -> 0 | NJ29: =SUM(NJ11,NJ20) -> 0 | NP29: =SUM(NP11,NP20) -> 0 | NV29: =SUM(NV11,NV20) -> 0 | OB29: =SUM(OB11,OB20) -> 0 | OH29: =SUM(OH11,OH20) -> 0 | ON29: =SUM(ON11,ON20) -> 0 | OT29: =SUM(OT11,OT20) -> 0 | OZ29: =SUM(OZ11,OZ20) -> 0 | PF29: =SUM(PF11,PF20) -> 0 | PL29: =SUM(PL11,PL20) -> 0 | PR29: =SUM(PR11,PR20) -> 0 | PX29: =SUM(PX11,PX20) -> 0 | QD29: =SUM(QD11,QD20) -> 0 | QJ29: =SUM(QJ11,QJ20) -> 0 | QP29: =SUM(QP11,QP20) -> 0 | QV29: =SUM(QV11,QV20) -> 0 | RB29: =SUM(RB11,RB20) -> 0 | RH29: =SUM(RH11,RH20) -> 0 | RN29: =SUM(RN11,RN20) -> 0 | RT29: =SUM(RT11,RT20) -> 0 | RZ29: =SUM(RZ11,RZ20) -> 0 | SF29: =SUM(SF11,SF20) -> 0 | SL29: =SUM(SL11,SL20) -> 0 | SR29: =SUM(SR11,SR20) -> 0 | SX29: =SUM(SX11,SX20) -> 0 | TD29: =SUM(TD11,TD20) -> 0 | TJ29: =SUM(TJ11,TJ20) -> 0 | TP29: =SUM(TP11,TP20) -> 0 | TV29: =SUM(TV11,TV20) -> 0 | UB29: =SUM(UB11,UB20) -> 0 | UH29: =SUM(UH11,UH20) -> 0 | UN29: =SUM(UN11,UN20) -> 0 | UT29: =SUM(UT11,UT20) -> 0 | UZ29: =SUM(UZ11,UZ20) -> 0 | VF29: =SUM(VF11,VF20) -> 0 | VL29: =SUM(VL11,VL20) -> 0 | VR29: =SUM(VR11,VR20) -> 0 | VX29: =SUM(VX11,VX20) -> 0 | WD29: =SUM(WD11,WD20) -> 0 | WJ29: =SUM(WJ11,WJ20) -> 0 | WP29: =SUM(WP11,WP20) -> 0 | WV29: =SUM(WV11,WV20) -> 0 | XB29: =SUM(XB11,XB20) -> 0 | XH29: =SUM(XH11,XH20) -> 0 | XN29: =SUM(XN11,XN20) -> 0 | XT29: =SUM(XT11,XT20) -> 0 | XZ29: =SUM(XZ11,XZ20) -> 0 | YF29: =SUM(YF11,YF20) -> 0 | YL29: =SUM(YL11,YL20) -> 0 | YR29: =SUM(YR11,YR20) -> 0 | YX29: =SUM(YX11,YX20) -> 0 | ZD29: =SUM(ZD11,ZD20) -> 0 | ZJ29: =SUM(ZJ11,ZJ20) -> 0 | ZP29: =SUM(ZP11,ZP20) -> 0 | ZV29: =SUM(ZV11,ZV20) -> 0 | AAB29: =SUM(AAB11,AAB20) -> 0 | AAH29: =SUM(AAH11,AAH20) -> 0 | AAN29: =SUM(AAN11,AAN20) -> 0 | AAT29: =SUM(AAT11,AAT20) -> 0 | AAZ29: =SUM(AAZ11,AAZ20) -> 0 | ABF29: =SUM(ABF11,ABF20) -> 0 | ABL29: =SUM(ABL11,ABL20) -> 0 | ABR29: =SUM(ABR11,ABR20) -> 0 | ABX29: =SUM(ABX11,ABX20) -> 0 | ACD29: =SUM(ACD11,ACD20) -> 0 | ACJ29: =SUM(ACJ11,ACJ20) -> 0 | ACP29: =SUM(ACP11,ACP20) -> 0 | ACV29: =SUM(ACV11,ACV20) -> 0 | ADB29: =SUM(ADB11,ADB20) -> 0 | ADH29: =SUM(ADH11,ADH20) -> 0 | ADN29: =SUM(ADN11,ADN20) -> 0 | ADT29: =SUM(ADT11,ADT20) -> 0 | ADZ29: =SUM(ADZ11,ADZ20) -> 0 | AEF29: =SUM(AEF11,AEF20) -> 0 | AEL29: =SUM(AEL11,AEL20) -> 0 | AER29: =SUM(AER11,AER20) -> 0 | AEX29: =SUM(AEX11,AEX20) -> 0 | AFD29: =SUM(AFD11,AFD20) -> 0 | AFJ29: =SUM(AFJ11,AFJ20) -> 0 | AFP29: =SUM(AFP11,AFP20) -> 0 | AFV29: =SUM(AFV11,AFV20) -> 0 | AGB29: =SUM(AGB11,AGB20) -> 0 | AGH29: =SUM(AGH11,AGH20) -> 0 | AGN29: =SUM(AGN11,AGN20) -> 0 | AGT29: =SUM(AGT11,AGT20) -> 0 | AGZ29: =SUM(AGZ11,AGZ20) -> 0 | AHF29: =SUM(AHF11,AHF20) -> 0 | AHL29: =SUM(AHL11,AHL20) -> 0 | AHR29: =SUM(AHR11,AHR20) -> 0 | AHX29: =SUM(AHX11,AHX20) -> 0 | AID29: =SUM(AID11,AID20) -> 0 | AIJ29: =SUM(AIJ11,AIJ20) -> 0 | AIP29: =SUM(AIP11,AIP20) -> 0 | AIV29: =SUM(AIV11,AIV20) -> 0 | AJB29: =SUM(AJB11,AJB20) -> 0 | AJH29: =SUM(AJH11,AJH20) -> 0 | AJN29: =SUM(AJN11,AJN20) -> 0 | AJT29: =SUM(AJT11,AJT20) -> 0 | AJZ29: =SUM(AJZ11,AJZ20) -> 0 | AKF29: =SUM(AKF11,AKF20) -> 0 | AKL29: =SUM(AKL11,AKL20) -> 0 | AKR29: =SUM(AKR11,AKR20) -> 0 | AKX29: =SUM(AKX11,AKX20) -> 0 | ALD29: =SUM(ALD11,ALD20) -> 0 | ALJ29: =SUM(ALJ11,ALJ20) -> 0 | ALP29: =SUM(ALP11,ALP20) -> 0 | ALV29: =SUM(ALV11,ALV20) -> 0 | AMB29: =SUM(AMB11,AMB20) -> 0 | AMH29: =SUM(AMH11,AMH20) -> 0 | AMN29: =SUM(AMN11,AMN20) -> 0 | AMT29: =SUM(AMT11,AMT20) -> 0 | AMZ29: =SUM(AMZ11,AMZ20) -> 0 | ANF29: =SUM(ANF11,ANF20) -> 0 | ANL29: =SUM(ANL11,ANL20) -> 0 | ANR29: =SUM(ANR11,ANR20) -> 0 | ANX29: =SUM(ANX11,ANX20) -> 0 | AOD29: =SUM(AOD11,AOD20) -> 0 | AOJ29: =SUM(AOJ11,AOJ20) -> 0 | AOP29: =SUM(AOP11,AOP20) -> 0 | AOV29: =SUM(AOV11,AOV20) -> 0 | APB29: =SUM(APB11,APB20) -> 0 | APH29: =SUM(APH11,APH20) -> 0 | APN29: =SUM(APN11,APN20) -> 0 | APT29: =SUM(APT11,APT20) -> 0 | APZ29: =SUM(APZ11,APZ20) -> 0 | AQF29: =SUM(AQF11,AQF20) -> 0 | AQL29: =SUM(AQL11,AQL20) -> 0 | AQR29: =SUM(AQR11,AQR20) -> 0 | AQX29: =SUM(AQX11,AQX20) -> 0 | ARD29: =SUM(ARD11,ARD20) -> 0 | ARJ29: =SUM(ARJ11,ARJ20) -> 0 | ARP29: =SUM(ARP11,ARP20) -> 0 | ARV29: =SUM(ARV11,ARV20) -> 0 | ASB29: =SUM(ASB11,ASB20) -> 0 | ASH29: =SUM(ASH11,ASH20) -> 0 | ASN29: =SUM(ASN11,ASN20) -> 0 | AST29: =SUM(AST11,AST20) -> 0 | ASZ29: =SUM(ASZ11,ASZ20) -> 0 | ATF29: =SUM(ATF11,ATF20) -> 0 | ATL29: =SUM(ATL11,ATL20) -> 0 | ATR29: =SUM(ATR11,ATR20) -> 0 | ATX29: =SUM(ATX11,ATX20) -> 0 | AUD29: =SUM(AUD11,AUD20) -> 0 | AUJ29: =SUM(AUJ11,AUJ20) -> 0 | AUP29: =SUM(AUP11,AUP20) -> 0 | AUV29: =SUM(AUV11,AUV20) -> 0 | AVB29: =SUM(AVB11,AVB20) -> 0 | AVH29: =SUM(AVH11,AVH20) -> 0 | AVN29: =SUM(AVN11,AVN20) -> 0 | AVT29: =SUM(AVT11,AVT20) -> 0 | AVZ29: =SUM(AVZ11,AVZ20) -> 0 | AWF29: =SUM(AWF11,AWF20) -> 0 | AWL29: =SUM(AWL11,AWL20) -> 0 | AWR29: =SUM(AWR11,AWR20) -> 0 | AWX29: =SUM(AWX11,AWX20) -> 0 | AXD29: =SUM(AXD11,AXD20) -> 0 | AXJ29: =SUM(AXJ11,AXJ20) -> 0 | AXP29: =SUM(AXP11,AXP20) -> 0 | AXV29: =SUM(AXV11,AXV20) -> 0 | AYB29: =SUM(AYB11,AYB20) -> 0 | AYH29: =SUM(AYH11,AYH20) -> 0 | AYN29: =SUM(AYN11,AYN20) -> 0 | AYT29: =SUM(AYT11,AYT20) -> 0 | AYZ29: =SUM(AYZ11,AYZ20) -> 0 | AZF29: =SUM(AZF11,AZF20) -> 0 | AZL29: =SUM(AZL11,AZL20) -> 0 | AZR29: =SUM(AZR11,AZR20) -> 0 | AZX29: =SUM(AZX11,AZX20) -> 0 | BAD29: =SUM(BAD11,BAD20) -> 0 | BAJ29: =SUM(BAJ11,BAJ20) -> 0 | BAP29: =SUM(BAP11,BAP20) -> 0 | BAV29: =SUM(BAV11,BAV20) -> 0 | BBB29: =SUM(BBB11,BBB20) -> 0 | BBH29: =SUM(BBH11,BBH20) -> 0 | BBN29: =SUM(BBN11,BBN20) -> 0 | BBT29: =SUM(BBT11,BBT20) -> 0 | BBZ29: =SUM(BBZ11,BBZ20) -> 0 | BCF29: =SUM(BCF11,BCF20) -> 0 | BCL29: =SUM(BCL11,BCL20) -> 0 | BCR29: =SUM(BCR11,BCR20) -> 0 | BCX29: =SUM(BCX11,BCX20) -> 0 | BDD29: =SUM(BDD11,BDD20) -> 0 | BDJ29: =SUM(BDJ11,BDJ20) -> 0 | BDP29: =SUM(BDP11,BDP20) -> 0 | BDV29: =SUM(BDV11,BDV20) -> 0 | BEB29: =SUM(BEB11,BEB20) -> 0 | BEH29: =SUM(BEH11,BEH20) -> 0 | BEN29: =SUM(BEN11,BEN20) -> 0 | BET29: =SUM(BET11,BET20) -> 0 | BEZ29: =SUM(BEZ11,BEZ20) -> 0 | BFF29: =SUM(BFF11,BFF20) -> 0 | BFL29: =SUM(BFL11,BFL20) -> 0 | BFR29: =SUM(BFR11,BFR20) -> 0 | BFX29: =SUM(BFX11,BFX20) -> 0 | BGD29: =SUM(BGD11,BGD20) -> 0 | BGJ29: =SUM(BGJ11,BGJ20) -> 0 | BGP29: =SUM(BGP11,BGP20) -> 0 | BGV29: =SUM(BGV11,BGV20) -> 0 | BHB29: =SUM(BHB11,BHB20) -> 0 | BHH29: =SUM(BHH11,BHH20) -> 0 | BHN29: =SUM(BHN11,BHN20) -> 0 | BHT29: =SUM(BHT11,BHT20) -> 0 | BHZ29: =SUM(BHZ11,BHZ20) -> 0 | BIF29: =SUM(BIF11,BIF20) -> 0 | BIL29: =SUM(BIL11,BIL20) -> 0 | BIR29: =SUM(BIR11,BIR20) -> 0 | BIX29: =SUM(BIX11,BIX20) -> 0 | BJD29: =SUM(BJD11,BJD20) -> 0 | BJJ29: =SUM(BJJ11,BJJ20) -> 0 | BJP29: =SUM(BJP11,BJP20) -> 0 | BJV29: =SUM(BJV11,BJV20) -> 0 | BKB29: =SUM(BKB11,BKB20) -> 0 | BKH29: =SUM(BKH11,BKH20) -> 0 | BKN29: =SUM(BKN11,BKN20) -> 0 | BKT29: =SUM(BKT11,BKT20) -> 0 | BKZ29: =SUM(BKZ11,BKZ20) -> 0 | BLF29: =SUM(BLF11,BLF20) -> 0 | BLL29: =SUM(BLL11,BLL20) -> 0 | BLR29: =SUM(BLR11,BLR20) -> 0 | BLX29: =SUM(BLX11,BLX20) -> 0 | BMD29: =SUM(BMD11,BMD20) -> 0 | BMJ29: =SUM(BMJ11,BMJ20) -> 0 | BMP29: =SUM(BMP11,BMP20) -> 0 | BMV29: =SUM(BMV11,BMV20) -> 0 | BNB29: =SUM(BNB11,BNB20) -> 0 | BNH29: =SUM(BNH11,BNH20) -> 0 | BNN29: =SUM(BNN11,BNN20) -> 0 | BNT29: =SUM(BNT11,BNT20) -> 0 | BNZ29: =SUM(BNZ11,BNZ20) -> 0 | BOF29: =SUM(BOF11,BOF20) -> 0 | BOL29: =SUM(BOL11,BOL20) -> 0 | BOR29: =SUM(BOR11,BOR20) -> 0 | BOX29: =SUM(BOX11,BOX20) -> 0 | BPD29: =SUM(BPD11,BPD20) -> 0 | BPJ29: =SUM(BPJ11,BPJ20) -> 0 | BPP29: =SUM(BPP11,BPP20) -> 0 | BPV29: =SUM(BPV11,BPV20) -> 0 | BQB29: =SUM(BQB11,BQB20) -> 0 | BQH29: =SUM(BQH11,BQH20) -> 0 | BQN29: =SUM(BQN11,BQN20) -> 0 | BQT29: =SUM(BQT11,BQT20) -> 0 | BQZ29: =SUM(BQZ11,BQZ20) -> 0 | BRF29: =SUM(BRF11,BRF20) -> 0 | BRL29: =SUM(BRL11,BRL20) -> 0 | BRR29: =SUM(BRR11,BRR20) -> 0 | BRX29: =SUM(BRX11,BRX20) -> 0 | BSD29: =SUM(BSD11,BSD20) -> 0 | BSJ29: =SUM(BSJ11,BSJ20) -> 0 | BSP29: =SUM(BSP11,BSP20) -> 0 | BSV29: =SUM(BSV11,BSV20) -> 0 | BTB29: =SUM(BTB11,BTB20) -> 0 | BTH29: =SUM(BTH11,BTH20) -> 0 | BTN29: =SUM(BTN11,BTN20) -> 0 | BTT29: =SUM(BTT11,BTT20) -> 0 | BTZ29: =SUM(BTZ11,BTZ20) -> 0 | BUF29: =SUM(BUF11,BUF20) -> 0 | BUL29: =SUM(BUL11,BUL20) -> 0 | BUR29: =SUM(BUR11,BUR20) -> 0 | BUX29: =SUM(BUX11,BUX20) -> 0 | BVD29: =SUM(BVD11,BVD20) -> 0 | BVJ29: =SUM(BVJ11,BVJ20) -> 0 | BVP29: =SUM(BVP11,BVP20) -> 0 | BVV29: =SUM(BVV11,BVV20) -> 0 | BWB29: =SUM(BWB11,BWB20) -> 0 | BWH29: =SUM(BWH11,BWH20) -> 0 | BWN29: =SUM(BWN11,BWN20) -> 0 | BWT29: =SUM(BWT11,BWT20) -> 0 | BWZ29: =SUM(BWZ11,BWZ20) -> 0 | BXF29: =SUM(BXF11,BXF20) -> 0 | BXL29: =SUM(BXL11,BXL20) -> 0 | BXR29: =SUM(BXR11,BXR20) -> 0 | BXX29: =SUM(BXX11,BXX20) -> 0 | BYD29: =SUM(BYD11,BYD20) -> 0 | BYJ29: =SUM(BYJ11,BYJ20) -> 0 | BYP29: =SUM(BYP11,BYP20) -> 0 | BYV29: =SUM(BYV11,BYV20) -> 0 | BZB29: =SUM(BZB11,BZB20) -> 0 | BZH29: =SUM(BZH11,BZH20) -> 0 | BZN29: =SUM(BZN11,BZN20) -> 0 | BZT29: =SUM(BZT11,BZT20) -> 0 | BZZ29: =SUM(BZZ11,BZZ20) -> 0 | CAF29: =SUM(CAF11,CAF20) -> 0 | CAL29: =SUM(CAL11,CAL20) -> 0 | CAR29: =SUM(CAR11,CAR20) -> 0 | CAX29: =SUM(CAX11,CAX20) -> 0 | CBD29: =SUM(CBD11,CBD20) -> 0 | CBJ29: =SUM(CBJ11,CBJ20) -> 0 | CBP29: =SUM(CBP11,CBP20) -> 0 | CBV29: =SUM(CBV11,CBV20) -> 0 | CCB29: =SUM(CCB11,CCB20) -> 0 | CCH29: =SUM(CCH11,CCH20) -> 0 | CCN29: =SUM(CCN11,CCN20) -> 0 | CCT29: =SUM(CCT11,CCT20) -> 0 | CCZ29: =SUM(CCZ11,CCZ20) -> 0 | CDF29: =SUM(CDF11,CDF20) -> 0 | CDL29: =SUM(CDL11,CDL20) -> 0 | CDR29: =SUM(CDR11,CDR20) -> 0 | CDX29: =SUM(CDX11,CDX20) -> 0 | CED29: =SUM(CED11,CED20) -> 0 | CEJ29: =SUM(CEJ11,CEJ20) -> 0 | CEP29: =SUM(CEP11,CEP20) -> 0 | CEV29: =SUM(CEV11,CEV20) -> 0 | CFB29: =SUM(CFB11,CFB20) -> 0 | CFH29: =SUM(CFH11,CFH20) -> 0 | CFN29: =SUM(CFN11,CFN20) -> 0 | CFT29: =SUM(CFT11,CFT20) -> 0 | CFZ29: =SUM(CFZ11,CFZ20) -> 0 | CGF29: =SUM(CGF11,CGF20) -> 0 | CGL29: =SUM(CGL11,CGL20) -> 0 | CGR29: =SUM(CGR11,CGR20) -> 0 | CGX29: =SUM(CGX11,CGX20) -> 0 | CHD29: =SUM(CHD11,CHD20) -> 0 | CHJ29: =SUM(CHJ11,CHJ20) -> 0 | CHP29: =SUM(CHP11,CHP20) -> 0 | CHV29: =SUM(CHV11,CHV20) -> 0 | CIB29: =SUM(CIB11,CIB20) -> 0 | CIH29: =SUM(CIH11,CIH20) -> 0 | CIN29: =SUM(CIN11,CIN20) -> 0 | CIT29: =SUM(CIT11,CIT20) -> 0 | CIZ29: =SUM(CIZ11,CIZ20) -> 0 | CJF29: =SUM(CJF11,CJF20) -> 0 | CJL29: =SUM(CJL11,CJL20) -> 0 | CJR29: =SUM(CJR11,CJR20) -> 0 | CJX29: =SUM(CJX11,CJX20) -> 0 | CKD29: =SUM(CKD11,CKD20) -> 0 | CKJ29: =SUM(CKJ11,CKJ20) -> 0 | CKP29: =SUM(CKP11,CKP20) -> 0 | CKV29: =SUM(CKV11,CKV20) -> 0 | CLB29: =SUM(CLB11,CLB20) -> 0 | CLH29: =SUM(CLH11,CLH20) -> 0 | CLN29: =SUM(CLN11,CLN20) -> 0 | CLT29: =SUM(CLT11,CLT20) -> 0 | CLZ29: =SUM(CLZ11,CLZ20) -> 0 | CMF29: =SUM(CMF11,CMF20) -> 0 | CML29: =SUM(CML11,CML20) -> 0 | CMR29: =SUM(CMR11,CMR20) -> 0 | CMX29: =SUM(CMX11,CMX20) -> 0 | CND29: =SUM(CND11,CND20) -> 0 | CNJ29: =SUM(CNJ11,CNJ20) -> 0 | CNP29: =SUM(CNP11,CNP20) -> 0 | CNV29: =SUM(CNV11,CNV20) -> 0 | COB29: =SUM(COB11,COB20) -> 0 | COH29: =SUM(COH11,COH20) -> 0 | CON29: =SUM(CON11,CON20) -> 0 | COT29: =SUM(COT11,COT20) -> 0 | COZ29: =SUM(COZ11,COZ20) -> 0 | CPF29: =SUM(CPF11,CPF20) -> 0 | CPL29: =SUM(CPL11,CPL20) -> 0 | CPR29: =SUM(CPR11,CPR20) -> 0 | CPX29: =SUM(CPX11,CPX20) -> 0 | CQD29: =SUM(CQD11,CQD20) -> 0 | CQJ29: =SUM(CQJ11,CQJ20) -> 0 | CQP29: =SUM(CQP11,CQP20) -> 0 | CQV29: =SUM(CQV11,CQV20) -> 0 | CRB29: =SUM(CRB11,CRB20) -> 0 | CRH29: =SUM(CRH11,CRH20) -> 0 | CRN29: =SUM(CRN11,CRN20) -> 0 | CRT29: =SUM(CRT11,CRT20) -> 0 | CRZ29: =SUM(CRZ11,CRZ20) -> 0 | CSF29: =SUM(CSF11,CSF20) -> 0 | CSL29: =SUM(CSL11,CSL20) -> 0 | CSR29: =SUM(CSR11,CSR20) -> 0 | CSX29: =SUM(CSX11,CSX20) -> 0 | CTD29: =SUM(CTD11,CTD20) -> 0 | CTJ29: =SUM(CTJ11,CTJ20) -> 0 | CTP29: =SUM(CTP11,CTP20) -> 0 | CTV29: =SUM(CTV11,CTV20) -> 0 | CUB29: =SUM(CUB11,CUB20) -> 0 | CUH29: =SUM(CUH11,CUH20) -> 0 | CUN29: =SUM(CUN11,CUN20) -> 0 | CUT29: =SUM(CUT11,CUT20) -> 0 | CUZ29: =SUM(CUZ11,CUZ20) -> 0 | CVF29: =SUM(CVF11,CVF20) -> 0 | CVL29: =SUM(CVL11,CVL20) -> 0 | CVR29: =SUM(CVR11,CVR20) -> 0 | CVX29: =SUM(CVX11,CVX20) -> 0 | CWD29: =SUM(CWD11,CWD20) -> 0 | CWJ29: =SUM(CWJ11,CWJ20) -> 0 | CWP29: =SUM(CWP11,CWP20) -> 0 | CWV29: =SUM(CWV11,CWV20) -> 0 | CXB29: =SUM(CXB11,CXB20) -> 0 | CXH29: =SUM(CXH11,CXH20) -> 0 | CXN29: =SUM(CXN11,CXN20) -> 0 | CXT29: =SUM(CXT11,CXT20) -> 0 | CXZ29: =SUM(CXZ11,CXZ20) -> 0 | CYF29: =SUM(CYF11,CYF20) -> 0 | CYL29: =SUM(CYL11,CYL20) -> 0 | CYR29: =SUM(CYR11,CYR20) -> 0 | CYX29: =SUM(CYX11,CYX20) -> 0 | CZD29: =SUM(CZD11,CZD20) -> 0 | CZJ29: =SUM(CZJ11,CZJ20) -> 0 | CZP29: =SUM(CZP11,CZP20) -> 0 | CZV29: =SUM(CZV11,CZV20) -> 0 | DAB29: =SUM(DAB11,DAB20) -> 0 | DAH29: =SUM(DAH11,DAH20) -> 0 | DAN29: =SUM(DAN11,DAN20) -> 0 | DAT29: =SUM(DAT11,DAT20) -> 0 | DAZ29: =SUM(DAZ11,DAZ20) -> 0 | DBF29: =SUM(DBF11,DBF20) -> 0 | DBL29: =SUM(DBL11,DBL20) -> 0 | DBR29: =SUM(DBR11,DBR20) -> 0 | DBX29: =SUM(DBX11,DBX20) -> 0 | DCD29: =SUM(DCD11,DCD20) -> 0 | DCJ29: =SUM(DCJ11,DCJ20) -> 0 | DCP29: =SUM(DCP11,DCP20) -> 0 | DCV29: =SUM(DCV11,DCV20) -> 0 | DDB29: =SUM(DDB11,DDB20) -> 0 | DDH29: =SUM(DDH11,DDH20) -> 0 | DDN29: =SUM(DDN11,DDN20) -> 0 | DDT29: =SUM(DDT11,DDT20) -> 0 | DDZ29: =SUM(DDZ11,DDZ20) -> 0 | DEF29: =SUM(DEF11,DEF20) -> 0 | DEL29: =SUM(DEL11,DEL20) -> 0 | DER29: =SUM(DER11,DER20) -> 0 | DEX29: =SUM(DEX11,DEX20) -> 0 | DFD29: =SUM(DFD11,DFD20) -> 0 | DFJ29: =SUM(DFJ11,DFJ20) -> 0 | DFP29: =SUM(DFP11,DFP20) -> 0 | DFV29: =SUM(DFV11,DFV20) -> 0 | DGB29: =SUM(DGB11,DGB20) -> 0 | DGH29: =SUM(DGH11,DGH20) -> 0 | DGN29: =SUM(DGN11,DGN20) -> 0 | DGT29: =SUM(DGT11,DGT20) -> 0 | DGZ29: =SUM(DGZ11,DGZ20) -> 0 | DHF29: =SUM(DHF11,DHF20) -> 0 | DHL29: =SUM(DHL11,DHL20) -> 0 | DHR29: =SUM(DHR11,DHR20) -> 0 | DHX29: =SUM(DHX11,DHX20) -> 0 | DID29: =SUM(DID11,DID20) -> 0 | DIJ29: =SUM(DIJ11,DIJ20) -> 0 | DIP29: =SUM(DIP11,DIP20) -> 0 | DIV29: =SUM(DIV11,DIV20) -> 0 | DJB29: =SUM(DJB11,DJB20) -> 0 | DJH29: =SUM(DJH11,DJH20) -> 0 | DJN29: =SUM(DJN11,DJN20) -> 0 | DJT29: =SUM(DJT11,DJT20) -> 0 | DJZ29: =SUM(DJZ11,DJZ20) -> 0 | DKF29: =SUM(DKF11,DKF20) -> 0 | DKL29: =SUM(DKL11,DKL20) -> 0 | DKR29: =SUM(DKR11,DKR20) -> 0 | DKX29: =SUM(DKX11,DKX20) -> 0 | DLD29: =SUM(DLD11,DLD20) -> 0 | DLJ29: =SUM(DLJ11,DLJ20) -> 0 | DLP29: =SUM(DLP11,DLP20) -> 0 | DLV29: =SUM(DLV11,DLV20) -> 0 | DMB29: =SUM(DMB11,DMB20) -> 0 | DMH29: =SUM(DMH11,DMH20) -> 0 | DMN29: =SUM(DMN11,DMN20) -> 0 | DMT29: =SUM(DMT11,DMT20) -> 0 | DMZ29: =SUM(DMZ11,DMZ20) -> 0 | DNF29: =SUM(DNF11,DNF20) -> 0 | DNL29: =SUM(DNL11,DNL20) -> 0 | DNR29: =SUM(DNR11,DNR20) -> 0 | DNX29: =SUM(DNX11,DNX20) -> 0 | DOD29: =SUM(DOD11,DOD20) -> 0 | DOJ29: =SUM(DOJ11,DOJ20) -> 0 | DOP29: =SUM(DOP11,DOP20) -> 0 | DOV29: =SUM(DOV11,DOV20) -> 0 | DPB29: =SUM(DPB11,DPB20) -> 0 | DPH29: =SUM(DPH11,DPH20) -> 0 | DPN29: =SUM(DPN11,DPN20) -> 0 | DPT29: =SUM(DPT11,DPT20) -> 0 | DPZ29: =SUM(DPZ11,DPZ20) -> 0 | DQF29: =SUM(DQF11,DQF20) -> 0 | DQL29: =SUM(DQL11,DQL20) -> 0 | DQR29: =SUM(DQR11,DQR20) -> 0 | DQX29: =SUM(DQX11,DQX20) -> 0 | DRD29: =SUM(DRD11,DRD20) -> 0 | DRJ29: =SUM(DRJ11,DRJ20) -> 0 | DRP29: =SUM(DRP11,DRP20) -> 0 | DRV29: =SUM(DRV11,DRV20) -> 0 | DSB29: =SUM(DSB11,DSB20) -> 0 | DSH29: =SUM(DSH11,DSH20) -> 0 | DSN29: =SUM(DSN11,DSN20) -> 0 | DST29: =SUM(DST11,DST20) -> 0 | DSZ29: =SUM(DSZ11,DSZ20) -> 0 | DTF29: =SUM(DTF11,DTF20) -> 0 | DTL29: =SUM(DTL11,DTL20) -> 0 | DTR29: =SUM(DTR11,DTR20) -> 0 | DTX29: =SUM(DTX11,DTX20) -> 0 | DUD29: =SUM(DUD11,DUD20) -> 0 | DUJ29: =SUM(DUJ11,DUJ20) -> 0 | DUP29: =SUM(DUP11,DUP20) -> 0 | DUV29: =SUM(DUV11,DUV20) -> 0 | DVB29: =SUM(DVB11,DVB20) -> 0 | DVH29: =SUM(DVH11,DVH20) -> 0 | DVN29: =SUM(DVN11,DVN20) -> 0 | DVT29: =SUM(DVT11,DVT20) -> 0 | DVZ29: =SUM(DVZ11,DVZ20) -> 0 | DWF29: =SUM(DWF11,DWF20) -> 0 | DWL29: =SUM(DWL11,DWL20) -> 0 | DWR29: =SUM(DWR11,DWR20) -> 0 | DWX29: =SUM(DWX11,DWX20) -> 0 | DXD29: =SUM(DXD11,DXD20) -> 0 | DXJ29: =SUM(DXJ11,DXJ20) -> 0 | DXP29: =SUM(DXP11,DXP20) -> 0 | DXV29: =SUM(DXV11,DXV20) -> 0 | DYB29: =SUM(DYB11,DYB20) -> 0 | DYH29: =SUM(DYH11,DYH20) -> 0 | DYN29: =SUM(DYN11,DYN20) -> 0 | DYT29: =SUM(DYT11,DYT20) -> 0 | DYZ29: =SUM(DYZ11,DYZ20) -> 0 | DZF29: =SUM(DZF11,DZF20) -> 0 | DZL29: =SUM(DZL11,DZL20) -> 0 | DZR29: =SUM(DZR11,DZR20) -> 0 | DZX29: =SUM(DZX11,DZX20) -> 0 | EAD29: =SUM(EAD11,EAD20) -> 0 | EAJ29: =SUM(EAJ11,EAJ20) -> 0 | EAP29: =SUM(EAP11,EAP20) -> 0 | EAV29: =SUM(EAV11,EAV20) -> 0 | EBB29: =SUM(EBB11,EBB20) -> 0 | EBH29: =SUM(EBH11,EBH20) -> 0 | EBN29: =SUM(EBN11,EBN20) -> 0 | EBT29: =SUM(EBT11,EBT20) -> 0 | EBZ29: =SUM(EBZ11,EBZ20) -> 0 | ECF29: =SUM(ECF11,ECF20) -> 0 | ECL29: =SUM(ECL11,ECL20) -> 0 | ECR29: =SUM(ECR11,ECR20) -> 0 | ECX29: =SUM(ECX11,ECX20) -> 0 | EDD29: =SUM(EDD11,EDD20) -> 0 | EDJ29: =SUM(EDJ11,EDJ20) -> 0 | EDP29: =SUM(EDP11,EDP20) -> 0 | EDV29: =SUM(EDV11,EDV20) -> 0 | EEB29: =SUM(EEB11,EEB20) -> 0 | EEH29: =SUM(EEH11,EEH20) -> 0 | EEN29: =SUM(EEN11,EEN20) -> 0 | EET29: =SUM(EET11,EET20) -> 0 | EEZ29: =SUM(EEZ11,EEZ20) -> 0 | EFF29: =SUM(EFF11,EFF20) -> 0 | EFL29: =SUM(EFL11,EFL20) -> 0 | EFR29: =SUM(EFR11,EFR20) -> 0 | EFX29: =SUM(EFX11,EFX20) -> 0 | EGD29: =SUM(EGD11,EGD20) -> 0 | EGJ29: =SUM(EGJ11,EGJ20) -> 0 | EGP29: =SUM(EGP11,EGP20) -> 0 | EGV29: =SUM(EGV11,EGV20) -> 0 | EHB29: =SUM(EHB11,EHB20) -> 0 | EHH29: =SUM(EHH11,EHH20) -> 0 | EHN29: =SUM(EHN11,EHN20) -> 0 | EHT29: =SUM(EHT11,EHT20) -> 0 | EHZ29: =SUM(EHZ11,EHZ20) -> 0 | EIF29: =SUM(EIF11,EIF20) -> 0 | EIL29: =SUM(EIL11,EIL20) -> 0 | EIR29: =SUM(EIR11,EIR20) -> 0 | EIX29: =SUM(EIX11,EIX20) -> 0 | EJD29: =SUM(EJD11,EJD20) -> 0 | EJJ29: =SUM(EJJ11,EJJ20) -> 0 | EJP29: =SUM(EJP11,EJP20) -> 0 | EJV29: =SUM(EJV11,EJV20) -> 0 | EKB29: =SUM(EKB11,EKB20) -> 0 | EKH29: =SUM(EKH11,EKH20) -> 0 | EKN29: =SUM(EKN11,EKN20) -> 0 | EKT29: =SUM(EKT11,EKT20) -> 0 | EKZ29: =SUM(EKZ11,EKZ20) -> 0 | ELF29: =SUM(ELF11,ELF20) -> 0 | ELL29: =SUM(ELL11,ELL20) -> 0 | ELR29: =SUM(ELR11,ELR20) -> 0 | ELX29: =SUM(ELX11,ELX20) -> 0 | EMD29: =SUM(EMD11,EMD20) -> 0 | EMJ29: =SUM(EMJ11,EMJ20) -> 0 | EMP29: =SUM(EMP11,EMP20) -> 0 | EMV29: =SUM(EMV11,EMV20) -> 0 | ENB29: =SUM(ENB11,ENB20) -> 0 | ENH29: =SUM(ENH11,ENH20) -> 0 | ENN29: =SUM(ENN11,ENN20) -> 0 | ENT29: =SUM(ENT11,ENT20) -> 0 | ENZ29: =SUM(ENZ11,ENZ20) -> 0 | EOF29: =SUM(EOF11,EOF20) -> 0 | EOL29: =SUM(EOL11,EOL20) -> 0 | EOR29: =SUM(EOR11,EOR20) -> 0 | EOX29: =SUM(EOX11,EOX20) -> 0 | EPD29: =SUM(EPD11,EPD20) -> 0 | EPJ29: =SUM(EPJ11,EPJ20) -> 0 | EPP29: =SUM(EPP11,EPP20) -> 0 | EPV29: =SUM(EPV11,EPV20) -> 0 | EQB29: =SUM(EQB11,EQB20) -> 0 | EQH29: =SUM(EQH11,EQH20) -> 0 | EQN29: =SUM(EQN11,EQN20) -> 0 | EQT29: =SUM(EQT11,EQT20) -> 0 | EQZ29: =SUM(EQZ11,EQZ20) -> 0 | ERF29: =SUM(ERF11,ERF20) -> 0 | ERL29: =SUM(ERL11,ERL20) -> 0 | ERR29: =SUM(ERR11,ERR20) -> 0 | ERX29: =SUM(ERX11,ERX20) -> 0 | ESD29: =SUM(ESD11,ESD20) -> 0 | ESJ29: =SUM(ESJ11,ESJ20) -> 0 | ESP29: =SUM(ESP11,ESP20) -> 0 | ESV29: =SUM(ESV11,ESV20) -> 0 | ETB29: =SUM(ETB11,ETB20) -> 0 | ETH29: =SUM(ETH11,ETH20) -> 0 | ETN29: =SUM(ETN11,ETN20) -> 0 | ETT29: =SUM(ETT11,ETT20) -> 0 | ETZ29: =SUM(ETZ11,ETZ20) -> 0 | EUF29: =SUM(EUF11,EUF20) -> 0 | EUL29: =SUM(EUL11,EUL20) -> 0 | EUR29: =SUM(EUR11,EUR20) -> 0 | EUX29: =SUM(EUX11,EUX20) -> 0 | EVD29: =SUM(EVD11,EVD20) -> 0 | EVJ29: =SUM(EVJ11,EVJ20) -> 0 | EVP29: =SUM(EVP11,EVP20) -> 0 | EVV29: =SUM(EVV11,EVV20) -> 0 | EWB29: =SUM(EWB11,EWB20) -> 0 | EWH29: =SUM(EWH11,EWH20) -> 0 | EWN29: =SUM(EWN11,EWN20) -> 0 | EWT29: =SUM(EWT11,EWT20) -> 0 | EWZ29: =SUM(EWZ11,EWZ20) -> 0 | EXF29: =SUM(EXF11,EXF20) -> 0 | EXL29: =SUM(EXL11,EXL20) -> 0 | EXR29: =SUM(EXR11,EXR20) -> 0 | EXX29: =SUM(EXX11,EXX20) -> 0 | EYD29: =SUM(EYD11,EYD20) -> 0 | EYJ29: =SUM(EYJ11,EYJ20) -> 0 | EYP29: =SUM(EYP11,EYP20) -> 0 | EYV29: =SUM(EYV11,EYV20) -> 0 | EZB29: =SUM(EZB11,EZB20) -> 0 | EZH29: =SUM(EZH11,EZH20) -> 0 | EZN29: =SUM(EZN11,EZN20) -> 0 | EZT29: =SUM(EZT11,EZT20) -> 0 | EZZ29: =SUM(EZZ11,EZZ20) -> 0 | FAF29: =SUM(FAF11,FAF20) -> 0 | FAL29: =SUM(FAL11,FAL20) -> 0 | FAR29: =SUM(FAR11,FAR20) -> 0 | FAX29: =SUM(FAX11,FAX20) -> 0 | FBD29: =SUM(FBD11,FBD20) -> 0 | FBJ29: =SUM(FBJ11,FBJ20) -> 0 | FBP29: =SUM(FBP11,FBP20) -> 0 | FBV29: =SUM(FBV11,FBV20) -> 0 | FCB29: =SUM(FCB11,FCB20) -> 0 | FCH29: =SUM(FCH11,FCH20) -> 0 | FCN29: =SUM(FCN11,FCN20) -> 0 | FCT29: =SUM(FCT11,FCT20) -> 0 | FCZ29: =SUM(FCZ11,FCZ20) -> 0 | FDF29: =SUM(FDF11,FDF20) -> 0 | FDL29: =SUM(FDL11,FDL20) -> 0 | FDR29: =SUM(FDR11,FDR20) -> 0 | FDX29: =SUM(FDX11,FDX20) -> 0 | FED29: =SUM(FED11,FED20) -> 0 | FEJ29: =SUM(FEJ11,FEJ20) -> 0 | FEP29: =SUM(FEP11,FEP20) -> 0 | FEV29: =SUM(FEV11,FEV20) -> 0 | FFB29: =SUM(FFB11,FFB20) -> 0 | FFH29: =SUM(FFH11,FFH20) -> 0 | FFN29: =SUM(FFN11,FFN20) -> 0 | FFT29: =SUM(FFT11,FFT20) -> 0 | FFZ29: =SUM(FFZ11,FFZ20) -> 0 | FGF29: =SUM(FGF11,FGF20) -> 0 | FGL29: =SUM(FGL11,FGL20) -> 0 | FGR29: =SUM(FGR11,FGR20) -> 0 | FGX29: =SUM(FGX11,FGX20) -> 0 | FHD29: =SUM(FHD11,FHD20) -> 0 | FHJ29: =SUM(FHJ11,FHJ20) -> 0 | FHP29: =SUM(FHP11,FHP20) -> 0 | FHV29: =SUM(FHV11,FHV20) -> 0 | FIB29: =SUM(FIB11,FIB20) -> 0 | FIH29: =SUM(FIH11,FIH20) -> 0 | FIN29: =SUM(FIN11,FIN20) -> 0 | FIT29: =SUM(FIT11,FIT20) -> 0 | FIZ29: =SUM(FIZ11,FIZ20) -> 0 | FJF29: =SUM(FJF11,FJF20) -> 0 | FJL29: =SUM(FJL11,FJL20) -> 0 | FJR29: =SUM(FJR11,FJR20) -> 0 | FJX29: =SUM(FJX11,FJX20) -> 0 | FKD29: =SUM(FKD11,FKD20) -> 0 | FKJ29: =SUM(FKJ11,FKJ20) -> 0 | FKP29: =SUM(FKP11,FKP20) -> 0 | FKV29: =SUM(FKV11,FKV20) -> 0 | FLB29: =SUM(FLB11,FLB20) -> 0 | FLH29: =SUM(FLH11,FLH20) -> 0 | FLN29: =SUM(FLN11,FLN20) -> 0 | FLT29: =SUM(FLT11,FLT20) -> 0 | FLZ29: =SUM(FLZ11,FLZ20) -> 0 | FMF29: =SUM(FMF11,FMF20) -> 0 | FML29: =SUM(FML11,FML20) -> 0 | FMR29: =SUM(FMR11,FMR20) -> 0 | FMX29: =SUM(FMX11,FMX20) -> 0 | FND29: =SUM(FND11,FND20) -> 0 | FNJ29: =SUM(FNJ11,FNJ20) -> 0 | FNP29: =SUM(FNP11,FNP20) -> 0 | FNV29: =SUM(FNV11,FNV20) -> 0 | FOB29: =SUM(FOB11,FOB20) -> 0 | FOH29: =SUM(FOH11,FOH20) -> 0 | FON29: =SUM(FON11,FON20) -> 0 | FOT29: =SUM(FOT11,FOT20) -> 0 | FOZ29: =SUM(FOZ11,FOZ20) -> 0 | FPF29: =SUM(FPF11,FPF20) -> 0 | FPL29: =SUM(FPL11,FPL20) -> 0 | FPR29: =SUM(FPR11,FPR20) -> 0 | FPX29: =SUM(FPX11,FPX20) -> 0 | FQD29: =SUM(FQD11,FQD20) -> 0 | FQJ29: =SUM(FQJ11,FQJ20) -> 0 | FQP29: =SUM(FQP11,FQP20) -> 0 | FQV29: =SUM(FQV11,FQV20) -> 0 | FRB29: =SUM(FRB11,FRB20) -> 0 | FRH29: =SUM(FRH11,FRH20) -> 0 | FRN29: =SUM(FRN11,FRN20) -> 0 | FRT29: =SUM(FRT11,FRT20) -> 0 | FRZ29: =SUM(FRZ11,FRZ20) -> 0 | FSF29: =SUM(FSF11,FSF20) -> 0 | FSL29: =SUM(FSL11,FSL20) -> 0 | FSR29: =SUM(FSR11,FSR20) -> 0 | FSX29: =SUM(FSX11,FSX20) -> 0 | FTD29: =SUM(FTD11,FTD20) -> 0 | FTJ29: =SUM(FTJ11,FTJ20) -> 0 | FTP29: =SUM(FTP11,FTP20) -> 0 | FTV29: =SUM(FTV11,FTV20) -> 0 | FUB29: =SUM(FUB11,FUB20) -> 0 | FUH29: =SUM(FUH11,FUH20) -> 0 | FUN29: =SUM(FUN11,FUN20) -> 0 | FUT29: =SUM(FUT11,FUT20) -> 0 | FUZ29: =SUM(FUZ11,FUZ20) -> 0 | FVF29: =SUM(FVF11,FVF20) -> 0 | FVL29: =SUM(FVL11,FVL20) -> 0 | FVR29: =SUM(FVR11,FVR20) -> 0 | FVX29: =SUM(FVX11,FVX20) -> 0 | FWD29: =SUM(FWD11,FWD20) -> 0 | FWJ29: =SUM(FWJ11,FWJ20) -> 0 | FWP29: =SUM(FWP11,FWP20) -> 0 | FWV29: =SUM(FWV11,FWV20) -> 0 | FXB29: =SUM(FXB11,FXB20) -> 0 | FXH29: =SUM(FXH11,FXH20) -> 0 | FXN29: =SUM(FXN11,FXN20) -> 0 | FXT29: =SUM(FXT11,FXT20) -> 0 | FXZ29: =SUM(FXZ11,FXZ20) -> 0 | FYF29: =SUM(FYF11,FYF20) -> 0 | FYL29: =SUM(FYL11,FYL20) -> 0 | FYR29: =SUM(FYR11,FYR20) -> 0 | FYX29: =SUM(FYX11,FYX20) -> 0 | FZD29: =SUM(FZD11,FZD20) -> 0 | FZJ29: =SUM(FZJ11,FZJ20) -> 0 | FZP29: =SUM(FZP11,FZP20) -> 0 | FZV29: =SUM(FZV11,FZV20) -> 0 | GAB29: =SUM(GAB11,GAB20) -> 0 | GAH29: =SUM(GAH11,GAH20) -> 0 | GAN29: =SUM(GAN11,GAN20) -> 0 | GAT29: =SUM(GAT11,GAT20) -> 0 | GAZ29: =SUM(GAZ11,GAZ20) -> 0 | GBF29: =SUM(GBF11,GBF20) -> 0 | GBL29: =SUM(GBL11,GBL20) -> 0 | GBR29: =SUM(GBR11,GBR20) -> 0 | GBX29: =SUM(GBX11,GBX20) -> 0 | GCD29: =SUM(GCD11,GCD20) -> 0 | GCJ29: =SUM(GCJ11,GCJ20) -> 0 | GCP29: =SUM(GCP11,GCP20) -> 0 | GCV29: =SUM(GCV11,GCV20) -> 0 | GDB29: =SUM(GDB11,GDB20) -> 0 | GDH29: =SUM(GDH11,GDH20) -> 0 | GDN29: =SUM(GDN11,GDN20) -> 0 | GDT29: =SUM(GDT11,GDT20) -> 0 | GDZ29: =SUM(GDZ11,GDZ20) -> 0 | GEF29: =SUM(GEF11,GEF20) -> 0 | GEL29: =SUM(GEL11,GEL20) -> 0 | GER29: =SUM(GER11,GER20) -> 0 | GEX29: =SUM(GEX11,GEX20) -> 0 | GFD29: =SUM(GFD11,GFD20) -> 0 | GFJ29: =SUM(GFJ11,GFJ20) -> 0 | GFP29: =SUM(GFP11,GFP20) -> 0 | GFV29: =SUM(GFV11,GFV20) -> 0 | GGB29: =SUM(GGB11,GGB20) -> 0 | GGH29: =SUM(GGH11,GGH20) -> 0 | GGN29: =SUM(GGN11,GGN20) -> 0 | GGT29: =SUM(GGT11,GGT20) -> 0 | GGZ29: =SUM(GGZ11,GGZ20) -> 0 | GHF29: =SUM(GHF11,GHF20) -> 0 | GHL29: =SUM(GHL11,GHL20) -> 0 | GHR29: =SUM(GHR11,GHR20) -> 0 | GHX29: =SUM(GHX11,GHX20) -> 0 | GID29: =SUM(GID11,GID20) -> 0 | GIJ29: =SUM(GIJ11,GIJ20) -> 0 | GIP29: =SUM(GIP11,GIP20) -> 0 | GIV29: =SUM(GIV11,GIV20) -> 0 | GJB29: =SUM(GJB11,GJB20) -> 0 | GJH29: =SUM(GJH11,GJH20) -> 0 | GJN29: =SUM(GJN11,GJN20) -> 0 | GJT29: =SUM(GJT11,GJT20) -> 0 | GJZ29: =SUM(GJZ11,GJZ20) -> 0 | GKF29: =SUM(GKF11,GKF20) -> 0 | GKL29: =SUM(GKL11,GKL20) -> 0 | GKR29: =SUM(GKR11,GKR20) -> 0 | GKX29: =SUM(GKX11,GKX20) -> 0 | GLD29: =SUM(GLD11,GLD20) -> 0 | GLJ29: =SUM(GLJ11,GLJ20) -> 0 | GLP29: =SUM(GLP11,GLP20) -> 0 | GLV29: =SUM(GLV11,GLV20) -> 0 | GMB29: =SUM(GMB11,GMB20) -> 0 | GMH29: =SUM(GMH11,GMH20) -> 0 | GMN29: =SUM(GMN11,GMN20) -> 0 | GMT29: =SUM(GMT11,GMT20) -> 0 | GMZ29: =SUM(GMZ11,GMZ20) -> 0 | GNF29: =SUM(GNF11,GNF20) -> 0 | GNL29: =SUM(GNL11,GNL20) -> 0 | GNR29: =SUM(GNR11,GNR20) -> 0 | GNX29: =SUM(GNX11,GNX20) -> 0 | GOD29: =SUM(GOD11,GOD20) -> 0 | GOJ29: =SUM(GOJ11,GOJ20) -> 0 | GOP29: =SUM(GOP11,GOP20) -> 0 | GOV29: =SUM(GOV11,GOV20) -> 0 | GPB29: =SUM(GPB11,GPB20) -> 0 | GPH29: =SUM(GPH11,GPH20) -> 0 | GPN29: =SUM(GPN11,GPN20) -> 0 | GPT29: =SUM(GPT11,GPT20) -> 0 | GPZ29: =SUM(GPZ11,GPZ20) -> 0 | GQF29: =SUM(GQF11,GQF20) -> 0 | GQL29: =SUM(GQL11,GQL20) -> 0 | GQR29: =SUM(GQR11,GQR20) -> 0 | GQX29: =SUM(GQX11,GQX20) -> 0 | GRD29: =SUM(GRD11,GRD20) -> 0 | GRJ29: =SUM(GRJ11,GRJ20) -> 0 | GRP29: =SUM(GRP11,GRP20) -> 0 | GRV29: =SUM(GRV11,GRV20) -> 0 | GSB29: =SUM(GSB11,GSB20) -> 0 | GSH29: =SUM(GSH11,GSH20) -> 0 | GSN29: =SUM(GSN11,GSN20) -> 0 | GST29: =SUM(GST11,GST20) -> 0 | GSZ29: =SUM(GSZ11,GSZ20) -> 0 | GTF29: =SUM(GTF11,GTF20) -> 0 | GTL29: =SUM(GTL11,GTL20) -> 0 | GTR29: =SUM(GTR11,GTR20) -> 0 | GTX29: =SUM(GTX11,GTX20) -> 0 | GUD29: =SUM(GUD11,GUD20) -> 0 | GUJ29: =SUM(GUJ11,GUJ20) -> 0 | GUP29: =SUM(GUP11,GUP20) -> 0 | GUV29: =SUM(GUV11,GUV20) -> 0 | GVB29: =SUM(GVB11,GVB20) -> 0 | GVH29: =SUM(GVH11,GVH20) -> 0 | GVN29: =SUM(GVN11,GVN20) -> 0 | GVT29: =SUM(GVT11,GVT20) -> 0 | GVZ29: =SUM(GVZ11,GVZ20) -> 0 | GWF29: =SUM(GWF11,GWF20) -> 0 | GWL29: =SUM(GWL11,GWL20) -> 0 | GWR29: =SUM(GWR11,GWR20) -> 0 | GWX29: =SUM(GWX11,GWX20) -> 0 | GXD29: =SUM(GXD11,GXD20) -> 0 | GXJ29: =SUM(GXJ11,GXJ20) -> 0 | GXP29: =SUM(GXP11,GXP20) -> 0 | GXV29: =SUM(GXV11,GXV20) -> 0 | GYB29: =SUM(GYB11,GYB20) -> 0 | GYH29: =SUM(GYH11,GYH20) -> 0 | GYN29: =SUM(GYN11,GYN20) -> 0 | GYT29: =SUM(GYT11,GYT20) -> 0 | GYZ29: =SUM(GYZ11,GYZ20) -> 0 | GZF29: =SUM(GZF11,GZF20) -> 0 | GZL29: =SUM(GZL11,GZL20) -> 0 | GZR29: =SUM(GZR11,GZR20) -> 0 | GZX29: =SUM(GZX11,GZX20) -> 0 | HAD29: =SUM(HAD11,HAD20) -> 0 | HAJ29: =SUM(HAJ11,HAJ20) -> 0 | HAP29: =SUM(HAP11,HAP20) -> 0 | HAV29: =SUM(HAV11,HAV20) -> 0 | HBB29: =SUM(HBB11,HBB20) -> 0 | HBH29: =SUM(HBH11,HBH20) -> 0 | HBN29: =SUM(HBN11,HBN20) -> 0 | HBT29: =SUM(HBT11,HBT20) -> 0 | HBZ29: =SUM(HBZ11,HBZ20) -> 0 | HCF29: =SUM(HCF11,HCF20) -> 0 | HCL29: =SUM(HCL11,HCL20) -> 0 | HCR29: =SUM(HCR11,HCR20) -> 0 | HCX29: =SUM(HCX11,HCX20) -> 0 | HDD29: =SUM(HDD11,HDD20) -> 0 | HDJ29: =SUM(HDJ11,HDJ20) -> 0 | HDP29: =SUM(HDP11,HDP20) -> 0 | HDV29: =SUM(HDV11,HDV20) -> 0 | HEB29: =SUM(HEB11,HEB20) -> 0 | HEH29: =SUM(HEH11,HEH20) -> 0 | HEN29: =SUM(HEN11,HEN20) -> 0 | HET29: =SUM(HET11,HET20) -> 0 | HEZ29: =SUM(HEZ11,HEZ20) -> 0 | HFF29: =SUM(HFF11,HFF20) -> 0 | HFL29: =SUM(HFL11,HFL20) -> 0 | HFR29: =SUM(HFR11,HFR20) -> 0 | HFX29: =SUM(HFX11,HFX20) -> 0 | HGD29: =SUM(HGD11,HGD20) -> 0 | HGJ29: =SUM(HGJ11,HGJ20) -> 0 | HGP29: =SUM(HGP11,HGP20) -> 0 | HGV29: =SUM(HGV11,HGV20) -> 0 | HHB29: =SUM(HHB11,HHB20) -> 0 | HHH29: =SUM(HHH11,HHH20) -> 0 | HHN29: =SUM(HHN11,HHN20) -> 0 | HHT29: =SUM(HHT11,HHT20) -> 0 | HHZ29: =SUM(HHZ11,HHZ20) -> 0 | HIF29: =SUM(HIF11,HIF20) -> 0 | HIL29: =SUM(HIL11,HIL20) -> 0 | HIR29: =SUM(HIR11,HIR20) -> 0 | HIX29: =SUM(HIX11,HIX20) -> 0 | HJD29: =SUM(HJD11,HJD20) -> 0 | HJJ29: =SUM(HJJ11,HJJ20) -> 0 | HJP29: =SUM(HJP11,HJP20) -> 0 | HJV29: =SUM(HJV11,HJV20) -> 0 | HKB29: =SUM(HKB11,HKB20) -> 0 | HKH29: =SUM(HKH11,HKH20) -> 0 | HKN29: =SUM(HKN11,HKN20) -> 0 | HKT29: =SUM(HKT11,HKT20) -> 0 | HKZ29: =SUM(HKZ11,HKZ20) -> 0 | HLF29: =SUM(HLF11,HLF20) -> 0 | HLL29: =SUM(HLL11,HLL20) -> 0 | HLR29: =SUM(HLR11,HLR20) -> 0 | HLX29: =SUM(HLX11,HLX20) -> 0 | HMD29: =SUM(HMD11,HMD20) -> 0 | HMJ29: =SUM(HMJ11,HMJ20) -> 0 | HMP29: =SUM(HMP11,HMP20) -> 0 | HMV29: =SUM(HMV11,HMV20) -> 0 | HNB29: =SUM(HNB11,HNB20) -> 0 | HNH29: =SUM(HNH11,HNH20) -> 0 | HNN29: =SUM(HNN11,HNN20) -> 0 | HNT29: =SUM(HNT11,HNT20) -> 0 | HNZ29: =SUM(HNZ11,HNZ20) -> 0 | HOF29: =SUM(HOF11,HOF20) -> 0 | HOL29: =SUM(HOL11,HOL20) -> 0 | HOR29: =SUM(HOR11,HOR20) -> 0 | HOX29: =SUM(HOX11,HOX20) -> 0 | HPD29: =SUM(HPD11,HPD20) -> 0 | HPJ29: =SUM(HPJ11,HPJ20) -> 0 | HPP29: =SUM(HPP11,HPP20) -> 0 | HPV29: =SUM(HPV11,HPV20) -> 0 | HQB29: =SUM(HQB11,HQB20) -> 0 | HQH29: =SUM(HQH11,HQH20) -> 0 | HQN29: =SUM(HQN11,HQN20) -> 0 | HQT29: =SUM(HQT11,HQT20) -> 0 | HQZ29: =SUM(HQZ11,HQZ20) -> 0 | HRF29: =SUM(HRF11,HRF20) -> 0 | HRL29: =SUM(HRL11,HRL20) -> 0 | HRR29: =SUM(HRR11,HRR20) -> 0 | HRX29: =SUM(HRX11,HRX20) -> 0 | HSD29: =SUM(HSD11,HSD20) -> 0 | HSJ29: =SUM(HSJ11,HSJ20) -> 0 | HSP29: =SUM(HSP11,HSP20) -> 0 | HSV29: =SUM(HSV11,HSV20) -> 0 | HTB29: =SUM(HTB11,HTB20) -> 0 | HTH29: =SUM(HTH11,HTH20) -> 0 | HTN29: =SUM(HTN11,HTN20) -> 0 | HTT29: =SUM(HTT11,HTT20) -> 0 | HTZ29: =SUM(HTZ11,HTZ20) -> 0 | HUF29: =SUM(HUF11,HUF20) -> 0 | HUL29: =SUM(HUL11,HUL20) -> 0 | HUR29: =SUM(HUR11,HUR20) -> 0 | HUX29: =SUM(HUX11,HUX20) -> 0 | HVD29: =SUM(HVD11,HVD20) -> 0 | HVJ29: =SUM(HVJ11,HVJ20) -> 0 | HVP29: =SUM(HVP11,HVP20) -> 0 | HVV29: =SUM(HVV11,HVV20) -> 0 | HWB29: =SUM(HWB11,HWB20) -> 0 | HWH29: =SUM(HWH11,HWH20) -> 0 | HWN29: =SUM(HWN11,HWN20) -> 0 | HWT29: =SUM(HWT11,HWT20) -> 0 | HWZ29: =SUM(HWZ11,HWZ20) -> 0 | HXF29: =SUM(HXF11,HXF20) -> 0 | HXL29: =SUM(HXL11,HXL20) -> 0 | HXR29: =SUM(HXR11,HXR20) -> 0 | HXX29: =SUM(HXX11,HXX20) -> 0 | HYD29: =SUM(HYD11,HYD20) -> 0 | HYJ29: =SUM(HYJ11,HYJ20) -> 0 | HYP29: =SUM(HYP11,HYP20) -> 0 | HYV29: =SUM(HYV11,HYV20) -> 0 | HZB29: =SUM(HZB11,HZB20) -> 0 | HZH29: =SUM(HZH11,HZH20) -> 0 | HZN29: =SUM(HZN11,HZN20) -> 0 | HZT29: =SUM(HZT11,HZT20) -> 0 | HZZ29: =SUM(HZZ11,HZZ20) -> 0 | IAF29: =SUM(IAF11,IAF20) -> 0 | IAL29: =SUM(IAL11,IAL20) -> 0 | IAR29: =SUM(IAR11,IAR20) -> 0 | IAX29: =SUM(IAX11,IAX20) -> 0 | IBD29: =SUM(IBD11,IBD20) -> 0 | IBJ29: =SUM(IBJ11,IBJ20) -> 0 | IBP29: =SUM(IBP11,IBP20) -> 0 | IBV29: =SUM(IBV11,IBV20) -> 0 | ICB29: =SUM(ICB11,ICB20) -> 0 | ICH29: =SUM(ICH11,ICH20) -> 0 | ICN29: =SUM(ICN11,ICN20) -> 0 | ICT29: =SUM(ICT11,ICT20) -> 0 | ICZ29: =SUM(ICZ11,ICZ20) -> 0 | IDF29: =SUM(IDF11,IDF20) -> 0 | IDL29: =SUM(IDL11,IDL20) -> 0 | IDR29: =SUM(IDR11,IDR20) -> 0 | IDX29: =SUM(IDX11,IDX20) -> 0 | IED29: =SUM(IED11,IED20) -> 0 | IEJ29: =SUM(IEJ11,IEJ20) -> 0 | IEP29: =SUM(IEP11,IEP20) -> 0 | IEV29: =SUM(IEV11,IEV20) -> 0 | IFB29: =SUM(IFB11,IFB20) -> 0 | IFH29: =SUM(IFH11,IFH20) -> 0 | IFN29: =SUM(IFN11,IFN20) -> 0 | IFT29: =SUM(IFT11,IFT20) -> 0 | IFZ29: =SUM(IFZ11,IFZ20) -> 0 | IGF29: =SUM(IGF11,IGF20) -> 0 | IGL29: =SUM(IGL11,IGL20) -> 0 | IGR29: =SUM(IGR11,IGR20) -> 0 | IGX29: =SUM(IGX11,IGX20) -> 0 | IHD29: =SUM(IHD11,IHD20) -> 0 | IHJ29: =SUM(IHJ11,IHJ20) -> 0 | IHP29: =SUM(IHP11,IHP20) -> 0 | IHV29: =SUM(IHV11,IHV20) -> 0 | IIB29: =SUM(IIB11,IIB20) -> 0 | IIH29: =SUM(IIH11,IIH20) -> 0 | IIN29: =SUM(IIN11,IIN20) -> 0 | IIT29: =SUM(IIT11,IIT20) -> 0 | IIZ29: =SUM(IIZ11,IIZ20) -> 0 | IJF29: =SUM(IJF11,IJF20) -> 0 | IJL29: =SUM(IJL11,IJL20) -> 0 | IJR29: =SUM(IJR11,IJR20) -> 0 | IJX29: =SUM(IJX11,IJX20) -> 0 | IKD29: =SUM(IKD11,IKD20) -> 0 | IKJ29: =SUM(IKJ11,IKJ20) -> 0 | IKP29: =SUM(IKP11,IKP20) -> 0 | IKV29: =SUM(IKV11,IKV20) -> 0 | ILB29: =SUM(ILB11,ILB20) -> 0 | ILH29: =SUM(ILH11,ILH20) -> 0 | ILN29: =SUM(ILN11,ILN20) -> 0 | ILT29: =SUM(ILT11,ILT20) -> 0 | ILZ29: =SUM(ILZ11,ILZ20) -> 0 | IMF29: =SUM(IMF11,IMF20) -> 0 | IML29: =SUM(IML11,IML20) -> 0 | IMR29: =SUM(IMR11,IMR20) -> 0 | IMX29: =SUM(IMX11,IMX20) -> 0 | IND29: =SUM(IND11,IND20) -> 0 | INJ29: =SUM(INJ11,INJ20) -> 0 | INP29: =SUM(INP11,INP20) -> 0 | INV29: =SUM(INV11,INV20) -> 0 | IOB29: =SUM(IOB11,IOB20) -> 0 | IOH29: =SUM(IOH11,IOH20) -> 0 | ION29: =SUM(ION11,ION20) -> 0 | IOT29: =SUM(IOT11,IOT20) -> 0 | IOZ29: =SUM(IOZ11,IOZ20) -> 0 | IPF29: =SUM(IPF11,IPF20) -> 0 | IPL29: =SUM(IPL11,IPL20) -> 0 | IPR29: =SUM(IPR11,IPR20) -> 0 | IPX29: =SUM(IPX11,IPX20) -> 0 | IQD29: =SUM(IQD11,IQD20) -> 0 | IQJ29: =SUM(IQJ11,IQJ20) -> 0 | IQP29: =SUM(IQP11,IQP20) -> 0 | IQV29: =SUM(IQV11,IQV20) -> 0 | IRB29: =SUM(IRB11,IRB20) -> 0 | IRH29: =SUM(IRH11,IRH20) -> 0 | IRN29: =SUM(IRN11,IRN20) -> 0 | IRT29: =SUM(IRT11,IRT20) -> 0 | IRZ29: =SUM(IRZ11,IRZ20) -> 0 | ISF29: =SUM(ISF11,ISF20) -> 0 | ISL29: =SUM(ISL11,ISL20) -> 0 | ISR29: =SUM(ISR11,ISR20) -> 0 | ISX29: =SUM(ISX11,ISX20) -> 0 | ITD29: =SUM(ITD11,ITD20) -> 0 | ITJ29: =SUM(ITJ11,ITJ20) -> 0 | ITP29: =SUM(ITP11,ITP20) -> 0 | ITV29: =SUM(ITV11,ITV20) -> 0 | IUB29: =SUM(IUB11,IUB20) -> 0 | IUH29: =SUM(IUH11,IUH20) -> 0 | IUN29: =SUM(IUN11,IUN20) -> 0 | IUT29: =SUM(IUT11,IUT20) -> 0 | IUZ29: =SUM(IUZ11,IUZ20) -> 0 | IVF29: =SUM(IVF11,IVF20) -> 0 | IVL29: =SUM(IVL11,IVL20) -> 0 | IVR29: =SUM(IVR11,IVR20) -> 0 | IVX29: =SUM(IVX11,IVX20) -> 0 | IWD29: =SUM(IWD11,IWD20) -> 0 | IWJ29: =SUM(IWJ11,IWJ20) -> 0 | IWP29: =SUM(IWP11,IWP20) -> 0 | IWV29: =SUM(IWV11,IWV20) -> 0 | IXB29: =SUM(IXB11,IXB20) -> 0 | IXH29: =SUM(IXH11,IXH20) -> 0 | IXN29: =SUM(IXN11,IXN20) -> 0 | IXT29: =SUM(IXT11,IXT20) -> 0 | IXZ29: =SUM(IXZ11,IXZ20) -> 0 | IYF29: =SUM(IYF11,IYF20) -> 0 | IYL29: =SUM(IYL11,IYL20) -> 0 | IYR29: =SUM(IYR11,IYR20) -> 0 | IYX29: =SUM(IYX11,IYX20) -> 0 | IZD29: =SUM(IZD11,IZD20) -> 0 | IZJ29: =SUM(IZJ11,IZJ20) -> 0 | IZP29: =SUM(IZP11,IZP20) -> 0 | IZV29: =SUM(IZV11,IZV20) -> 0 | JAB29: =SUM(JAB11,JAB20) -> 0 | JAH29: =SUM(JAH11,JAH20) -> 0 | JAN29: =SUM(JAN11,JAN20) -> 0 | JAT29: =SUM(JAT11,JAT20) -> 0 | JAZ29: =SUM(JAZ11,JAZ20) -> 0 | JBF29: =SUM(JBF11,JBF20) -> 0 | JBL29: =SUM(JBL11,JBL20) -> 0 | JBR29: =SUM(JBR11,JBR20) -> 0 | JBX29: =SUM(JBX11,JBX20) -> 0 | JCD29: =SUM(JCD11,JCD20) -> 0 | JCJ29: =SUM(JCJ11,JCJ20) -> 0 | JCP29: =SUM(JCP11,JCP20) -> 0 | JCV29: =SUM(JCV11,JCV20) -> 0 | JDB29: =SUM(JDB11,JDB20) -> 0 | JDH29: =SUM(JDH11,JDH20) -> 0 | JDN29: =SUM(JDN11,JDN20) -> 0 | JDT29: =SUM(JDT11,JDT20) -> 0 | JDZ29: =SUM(JDZ11,JDZ20) -> 0 | JEF29: =SUM(JEF11,JEF20) -> 0 | JEL29: =SUM(JEL11,JEL20) -> 0 | JER29: =SUM(JER11,JER20) -> 0 | JEX29: =SUM(JEX11,JEX20) -> 0 | JFD29: =SUM(JFD11,JFD20) -> 0 | JFJ29: =SUM(JFJ11,JFJ20) -> 0 | JFP29: =SUM(JFP11,JFP20) -> 0 | JFV29: =SUM(JFV11,JFV20) -> 0 | JGB29: =SUM(JGB11,JGB20) -> 0 | JGH29: =SUM(JGH11,JGH20) -> 0 | JGN29: =SUM(JGN11,JGN20) -> 0 | JGT29: =SUM(JGT11,JGT20) -> 0 | JGZ29: =SUM(JGZ11,JGZ20) -> 0 | JHF29: =SUM(JHF11,JHF20) -> 0 | JHL29: =SUM(JHL11,JHL20) -> 0 | JHR29: =SUM(JHR11,JHR20) -> 0 | JHX29: =SUM(JHX11,JHX20) -> 0 | JID29: =SUM(JID11,JID20) -> 0 | JIJ29: =SUM(JIJ11,JIJ20) -> 0 | JIP29: =SUM(JIP11,JIP20) -> 0 | JIV29: =SUM(JIV11,JIV20) -> 0 | JJB29: =SUM(JJB11,JJB20) -> 0 | JJH29: =SUM(JJH11,JJH20) -> 0 | JJN29: =SUM(JJN11,JJN20) -> 0 | JJT29: =SUM(JJT11,JJT20) -> 0 | JJZ29: =SUM(JJZ11,JJZ20) -> 0 | JKF29: =SUM(JKF11,JKF20) -> 0 | JKL29: =SUM(JKL11,JKL20) -> 0 | JKR29: =SUM(JKR11,JKR20) -> 0 | JKX29: =SUM(JKX11,JKX20) -> 0 | JLD29: =SUM(JLD11,JLD20) -> 0 | JLJ29: =SUM(JLJ11,JLJ20) -> 0 | JLP29: =SUM(JLP11,JLP20) -> 0 | JLV29: =SUM(JLV11,JLV20) -> 0 | JMB29: =SUM(JMB11,JMB20) -> 0 | JMH29: =SUM(JMH11,JMH20) -> 0 | JMN29: =SUM(JMN11,JMN20) -> 0 | JMT29: =SUM(JMT11,JMT20) -> 0 | JMZ29: =SUM(JMZ11,JMZ20) -> 0 | JNF29: =SUM(JNF11,JNF20) -> 0 | JNL29: =SUM(JNL11,JNL20) -> 0 | JNR29: =SUM(JNR11,JNR20) -> 0 | JNX29: =SUM(JNX11,JNX20) -> 0 | JOD29: =SUM(JOD11,JOD20) -> 0 | JOJ29: =SUM(JOJ11,JOJ20) -> 0 | JOP29: =SUM(JOP11,JOP20) -> 0 | JOV29: =SUM(JOV11,JOV20) -> 0 | JPB29: =SUM(JPB11,JPB20) -> 0 | JPH29: =SUM(JPH11,JPH20) -> 0 | JPN29: =SUM(JPN11,JPN20) -> 0 | JPT29: =SUM(JPT11,JPT20) -> 0 | JPZ29: =SUM(JPZ11,JPZ20) -> 0 | JQF29: =SUM(JQF11,JQF20) -> 0 | JQL29: =SUM(JQL11,JQL20) -> 0 | JQR29: =SUM(JQR11,JQR20) -> 0 | JQX29: =SUM(JQX11,JQX20) -> 0 | JRD29: =SUM(JRD11,JRD20) -> 0 | JRJ29: =SUM(JRJ11,JRJ20) -> 0 | JRP29: =SUM(JRP11,JRP20) -> 0 | JRV29: =SUM(JRV11,JRV20) -> 0 | JSB29: =SUM(JSB11,JSB20) -> 0 | JSH29: =SUM(JSH11,JSH20) -> 0 | JSN29: =SUM(JSN11,JSN20) -> 0 | JST29: =SUM(JST11,JST20) -> 0 | JSZ29: =SUM(JSZ11,JSZ20) -> 0 | JTF29: =SUM(JTF11,JTF20) -> 0 | JTL29: =SUM(JTL11,JTL20) -> 0 | JTR29: =SUM(JTR11,JTR20) -> 0 | JTX29: =SUM(JTX11,JTX20) -> 0 | JUD29: =SUM(JUD11,JUD20) -> 0 | JUJ29: =SUM(JUJ11,JUJ20) -> 0 | JUP29: =SUM(JUP11,JUP20) -> 0 | JUV29: =SUM(JUV11,JUV20) -> 0 | JVB29: =SUM(JVB11,JVB20) -> 0 | JVH29: =SUM(JVH11,JVH20) -> 0 | JVN29: =SUM(JVN11,JVN20) -> 0 | JVT29: =SUM(JVT11,JVT20) -> 0 | JVZ29: =SUM(JVZ11,JVZ20) -> 0 | JWF29: =SUM(JWF11,JWF20) -> 0 | JWL29: =SUM(JWL11,JWL20) -> 0 | JWR29: =SUM(JWR11,JWR20) -> 0 | JWX29: =SUM(JWX11,JWX20) -> 0 | JXD29: =SUM(JXD11,JXD20) -> 0 | JXJ29: =SUM(JXJ11,JXJ20) -> 0 | JXP29: =SUM(JXP11,JXP20) -> 0 | JXV29: =SUM(JXV11,JXV20) -> 0 | JYB29: =SUM(JYB11,JYB20) -> 0 | JYH29: =SUM(JYH11,JYH20) -> 0 | JYN29: =SUM(JYN11,JYN20) -> 0 | JYT29: =SUM(JYT11,JYT20) -> 0 | JYZ29: =SUM(JYZ11,JYZ20) -> 0 | JZF29: =SUM(JZF11,JZF20) -> 0 | JZL29: =SUM(JZL11,JZL20) -> 0 | JZR29: =SUM(JZR11,JZR20) -> 0 | JZX29: =SUM(JZX11,JZX20) -> 0 | KAD29: =SUM(KAD11,KAD20) -> 0 | KAJ29: =SUM(KAJ11,KAJ20) -> 0 | KAP29: =SUM(KAP11,KAP20) -> 0 | KAV29: =SUM(KAV11,KAV20) -> 0 | KBB29: =SUM(KBB11,KBB20) -> 0 | KBH29: =SUM(KBH11,KBH20) -> 0 | KBN29: =SUM(KBN11,KBN20) -> 0 | KBT29: =SUM(KBT11,KBT20) -> 0 | KBZ29: =SUM(KBZ11,KBZ20) -> 0 | KCF29: =SUM(KCF11,KCF20) -> 0 | KCL29: =SUM(KCL11,KCL20) -> 0 | KCR29: =SUM(KCR11,KCR20) -> 0 | KCX29: =SUM(KCX11,KCX20) -> 0 | KDD29: =SUM(KDD11,KDD20) -> 0 | KDJ29: =SUM(KDJ11,KDJ20) -> 0 | KDP29: =SUM(KDP11,KDP20) -> 0 | KDV29: =SUM(KDV11,KDV20) -> 0 | KEB29: =SUM(KEB11,KEB20) -> 0 | KEH29: =SUM(KEH11,KEH20) -> 0 | KEN29: =SUM(KEN11,KEN20) -> 0 | KET29: =SUM(KET11,KET20) -> 0 | KEZ29: =SUM(KEZ11,KEZ20) -> 0 | KFF29: =SUM(KFF11,KFF20) -> 0 | KFL29: =SUM(KFL11,KFL20) -> 0 | KFR29: =SUM(KFR11,KFR20) -> 0 | KFX29: =SUM(KFX11,KFX20) -> 0 | KGD29: =SUM(KGD11,KGD20) -> 0 | KGJ29: =SUM(KGJ11,KGJ20) -> 0 | KGP29: =SUM(KGP11,KGP20) -> 0 | KGV29: =SUM(KGV11,KGV20) -> 0 | KHB29: =SUM(KHB11,KHB20) -> 0 | KHH29: =SUM(KHH11,KHH20) -> 0 | KHN29: =SUM(KHN11,KHN20) -> 0 | KHT29: =SUM(KHT11,KHT20) -> 0 | KHZ29: =SUM(KHZ11,KHZ20) -> 0 | KIF29: =SUM(KIF11,KIF20) -> 0 | KIL29: =SUM(KIL11,KIL20) -> 0 | KIR29: =SUM(KIR11,KIR20) -> 0 | KIX29: =SUM(KIX11,KIX20) -> 0 | KJD29: =SUM(KJD11,KJD20) -> 0 | KJJ29: =SUM(KJJ11,KJJ20) -> 0 | KJP29: =SUM(KJP11,KJP20) -> 0 | KJV29: =SUM(KJV11,KJV20) -> 0 | KKB29: =SUM(KKB11,KKB20) -> 0 | KKH29: =SUM(KKH11,KKH20) -> 0 | KKN29: =SUM(KKN11,KKN20) -> 0 | KKT29: =SUM(KKT11,KKT20) -> 0 | KKZ29: =SUM(KKZ11,KKZ20) -> 0 | KLF29: =SUM(KLF11,KLF20) -> 0 | KLL29: =SUM(KLL11,KLL20) -> 0 | KLR29: =SUM(KLR11,KLR20) -> 0 | KLX29: =SUM(KLX11,KLX20) -> 0 | KMD29: =SUM(KMD11,KMD20) -> 0 | KMJ29: =SUM(KMJ11,KMJ20) -> 0 | KMP29: =SUM(KMP11,KMP20) -> 0 | KMV29: =SUM(KMV11,KMV20) -> 0 | KNB29: =SUM(KNB11,KNB20) -> 0 | KNH29: =SUM(KNH11,KNH20) -> 0 | KNN29: =SUM(KNN11,KNN20) -> 0 | KNT29: =SUM(KNT11,KNT20) -> 0 | KNZ29: =SUM(KNZ11,KNZ20) -> 0 | KOF29: =SUM(KOF11,KOF20) -> 0 | KOL29: =SUM(KOL11,KOL20) -> 0 | KOR29: =SUM(KOR11,KOR20) -> 0 | KOX29: =SUM(KOX11,KOX20) -> 0 | KPD29: =SUM(KPD11,KPD20) -> 0 | KPJ29: =SUM(KPJ11,KPJ20) -> 0 | KPP29: =SUM(KPP11,KPP20) -> 0 | KPV29: =SUM(KPV11,KPV20) -> 0 | KQB29: =SUM(KQB11,KQB20) -> 0 | KQH29: =SUM(KQH11,KQH20) -> 0 | KQN29: =SUM(KQN11,KQN20) -> 0 | KQT29: =SUM(KQT11,KQT20) -> 0 | KQZ29: =SUM(KQZ11,KQZ20) -> 0 | KRF29: =SUM(KRF11,KRF20) -> 0 | KRL29: =SUM(KRL11,KRL20) -> 0 | KRR29: =SUM(KRR11,KRR20) -> 0 | KRX29: =SUM(KRX11,KRX20) -> 0 | KSD29: =SUM(KSD11,KSD20) -> 0 | KSJ29: =SUM(KSJ11,KSJ20) -> 0 | KSP29: =SUM(KSP11,KSP20) -> 0 | KSV29: =SUM(KSV11,KSV20) -> 0 | KTB29: =SUM(KTB11,KTB20) -> 0 | KTH29: =SUM(KTH11,KTH20) -> 0 | KTN29: =SUM(KTN11,KTN20) -> 0 | KTT29: =SUM(KTT11,KTT20) -> 0 | KTZ29: =SUM(KTZ11,KTZ20) -> 0 | KUF29: =SUM(KUF11,KUF20) -> 0 | KUL29: =SUM(KUL11,KUL20) -> 0 | KUR29: =SUM(KUR11,KUR20) -> 0 | KUX29: =SUM(KUX11,KUX20) -> 0 | KVD29: =SUM(KVD11,KVD20) -> 0 | KVJ29: =SUM(KVJ11,KVJ20) -> 0 | KVP29: =SUM(KVP11,KVP20) -> 0 | KVV29: =SUM(KVV11,KVV20) -> 0 | KWB29: =SUM(KWB11,KWB20) -> 0 | KWH29: =SUM(KWH11,KWH20) -> 0 | KWN29: =SUM(KWN11,KWN20) -> 0 | KWT29: =SUM(KWT11,KWT20) -> 0 | KWZ29: =SUM(KWZ11,KWZ20) -> 0 | KXF29: =SUM(KXF11,KXF20) -> 0 | KXL29: =SUM(KXL11,KXL20) -> 0 | KXR29: =SUM(KXR11,KXR20) -> 0 | KXX29: =SUM(KXX11,KXX20) -> 0 | KYD29: =SUM(KYD11,KYD20) -> 0 | KYJ29: =SUM(KYJ11,KYJ20) -> 0 | KYP29: =SUM(KYP11,KYP20) -> 0 | KYV29: =SUM(KYV11,KYV20) -> 0 | KZB29: =SUM(KZB11,KZB20) -> 0 | KZH29: =SUM(KZH11,KZH20) -> 0 | KZN29: =SUM(KZN11,KZN20) -> 0 | KZT29: =SUM(KZT11,KZT20) -> 0 | KZZ29: =SUM(KZZ11,KZZ20) -> 0 | LAF29: =SUM(LAF11,LAF20) -> 0 | LAL29: =SUM(LAL11,LAL20) -> 0 | LAR29: =SUM(LAR11,LAR20) -> 0 | LAX29: =SUM(LAX11,LAX20) -> 0 | LBD29: =SUM(LBD11,LBD20) -> 0 | LBJ29: =SUM(LBJ11,LBJ20) -> 0 | LBP29: =SUM(LBP11,LBP20) -> 0 | LBV29: =SUM(LBV11,LBV20) -> 0 | LCB29: =SUM(LCB11,LCB20) -> 0 | LCH29: =SUM(LCH11,LCH20) -> 0 | LCN29: =SUM(LCN11,LCN20) -> 0 | LCT29: =SUM(LCT11,LCT20) -> 0 | LCZ29: =SUM(LCZ11,LCZ20) -> 0 | LDF29: =SUM(LDF11,LDF20) -> 0 | LDL29: =SUM(LDL11,LDL20) -> 0 | LDR29: =SUM(LDR11,LDR20) -> 0 | LDX29: =SUM(LDX11,LDX20) -> 0 | LED29: =SUM(LED11,LED20) -> 0 | LEJ29: =SUM(LEJ11,LEJ20) -> 0 | LEP29: =SUM(LEP11,LEP20) -> 0 | LEV29: =SUM(LEV11,LEV20) -> 0 | LFB29: =SUM(LFB11,LFB20) -> 0 | LFH29: =SUM(LFH11,LFH20) -> 0 | LFN29: =SUM(LFN11,LFN20) -> 0 | LFT29: =SUM(LFT11,LFT20) -> 0 | LFZ29: =SUM(LFZ11,LFZ20) -> 0 | LGF29: =SUM(LGF11,LGF20) -> 0 | LGL29: =SUM(LGL11,LGL20) -> 0 | LGR29: =SUM(LGR11,LGR20) -> 0 | LGX29: =SUM(LGX11,LGX20) -> 0 | LHD29: =SUM(LHD11,LHD20) -> 0 | LHJ29: =SUM(LHJ11,LHJ20) -> 0 | LHP29: =SUM(LHP11,LHP20) -> 0 | LHV29: =SUM(LHV11,LHV20) -> 0 | LIB29: =SUM(LIB11,LIB20) -> 0 | LIH29: =SUM(LIH11,LIH20) -> 0 | LIN29: =SUM(LIN11,LIN20) -> 0 | LIT29: =SUM(LIT11,LIT20) -> 0 | LIZ29: =SUM(LIZ11,LIZ20) -> 0 | LJF29: =SUM(LJF11,LJF20) -> 0 | LJL29: =SUM(LJL11,LJL20) -> 0 | LJR29: =SUM(LJR11,LJR20) -> 0 | LJX29: =SUM(LJX11,LJX20) -> 0 | LKD29: =SUM(LKD11,LKD20) -> 0 | LKJ29: =SUM(LKJ11,LKJ20) -> 0 | LKP29: =SUM(LKP11,LKP20) -> 0 | LKV29: =SUM(LKV11,LKV20) -> 0 | LLB29: =SUM(LLB11,LLB20) -> 0 | LLH29: =SUM(LLH11,LLH20) -> 0 | LLN29: =SUM(LLN11,LLN20) -> 0 | LLT29: =SUM(LLT11,LLT20) -> 0 | LLZ29: =SUM(LLZ11,LLZ20) -> 0 | LMF29: =SUM(LMF11,LMF20) -> 0 | LML29: =SUM(LML11,LML20) -> 0 | LMR29: =SUM(LMR11,LMR20) -> 0 | LMX29: =SUM(LMX11,LMX20) -> 0 | LND29: =SUM(LND11,LND20) -> 0 | LNJ29: =SUM(LNJ11,LNJ20) -> 0 | LNP29: =SUM(LNP11,LNP20) -> 0 | LNV29: =SUM(LNV11,LNV20) -> 0 | LOB29: =SUM(LOB11,LOB20) -> 0 | LOH29: =SUM(LOH11,LOH20) -> 0 | LON29: =SUM(LON11,LON20) -> 0 | LOT29: =SUM(LOT11,LOT20) -> 0 | LOZ29: =SUM(LOZ11,LOZ20) -> 0 | LPF29: =SUM(LPF11,LPF20) -> 0 | LPL29: =SUM(LPL11,LPL20) -> 0 | LPR29: =SUM(LPR11,LPR20) -> 0 | LPX29: =SUM(LPX11,LPX20) -> 0 | LQD29: =SUM(LQD11,LQD20) -> 0 | LQJ29: =SUM(LQJ11,LQJ20) -> 0 | LQP29: =SUM(LQP11,LQP20) -> 0 | LQV29: =SUM(LQV11,LQV20) -> 0 | LRB29: =SUM(LRB11,LRB20) -> 0 | LRH29: =SUM(LRH11,LRH20) -> 0 | LRN29: =SUM(LRN11,LRN20) -> 0 | LRT29: =SUM(LRT11,LRT20) -> 0 | LRZ29: =SUM(LRZ11,LRZ20) -> 0 | LSF29: =SUM(LSF11,LSF20) -> 0 | LSL29: =SUM(LSL11,LSL20) -> 0 | LSR29: =SUM(LSR11,LSR20) -> 0 | LSX29: =SUM(LSX11,LSX20) -> 0 | LTD29: =SUM(LTD11,LTD20) -> 0 | LTJ29: =SUM(LTJ11,LTJ20) -> 0 | LTP29: =SUM(LTP11,LTP20) -> 0 | LTV29: =SUM(LTV11,LTV20) -> 0 | LUB29: =SUM(LUB11,LUB20) -> 0 | LUH29: =SUM(LUH11,LUH20) -> 0 | LUN29: =SUM(LUN11,LUN20) -> 0 | LUT29: =SUM(LUT11,LUT20) -> 0 | LUZ29: =SUM(LUZ11,LUZ20) -> 0 | LVF29: =SUM(LVF11,LVF20) -> 0 | LVL29: =SUM(LVL11,LVL20) -> 0 | LVR29: =SUM(LVR11,LVR20) -> 0 | LVX29: =SUM(LVX11,LVX20) -> 0 | LWD29: =SUM(LWD11,LWD20) -> 0 | LWJ29: =SUM(LWJ11,LWJ20) -> 0 | LWP29: =SUM(LWP11,LWP20) -> 0 | LWV29: =SUM(LWV11,LWV20) -> 0 | LXB29: =SUM(LXB11,LXB20) -> 0 | LXH29: =SUM(LXH11,LXH20) -> 0 | LXN29: =SUM(LXN11,LXN20) -> 0 | LXT29: =SUM(LXT11,LXT20) -> 0 | LXZ29: =SUM(LXZ11,LXZ20) -> 0 | LYF29: =SUM(LYF11,LYF20) -> 0 | LYL29: =SUM(LYL11,LYL20) -> 0 | LYR29: =SUM(LYR11,LYR20) -> 0 | LYX29: =SUM(LYX11,LYX20) -> 0 | LZD29: =SUM(LZD11,LZD20) -> 0 | LZJ29: =SUM(LZJ11,LZJ20) -> 0 | LZP29: =SUM(LZP11,LZP20) -> 0 | LZV29: =SUM(LZV11,LZV20) -> 0 | MAB29: =SUM(MAB11,MAB20) -> 0 | MAH29: =SUM(MAH11,MAH20) -> 0 | MAN29: =SUM(MAN11,MAN20) -> 0 | MAT29: =SUM(MAT11,MAT20) -> 0 | MAZ29: =SUM(MAZ11,MAZ20) -> 0 | MBF29: =SUM(MBF11,MBF20) -> 0 | MBL29: =SUM(MBL11,MBL20) -> 0 | MBR29: =SUM(MBR11,MBR20) -> 0 | MBX29: =SUM(MBX11,MBX20) -> 0 | MCD29: =SUM(MCD11,MCD20) -> 0 | MCJ29: =SUM(MCJ11,MCJ20) -> 0 | MCP29: =SUM(MCP11,MCP20) -> 0 | MCV29: =SUM(MCV11,MCV20) -> 0 | MDB29: =SUM(MDB11,MDB20) -> 0 | MDH29: =SUM(MDH11,MDH20) -> 0 | MDN29: =SUM(MDN11,MDN20) -> 0 | MDT29: =SUM(MDT11,MDT20) -> 0 | MDZ29: =SUM(MDZ11,MDZ20) -> 0 | MEF29: =SUM(MEF11,MEF20) -> 0 | MEL29: =SUM(MEL11,MEL20) -> 0 | MER29: =SUM(MER11,MER20) -> 0 | MEX29: =SUM(MEX11,MEX20) -> 0 | MFD29: =SUM(MFD11,MFD20) -> 0 | MFJ29: =SUM(MFJ11,MFJ20) -> 0 | MFP29: =SUM(MFP11,MFP20) -> 0 | MFV29: =SUM(MFV11,MFV20) -> 0 | MGB29: =SUM(MGB11,MGB20) -> 0 | MGH29: =SUM(MGH11,MGH20) -> 0 | MGN29: =SUM(MGN11,MGN20) -> 0 | MGT29: =SUM(MGT11,MGT20) -> 0 | MGZ29: =SUM(MGZ11,MGZ20) -> 0 | MHF29: =SUM(MHF11,MHF20) -> 0 | MHL29: =SUM(MHL11,MHL20) -> 0 | MHR29: =SUM(MHR11,MHR20) -> 0 | MHX29: =SUM(MHX11,MHX20) -> 0 | MID29: =SUM(MID11,MID20) -> 0 | MIJ29: =SUM(MIJ11,MIJ20) -> 0 | MIP29: =SUM(MIP11,MIP20) -> 0 | MIV29: =SUM(MIV11,MIV20) -> 0 | MJB29: =SUM(MJB11,MJB20) -> 0 | MJH29: =SUM(MJH11,MJH20) -> 0 | MJN29: =SUM(MJN11,MJN20) -> 0 | MJT29: =SUM(MJT11,MJT20) -> 0 | MJZ29: =SUM(MJZ11,MJZ20) -> 0 | MKF29: =SUM(MKF11,MKF20) -> 0 | MKL29: =SUM(MKL11,MKL20) -> 0 | MKR29: =SUM(MKR11,MKR20) -> 0 | MKX29: =SUM(MKX11,MKX20) -> 0 | MLD29: =SUM(MLD11,MLD20) -> 0 | MLJ29: =SUM(MLJ11,MLJ20) -> 0 | MLP29: =SUM(MLP11,MLP20) -> 0 | MLV29: =SUM(MLV11,MLV20) -> 0 | MMB29: =SUM(MMB11,MMB20) -> 0 | MMH29: =SUM(MMH11,MMH20) -> 0 | MMN29: =SUM(MMN11,MMN20) -> 0 | MMT29: =SUM(MMT11,MMT20) -> 0 | MMZ29: =SUM(MMZ11,MMZ20) -> 0 | MNF29: =SUM(MNF11,MNF20) -> 0 | MNL29: =SUM(MNL11,MNL20) -> 0 | MNR29: =SUM(MNR11,MNR20) -> 0 | MNX29: =SUM(MNX11,MNX20) -> 0 | MOD29: =SUM(MOD11,MOD20) -> 0 | MOJ29: =SUM(MOJ11,MOJ20) -> 0 | MOP29: =SUM(MOP11,MOP20) -> 0 | MOV29: =SUM(MOV11,MOV20) -> 0 | MPB29: =SUM(MPB11,MPB20) -> 0 | MPH29: =SUM(MPH11,MPH20) -> 0 | MPN29: =SUM(MPN11,MPN20) -> 0 | MPT29: =SUM(MPT11,MPT20) -> 0 | MPZ29: =SUM(MPZ11,MPZ20) -> 0 | MQF29: =SUM(MQF11,MQF20) -> 0 | MQL29: =SUM(MQL11,MQL20) -> 0 | MQR29: =SUM(MQR11,MQR20) -> 0 | MQX29: =SUM(MQX11,MQX20) -> 0 | MRD29: =SUM(MRD11,MRD20) -> 0 | MRJ29: =SUM(MRJ11,MRJ20) -> 0 | MRP29: =SUM(MRP11,MRP20) -> 0 | MRV29: =SUM(MRV11,MRV20) -> 0 | MSB29: =SUM(MSB11,MSB20) -> 0 | MSH29: =SUM(MSH11,MSH20) -> 0 | MSN29: =SUM(MSN11,MSN20) -> 0 | MST29: =SUM(MST11,MST20) -> 0 | MSZ29: =SUM(MSZ11,MSZ20) -> 0 | MTF29: =SUM(MTF11,MTF20) -> 0 | MTL29: =SUM(MTL11,MTL20) -> 0 | MTR29: =SUM(MTR11,MTR20) -> 0 | MTX29: =SUM(MTX11,MTX20) -> 0 | MUD29: =SUM(MUD11,MUD20) -> 0 | MUJ29: =SUM(MUJ11,MUJ20) -> 0 | MUP29: =SUM(MUP11,MUP20) -> 0 | MUV29: =SUM(MUV11,MUV20) -> 0 | MVB29: =SUM(MVB11,MVB20) -> 0 | MVH29: =SUM(MVH11,MVH20) -> 0 | MVN29: =SUM(MVN11,MVN20) -> 0 | MVT29: =SUM(MVT11,MVT20) -> 0 | MVZ29: =SUM(MVZ11,MVZ20) -> 0 | MWF29: =SUM(MWF11,MWF20) -> 0 | MWL29: =SUM(MWL11,MWL20) -> 0 | MWR29: =SUM(MWR11,MWR20) -> 0 | MWX29: =SUM(MWX11,MWX20) -> 0 | MXD29: =SUM(MXD11,MXD20) -> 0 | MXJ29: =SUM(MXJ11,MXJ20) -> 0 | MXP29: =SUM(MXP11,MXP20) -> 0 | MXV29: =SUM(MXV11,MXV20) -> 0 | MYB29: =SUM(MYB11,MYB20) -> 0 | MYH29: =SUM(MYH11,MYH20) -> 0 | MYN29: =SUM(MYN11,MYN20) -> 0 | MYT29: =SUM(MYT11,MYT20) -> 0 | MYZ29: =SUM(MYZ11,MYZ20) -> 0 | MZF29: =SUM(MZF11,MZF20) -> 0 | MZL29: =SUM(MZL11,MZL20) -> 0 | MZR29: =SUM(MZR11,MZR20) -> 0 | MZX29: =SUM(MZX11,MZX20) -> 0 | NAD29: =SUM(NAD11,NAD20) -> 0 | NAJ29: =SUM(NAJ11,NAJ20) -> 0 | NAP29: =SUM(NAP11,NAP20) -> 0 | NAV29: =SUM(NAV11,NAV20) -> 0 | NBB29: =SUM(NBB11,NBB20) -> 0 | NBH29: =SUM(NBH11,NBH20) -> 0 | NBN29: =SUM(NBN11,NBN20) -> 0 | NBT29: =SUM(NBT11,NBT20) -> 0 | NBZ29: =SUM(NBZ11,NBZ20) -> 0 | NCF29: =SUM(NCF11,NCF20) -> 0 | NCL29: =SUM(NCL11,NCL20) -> 0 | NCR29: =SUM(NCR11,NCR20) -> 0 | NCX29: =SUM(NCX11,NCX20) -> 0 | NDD29: =SUM(NDD11,NDD20) -> 0 | NDJ29: =SUM(NDJ11,NDJ20) -> 0 | NDP29: =SUM(NDP11,NDP20) -> 0 | NDV29: =SUM(NDV11,NDV20) -> 0 | NEB29: =SUM(NEB11,NEB20) -> 0 | NEH29: =SUM(NEH11,NEH20) -> 0 | NEN29: =SUM(NEN11,NEN20) -> 0 | NET29: =SUM(NET11,NET20) -> 0 | NEZ29: =SUM(NEZ11,NEZ20) -> 0 | NFF29: =SUM(NFF11,NFF20) -> 0 | NFL29: =SUM(NFL11,NFL20) -> 0 | NFR29: =SUM(NFR11,NFR20) -> 0 | NFX29: =SUM(NFX11,NFX20) -> 0 | NGD29: =SUM(NGD11,NGD20) -> 0 | NGJ29: =SUM(NGJ11,NGJ20) -> 0 | NGP29: =SUM(NGP11,NGP20) -> 0 | NGV29: =SUM(NGV11,NGV20) -> 0 | NHB29: =SUM(NHB11,NHB20) -> 0 | NHH29: =SUM(NHH11,NHH20) -> 0 | NHN29: =SUM(NHN11,NHN20) -> 0 | NHT29: =SUM(NHT11,NHT20) -> 0 | NHZ29: =SUM(NHZ11,NHZ20) -> 0 | NIF29: =SUM(NIF11,NIF20) -> 0 | NIL29: =SUM(NIL11,NIL20) -> 0 | NIR29: =SUM(NIR11,NIR20) -> 0 | NIX29: =SUM(NIX11,NIX20) -> 0 | NJD29: =SUM(NJD11,NJD20) -> 0 | NJJ29: =SUM(NJJ11,NJJ20) -> 0 | NJP29: =SUM(NJP11,NJP20) -> 0 | NJV29: =SUM(NJV11,NJV20) -> 0 | NKB29: =SUM(NKB11,NKB20) -> 0 | NKH29: =SUM(NKH11,NKH20) -> 0 | NKN29: =SUM(NKN11,NKN20) -> 0 | NKT29: =SUM(NKT11,NKT20) -> 0 | NKZ29: =SUM(NKZ11,NKZ20) -> 0 | NLF29: =SUM(NLF11,NLF20) -> 0 | NLL29: =SUM(NLL11,NLL20) -> 0 | NLR29: =SUM(NLR11,NLR20) -> 0 | NLX29: =SUM(NLX11,NLX20) -> 0 | NMD29: =SUM(NMD11,NMD20) -> 0 | NMJ29: =SUM(NMJ11,NMJ20) -> 0 | NMP29: =SUM(NMP11,NMP20) -> 0 | NMV29: =SUM(NMV11,NMV20) -> 0 | NNB29: =SUM(NNB11,NNB20) -> 0 | NNH29: =SUM(NNH11,NNH20) -> 0 | NNN29: =SUM(NNN11,NNN20) -> 0 | NNT29: =SUM(NNT11,NNT20) -> 0 | NNZ29: =SUM(NNZ11,NNZ20) -> 0 | NOF29: =SUM(NOF11,NOF20) -> 0 | NOL29: =SUM(NOL11,NOL20) -> 0 | NOR29: =SUM(NOR11,NOR20) -> 0 | NOX29: =SUM(NOX11,NOX20) -> 0 | NPD29: =SUM(NPD11,NPD20) -> 0 | NPJ29: =SUM(NPJ11,NPJ20) -> 0 | NPP29: =SUM(NPP11,NPP20) -> 0 | NPV29: =SUM(NPV11,NPV20) -> 0 | NQB29: =SUM(NQB11,NQB20) -> 0 | NQH29: =SUM(NQH11,NQH20) -> 0 | NQN29: =SUM(NQN11,NQN20) -> 0 | NQT29: =SUM(NQT11,NQT20) -> 0 | NQZ29: =SUM(NQZ11,NQZ20) -> 0 | NRF29: =SUM(NRF11,NRF20) -> 0 | NRL29: =SUM(NRL11,NRL20) -> 0 | NRR29: =SUM(NRR11,NRR20) -> 0 | NRX29: =SUM(NRX11,NRX20) -> 0 | NSD29: =SUM(NSD11,NSD20) -> 0 | NSJ29: =SUM(NSJ11,NSJ20) -> 0 | NSP29: =SUM(NSP11,NSP20) -> 0 | NSV29: =SUM(NSV11,NSV20) -> 0 | NTB29: =SUM(NTB11,NTB20) -> 0 | NTH29: =SUM(NTH11,NTH20) -> 0 | NTN29: =SUM(NTN11,NTN20) -> 0 | NTT29: =SUM(NTT11,NTT20) -> 0 | NTZ29: =SUM(NTZ11,NTZ20) -> 0 | NUF29: =SUM(NUF11,NUF20) -> 0 | NUL29: =SUM(NUL11,NUL20) -> 0 | NUR29: =SUM(NUR11,NUR20) -> 0 | NUX29: =SUM(NUX11,NUX20) -> 0 | NVD29: =SUM(NVD11,NVD20) -> 0 | NVJ29: =SUM(NVJ11,NVJ20) -> 0 | NVP29: =SUM(NVP11,NVP20) -> 0 | NVV29: =SUM(NVV11,NVV20) -> 0 | NWB29: =SUM(NWB11,NWB20) -> 0 | NWH29: =SUM(NWH11,NWH20) -> 0 | NWN29: =SUM(NWN11,NWN20) -> 0 | NWT29: =SUM(NWT11,NWT20) -> 0 | NWZ29: =SUM(NWZ11,NWZ20) -> 0 | NXF29: =SUM(NXF11,NXF20) -> 0 | NXL29: =SUM(NXL11,NXL20) -> 0 | NXR29: =SUM(NXR11,NXR20) -> 0 | NXX29: =SUM(NXX11,NXX20) -> 0 | NYD29: =SUM(NYD11,NYD20) -> 0 | NYJ29: =SUM(NYJ11,NYJ20) -> 0 | NYP29: =SUM(NYP11,NYP20) -> 0 | NYV29: =SUM(NYV11,NYV20) -> 0 | NZB29: =SUM(NZB11,NZB20) -> 0 | NZH29: =SUM(NZH11,NZH20) -> 0 | NZN29: =SUM(NZN11,NZN20) -> 0 | NZT29: =SUM(NZT11,NZT20) -> 0 | NZZ29: =SUM(NZZ11,NZZ20) -> 0 | OAF29: =SUM(OAF11,OAF20) -> 0 | OAL29: =SUM(OAL11,OAL20) -> 0 | OAR29: =SUM(OAR11,OAR20) -> 0 | OAX29: =SUM(OAX11,OAX20) -> 0 | OBD29: =SUM(OBD11,OBD20) -> 0 | OBJ29: =SUM(OBJ11,OBJ20) -> 0 | OBP29: =SUM(OBP11,OBP20) -> 0 | OBV29: =SUM(OBV11,OBV20) -> 0 | OCB29: =SUM(OCB11,OCB20) -> 0 | OCH29: =SUM(OCH11,OCH20) -> 0 | OCN29: =SUM(OCN11,OCN20) -> 0 | OCT29: =SUM(OCT11,OCT20) -> 0 | OCZ29: =SUM(OCZ11,OCZ20) -> 0 | ODF29: =SUM(ODF11,ODF20) -> 0 | ODL29: =SUM(ODL11,ODL20) -> 0 | ODR29: =SUM(ODR11,ODR20) -> 0 | ODX29: =SUM(ODX11,ODX20) -> 0 | OED29: =SUM(OED11,OED20) -> 0 | OEJ29: =SUM(OEJ11,OEJ20) -> 0 | OEP29: =SUM(OEP11,OEP20) -> 0 | OEV29: =SUM(OEV11,OEV20) -> 0 | OFB29: =SUM(OFB11,OFB20) -> 0 | OFH29: =SUM(OFH11,OFH20) -> 0 | OFN29: =SUM(OFN11,OFN20) -> 0 | OFT29: =SUM(OFT11,OFT20) -> 0 | OFZ29: =SUM(OFZ11,OFZ20) -> 0 | OGF29: =SUM(OGF11,OGF20) -> 0 | OGL29: =SUM(OGL11,OGL20) -> 0 | OGR29: =SUM(OGR11,OGR20) -> 0 | OGX29: =SUM(OGX11,OGX20) -> 0 | OHD29: =SUM(OHD11,OHD20) -> 0 | OHJ29: =SUM(OHJ11,OHJ20) -> 0 | OHP29: =SUM(OHP11,OHP20) -> 0 | OHV29: =SUM(OHV11,OHV20) -> 0 | OIB29: =SUM(OIB11,OIB20) -> 0 | OIH29: =SUM(OIH11,OIH20) -> 0 | OIN29: =SUM(OIN11,OIN20) -> 0 | OIT29: =SUM(OIT11,OIT20) -> 0 | OIZ29: =SUM(OIZ11,OIZ20) -> 0 | OJF29: =SUM(OJF11,OJF20) -> 0 | OJL29: =SUM(OJL11,OJL20) -> 0 | OJR29: =SUM(OJR11,OJR20) -> 0 | OJX29: =SUM(OJX11,OJX20) -> 0 | OKD29: =SUM(OKD11,OKD20) -> 0 | OKJ29: =SUM(OKJ11,OKJ20) -> 0 | OKP29: =SUM(OKP11,OKP20) -> 0 | OKV29: =SUM(OKV11,OKV20) -> 0 | OLB29: =SUM(OLB11,OLB20) -> 0 | OLH29: =SUM(OLH11,OLH20) -> 0 | OLN29: =SUM(OLN11,OLN20) -> 0 | OLT29: =SUM(OLT11,OLT20) -> 0 | OLZ29: =SUM(OLZ11,OLZ20) -> 0 | OMF29: =SUM(OMF11,OMF20) -> 0 | OML29: =SUM(OML11,OML20) -> 0 | OMR29: =SUM(OMR11,OMR20) -> 0 | OMX29: =SUM(OMX11,OMX20) -> 0 | OND29: =SUM(OND11,OND20) -> 0 | ONJ29: =SUM(ONJ11,ONJ20) -> 0 | ONP29: =SUM(ONP11,ONP20) -> 0 | ONV29: =SUM(ONV11,ONV20) -> 0 | OOB29: =SUM(OOB11,OOB20) -> 0 | OOH29: =SUM(OOH11,OOH20) -> 0 | OON29: =SUM(OON11,OON20) -> 0 | OOT29: =SUM(OOT11,OOT20) -> 0 | OOZ29: =SUM(OOZ11,OOZ20) -> 0 | OPF29: =SUM(OPF11,OPF20) -> 0 | OPL29: =SUM(OPL11,OPL20) -> 0 | OPR29: =SUM(OPR11,OPR20) -> 0 | OPX29: =SUM(OPX11,OPX20) -> 0 | OQD29: =SUM(OQD11,OQD20) -> 0 | OQJ29: =SUM(OQJ11,OQJ20) -> 0 | OQP29: =SUM(OQP11,OQP20) -> 0 | OQV29: =SUM(OQV11,OQV20) -> 0 | ORB29: =SUM(ORB11,ORB20) -> 0 | ORH29: =SUM(ORH11,ORH20) -> 0 | ORN29: =SUM(ORN11,ORN20) -> 0 | ORT29: =SUM(ORT11,ORT20) -> 0 | ORZ29: =SUM(ORZ11,ORZ20) -> 0 | OSF29: =SUM(OSF11,OSF20) -> 0 | OSL29: =SUM(OSL11,OSL20) -> 0 | OSR29: =SUM(OSR11,OSR20) -> 0 | OSX29: =SUM(OSX11,OSX20) -> 0 | OTD29: =SUM(OTD11,OTD20) -> 0 | OTJ29: =SUM(OTJ11,OTJ20) -> 0 | OTP29: =SUM(OTP11,OTP20) -> 0 | OTV29: =SUM(OTV11,OTV20) -> 0 | OUB29: =SUM(OUB11,OUB20) -> 0 | OUH29: =SUM(OUH11,OUH20) -> 0 | OUN29: =SUM(OUN11,OUN20) -> 0 | OUT29: =SUM(OUT11,OUT20) -> 0 | OUZ29: =SUM(OUZ11,OUZ20) -> 0 | OVF29: =SUM(OVF11,OVF20) -> 0 | OVL29: =SUM(OVL11,OVL20) -> 0 | OVR29: =SUM(OVR11,OVR20) -> 0 | OVX29: =SUM(OVX11,OVX20) -> 0 | OWD29: =SUM(OWD11,OWD20) -> 0 | OWJ29: =SUM(OWJ11,OWJ20) -> 0 | OWP29: =SUM(OWP11,OWP20) -> 0 | OWV29: =SUM(OWV11,OWV20) -> 0 | OXB29: =SUM(OXB11,OXB20) -> 0 | OXH29: =SUM(OXH11,OXH20) -> 0 | OXN29: =SUM(OXN11,OXN20) -> 0 | OXT29: =SUM(OXT11,OXT20) -> 0 | OXZ29: =SUM(OXZ11,OXZ20) -> 0 | OYF29: =SUM(OYF11,OYF20) -> 0 | OYL29: =SUM(OYL11,OYL20) -> 0 | OYR29: =SUM(OYR11,OYR20) -> 0 | OYX29: =SUM(OYX11,OYX20) -> 0 | OZD29: =SUM(OZD11,OZD20) -> 0 | OZJ29: =SUM(OZJ11,OZJ20) -> 0 | OZP29: =SUM(OZP11,OZP20) -> 0 | OZV29: =SUM(OZV11,OZV20) -> 0 | PAB29: =SUM(PAB11,PAB20) -> 0 | PAH29: =SUM(PAH11,PAH20) -> 0 | PAN29: =SUM(PAN11,PAN20) -> 0 | PAT29: =SUM(PAT11,PAT20) -> 0 | PAZ29: =SUM(PAZ11,PAZ20) -> 0 | PBF29: =SUM(PBF11,PBF20) -> 0 | PBL29: =SUM(PBL11,PBL20) -> 0 | PBR29: =SUM(PBR11,PBR20) -> 0 | PBX29: =SUM(PBX11,PBX20) -> 0 | PCD29: =SUM(PCD11,PCD20) -> 0 | PCJ29: =SUM(PCJ11,PCJ20) -> 0 | PCP29: =SUM(PCP11,PCP20) -> 0 | PCV29: =SUM(PCV11,PCV20) -> 0 | PDB29: =SUM(PDB11,PDB20) -> 0 | PDH29: =SUM(PDH11,PDH20) -> 0 | PDN29: =SUM(PDN11,PDN20) -> 0 | PDT29: =SUM(PDT11,PDT20) -> 0 | PDZ29: =SUM(PDZ11,PDZ20) -> 0 | PEF29: =SUM(PEF11,PEF20) -> 0 | PEL29: =SUM(PEL11,PEL20) -> 0 | PER29: =SUM(PER11,PER20) -> 0 | PEX29: =SUM(PEX11,PEX20) -> 0 | PFD29: =SUM(PFD11,PFD20) -> 0 | PFJ29: =SUM(PFJ11,PFJ20) -> 0 | PFP29: =SUM(PFP11,PFP20) -> 0 | PFV29: =SUM(PFV11,PFV20) -> 0 | PGB29: =SUM(PGB11,PGB20) -> 0 | PGH29: =SUM(PGH11,PGH20) -> 0 | PGN29: =SUM(PGN11,PGN20) -> 0 | PGT29: =SUM(PGT11,PGT20) -> 0 | PGZ29: =SUM(PGZ11,PGZ20) -> 0 | PHF29: =SUM(PHF11,PHF20) -> 0 | PHL29: =SUM(PHL11,PHL20) -> 0 | PHR29: =SUM(PHR11,PHR20) -> 0 | PHX29: =SUM(PHX11,PHX20) -> 0 | PID29: =SUM(PID11,PID20) -> 0 | PIJ29: =SUM(PIJ11,PIJ20) -> 0 | PIP29: =SUM(PIP11,PIP20) -> 0 | PIV29: =SUM(PIV11,PIV20) -> 0 | PJB29: =SUM(PJB11,PJB20) -> 0 | PJH29: =SUM(PJH11,PJH20) -> 0 | PJN29: =SUM(PJN11,PJN20) -> 0 | PJT29: =SUM(PJT11,PJT20) -> 0 | PJZ29: =SUM(PJZ11,PJZ20) -> 0 | PKF29: =SUM(PKF11,PKF20) -> 0 | PKL29: =SUM(PKL11,PKL20) -> 0 | PKR29: =SUM(PKR11,PKR20) -> 0 | PKX29: =SUM(PKX11,PKX20) -> 0 | PLD29: =SUM(PLD11,PLD20) -> 0 | PLJ29: =SUM(PLJ11,PLJ20) -> 0 | PLP29: =SUM(PLP11,PLP20) -> 0 | PLV29: =SUM(PLV11,PLV20) -> 0 | PMB29: =SUM(PMB11,PMB20) -> 0 | PMH29: =SUM(PMH11,PMH20) -> 0 | PMN29: =SUM(PMN11,PMN20) -> 0 | PMT29: =SUM(PMT11,PMT20) -> 0 | PMZ29: =SUM(PMZ11,PMZ20) -> 0 | PNF29: =SUM(PNF11,PNF20) -> 0 | PNL29: =SUM(PNL11,PNL20) -> 0 | PNR29: =SUM(PNR11,PNR20) -> 0 | PNX29: =SUM(PNX11,PNX20) -> 0 | POD29: =SUM(POD11,POD20) -> 0 | POJ29: =SUM(POJ11,POJ20) -> 0 | POP29: =SUM(POP11,POP20) -> 0 | POV29: =SUM(POV11,POV20) -> 0 | PPB29: =SUM(PPB11,PPB20) -> 0 | PPH29: =SUM(PPH11,PPH20) -> 0 | PPN29: =SUM(PPN11,PPN20) -> 0 | PPT29: =SUM(PPT11,PPT20) -> 0 | PPZ29: =SUM(PPZ11,PPZ20) -> 0 | PQF29: =SUM(PQF11,PQF20) -> 0 | PQL29: =SUM(PQL11,PQL20) -> 0 | PQR29: =SUM(PQR11,PQR20) -> 0 | PQX29: =SUM(PQX11,PQX20) -> 0 | PRD29: =SUM(PRD11,PRD20) -> 0 | PRJ29: =SUM(PRJ11,PRJ20) -> 0 | PRP29: =SUM(PRP11,PRP20) -> 0 | PRV29: =SUM(PRV11,PRV20) -> 0 | PSB29: =SUM(PSB11,PSB20) -> 0 | PSH29: =SUM(PSH11,PSH20) -> 0 | PSN29: =SUM(PSN11,PSN20) -> 0 | PST29: =SUM(PST11,PST20) -> 0 | PSZ29: =SUM(PSZ11,PSZ20) -> 0 | PTF29: =SUM(PTF11,PTF20) -> 0 | PTL29: =SUM(PTL11,PTL20) -> 0 | PTR29: =SUM(PTR11,PTR20) -> 0 | PTX29: =SUM(PTX11,PTX20) -> 0 | PUD29: =SUM(PUD11,PUD20) -> 0 | PUJ29: =SUM(PUJ11,PUJ20) -> 0 | PUP29: =SUM(PUP11,PUP20) -> 0 | PUV29: =SUM(PUV11,PUV20) -> 0 | PVB29: =SUM(PVB11,PVB20) -> 0 | PVH29: =SUM(PVH11,PVH20) -> 0 | PVN29: =SUM(PVN11,PVN20) -> 0 | PVT29: =SUM(PVT11,PVT20) -> 0 | PVZ29: =SUM(PVZ11,PVZ20) -> 0 | PWF29: =SUM(PWF11,PWF20) -> 0 | PWL29: =SUM(PWL11,PWL20) -> 0 | PWR29: =SUM(PWR11,PWR20) -> 0 | PWX29: =SUM(PWX11,PWX20) -> 0 | PXD29: =SUM(PXD11,PXD20) -> 0 | PXJ29: =SUM(PXJ11,PXJ20) -> 0 | PXP29: =SUM(PXP11,PXP20) -> 0 | PXV29: =SUM(PXV11,PXV20) -> 0 | PYB29: =SUM(PYB11,PYB20) -> 0 | PYH29: =SUM(PYH11,PYH20) -> 0 | PYN29: =SUM(PYN11,PYN20) -> 0 | PYT29: =SUM(PYT11,PYT20) -> 0 | PYZ29: =SUM(PYZ11,PYZ20) -> 0 | PZF29: =SUM(PZF11,PZF20) -> 0 | PZL29: =SUM(PZL11,PZL20) -> 0 | PZR29: =SUM(PZR11,PZR20) -> 0 | PZX29: =SUM(PZX11,PZX20) -> 0 | QAD29: =SUM(QAD11,QAD20) -> 0 | QAJ29: =SUM(QAJ11,QAJ20) -> 0 | QAP29: =SUM(QAP11,QAP20) -> 0 | QAV29: =SUM(QAV11,QAV20) -> 0 | QBB29: =SUM(QBB11,QBB20) -> 0 | QBH29: =SUM(QBH11,QBH20) -> 0 | QBN29: =SUM(QBN11,QBN20) -> 0 | QBT29: =SUM(QBT11,QBT20) -> 0 | QBZ29: =SUM(QBZ11,QBZ20) -> 0 | QCF29: =SUM(QCF11,QCF20) -> 0 | QCL29: =SUM(QCL11,QCL20) -> 0 | QCR29: =SUM(QCR11,QCR20) -> 0 | QCX29: =SUM(QCX11,QCX20) -> 0 | QDD29: =SUM(QDD11,QDD20) -> 0 | QDJ29: =SUM(QDJ11,QDJ20) -> 0 | QDP29: =SUM(QDP11,QDP20) -> 0 | QDV29: =SUM(QDV11,QDV20) -> 0 | QEB29: =SUM(QEB11,QEB20) -> 0 | QEH29: =SUM(QEH11,QEH20) -> 0 | QEN29: =SUM(QEN11,QEN20) -> 0 | QET29: =SUM(QET11,QET20) -> 0 | QEZ29: =SUM(QEZ11,QEZ20) -> 0 | QFF29: =SUM(QFF11,QFF20) -> 0 | QFL29: =SUM(QFL11,QFL20) -> 0 | QFR29: =SUM(QFR11,QFR20) -> 0 | QFX29: =SUM(QFX11,QFX20) -> 0 | QGD29: =SUM(QGD11,QGD20) -> 0 | QGJ29: =SUM(QGJ11,QGJ20) -> 0 | QGP29: =SUM(QGP11,QGP20) -> 0 | QGV29: =SUM(QGV11,QGV20) -> 0 | QHB29: =SUM(QHB11,QHB20) -> 0 | QHH29: =SUM(QHH11,QHH20) -> 0 | QHN29: =SUM(QHN11,QHN20) -> 0 | QHT29: =SUM(QHT11,QHT20) -> 0 | QHZ29: =SUM(QHZ11,QHZ20) -> 0 | QIF29: =SUM(QIF11,QIF20) -> 0 | QIL29: =SUM(QIL11,QIL20) -> 0 | QIR29: =SUM(QIR11,QIR20) -> 0 | QIX29: =SUM(QIX11,QIX20) -> 0 | QJD29: =SUM(QJD11,QJD20) -> 0 | QJJ29: =SUM(QJJ11,QJJ20) -> 0 | QJP29: =SUM(QJP11,QJP20) -> 0 | QJV29: =SUM(QJV11,QJV20) -> 0 | QKB29: =SUM(QKB11,QKB20) -> 0 | QKH29: =SUM(QKH11,QKH20) -> 0 | QKN29: =SUM(QKN11,QKN20) -> 0 | QKT29: =SUM(QKT11,QKT20) -> 0 | QKZ29: =SUM(QKZ11,QKZ20) -> 0 | QLF29: =SUM(QLF11,QLF20) -> 0 | QLL29: =SUM(QLL11,QLL20) -> 0 | QLR29: =SUM(QLR11,QLR20) -> 0 | QLX29: =SUM(QLX11,QLX20) -> 0 | QMD29: =SUM(QMD11,QMD20) -> 0 | QMJ29: =SUM(QMJ11,QMJ20) -> 0 | QMP29: =SUM(QMP11,QMP20) -> 0 | QMV29: =SUM(QMV11,QMV20) -> 0 | QNB29: =SUM(QNB11,QNB20) -> 0 | QNH29: =SUM(QNH11,QNH20) -> 0 | QNN29: =SUM(QNN11,QNN20) -> 0 | QNT29: =SUM(QNT11,QNT20) -> 0 | QNZ29: =SUM(QNZ11,QNZ20) -> 0 | QOF29: =SUM(QOF11,QOF20) -> 0 | QOL29: =SUM(QOL11,QOL20) -> 0 | QOR29: =SUM(QOR11,QOR20) -> 0 | QOX29: =SUM(QOX11,QOX20) -> 0 | QPD29: =SUM(QPD11,QPD20) -> 0 | QPJ29: =SUM(QPJ11,QPJ20) -> 0 | QPP29: =SUM(QPP11,QPP20) -> 0 | QPV29: =SUM(QPV11,QPV20) -> 0 | QQB29: =SUM(QQB11,QQB20) -> 0 | QQH29: =SUM(QQH11,QQH20) -> 0 | QQN29: =SUM(QQN11,QQN20) -> 0 | QQT29: =SUM(QQT11,QQT20) -> 0 | QQZ29: =SUM(QQZ11,QQZ20) -> 0 | QRF29: =SUM(QRF11,QRF20) -> 0 | QRL29: =SUM(QRL11,QRL20) -> 0 | QRR29: =SUM(QRR11,QRR20) -> 0 | QRX29: =SUM(QRX11,QRX20) -> 0 | QSD29: =SUM(QSD11,QSD20) -> 0 | QSJ29: =SUM(QSJ11,QSJ20) -> 0 | QSP29: =SUM(QSP11,QSP20) -> 0 | QSV29: =SUM(QSV11,QSV20) -> 0 | QTB29: =SUM(QTB11,QTB20) -> 0 | QTH29: =SUM(QTH11,QTH20) -> 0 | QTN29: =SUM(QTN11,QTN20) -> 0 | QTT29: =SUM(QTT11,QTT20) -> 0 | QTZ29: =SUM(QTZ11,QTZ20) -> 0 | QUF29: =SUM(QUF11,QUF20) -> 0 | QUL29: =SUM(QUL11,QUL20) -> 0 | QUR29: =SUM(QUR11,QUR20) -> 0 | QUX29: =SUM(QUX11,QUX20) -> 0 | QVD29: =SUM(QVD11,QVD20) -> 0 | QVJ29: =SUM(QVJ11,QVJ20) -> 0 | QVP29: =SUM(QVP11,QVP20) -> 0 | QVV29: =SUM(QVV11,QVV20) -> 0 | QWB29: =SUM(QWB11,QWB20) -> 0 | QWH29: =SUM(QWH11,QWH20) -> 0 | QWN29: =SUM(QWN11,QWN20) -> 0 | QWT29: =SUM(QWT11,QWT20) -> 0 | QWZ29: =SUM(QWZ11,QWZ20) -> 0 | QXF29: =SUM(QXF11,QXF20) -> 0 | QXL29: =SUM(QXL11,QXL20) -> 0 | QXR29: =SUM(QXR11,QXR20) -> 0 | QXX29: =SUM(QXX11,QXX20) -> 0 | QYD29: =SUM(QYD11,QYD20) -> 0 | QYJ29: =SUM(QYJ11,QYJ20) -> 0 | QYP29: =SUM(QYP11,QYP20) -> 0 | QYV29: =SUM(QYV11,QYV20) -> 0 | QZB29: =SUM(QZB11,QZB20) -> 0 | QZH29: =SUM(QZH11,QZH20) -> 0 | QZN29: =SUM(QZN11,QZN20) -> 0 | QZT29: =SUM(QZT11,QZT20) -> 0 | QZZ29: =SUM(QZZ11,QZZ20) -> 0 | RAF29: =SUM(RAF11,RAF20) -> 0 | RAL29: =SUM(RAL11,RAL20) -> 0 | RAR29: =SUM(RAR11,RAR20) -> 0 | RAX29: =SUM(RAX11,RAX20) -> 0 | RBD29: =SUM(RBD11,RBD20) -> 0 | RBJ29: =SUM(RBJ11,RBJ20) -> 0 | RBP29: =SUM(RBP11,RBP20) -> 0 | RBV29: =SUM(RBV11,RBV20) -> 0 | RCB29: =SUM(RCB11,RCB20) -> 0 | RCH29: =SUM(RCH11,RCH20) -> 0 | RCN29: =SUM(RCN11,RCN20) -> 0 | RCT29: =SUM(RCT11,RCT20) -> 0 | RCZ29: =SUM(RCZ11,RCZ20) -> 0 | RDF29: =SUM(RDF11,RDF20) -> 0 | RDL29: =SUM(RDL11,RDL20) -> 0 | RDR29: =SUM(RDR11,RDR20) -> 0 | RDX29: =SUM(RDX11,RDX20) -> 0 | RED29: =SUM(RED11,RED20) -> 0 | REJ29: =SUM(REJ11,REJ20) -> 0 | REP29: =SUM(REP11,REP20) -> 0 | REV29: =SUM(REV11,REV20) -> 0 | RFB29: =SUM(RFB11,RFB20) -> 0 | RFH29: =SUM(RFH11,RFH20) -> 0 | RFN29: =SUM(RFN11,RFN20) -> 0 | RFT29: =SUM(RFT11,RFT20) -> 0 | RFZ29: =SUM(RFZ11,RFZ20) -> 0 | RGF29: =SUM(RGF11,RGF20) -> 0 | RGL29: =SUM(RGL11,RGL20) -> 0 | RGR29: =SUM(RGR11,RGR20) -> 0 | RGX29: =SUM(RGX11,RGX20) -> 0 | RHD29: =SUM(RHD11,RHD20) -> 0 | RHJ29: =SUM(RHJ11,RHJ20) -> 0 | RHP29: =SUM(RHP11,RHP20) -> 0 | RHV29: =SUM(RHV11,RHV20) -> 0 | RIB29: =SUM(RIB11,RIB20) -> 0 | RIH29: =SUM(RIH11,RIH20) -> 0 | RIN29: =SUM(RIN11,RIN20) -> 0 | RIT29: =SUM(RIT11,RIT20) -> 0 | RIZ29: =SUM(RIZ11,RIZ20) -> 0 | RJF29: =SUM(RJF11,RJF20) -> 0 | RJL29: =SUM(RJL11,RJL20) -> 0 | RJR29: =SUM(RJR11,RJR20) -> 0 | RJX29: =SUM(RJX11,RJX20) -> 0 | RKD29: =SUM(RKD11,RKD20) -> 0 | RKJ29: =SUM(RKJ11,RKJ20) -> 0 | RKP29: =SUM(RKP11,RKP20) -> 0 | RKV29: =SUM(RKV11,RKV20) -> 0 | RLB29: =SUM(RLB11,RLB20) -> 0 | RLH29: =SUM(RLH11,RLH20) -> 0 | RLN29: =SUM(RLN11,RLN20) -> 0 | RLT29: =SUM(RLT11,RLT20) -> 0 | RLZ29: =SUM(RLZ11,RLZ20) -> 0 | RMF29: =SUM(RMF11,RMF20) -> 0 | RML29: =SUM(RML11,RML20) -> 0 | RMR29: =SUM(RMR11,RMR20) -> 0 | RMX29: =SUM(RMX11,RMX20) -> 0 | RND29: =SUM(RND11,RND20) -> 0 | RNJ29: =SUM(RNJ11,RNJ20) -> 0 | RNP29: =SUM(RNP11,RNP20) -> 0 | RNV29: =SUM(RNV11,RNV20) -> 0 | ROB29: =SUM(ROB11,ROB20) -> 0 | ROH29: =SUM(ROH11,ROH20) -> 0 | RON29: =SUM(RON11,RON20) -> 0 | ROT29: =SUM(ROT11,ROT20) -> 0 | ROZ29: =SUM(ROZ11,ROZ20) -> 0 | RPF29: =SUM(RPF11,RPF20) -> 0 | RPL29: =SUM(RPL11,RPL20) -> 0 | RPR29: =SUM(RPR11,RPR20) -> 0 | RPX29: =SUM(RPX11,RPX20) -> 0 | RQD29: =SUM(RQD11,RQD20) -> 0 | RQJ29: =SUM(RQJ11,RQJ20) -> 0 | RQP29: =SUM(RQP11,RQP20) -> 0 | RQV29: =SUM(RQV11,RQV20) -> 0 | RRB29: =SUM(RRB11,RRB20) -> 0 | RRH29: =SUM(RRH11,RRH20) -> 0 | RRN29: =SUM(RRN11,RRN20) -> 0 | RRT29: =SUM(RRT11,RRT20) -> 0 | RRZ29: =SUM(RRZ11,RRZ20) -> 0 | RSF29: =SUM(RSF11,RSF20) -> 0 | RSL29: =SUM(RSL11,RSL20) -> 0 | RSR29: =SUM(RSR11,RSR20) -> 0 | RSX29: =SUM(RSX11,RSX20) -> 0 | RTD29: =SUM(RTD11,RTD20) -> 0 | RTJ29: =SUM(RTJ11,RTJ20) -> 0 | RTP29: =SUM(RTP11,RTP20) -> 0 | RTV29: =SUM(RTV11,RTV20) -> 0 | RUB29: =SUM(RUB11,RUB20) -> 0 | RUH29: =SUM(RUH11,RUH20) -> 0 | RUN29: =SUM(RUN11,RUN20) -> 0 | RUT29: =SUM(RUT11,RUT20) -> 0 | RUZ29: =SUM(RUZ11,RUZ20) -> 0 | RVF29: =SUM(RVF11,RVF20) -> 0 | RVL29: =SUM(RVL11,RVL20) -> 0 | RVR29: =SUM(RVR11,RVR20) -> 0 | RVX29: =SUM(RVX11,RVX20) -> 0 | RWD29: =SUM(RWD11,RWD20) -> 0 | RWJ29: =SUM(RWJ11,RWJ20) -> 0 | RWP29: =SUM(RWP11,RWP20) -> 0 | RWV29: =SUM(RWV11,RWV20) -> 0 | RXB29: =SUM(RXB11,RXB20) -> 0 | RXH29: =SUM(RXH11,RXH20) -> 0 | RXN29: =SUM(RXN11,RXN20) -> 0 | RXT29: =SUM(RXT11,RXT20) -> 0 | RXZ29: =SUM(RXZ11,RXZ20) -> 0 | RYF29: =SUM(RYF11,RYF20) -> 0 | RYL29: =SUM(RYL11,RYL20) -> 0 | RYR29: =SUM(RYR11,RYR20) -> 0 | RYX29: =SUM(RYX11,RYX20) -> 0 | RZD29: =SUM(RZD11,RZD20) -> 0 | RZJ29: =SUM(RZJ11,RZJ20) -> 0 | RZP29: =SUM(RZP11,RZP20) -> 0 | RZV29: =SUM(RZV11,RZV20) -> 0 | SAB29: =SUM(SAB11,SAB20) -> 0 | SAH29: =SUM(SAH11,SAH20) -> 0 | SAN29: =SUM(SAN11,SAN20) -> 0 | SAT29: =SUM(SAT11,SAT20) -> 0 | SAZ29: =SUM(SAZ11,SAZ20) -> 0 | SBF29: =SUM(SBF11,SBF20) -> 0 | SBL29: =SUM(SBL11,SBL20) -> 0 | SBR29: =SUM(SBR11,SBR20) -> 0 | SBX29: =SUM(SBX11,SBX20) -> 0 | SCD29: =SUM(SCD11,SCD20) -> 0 | SCJ29: =SUM(SCJ11,SCJ20) -> 0 | SCP29: =SUM(SCP11,SCP20) -> 0 | SCV29: =SUM(SCV11,SCV20) -> 0 | SDB29: =SUM(SDB11,SDB20) -> 0 | SDH29: =SUM(SDH11,SDH20) -> 0 | SDN29: =SUM(SDN11,SDN20) -> 0 | SDT29: =SUM(SDT11,SDT20) -> 0 | SDZ29: =SUM(SDZ11,SDZ20) -> 0 | SEF29: =SUM(SEF11,SEF20) -> 0 | SEL29: =SUM(SEL11,SEL20) -> 0 | SER29: =SUM(SER11,SER20) -> 0 | SEX29: =SUM(SEX11,SEX20) -> 0 | SFD29: =SUM(SFD11,SFD20) -> 0 | SFJ29: =SUM(SFJ11,SFJ20) -> 0 | SFP29: =SUM(SFP11,SFP20) -> 0 | SFV29: =SUM(SFV11,SFV20) -> 0 | SGB29: =SUM(SGB11,SGB20) -> 0 | SGH29: =SUM(SGH11,SGH20) -> 0 | SGN29: =SUM(SGN11,SGN20) -> 0 | SGT29: =SUM(SGT11,SGT20) -> 0 | SGZ29: =SUM(SGZ11,SGZ20) -> 0 | SHF29: =SUM(SHF11,SHF20) -> 0 | SHL29: =SUM(SHL11,SHL20) -> 0 | SHR29: =SUM(SHR11,SHR20) -> 0 | SHX29: =SUM(SHX11,SHX20) -> 0 | SID29: =SUM(SID11,SID20) -> 0 | SIJ29: =SUM(SIJ11,SIJ20) -> 0 | SIP29: =SUM(SIP11,SIP20) -> 0 | SIV29: =SUM(SIV11,SIV20) -> 0 | SJB29: =SUM(SJB11,SJB20) -> 0 | SJH29: =SUM(SJH11,SJH20) -> 0 | SJN29: =SUM(SJN11,SJN20) -> 0 | SJT29: =SUM(SJT11,SJT20) -> 0 | SJZ29: =SUM(SJZ11,SJZ20) -> 0 | SKF29: =SUM(SKF11,SKF20) -> 0 | SKL29: =SUM(SKL11,SKL20) -> 0 | SKR29: =SUM(SKR11,SKR20) -> 0 | SKX29: =SUM(SKX11,SKX20) -> 0 | SLD29: =SUM(SLD11,SLD20) -> 0 | SLJ29: =SUM(SLJ11,SLJ20) -> 0 | SLP29: =SUM(SLP11,SLP20) -> 0 | SLV29: =SUM(SLV11,SLV20) -> 0 | SMB29: =SUM(SMB11,SMB20) -> 0 | SMH29: =SUM(SMH11,SMH20) -> 0 | SMN29: =SUM(SMN11,SMN20) -> 0 | SMT29: =SUM(SMT11,SMT20) -> 0 | SMZ29: =SUM(SMZ11,SMZ20) -> 0 | SNF29: =SUM(SNF11,SNF20) -> 0 | SNL29: =SUM(SNL11,SNL20) -> 0 | SNR29: =SUM(SNR11,SNR20) -> 0 | SNX29: =SUM(SNX11,SNX20) -> 0 | SOD29: =SUM(SOD11,SOD20) -> 0 | SOJ29: =SUM(SOJ11,SOJ20) -> 0 | SOP29: =SUM(SOP11,SOP20) -> 0 | SOV29: =SUM(SOV11,SOV20) -> 0 | SPB29: =SUM(SPB11,SPB20) -> 0 | SPH29: =SUM(SPH11,SPH20) -> 0 | SPN29: =SUM(SPN11,SPN20) -> 0 | SPT29: =SUM(SPT11,SPT20) -> 0 | SPZ29: =SUM(SPZ11,SPZ20) -> 0 | SQF29: =SUM(SQF11,SQF20) -> 0 | SQL29: =SUM(SQL11,SQL20) -> 0 | SQR29: =SUM(SQR11,SQR20) -> 0 | SQX29: =SUM(SQX11,SQX20) -> 0 | SRD29: =SUM(SRD11,SRD20) -> 0 | SRJ29: =SUM(SRJ11,SRJ20) -> 0 | SRP29: =SUM(SRP11,SRP20) -> 0 | SRV29: =SUM(SRV11,SRV20) -> 0 | SSB29: =SUM(SSB11,SSB20) -> 0 | SSH29: =SUM(SSH11,SSH20) -> 0 | SSN29: =SUM(SSN11,SSN20) -> 0 | SST29: =SUM(SST11,SST20) -> 0 | SSZ29: =SUM(SSZ11,SSZ20) -> 0 | STF29: =SUM(STF11,STF20) -> 0 | STL29: =SUM(STL11,STL20) -> 0 | STR29: =SUM(STR11,STR20) -> 0 | STX29: =SUM(STX11,STX20) -> 0 | SUD29: =SUM(SUD11,SUD20) -> 0 | SUJ29: =SUM(SUJ11,SUJ20) -> 0 | SUP29: =SUM(SUP11,SUP20) -> 0 | SUV29: =SUM(SUV11,SUV20) -> 0 | SVB29: =SUM(SVB11,SVB20) -> 0 | SVH29: =SUM(SVH11,SVH20) -> 0 | SVN29: =SUM(SVN11,SVN20) -> 0 | SVT29: =SUM(SVT11,SVT20) -> 0 | SVZ29: =SUM(SVZ11,SVZ20) -> 0 | SWF29: =SUM(SWF11,SWF20) -> 0 | SWL29: =SUM(SWL11,SWL20) -> 0 | SWR29: =SUM(SWR11,SWR20) -> 0 | SWX29: =SUM(SWX11,SWX20) -> 0 | SXD29: =SUM(SXD11,SXD20) -> 0 | SXJ29: =SUM(SXJ11,SXJ20) -> 0 | SXP29: =SUM(SXP11,SXP20) -> 0 | SXV29: =SUM(SXV11,SXV20) -> 0 | SYB29: =SUM(SYB11,SYB20) -> 0 | SYH29: =SUM(SYH11,SYH20) -> 0 | SYN29: =SUM(SYN11,SYN20) -> 0 | SYT29: =SUM(SYT11,SYT20) -> 0 | SYZ29: =SUM(SYZ11,SYZ20) -> 0 | SZF29: =SUM(SZF11,SZF20) -> 0 | SZL29: =SUM(SZL11,SZL20) -> 0 | SZR29: =SUM(SZR11,SZR20) -> 0 | SZX29: =SUM(SZX11,SZX20) -> 0 | TAD29: =SUM(TAD11,TAD20) -> 0 | TAJ29: =SUM(TAJ11,TAJ20) -> 0 | TAP29: =SUM(TAP11,TAP20) -> 0 | TAV29: =SUM(TAV11,TAV20) -> 0 | TBB29: =SUM(TBB11,TBB20) -> 0 | TBH29: =SUM(TBH11,TBH20) -> 0 | TBN29: =SUM(TBN11,TBN20) -> 0 | TBT29: =SUM(TBT11,TBT20) -> 0 | TBZ29: =SUM(TBZ11,TBZ20) -> 0 | TCF29: =SUM(TCF11,TCF20) -> 0 | TCL29: =SUM(TCL11,TCL20) -> 0 | TCR29: =SUM(TCR11,TCR20) -> 0 | TCX29: =SUM(TCX11,TCX20) -> 0 | TDD29: =SUM(TDD11,TDD20) -> 0 | TDJ29: =SUM(TDJ11,TDJ20) -> 0 | TDP29: =SUM(TDP11,TDP20) -> 0 | TDV29: =SUM(TDV11,TDV20) -> 0 | TEB29: =SUM(TEB11,TEB20) -> 0 | TEH29: =SUM(TEH11,TEH20) -> 0 | TEN29: =SUM(TEN11,TEN20) -> 0 | TET29: =SUM(TET11,TET20) -> 0 | TEZ29: =SUM(TEZ11,TEZ20) -> 0 | TFF29: =SUM(TFF11,TFF20) -> 0 | TFL29: =SUM(TFL11,TFL20) -> 0 | TFR29: =SUM(TFR11,TFR20) -> 0 | TFX29: =SUM(TFX11,TFX20) -> 0 | TGD29: =SUM(TGD11,TGD20) -> 0 | TGJ29: =SUM(TGJ11,TGJ20) -> 0 | TGP29: =SUM(TGP11,TGP20) -> 0 | TGV29: =SUM(TGV11,TGV20) -> 0 | THB29: =SUM(THB11,THB20) -> 0 | THH29: =SUM(THH11,THH20) -> 0 | THN29: =SUM(THN11,THN20) -> 0 | THT29: =SUM(THT11,THT20) -> 0 | THZ29: =SUM(THZ11,THZ20) -> 0 | TIF29: =SUM(TIF11,TIF20) -> 0 | TIL29: =SUM(TIL11,TIL20) -> 0 | TIR29: =SUM(TIR11,TIR20) -> 0 | TIX29: =SUM(TIX11,TIX20) -> 0 | TJD29: =SUM(TJD11,TJD20) -> 0 | TJJ29: =SUM(TJJ11,TJJ20) -> 0 | TJP29: =SUM(TJP11,TJP20) -> 0 | TJV29: =SUM(TJV11,TJV20) -> 0 | TKB29: =SUM(TKB11,TKB20) -> 0 | TKH29: =SUM(TKH11,TKH20) -> 0 | TKN29: =SUM(TKN11,TKN20) -> 0 | TKT29: =SUM(TKT11,TKT20) -> 0 | TKZ29: =SUM(TKZ11,TKZ20) -> 0 | TLF29: =SUM(TLF11,TLF20) -> 0 | TLL29: =SUM(TLL11,TLL20) -> 0 | TLR29: =SUM(TLR11,TLR20) -> 0 | TLX29: =SUM(TLX11,TLX20) -> 0 | TMD29: =SUM(TMD11,TMD20) -> 0 | TMJ29: =SUM(TMJ11,TMJ20) -> 0 | TMP29: =SUM(TMP11,TMP20) -> 0 | TMV29: =SUM(TMV11,TMV20) -> 0 | TNB29: =SUM(TNB11,TNB20) -> 0 | TNH29: =SUM(TNH11,TNH20) -> 0 | TNN29: =SUM(TNN11,TNN20) -> 0 | TNT29: =SUM(TNT11,TNT20) -> 0 | TNZ29: =SUM(TNZ11,TNZ20) -> 0 | TOF29: =SUM(TOF11,TOF20) -> 0 | TOL29: =SUM(TOL11,TOL20) -> 0 | TOR29: =SUM(TOR11,TOR20) -> 0 | TOX29: =SUM(TOX11,TOX20) -> 0 | TPD29: =SUM(TPD11,TPD20) -> 0 | TPJ29: =SUM(TPJ11,TPJ20) -> 0 | TPP29: =SUM(TPP11,TPP20) -> 0 | TPV29: =SUM(TPV11,TPV20) -> 0 | TQB29: =SUM(TQB11,TQB20) -> 0 | TQH29: =SUM(TQH11,TQH20) -> 0 | TQN29: =SUM(TQN11,TQN20) -> 0 | TQT29: =SUM(TQT11,TQT20) -> 0 | TQZ29: =SUM(TQZ11,TQZ20) -> 0 | TRF29: =SUM(TRF11,TRF20) -> 0 | TRL29: =SUM(TRL11,TRL20) -> 0 | TRR29: =SUM(TRR11,TRR20) -> 0 | TRX29: =SUM(TRX11,TRX20) -> 0 | TSD29: =SUM(TSD11,TSD20) -> 0 | TSJ29: =SUM(TSJ11,TSJ20) -> 0 | TSP29: =SUM(TSP11,TSP20) -> 0 | TSV29: =SUM(TSV11,TSV20) -> 0 | TTB29: =SUM(TTB11,TTB20) -> 0 | TTH29: =SUM(TTH11,TTH20) -> 0 | TTN29: =SUM(TTN11,TTN20) -> 0 | TTT29: =SUM(TTT11,TTT20) -> 0 | TTZ29: =SUM(TTZ11,TTZ20) -> 0 | TUF29: =SUM(TUF11,TUF20) -> 0 | TUL29: =SUM(TUL11,TUL20) -> 0 | TUR29: =SUM(TUR11,TUR20) -> 0 | TUX29: =SUM(TUX11,TUX20) -> 0 | TVD29: =SUM(TVD11,TVD20) -> 0 | TVJ29: =SUM(TVJ11,TVJ20) -> 0 | TVP29: =SUM(TVP11,TVP20) -> 0 | TVV29: =SUM(TVV11,TVV20) -> 0 | TWB29: =SUM(TWB11,TWB20) -> 0 | TWH29: =SUM(TWH11,TWH20) -> 0 | TWN29: =SUM(TWN11,TWN20) -> 0 | TWT29: =SUM(TWT11,TWT20) -> 0 | TWZ29: =SUM(TWZ11,TWZ20) -> 0 | TXF29: =SUM(TXF11,TXF20) -> 0 | TXL29: =SUM(TXL11,TXL20) -> 0 | TXR29: =SUM(TXR11,TXR20) -> 0 | TXX29: =SUM(TXX11,TXX20) -> 0 | TYD29: =SUM(TYD11,TYD20) -> 0 | TYJ29: =SUM(TYJ11,TYJ20) -> 0 | TYP29: =SUM(TYP11,TYP20) -> 0 | TYV29: =SUM(TYV11,TYV20) -> 0 | TZB29: =SUM(TZB11,TZB20) -> 0 | TZH29: =SUM(TZH11,TZH20) -> 0 | TZN29: =SUM(TZN11,TZN20) -> 0 | TZT29: =SUM(TZT11,TZT20) -> 0 | TZZ29: =SUM(TZZ11,TZZ20) -> 0 | UAF29: =SUM(UAF11,UAF20) -> 0 | UAL29: =SUM(UAL11,UAL20) -> 0 | UAR29: =SUM(UAR11,UAR20) -> 0 | UAX29: =SUM(UAX11,UAX20) -> 0 | UBD29: =SUM(UBD11,UBD20) -> 0 | UBJ29: =SUM(UBJ11,UBJ20) -> 0 | UBP29: =SUM(UBP11,UBP20) -> 0 | UBV29: =SUM(UBV11,UBV20) -> 0 | UCB29: =SUM(UCB11,UCB20) -> 0 | UCH29: =SUM(UCH11,UCH20) -> 0 | UCN29: =SUM(UCN11,UCN20) -> 0 | UCT29: =SUM(UCT11,UCT20) -> 0 | UCZ29: =SUM(UCZ11,UCZ20) -> 0 | UDF29: =SUM(UDF11,UDF20) -> 0 | UDL29: =SUM(UDL11,UDL20) -> 0 | UDR29: =SUM(UDR11,UDR20) -> 0 | UDX29: =SUM(UDX11,UDX20) -> 0 | UED29: =SUM(UED11,UED20) -> 0 | UEJ29: =SUM(UEJ11,UEJ20) -> 0 | UEP29: =SUM(UEP11,UEP20) -> 0 | UEV29: =SUM(UEV11,UEV20) -> 0 | UFB29: =SUM(UFB11,UFB20) -> 0 | UFH29: =SUM(UFH11,UFH20) -> 0 | UFN29: =SUM(UFN11,UFN20) -> 0 | UFT29: =SUM(UFT11,UFT20) -> 0 | UFZ29: =SUM(UFZ11,UFZ20) -> 0 | UGF29: =SUM(UGF11,UGF20) -> 0 | UGL29: =SUM(UGL11,UGL20) -> 0 | UGR29: =SUM(UGR11,UGR20) -> 0 | UGX29: =SUM(UGX11,UGX20) -> 0 | UHD29: =SUM(UHD11,UHD20) -> 0 | UHJ29: =SUM(UHJ11,UHJ20) -> 0 | UHP29: =SUM(UHP11,UHP20) -> 0 | UHV29: =SUM(UHV11,UHV20) -> 0 | UIB29: =SUM(UIB11,UIB20) -> 0 | UIH29: =SUM(UIH11,UIH20) -> 0 | UIN29: =SUM(UIN11,UIN20) -> 0 | UIT29: =SUM(UIT11,UIT20) -> 0 | UIZ29: =SUM(UIZ11,UIZ20) -> 0 | UJF29: =SUM(UJF11,UJF20) -> 0 | UJL29: =SUM(UJL11,UJL20) -> 0 | UJR29: =SUM(UJR11,UJR20) -> 0 | UJX29: =SUM(UJX11,UJX20) -> 0 | UKD29: =SUM(UKD11,UKD20) -> 0 | UKJ29: =SUM(UKJ11,UKJ20) -> 0 | UKP29: =SUM(UKP11,UKP20) -> 0 | UKV29: =SUM(UKV11,UKV20) -> 0 | ULB29: =SUM(ULB11,ULB20) -> 0 | ULH29: =SUM(ULH11,ULH20) -> 0 | ULN29: =SUM(ULN11,ULN20) -> 0 | ULT29: =SUM(ULT11,ULT20) -> 0 | ULZ29: =SUM(ULZ11,ULZ20) -> 0 | UMF29: =SUM(UMF11,UMF20) -> 0 | UML29: =SUM(UML11,UML20) -> 0 | UMR29: =SUM(UMR11,UMR20) -> 0 | UMX29: =SUM(UMX11,UMX20) -> 0 | UND29: =SUM(UND11,UND20) -> 0 | UNJ29: =SUM(UNJ11,UNJ20) -> 0 | UNP29: =SUM(UNP11,UNP20) -> 0 | UNV29: =SUM(UNV11,UNV20) -> 0 | UOB29: =SUM(UOB11,UOB20) -> 0 | UOH29: =SUM(UOH11,UOH20) -> 0 | UON29: =SUM(UON11,UON20) -> 0 | UOT29: =SUM(UOT11,UOT20) -> 0 | UOZ29: =SUM(UOZ11,UOZ20) -> 0 | UPF29: =SUM(UPF11,UPF20) -> 0 | UPL29: =SUM(UPL11,UPL20) -> 0 | UPR29: =SUM(UPR11,UPR20) -> 0 | UPX29: =SUM(UPX11,UPX20) -> 0 | UQD29: =SUM(UQD11,UQD20) -> 0 | UQJ29: =SUM(UQJ11,UQJ20) -> 0 | UQP29: =SUM(UQP11,UQP20) -> 0 | UQV29: =SUM(UQV11,UQV20) -> 0 | URB29: =SUM(URB11,URB20) -> 0 | URH29: =SUM(URH11,URH20) -> 0 | URN29: =SUM(URN11,URN20) -> 0 | URT29: =SUM(URT11,URT20) -> 0 | URZ29: =SUM(URZ11,URZ20) -> 0 | USF29: =SUM(USF11,USF20) -> 0 | USL29: =SUM(USL11,USL20) -> 0 | USR29: =SUM(USR11,USR20) -> 0 | USX29: =SUM(USX11,USX20) -> 0 | UTD29: =SUM(UTD11,UTD20) -> 0 | UTJ29: =SUM(UTJ11,UTJ20) -> 0 | UTP29: =SUM(UTP11,UTP20) -> 0 | UTV29: =SUM(UTV11,UTV20) -> 0 | UUB29: =SUM(UUB11,UUB20) -> 0 | UUH29: =SUM(UUH11,UUH20) -> 0 | UUN29: =SUM(UUN11,UUN20) -> 0 | UUT29: =SUM(UUT11,UUT20) -> 0 | UUZ29: =SUM(UUZ11,UUZ20) -> 0 | UVF29: =SUM(UVF11,UVF20) -> 0 | UVL29: =SUM(UVL11,UVL20) -> 0 | UVR29: =SUM(UVR11,UVR20) -> 0 | UVX29: =SUM(UVX11,UVX20) -> 0 | UWD29: =SUM(UWD11,UWD20) -> 0 | UWJ29: =SUM(UWJ11,UWJ20) -> 0 | UWP29: =SUM(UWP11,UWP20) -> 0 | UWV29: =SUM(UWV11,UWV20) -> 0 | UXB29: =SUM(UXB11,UXB20) -> 0 | UXH29: =SUM(UXH11,UXH20) -> 0 | UXN29: =SUM(UXN11,UXN20) -> 0 | UXT29: =SUM(UXT11,UXT20) -> 0 | UXZ29: =SUM(UXZ11,UXZ20) -> 0 | UYF29: =SUM(UYF11,UYF20) -> 0 | UYL29: =SUM(UYL11,UYL20) -> 0 | UYR29: =SUM(UYR11,UYR20) -> 0 | UYX29: =SUM(UYX11,UYX20) -> 0 | UZD29: =SUM(UZD11,UZD20) -> 0 | UZJ29: =SUM(UZJ11,UZJ20) -> 0 | UZP29: =SUM(UZP11,UZP20) -> 0 | UZV29: =SUM(UZV11,UZV20) -> 0 | VAB29: =SUM(VAB11,VAB20) -> 0 | VAH29: =SUM(VAH11,VAH20) -> 0 | VAN29: =SUM(VAN11,VAN20) -> 0 | VAT29: =SUM(VAT11,VAT20) -> 0 | VAZ29: =SUM(VAZ11,VAZ20) -> 0 | VBF29: =SUM(VBF11,VBF20) -> 0 | VBL29: =SUM(VBL11,VBL20) -> 0 | VBR29: =SUM(VBR11,VBR20) -> 0 | VBX29: =SUM(VBX11,VBX20) -> 0 | VCD29: =SUM(VCD11,VCD20) -> 0 | VCJ29: =SUM(VCJ11,VCJ20) -> 0 | VCP29: =SUM(VCP11,VCP20) -> 0 | VCV29: =SUM(VCV11,VCV20) -> 0 | VDB29: =SUM(VDB11,VDB20) -> 0 | VDH29: =SUM(VDH11,VDH20) -> 0 | VDN29: =SUM(VDN11,VDN20) -> 0 | VDT29: =SUM(VDT11,VDT20) -> 0 | VDZ29: =SUM(VDZ11,VDZ20) -> 0 | VEF29: =SUM(VEF11,VEF20) -> 0 | VEL29: =SUM(VEL11,VEL20) -> 0 | VER29: =SUM(VER11,VER20) -> 0 | VEX29: =SUM(VEX11,VEX20) -> 0 | VFD29: =SUM(VFD11,VFD20) -> 0 | VFJ29: =SUM(VFJ11,VFJ20) -> 0 | VFP29: =SUM(VFP11,VFP20) -> 0 | VFV29: =SUM(VFV11,VFV20) -> 0 | VGB29: =SUM(VGB11,VGB20) -> 0 | VGH29: =SUM(VGH11,VGH20) -> 0 | VGN29: =SUM(VGN11,VGN20) -> 0 | VGT29: =SUM(VGT11,VGT20) -> 0 | VGZ29: =SUM(VGZ11,VGZ20) -> 0 | VHF29: =SUM(VHF11,VHF20) -> 0 | VHL29: =SUM(VHL11,VHL20) -> 0 | VHR29: =SUM(VHR11,VHR20) -> 0 | VHX29: =SUM(VHX11,VHX20) -> 0 | VID29: =SUM(VID11,VID20) -> 0 | VIJ29: =SUM(VIJ11,VIJ20) -> 0 | VIP29: =SUM(VIP11,VIP20) -> 0 | VIV29: =SUM(VIV11,VIV20) -> 0 | VJB29: =SUM(VJB11,VJB20) -> 0 | VJH29: =SUM(VJH11,VJH20) -> 0 | VJN29: =SUM(VJN11,VJN20) -> 0 | VJT29: =SUM(VJT11,VJT20) -> 0 | VJZ29: =SUM(VJZ11,VJZ20) -> 0 | VKF29: =SUM(VKF11,VKF20) -> 0 | VKL29: =SUM(VKL11,VKL20) -> 0 | VKR29: =SUM(VKR11,VKR20) -> 0 | VKX29: =SUM(VKX11,VKX20) -> 0 | VLD29: =SUM(VLD11,VLD20) -> 0 | VLJ29: =SUM(VLJ11,VLJ20) -> 0 | VLP29: =SUM(VLP11,VLP20) -> 0 | VLV29: =SUM(VLV11,VLV20) -> 0 | VMB29: =SUM(VMB11,VMB20) -> 0 | VMH29: =SUM(VMH11,VMH20) -> 0 | VMN29: =SUM(VMN11,VMN20) -> 0 | VMT29: =SUM(VMT11,VMT20) -> 0 | VMZ29: =SUM(VMZ11,VMZ20) -> 0 | VNF29: =SUM(VNF11,VNF20) -> 0 | VNL29: =SUM(VNL11,VNL20) -> 0 | VNR29: =SUM(VNR11,VNR20) -> 0 | VNX29: =SUM(VNX11,VNX20) -> 0 | VOD29: =SUM(VOD11,VOD20) -> 0 | VOJ29: =SUM(VOJ11,VOJ20) -> 0 | VOP29: =SUM(VOP11,VOP20) -> 0 | VOV29: =SUM(VOV11,VOV20) -> 0 | VPB29: =SUM(VPB11,VPB20) -> 0 | VPH29: =SUM(VPH11,VPH20) -> 0 | VPN29: =SUM(VPN11,VPN20) -> 0 | VPT29: =SUM(VPT11,VPT20) -> 0 | VPZ29: =SUM(VPZ11,VPZ20) -> 0 | VQF29: =SUM(VQF11,VQF20) -> 0 | VQL29: =SUM(VQL11,VQL20) -> 0 | VQR29: =SUM(VQR11,VQR20) -> 0 | VQX29: =SUM(VQX11,VQX20) -> 0 | VRD29: =SUM(VRD11,VRD20) -> 0 | VRJ29: =SUM(VRJ11,VRJ20) -> 0 | VRP29: =SUM(VRP11,VRP20) -> 0 | VRV29: =SUM(VRV11,VRV20) -> 0 | VSB29: =SUM(VSB11,VSB20) -> 0 | VSH29: =SUM(VSH11,VSH20) -> 0 | VSN29: =SUM(VSN11,VSN20) -> 0 | VST29: =SUM(VST11,VST20) -> 0 | VSZ29: =SUM(VSZ11,VSZ20) -> 0 | VTF29: =SUM(VTF11,VTF20) -> 0 | VTL29: =SUM(VTL11,VTL20) -> 0 | VTR29: =SUM(VTR11,VTR20) -> 0 | VTX29: =SUM(VTX11,VTX20) -> 0 | VUD29: =SUM(VUD11,VUD20) -> 0 | VUJ29: =SUM(VUJ11,VUJ20) -> 0 | VUP29: =SUM(VUP11,VUP20) -> 0 | VUV29: =SUM(VUV11,VUV20) -> 0 | VVB29: =SUM(VVB11,VVB20) -> 0 | VVH29: =SUM(VVH11,VVH20) -> 0 | VVN29: =SUM(VVN11,VVN20) -> 0 | VVT29: =SUM(VVT11,VVT20) -> 0 | VVZ29: =SUM(VVZ11,VVZ20) -> 0 | VWF29: =SUM(VWF11,VWF20) -> 0 | VWL29: =SUM(VWL11,VWL20) -> 0 | VWR29: =SUM(VWR11,VWR20) -> 0 | VWX29: =SUM(VWX11,VWX20) -> 0 | VXD29: =SUM(VXD11,VXD20) -> 0 | VXJ29: =SUM(VXJ11,VXJ20) -> 0 | VXP29: =SUM(VXP11,VXP20) -> 0 | VXV29: =SUM(VXV11,VXV20) -> 0 | VYB29: =SUM(VYB11,VYB20) -> 0 | VYH29: =SUM(VYH11,VYH20) -> 0 | VYN29: =SUM(VYN11,VYN20) -> 0 | VYT29: =SUM(VYT11,VYT20) -> 0 | VYZ29: =SUM(VYZ11,VYZ20) -> 0 | VZF29: =SUM(VZF11,VZF20) -> 0 | VZL29: =SUM(VZL11,VZL20) -> 0 | VZR29: =SUM(VZR11,VZR20) -> 0 | VZX29: =SUM(VZX11,VZX20) -> 0 | WAD29: =SUM(WAD11,WAD20) -> 0 | WAJ29: =SUM(WAJ11,WAJ20) -> 0 | WAP29: =SUM(WAP11,WAP20) -> 0 | WAV29: =SUM(WAV11,WAV20) -> 0 | WBB29: =SUM(WBB11,WBB20) -> 0 | WBH29: =SUM(WBH11,WBH20) -> 0 | WBN29: =SUM(WBN11,WBN20) -> 0 | WBT29: =SUM(WBT11,WBT20) -> 0 | WBZ29: =SUM(WBZ11,WBZ20) -> 0 | WCF29: =SUM(WCF11,WCF20) -> 0 | WCL29: =SUM(WCL11,WCL20) -> 0 | WCR29: =SUM(WCR11,WCR20) -> 0 | WCX29: =SUM(WCX11,WCX20) -> 0 | WDD29: =SUM(WDD11,WDD20) -> 0 | WDJ29: =SUM(WDJ11,WDJ20) -> 0 | WDP29: =SUM(WDP11,WDP20) -> 0 | WDV29: =SUM(WDV11,WDV20) -> 0 | WEB29: =SUM(WEB11,WEB20) -> 0 | WEH29: =SUM(WEH11,WEH20) -> 0 | WEN29: =SUM(WEN11,WEN20) -> 0 | WET29: =SUM(WET11,WET20) -> 0 | WEZ29: =SUM(WEZ11,WEZ20) -> 0 | WFF29: =SUM(WFF11,WFF20) -> 0 | WFL29: =SUM(WFL11,WFL20) -> 0 | WFR29: =SUM(WFR11,WFR20) -> 0 | WFX29: =SUM(WFX11,WFX20) -> 0 | WGD29: =SUM(WGD11,WGD20) -> 0 | WGJ29: =SUM(WGJ11,WGJ20) -> 0 | WGP29: =SUM(WGP11,WGP20) -> 0 | WGV29: =SUM(WGV11,WGV20) -> 0 | WHB29: =SUM(WHB11,WHB20) -> 0 | WHH29: =SUM(WHH11,WHH20) -> 0 | WHN29: =SUM(WHN11,WHN20) -> 0 | WHT29: =SUM(WHT11,WHT20) -> 0 | WHZ29: =SUM(WHZ11,WHZ20) -> 0 | WIF29: =SUM(WIF11,WIF20) -> 0 | WIL29: =SUM(WIL11,WIL20) -> 0 | WIR29: =SUM(WIR11,WIR20) -> 0 | WIX29: =SUM(WIX11,WIX20) -> 0 | WJD29: =SUM(WJD11,WJD20) -> 0 | WJJ29: =SUM(WJJ11,WJJ20) -> 0 | WJP29: =SUM(WJP11,WJP20) -> 0 | WJV29: =SUM(WJV11,WJV20) -> 0 | WKB29: =SUM(WKB11,WKB20) -> 0 | WKH29: =SUM(WKH11,WKH20) -> 0 | WKN29: =SUM(WKN11,WKN20) -> 0 | WKT29: =SUM(WKT11,WKT20) -> 0 | WKZ29: =SUM(WKZ11,WKZ20) -> 0 | WLF29: =SUM(WLF11,WLF20) -> 0 | WLL29: =SUM(WLL11,WLL20) -> 0 | WLR29: =SUM(WLR11,WLR20) -> 0 | WLX29: =SUM(WLX11,WLX20) -> 0 | WMD29: =SUM(WMD11,WMD20) -> 0 | WMJ29: =SUM(WMJ11,WMJ20) -> 0 | WMP29: =SUM(WMP11,WMP20) -> 0 | WMV29: =SUM(WMV11,WMV20) -> 0 | WNB29: =SUM(WNB11,WNB20) -> 0 | WNH29: =SUM(WNH11,WNH20) -> 0 | WNN29: =SUM(WNN11,WNN20) -> 0 | WNT29: =SUM(WNT11,WNT20) -> 0 | WNZ29: =SUM(WNZ11,WNZ20) -> 0 | WOF29: =SUM(WOF11,WOF20) -> 0 | WOL29: =SUM(WOL11,WOL20) -> 0 | WOR29: =SUM(WOR11,WOR20) -> 0 | WOX29: =SUM(WOX11,WOX20) -> 0 | WPD29: =SUM(WPD11,WPD20) -> 0 | WPJ29: =SUM(WPJ11,WPJ20) -> 0 | WPP29: =SUM(WPP11,WPP20) -> 0 | WPV29: =SUM(WPV11,WPV20) -> 0 | WQB29: =SUM(WQB11,WQB20) -> 0 | WQH29: =SUM(WQH11,WQH20) -> 0 | WQN29: =SUM(WQN11,WQN20) -> 0 | WQT29: =SUM(WQT11,WQT20) -> 0 | WQZ29: =SUM(WQZ11,WQZ20) -> 0 | WRF29: =SUM(WRF11,WRF20) -> 0 | WRL29: =SUM(WRL11,WRL20) -> 0 | WRR29: =SUM(WRR11,WRR20) -> 0 | WRX29: =SUM(WRX11,WRX20) -> 0 | WSD29: =SUM(WSD11,WSD20) -> 0 | WSJ29: =SUM(WSJ11,WSJ20) -> 0 | WSP29: =SUM(WSP11,WSP20) -> 0 | WSV29: =SUM(WSV11,WSV20) -> 0 | WTB29: =SUM(WTB11,WTB20) -> 0 | WTH29: =SUM(WTH11,WTH20) -> 0 | WTN29: =SUM(WTN11,WTN20) -> 0 | WTT29: =SUM(WTT11,WTT20) -> 0 | WTZ29: =SUM(WTZ11,WTZ20) -> 0 | WUF29: =SUM(WUF11,WUF20) -> 0 | WUL29: =SUM(WUL11,WUL20) -> 0 | WUR29: =SUM(WUR11,WUR20) -> 0 | WUX29: =SUM(WUX11,WUX20) -> 0 | WVD29: =SUM(WVD11,WVD20) -> 0 | WVJ29: =SUM(WVJ11,WVJ20) -> 0 | WVP29: =SUM(WVP11,WVP20) -> 0 | WVV29: =SUM(WVV11,WVV20) -> 0 | WWB29: =SUM(WWB11,WWB20) -> 0 | WWH29: =SUM(WWH11,WWH20) -> 0 | WWN29: =SUM(WWN11,WWN20) -> 0 | WWT29: =SUM(WWT11,WWT20) -> 0 | WWZ29: =SUM(WWZ11,WWZ20) -> 0 | WXF29: =SUM(WXF11,WXF20) -> 0 | WXL29: =SUM(WXL11,WXL20) -> 0 | WXR29: =SUM(WXR11,WXR20) -> 0 | WXX29: =SUM(WXX11,WXX20) -> 0 | WYD29: =SUM(WYD11,WYD20) -> 0 | WYJ29: =SUM(WYJ11,WYJ20) -> 0 | WYP29: =SUM(WYP11,WYP20) -> 0 | WYV29: =SUM(WYV11,WYV20) -> 0 | WZB29: =SUM(WZB11,WZB20) -> 0 | WZH29: =SUM(WZH11,WZH20) -> 0 | WZN29: =SUM(WZN11,WZN20) -> 0 | WZT29: =SUM(WZT11,WZT20) -> 0 | WZZ29: =SUM(WZZ11,WZZ20) -> 0 | XAF29: =SUM(XAF11,XAF20) -> 0 | XAL29: =SUM(XAL11,XAL20) -> 0 | XAR29: =SUM(XAR11,XAR20) -> 0 | XAX29: =SUM(XAX11,XAX20) -> 0 | XBD29: =SUM(XBD11,XBD20) -> 0 | XBJ29: =SUM(XBJ11,XBJ20) -> 0 | XBP29: =SUM(XBP11,XBP20) -> 0 | XBV29: =SUM(XBV11,XBV20) -> 0 | XCB29: =SUM(XCB11,XCB20) -> 0 | XCH29: =SUM(XCH11,XCH20) -> 0 | XCN29: =SUM(XCN11,XCN20) -> 0 | XCT29: =SUM(XCT11,XCT20) -> 0 | XCZ29: =SUM(XCZ11,XCZ20) -> 0 | XDF29: =SUM(XDF11,XDF20) -> 0 | XDL29: =SUM(XDL11,XDL20) -> 0 | XDR29: =SUM(XDR11,XDR20) -> 0 | XDX29: =SUM(XDX11,XDX20) -> 0 | XED29: =SUM(XED11,XED20) -> 0 | XEJ29: =SUM(XEJ11,XEJ20) -> 0 | XEP29: =SUM(XEP11,XEP20) -> 0 | XEV29: =SUM(XEV11,XEV20) -> 0 | XFB29: =SUM(XFB11,XFB20) -> 0
E30: SVE | F30: Closing RCV - Real (Water) | G30: £m | H30: 6326.686135 | N30: 6611.135383 | T30: 6951.867751 | Z30: 7211.831807 | AF30: 7357.738777 | AL30: 0 | AR30: 0 | AX30: 0 | BD30: 0 | BJ30: 0 | BP30: 0 | BV30: 0 | CB30: 0 | CH30: 0 | CN30: 0 | CT30: 0 | CZ30: 0 | DF30: 0 | DL30: 0 | DR30: 0 | DX30: 0 | ED30: 0 | EJ30: 0 | EP30: 0 | EV30: 0 | FB30: 0 | FH30: 0 | FN30: 0 | FT30: 0 | FZ30: 0 | GF30: 0 | GL30: 0 | GR30: 0 | GX30: 0 | HD30: 0 | HJ30: 0 | HP30: 0 | HV30: 0 | IB30: 0 | IH30: 0 | IN30: 0 | IT30: 0 | IZ30: 0 | JF30: 0 | JL30: 0 | JR30: 0 | JX30: 0 | KD30: 0 | KJ30: 0 | KP30: 0 | KV30: 0 | LB30: 0 | LH30: 0 | LN30: 0 | LT30: 0 | LZ30: 0 | MF30: 0 | ML30: 0 | MR30: 0 | MX30: 0 | ND30: 0 | NJ30: 0 | NP30: 0 | NV30: 0 | OB30: 0 | OH30: 0 | ON30: 0 | OT30: 0 | OZ30: 0 | PF30: 0 | PL30: 0 | PR30: 0 | PX30: 0 | QD30: 0 | QJ30: 0 | QP30: 0 | QV30: 0 | RB30: 0 | RH30: 0 | RN30: 0 | RT30: 0 | RZ30: 0 | SF30: 0 | SL30: 0 | SR30: 0 | SX30: 0 | TD30: 0 | TJ30: 0 | TP30: 0 | TV30: 0 | UB30: 0 | UH30: 0 | UN30: 0 | UT30: 0 | UZ30: 0 | VF30: 0 | VL30: 0 | VR30: 0 | VX30: 0 | WD30: 0 | WJ30: 0 | WP30: 0 | WV30: 0 | XB30: 0 | XH30: 0 | XN30: 0 | XT30: 0 | XZ30: 0 | YF30: 0 | YL30: 0 | YR30: 0 | YX30: 0 | ZD30: 0 | ZJ30: 0 | ZP30: 0 | ZV30: 0 | AAB30: 0 | AAH30: 0 | AAN30: 0 | AAT30: 0 | AAZ30: 0 | ABF30: 0 | ABL30: 0 | ABR30: 0 | ABX30: 0 | ACD30: 0 | ACJ30: 0 | ACP30: 0 | ACV30: 0 | ADB30: 0 | ADH30: 0 | ADN30: 0 | ADT30: 0 | ADZ30: 0 | AEF30: 0 | AEL30: 0 | AER30: 0 | AEX30: 0 | AFD30: 0 | AFJ30: 0 | AFP30: 0 | AFV30: 0 | AGB30: 0 | AGH30: 0 | AGN30: 0 | AGT30: 0 | AGZ30: 0 | AHF30: 0 | AHL30: 0 | AHR30: 0 | AHX30: 0 | AID30: 0 | AIJ30: 0 | AIP30: 0 | AIV30: 0 | AJB30: 0 | AJH30: 0 | AJN30: 0 | AJT30: 0 | AJZ30: 0 | AKF30: 0 | AKL30: 0 | AKR30: 0 | AKX30: 0 | ALD30: 0 | ALJ30: 0 | ALP30: 0 | ALV30: 0 | AMB30: 0 | AMH30: 0 | AMN30: 0 | AMT30: 0 | AMZ30: 0 | ANF30: 0 | ANL30: 0 | ANR30: 0 | ANX30: 0 | AOD30: 0 | AOJ30: 0 | AOP30: 0 | AOV30: 0 | APB30: 0 | APH30: 0 | APN30: 0 | APT30: 0 | APZ30: 0 | AQF30: 0 | AQL30: 0 | AQR30: 0 | AQX30: 0 | ARD30: 0 | ARJ30: 0 | ARP30: 0 | ARV30: 0 | ASB30: 0 | ASH30: 0 | ASN30: 0 | AST30: 0 | ASZ30: 0 | ATF30: 0 | ATL30: 0 | ATR30: 0 | ATX30: 0 | AUD30: 0 | AUJ30: 0 | AUP30: 0 | AUV30: 0 | AVB30: 0 | AVH30: 0 | AVN30: 0 | AVT30: 0 | AVZ30: 0 | AWF30: 0 | AWL30: 0 | AWR30: 0 | AWX30: 0 | AXD30: 0 | AXJ30: 0 | AXP30: 0 | AXV30: 0 | AYB30: 0 | AYH30: 0 | AYN30: 0 | AYT30: 0 | AYZ30: 0 | AZF30: 0 | AZL30: 0 | AZR30: 0 | AZX30: 0 | BAD30: 0 | BAJ30: 0 | BAP30: 0 | BAV30: 0 | BBB30: 0 | BBH30: 0 | BBN30: 0 | BBT30: 0 | BBZ30: 0 | BCF30: 0 | BCL30: 0 | BCR30: 0 | BCX30: 0 | BDD30: 0 | BDJ30: 0 | BDP30: 0 | BDV30: 0 | BEB30: 0 | BEH30: 0 | BEN30: 0 | BET30: 0 | BEZ30: 0 | BFF30: 0 | BFL30: 0 | BFR30: 0 | BFX30: 0 | BGD30: 0 | BGJ30: 0 | BGP30: 0 | BGV30: 0 | BHB30: 0 | BHH30: 0 | BHN30: 0 | BHT30: 0 | BHZ30: 0 | BIF30: 0 | BIL30: 0 | BIR30: 0 | BIX30: 0 | BJD30: 0 | BJJ30: 0 | BJP30: 0 | BJV30: 0 | BKB30: 0 | BKH30: 0 | BKN30: 0 | BKT30: 0 | BKZ30: 0 | BLF30: 0 | BLL30: 0 | BLR30: 0 | BLX30: 0 | BMD30: 0 | BMJ30: 0 | BMP30: 0 | BMV30: 0 | BNB30: 0 | BNH30: 0 | BNN30: 0 | BNT30: 0 | BNZ30: 0 | BOF30: 0 | BOL30: 0 | BOR30: 0 | BOX30: 0 | BPD30: 0 | BPJ30: 0 | BPP30: 0 | BPV30: 0 | BQB30: 0 | BQH30: 0 | BQN30: 0 | BQT30: 0 | BQZ30: 0 | BRF30: 0 | BRL30: 0 | BRR30: 0 | BRX30: 0 | BSD30: 0 | BSJ30: 0 | BSP30: 0 | BSV30: 0 | BTB30: 0 | BTH30: 0 | BTN30: 0 | BTT30: 0 | BTZ30: 0 | BUF30: 0 | BUL30: 0 | BUR30: 0 | BUX30: 0 | BVD30: 0 | BVJ30: 0 | BVP30: 0 | BVV30: 0 | BWB30: 0 | BWH30: 0 | BWN30: 0 | BWT30: 0 | BWZ30: 0 | BXF30: 0 | BXL30: 0 | BXR30: 0 | BXX30: 0 | BYD30: 0 | BYJ30: 0 | BYP30: 0 | BYV30: 0 | BZB30: 0 | BZH30: 0 | BZN30: 0 | BZT30: 0 | BZZ30: 0 | CAF30: 0 | CAL30: 0 | CAR30: 0 | CAX30: 0 | CBD30: 0 | CBJ30: 0 | CBP30: 0 | CBV30: 0 | CCB30: 0 | CCH30: 0 | CCN30: 0 | CCT30: 0 | CCZ30: 0 | CDF30: 0 | CDL30: 0 | CDR30: 0 | CDX30: 0 | CED30: 0 | CEJ30: 0 | CEP30: 0 | CEV30: 0 | CFB30: 0 | CFH30: 0 | CFN30: 0 | CFT30: 0 | CFZ30: 0 | CGF30: 0 | CGL30: 0 | CGR30: 0 | CGX30: 0 | CHD30: 0 | CHJ30: 0 | CHP30: 0 | CHV30: 0 | CIB30: 0 | CIH30: 0 | CIN30: 0 | CIT30: 0 | CIZ30: 0 | CJF30: 0 | CJL30: 0 | CJR30: 0 | CJX30: 0 | CKD30: 0 | CKJ30: 0 | CKP30: 0 | CKV30: 0 | CLB30: 0 | CLH30: 0 | CLN30: 0 | CLT30: 0 | CLZ30: 0 | CMF30: 0 | CML30: 0 | CMR30: 0 | CMX30: 0 | CND30: 0 | CNJ30: 0 | CNP30: 0 | CNV30: 0 | COB30: 0 | COH30: 0 | CON30: 0 | COT30: 0 | COZ30: 0 | CPF30: 0 | CPL30: 0 | CPR30: 0 | CPX30: 0 | CQD30: 0 | CQJ30: 0 | CQP30: 0 | CQV30: 0 | CRB30: 0 | CRH30: 0 | CRN30: 0 | CRT30: 0 | CRZ30: 0 | CSF30: 0 | CSL30: 0 | CSR30: 0 | CSX30: 0 | CTD30: 0 | CTJ30: 0 | CTP30: 0 | CTV30: 0 | CUB30: 0 | CUH30: 0 | CUN30: 0 | CUT30: 0 | CUZ30: 0 | CVF30: 0 | CVL30: 0 | CVR30: 0 | CVX30: 0 | CWD30: 0 | CWJ30: 0 | CWP30: 0 | CWV30: 0 | CXB30: 0 | CXH30: 0 | CXN30: 0 | CXT30: 0 | CXZ30: 0 | CYF30: 0 | CYL30: 0 | CYR30: 0 | CYX30: 0 | CZD30: 0 | CZJ30: 0 | CZP30: 0 | CZV30: 0 | DAB30: 0 | DAH30: 0 | DAN30: 0 | DAT30: 0 | DAZ30: 0 | DBF30: 0 | DBL30: 0 | DBR30: 0 | DBX30: 0 | DCD30: 0 | DCJ30: 0 | DCP30: 0 | DCV30: 0 | DDB30: 0 | DDH30: 0 | DDN30: 0 | DDT30: 0 | DDZ30: 0 | DEF30: 0 | DEL30: 0 | DER30: 0 | DEX30: 0 | DFD30: 0 | DFJ30: 0 | DFP30: 0 | DFV30: 0 | DGB30: 0 | DGH30: 0 | DGN30: 0 | DGT30: 0 | DGZ30: 0 | DHF30: 0 | DHL30: 0 | DHR30: 0 | DHX30: 0 | DID30: 0 | DIJ30: 0 | DIP30: 0 | DIV30: 0 | DJB30: 0 | DJH30: 0 | DJN30: 0 | DJT30: 0 | DJZ30: 0 | DKF30: 0 | DKL30: 0 | DKR30: 0 | DKX30: 0 | DLD30: 0 | DLJ30: 0 | DLP30: 0 | DLV30: 0 | DMB30: 0 | DMH30: 0 | DMN30: 0 | DMT30: 0 | DMZ30: 0 | DNF30: 0 | DNL30: 0 | DNR30: 0 | DNX30: 0 | DOD30: 0 | DOJ30: 0 | DOP30: 0 | DOV30: 0 | DPB30: 0 | DPH30: 0 | DPN30: 0 | DPT30: 0 | DPZ30: 0 | DQF30: 0 | DQL30: 0 | DQR30: 0 | DQX30: 0 | DRD30: 0 | DRJ30: 0 | DRP30: 0 | DRV30: 0 | DSB30: 0 | DSH30: 0 | DSN30: 0 | DST30: 0 | DSZ30: 0 | DTF30: 0 | DTL30: 0 | DTR30: 0 | DTX30: 0 | DUD30: 0 | DUJ30: 0 | DUP30: 0 | DUV30: 0 | DVB30: 0 | DVH30: 0 | DVN30: 0 | DVT30: 0 | DVZ30: 0 | DWF30: 0 | DWL30: 0 | DWR30: 0 | DWX30: 0 | DXD30: 0 | DXJ30: 0 | DXP30: 0 | DXV30: 0 | DYB30: 0 | DYH30: 0 | DYN30: 0 | DYT30: 0 | DYZ30: 0 | DZF30: 0 | DZL30: 0 | DZR30: 0 | DZX30: 0 | EAD30: 0 | EAJ30: 0 | EAP30: 0 | EAV30: 0 | EBB30: 0 | EBH30: 0 | EBN30: 0 | EBT30: 0 | EBZ30: 0 | ECF30: 0 | ECL30: 0 | ECR30: 0 | ECX30: 0 | EDD30: 0 | EDJ30: 0 | EDP30: 0 | EDV30: 0 | EEB30: 0 | EEH30: 0 | EEN30: 0 | EET30: 0 | EEZ30: 0 | EFF30: 0 | EFL30: 0 | EFR30: 0 | EFX30: 0 | EGD30: 0 | EGJ30: 0 | EGP30: 0 | EGV30: 0 | EHB30: 0 | EHH30: 0 | EHN30: 0 | EHT30: 0 | EHZ30: 0 | EIF30: 0 | EIL30: 0 | EIR30: 0 | EIX30: 0 | EJD30: 0 | EJJ30: 0 | EJP30: 0 | EJV30: 0 | EKB30: 0 | EKH30: 0 | EKN30: 0 | EKT30: 0 | EKZ30: 0 | ELF30: 0 | ELL30: 0 | ELR30: 0 | ELX30: 0 | EMD30: 0 | EMJ30: 0 | EMP30: 0 | EMV30: 0 | ENB30: 0 | ENH30: 0 | ENN30: 0 | ENT30: 0 | ENZ30: 0 | EOF30: 0 | EOL30: 0 | EOR30: 0 | EOX30: 0 | EPD30: 0 | EPJ30: 0 | EPP30: 0 | EPV30: 0 | EQB30: 0 | EQH30: 0 | EQN30: 0 | EQT30: 0 | EQZ30: 0 | ERF30: 0 | ERL30: 0 | ERR30: 0 | ERX30: 0 | ESD30: 0 | ESJ30: 0 | ESP30: 0 | ESV30: 0 | ETB30: 0 | ETH30: 0 | ETN30: 0 | ETT30: 0 | ETZ30: 0 | EUF30: 0 | EUL30: 0 | EUR30: 0 | EUX30: 0 | EVD30: 0 | EVJ30: 0 | EVP30: 0 | EVV30: 0 | EWB30: 0 | EWH30: 0 | EWN30: 0 | EWT30: 0 | EWZ30: 0 | EXF30: 0 | EXL30: 0 | EXR30: 0 | EXX30: 0 | EYD30: 0 | EYJ30: 0 | EYP30: 0 | EYV30: 0 | EZB30: 0 | EZH30: 0 | EZN30: 0 | EZT30: 0 | EZZ30: 0 | FAF30: 0 | FAL30: 0 | FAR30: 0 | FAX30: 0 | FBD30: 0 | FBJ30: 0 | FBP30: 0 | FBV30: 0 | FCB30: 0 | FCH30: 0 | FCN30: 0 | FCT30: 0 | FCZ30: 0 | FDF30: 0 | FDL30: 0 | FDR30: 0 | FDX30: 0 | FED30: 0 | FEJ30: 0 | FEP30: 0 | FEV30: 0 | FFB30: 0 | FFH30: 0 | FFN30: 0 | FFT30: 0 | FFZ30: 0 | FGF30: 0 | FGL30: 0 | FGR30: 0 | FGX30: 0 | FHD30: 0 | FHJ30: 0 | FHP30: 0 | FHV30: 0 | FIB30: 0 | FIH30: 0 | FIN30: 0 | FIT30: 0 | FIZ30: 0 | FJF30: 0 | FJL30: 0 | FJR30: 0 | FJX30: 0 | FKD30: 0 | FKJ30: 0 | FKP30: 0 | FKV30: 0 | FLB30: 0 | FLH30: 0 | FLN30: 0 | FLT30: 0 | FLZ30: 0 | FMF30: 0 | FML30: 0 | FMR30: 0 | FMX30: 0 | FND30: 0 | FNJ30: 0 | FNP30: 0 | FNV30: 0 | FOB30: 0 | FOH30: 0 | FON30: 0 | FOT30: 0 | FOZ30: 0 | FPF30: 0 | FPL30: 0 | FPR30: 0 | FPX30: 0 | FQD30: 0 | FQJ30: 0 | FQP30: 0 | FQV30: 0 | FRB30: 0 | FRH30: 0 | FRN30: 0 | FRT30: 0 | FRZ30: 0 | FSF30: 0 | FSL30: 0 | FSR30: 0 | FSX30: 0 | FTD30: 0 | FTJ30: 0 | FTP30: 0 | FTV30: 0 | FUB30: 0 | FUH30: 0 | FUN30: 0 | FUT30: 0 | FUZ30: 0 | FVF30: 0 | FVL30: 0 | FVR30: 0 | FVX30: 0 | FWD30: 0 | FWJ30: 0 | FWP30: 0 | FWV30: 0 | FXB30: 0 | FXH30: 0 | FXN30: 0 | FXT30: 0 | FXZ30: 0 | FYF30: 0 | FYL30: 0 | FYR30: 0 | FYX30: 0 | FZD30: 0 | FZJ30: 0 | FZP30: 0 | FZV30: 0 | GAB30: 0 | GAH30: 0 | GAN30: 0 | GAT30: 0 | GAZ30: 0 | GBF30: 0 | GBL30: 0 | GBR30: 0 | GBX30: 0 | GCD30: 0 | GCJ30: 0 | GCP30: 0 | GCV30: 0 | GDB30: 0 | GDH30: 0 | GDN30: 0 | GDT30: 0 | GDZ30: 0 | GEF30: 0 | GEL30: 0 | GER30: 0 | GEX30: 0 | GFD30: 0 | GFJ30: 0 | GFP30: 0 | GFV30: 0 | GGB30: 0 | GGH30: 0 | GGN30: 0 | GGT30: 0 | GGZ30: 0 | GHF30: 0 | GHL30: 0 | GHR30: 0 | GHX30: 0 | GID30: 0 | GIJ30: 0 | GIP30: 0 | GIV30: 0 | GJB30: 0 | GJH30: 0 | GJN30: 0 | GJT30: 0 | GJZ30: 0 | GKF30: 0 | GKL30: 0 | GKR30: 0 | GKX30: 0 | GLD30: 0 | GLJ30: 0 | GLP30: 0 | GLV30: 0 | GMB30: 0 | GMH30: 0 | GMN30: 0 | GMT30: 0 | GMZ30: 0 | GNF30: 0 | GNL30: 0 | GNR30: 0 | GNX30: 0 | GOD30: 0 | GOJ30: 0 | GOP30: 0 | GOV30: 0 | GPB30: 0 | GPH30: 0 | GPN30: 0 | GPT30: 0 | GPZ30: 0 | GQF30: 0 | GQL30: 0 | GQR30: 0 | GQX30: 0 | GRD30: 0 | GRJ30: 0 | GRP30: 0 | GRV30: 0 | GSB30: 0 | GSH30: 0 | GSN30: 0 | GST30: 0 | GSZ30: 0 | GTF30: 0 | GTL30: 0 | GTR30: 0 | GTX30: 0 | GUD30: 0 | GUJ30: 0 | GUP30: 0 | GUV30: 0 | GVB30: 0 | GVH30: 0 | GVN30: 0 | GVT30: 0 | GVZ30: 0 | GWF30: 0 | GWL30: 0 | GWR30: 0 | GWX30: 0 | GXD30: 0 | GXJ30: 0 | GXP30: 0 | GXV30: 0 | GYB30: 0 | GYH30: 0 | GYN30: 0 | GYT30: 0 | GYZ30: 0 | GZF30: 0 | GZL30: 0 | GZR30: 0 | GZX30: 0 | HAD30: 0 | HAJ30: 0 | HAP30: 0 | HAV30: 0 | HBB30: 0 | HBH30: 0 | HBN30: 0 | HBT30: 0 | HBZ30: 0 | HCF30: 0 | HCL30: 0 | HCR30: 0 | HCX30: 0 | HDD30: 0 | HDJ30: 0 | HDP30: 0 | HDV30: 0 | HEB30: 0 | HEH30: 0 | HEN30: 0 | HET30: 0 | HEZ30: 0 | HFF30: 0 | HFL30: 0 | HFR30: 0 | HFX30: 0 | HGD30: 0 | HGJ30: 0 | HGP30: 0 | HGV30: 0 | HHB30: 0 | HHH30: 0 | HHN30: 0 | HHT30: 0 | HHZ30: 0 | HIF30: 0 | HIL30: 0 | HIR30: 0 | HIX30: 0 | HJD30: 0 | HJJ30: 0 | HJP30: 0 | HJV30: 0 | HKB30: 0 | HKH30: 0 | HKN30: 0 | HKT30: 0 | HKZ30: 0 | HLF30: 0 | HLL30: 0 | HLR30: 0 | HLX30: 0 | HMD30: 0 | HMJ30: 0 | HMP30: 0 | HMV30: 0 | HNB30: 0 | HNH30: 0 | HNN30: 0 | HNT30: 0 | HNZ30: 0 | HOF30: 0 | HOL30: 0 | HOR30: 0 | HOX30: 0 | HPD30: 0 | HPJ30: 0 | HPP30: 0 | HPV30: 0 | HQB30: 0 | HQH30: 0 | HQN30: 0 | HQT30: 0 | HQZ30: 0 | HRF30: 0 | HRL30: 0 | HRR30: 0 | HRX30: 0 | HSD30: 0 | HSJ30: 0 | HSP30: 0 | HSV30: 0 | HTB30: 0 | HTH30: 0 | HTN30: 0 | HTT30: 0 | HTZ30: 0 | HUF30: 0 | HUL30: 0 | HUR30: 0 | HUX30: 0 | HVD30: 0 | HVJ30: 0 | HVP30: 0 | HVV30: 0 | HWB30: 0 | HWH30: 0 | HWN30: 0 | HWT30: 0 | HWZ30: 0 | HXF30: 0 | HXL30: 0 | HXR30: 0 | HXX30: 0 | HYD30: 0 | HYJ30: 0 | HYP30: 0 | HYV30: 0 | HZB30: 0 | HZH30: 0 | HZN30: 0 | HZT30: 0 | HZZ30: 0 | IAF30: 0 | IAL30: 0 | IAR30: 0 | IAX30: 0 | IBD30: 0 | IBJ30: 0 | IBP30: 0 | IBV30: 0 | ICB30: 0 | ICH30: 0 | ICN30: 0 | ICT30: 0 | ICZ30: 0 | IDF30: 0 | IDL30: 0 | IDR30: 0 | IDX30: 0 | IED30: 0 | IEJ30: 0 | IEP30: 0 | IEV30: 0 | IFB30: 0 | IFH30: 0 | IFN30: 0 | IFT30: 0 | IFZ30: 0 | IGF30: 0 | IGL30: 0 | IGR30: 0 | IGX30: 0 | IHD30: 0 | IHJ30: 0 | IHP30: 0 | IHV30: 0 | IIB30: 0 | IIH30: 0 | IIN30: 0 | IIT30: 0 | IIZ30: 0 | IJF30: 0 | IJL30: 0 | IJR30: 0 | IJX30: 0 | IKD30: 0 | IKJ30: 0 | IKP30: 0 | IKV30: 0 | ILB30: 0 | ILH30: 0 | ILN30: 0 | ILT30: 0 | ILZ30: 0 | IMF30: 0 | IML30: 0 | IMR30: 0 | IMX30: 0 | IND30: 0 | INJ30: 0 | INP30: 0 | INV30: 0 | IOB30: 0 | IOH30: 0 | ION30: 0 | IOT30: 0 | IOZ30: 0 | IPF30: 0 | IPL30: 0 | IPR30: 0 | IPX30: 0 | IQD30: 0 | IQJ30: 0 | IQP30: 0 | IQV30: 0 | IRB30: 0 | IRH30: 0 | IRN30: 0 | IRT30: 0 | IRZ30: 0 | ISF30: 0 | ISL30: 0 | ISR30: 0 | ISX30: 0 | ITD30: 0 | ITJ30: 0 | ITP30: 0 | ITV30: 0 | IUB30: 0 | IUH30: 0 | IUN30: 0 | IUT30: 0 | IUZ30: 0 | IVF30: 0 | IVL30: 0 | IVR30: 0 | IVX30: 0 | IWD30: 0 | IWJ30: 0 | IWP30: 0 | IWV30: 0 | IXB30: 0 | IXH30: 0 | IXN30: 0 | IXT30: 0 | IXZ30: 0 | IYF30: 0 | IYL30: 0 | IYR30: 0 | IYX30: 0 | IZD30: 0 | IZJ30: 0 | IZP30: 0 | IZV30: 0 | JAB30: 0 | JAH30: 0 | JAN30: 0 | JAT30: 0 | JAZ30: 0 | JBF30: 0 | JBL30: 0 | JBR30: 0 | JBX30: 0 | JCD30: 0 | JCJ30: 0 | JCP30: 0 | JCV30: 0 | JDB30: 0 | JDH30: 0 | JDN30: 0 | JDT30: 0 | JDZ30: 0 | JEF30: 0 | JEL30: 0 | JER30: 0 | JEX30: 0 | JFD30: 0 | JFJ30: 0 | JFP30: 0 | JFV30: 0 | JGB30: 0 | JGH30: 0 | JGN30: 0 | JGT30: 0 | JGZ30: 0 | JHF30: 0 | JHL30: 0 | JHR30: 0 | JHX30: 0 | JID30: 0 | JIJ30: 0 | JIP30: 0 | JIV30: 0 | JJB30: 0 | JJH30: 0 | JJN30: 0 | JJT30: 0 | JJZ30: 0 | JKF30: 0 | JKL30: 0 | JKR30: 0 | JKX30: 0 | JLD30: 0 | JLJ30: 0 | JLP30: 0 | JLV30: 0 | JMB30: 0 | JMH30: 0 | JMN30: 0 | JMT30: 0 | JMZ30: 0 | JNF30: 0 | JNL30: 0 | JNR30: 0 | JNX30: 0 | JOD30: 0 | JOJ30: 0 | JOP30: 0 | JOV30: 0 | JPB30: 0 | JPH30: 0 | JPN30: 0 | JPT30: 0 | JPZ30: 0 | JQF30: 0 | JQL30: 0 | JQR30: 0 | JQX30: 0 | JRD30: 0 | JRJ30: 0 | JRP30: 0 | JRV30: 0 | JSB30: 0 | JSH30: 0 | JSN30: 0 | JST30: 0 | JSZ30: 0 | JTF30: 0 | JTL30: 0 | JTR30: 0 | JTX30: 0 | JUD30: 0 | JUJ30: 0 | JUP30: 0 | JUV30: 0 | JVB30: 0 | JVH30: 0 | JVN30: 0 | JVT30: 0 | JVZ30: 0 | JWF30: 0 | JWL30: 0 | JWR30: 0 | JWX30: 0 | JXD30: 0 | JXJ30: 0 | JXP30: 0 | JXV30: 0 | JYB30: 0 | JYH30: 0 | JYN30: 0 | JYT30: 0 | JYZ30: 0 | JZF30: 0 | JZL30: 0 | JZR30: 0 | JZX30: 0 | KAD30: 0 | KAJ30: 0 | KAP30: 0 | KAV30: 0 | KBB30: 0 | KBH30: 0 | KBN30: 0 | KBT30: 0 | KBZ30: 0 | KCF30: 0 | KCL30: 0 | KCR30: 0 | KCX30: 0 | KDD30: 0 | KDJ30: 0 | KDP30: 0 | KDV30: 0 | KEB30: 0 | KEH30: 0 | KEN30: 0 | KET30: 0 | KEZ30: 0 | KFF30: 0 | KFL30: 0 | KFR30: 0 | KFX30: 0 | KGD30: 0 | KGJ30: 0 | KGP30: 0 | KGV30: 0 | KHB30: 0 | KHH30: 0 | KHN30: 0 | KHT30: 0 | KHZ30: 0 | KIF30: 0 | KIL30: 0 | KIR30: 0 | KIX30: 0 | KJD30: 0 | KJJ30: 0 | KJP30: 0 | KJV30: 0 | KKB30: 0 | KKH30: 0 | KKN30: 0 | KKT30: 0 | KKZ30: 0 | KLF30: 0 | KLL30: 0 | KLR30: 0 | KLX30: 0 | KMD30: 0 | KMJ30: 0 | KMP30: 0 | KMV30: 0 | KNB30: 0 | KNH30: 0 | KNN30: 0 | KNT30: 0 | KNZ30: 0 | KOF30: 0 | KOL30: 0 | KOR30: 0 | KOX30: 0 | KPD30: 0 | KPJ30: 0 | KPP30: 0 | KPV30: 0 | KQB30: 0 | KQH30: 0 | KQN30: 0 | KQT30: 0 | KQZ30: 0 | KRF30: 0 | KRL30: 0 | KRR30: 0 | KRX30: 0 | KSD30: 0 | KSJ30: 0 | KSP30: 0 | KSV30: 0 | KTB30: 0 | KTH30: 0 | KTN30: 0 | KTT30: 0 | KTZ30: 0 | KUF30: 0 | KUL30: 0 | KUR30: 0 | KUX30: 0 | KVD30: 0 | KVJ30: 0 | KVP30: 0 | KVV30: 0 | KWB30: 0 | KWH30: 0 | KWN30: 0 | KWT30: 0 | KWZ30: 0 | KXF30: 0 | KXL30: 0 | KXR30: 0 | KXX30: 0 | KYD30: 0 | KYJ30: 0 | KYP30: 0 | KYV30: 0 | KZB30: 0 | KZH30: 0 | KZN30: 0 | KZT30: 0 | KZZ30: 0 | LAF30: 0 | LAL30: 0 | LAR30: 0 | LAX30: 0 | LBD30: 0 | LBJ30: 0 | LBP30: 0 | LBV30: 0 | LCB30: 0 | LCH30: 0 | LCN30: 0 | LCT30: 0 | LCZ30: 0 | LDF30: 0 | LDL30: 0 | LDR30: 0 | LDX30: 0 | LED30: 0 | LEJ30: 0 | LEP30: 0 | LEV30: 0 | LFB30: 0 | LFH30: 0 | LFN30: 0 | LFT30: 0 | LFZ30: 0 | LGF30: 0 | LGL30: 0 | LGR30: 0 | LGX30: 0 | LHD30: 0 | LHJ30: 0 | LHP30: 0 | LHV30: 0 | LIB30: 0 | LIH30: 0 | LIN30: 0 | LIT30: 0 | LIZ30: 0 | LJF30: 0 | LJL30: 0 | LJR30: 0 | LJX30: 0 | LKD30: 0 | LKJ30: 0 | LKP30: 0 | LKV30: 0 | LLB30: 0 | LLH30: 0 | LLN30: 0 | LLT30: 0 | LLZ30: 0 | LMF30: 0 | LML30: 0 | LMR30: 0 | LMX30: 0 | LND30: 0 | LNJ30: 0 | LNP30: 0 | LNV30: 0 | LOB30: 0 | LOH30: 0 | LON30: 0 | LOT30: 0 | LOZ30: 0 | LPF30: 0 | LPL30: 0 | LPR30: 0 | LPX30: 0 | LQD30: 0 | LQJ30: 0 | LQP30: 0 | LQV30: 0 | LRB30: 0 | LRH30: 0 | LRN30: 0 | LRT30: 0 | LRZ30: 0 | LSF30: 0 | LSL30: 0 | LSR30: 0 | LSX30: 0 | LTD30: 0 | LTJ30: 0 | LTP30: 0 | LTV30: 0 | LUB30: 0 | LUH30: 0 | LUN30: 0 | LUT30: 0 | LUZ30: 0 | LVF30: 0 | LVL30: 0 | LVR30: 0 | LVX30: 0 | LWD30: 0 | LWJ30: 0 | LWP30: 0 | LWV30: 0 | LXB30: 0 | LXH30: 0 | LXN30: 0 | LXT30: 0 | LXZ30: 0 | LYF30: 0 | LYL30: 0 | LYR30: 0 | LYX30: 0 | LZD30: 0 | LZJ30: 0 | LZP30: 0 | LZV30: 0 | MAB30: 0 | MAH30: 0 | MAN30: 0 | MAT30: 0 | MAZ30: 0 | MBF30: 0 | MBL30: 0 | MBR30: 0 | MBX30: 0 | MCD30: 0 | MCJ30: 0 | MCP30: 0 | MCV30: 0 | MDB30: 0 | MDH30: 0 | MDN30: 0 | MDT30: 0 | MDZ30: 0 | MEF30: 0 | MEL30: 0 | MER30: 0 | MEX30: 0 | MFD30: 0 | MFJ30: 0 | MFP30: 0 | MFV30: 0 | MGB30: 0 | MGH30: 0 | MGN30: 0 | MGT30: 0 | MGZ30: 0 | MHF30: 0 | MHL30: 0 | MHR30: 0 | MHX30: 0 | MID30: 0 | MIJ30: 0 | MIP30: 0 | MIV30: 0 | MJB30: 0 | MJH30: 0 | MJN30: 0 | MJT30: 0 | MJZ30: 0 | MKF30: 0 | MKL30: 0 | MKR30: 0 | MKX30: 0 | MLD30: 0 | MLJ30: 0 | MLP30: 0 | MLV30: 0 | MMB30: 0 | MMH30: 0 | MMN30: 0 | MMT30: 0 | MMZ30: 0 | MNF30: 0 | MNL30: 0 | MNR30: 0 | MNX30: 0 | MOD30: 0 | MOJ30: 0 | MOP30: 0 | MOV30: 0 | MPB30: 0 | MPH30: 0 | MPN30: 0 | MPT30: 0 | MPZ30: 0 | MQF30: 0 | MQL30: 0 | MQR30: 0 | MQX30: 0 | MRD30: 0 | MRJ30: 0 | MRP30: 0 | MRV30: 0 | MSB30: 0 | MSH30: 0 | MSN30: 0 | MST30: 0 | MSZ30: 0 | MTF30: 0 | MTL30: 0 | MTR30: 0 | MTX30: 0 | MUD30: 0 | MUJ30: 0 | MUP30: 0 | MUV30: 0 | MVB30: 0 | MVH30: 0 | MVN30: 0 | MVT30: 0 | MVZ30: 0 | MWF30: 0 | MWL30: 0 | MWR30: 0 | MWX30: 0 | MXD30: 0 | MXJ30: 0 | MXP30: 0 | MXV30: 0 | MYB30: 0 | MYH30: 0 | MYN30: 0 | MYT30: 0 | MYZ30: 0 | MZF30: 0 | MZL30: 0 | MZR30: 0 | MZX30: 0 | NAD30: 0 | NAJ30: 0 | NAP30: 0 | NAV30: 0 | NBB30: 0 | NBH30: 0 | NBN30: 0 | NBT30: 0 | NBZ30: 0 | NCF30: 0 | NCL30: 0 | NCR30: 0 | NCX30: 0 | NDD30: 0 | NDJ30: 0 | NDP30: 0 | NDV30: 0 | NEB30: 0 | NEH30: 0 | NEN30: 0 | NET30: 0 | NEZ30: 0 | NFF30: 0 | NFL30: 0 | NFR30: 0 | NFX30: 0 | NGD30: 0 | NGJ30: 0 | NGP30: 0 | NGV30: 0 | NHB30: 0 | NHH30: 0 | NHN30: 0 | NHT30: 0 | NHZ30: 0 | NIF30: 0 | NIL30: 0 | NIR30: 0 | NIX30: 0 | NJD30: 0 | NJJ30: 0 | NJP30: 0 | NJV30: 0 | NKB30: 0 | NKH30: 0 | NKN30: 0 | NKT30: 0 | NKZ30: 0 | NLF30: 0 | NLL30: 0 | NLR30: 0 | NLX30: 0 | NMD30: 0 | NMJ30: 0 | NMP30: 0 | NMV30: 0 | NNB30: 0 | NNH30: 0 | NNN30: 0 | NNT30: 0 | NNZ30: 0 | NOF30: 0 | NOL30: 0 | NOR30: 0 | NOX30: 0 | NPD30: 0 | NPJ30: 0 | NPP30: 0 | NPV30: 0 | NQB30: 0 | NQH30: 0 | NQN30: 0 | NQT30: 0 | NQZ30: 0 | NRF30: 0 | NRL30: 0 | NRR30: 0 | NRX30: 0 | NSD30: 0 | NSJ30: 0 | NSP30: 0 | NSV30: 0 | NTB30: 0 | NTH30: 0 | NTN30: 0 | NTT30: 0 | NTZ30: 0 | NUF30: 0 | NUL30: 0 | NUR30: 0 | NUX30: 0 | NVD30: 0 | NVJ30: 0 | NVP30: 0 | NVV30: 0 | NWB30: 0 | NWH30: 0 | NWN30: 0 | NWT30: 0 | NWZ30: 0 | NXF30: 0 | NXL30: 0 | NXR30: 0 | NXX30: 0 | NYD30: 0 | NYJ30: 0 | NYP30: 0 | NYV30: 0 | NZB30: 0 | NZH30: 0 | NZN30: 0 | NZT30: 0 | NZZ30: 0 | OAF30: 0 | OAL30: 0 | OAR30: 0 | OAX30: 0 | OBD30: 0 | OBJ30: 0 | OBP30: 0 | OBV30: 0 | OCB30: 0 | OCH30: 0 | OCN30: 0 | OCT30: 0 | OCZ30: 0 | ODF30: 0 | ODL30: 0 | ODR30: 0 | ODX30: 0 | OED30: 0 | OEJ30: 0 | OEP30: 0 | OEV30: 0 | OFB30: 0 | OFH30: 0 | OFN30: 0 | OFT30: 0 | OFZ30: 0 | OGF30: 0 | OGL30: 0 | OGR30: 0 | OGX30: 0 | OHD30: 0 | OHJ30: 0 | OHP30: 0 | OHV30: 0 | OIB30: 0 | OIH30: 0 | OIN30: 0 | OIT30: 0 | OIZ30: 0 | OJF30: 0 | OJL30: 0 | OJR30: 0 | OJX30: 0 | OKD30: 0 | OKJ30: 0 | OKP30: 0 | OKV30: 0 | OLB30: 0 | OLH30: 0 | OLN30: 0 | OLT30: 0 | OLZ30: 0 | OMF30: 0 | OML30: 0 | OMR30: 0 | OMX30: 0 | OND30: 0 | ONJ30: 0 | ONP30: 0 | ONV30: 0 | OOB30: 0 | OOH30: 0 | OON30: 0 | OOT30: 0 | OOZ30: 0 | OPF30: 0 | OPL30: 0 | OPR30: 0 | OPX30: 0 | OQD30: 0 | OQJ30: 0 | OQP30: 0 | OQV30: 0 | ORB30: 0 | ORH30: 0 | ORN30: 0 | ORT30: 0 | ORZ30: 0 | OSF30: 0 | OSL30: 0 | OSR30: 0 | OSX30: 0 | OTD30: 0 | OTJ30: 0 | OTP30: 0 | OTV30: 0 | OUB30: 0 | OUH30: 0 | OUN30: 0 | OUT30: 0 | OUZ30: 0 | OVF30: 0 | OVL30: 0 | OVR30: 0 | OVX30: 0 | OWD30: 0 | OWJ30: 0 | OWP30: 0 | OWV30: 0 | OXB30: 0 | OXH30: 0 | OXN30: 0 | OXT30: 0 | OXZ30: 0 | OYF30: 0 | OYL30: 0 | OYR30: 0 | OYX30: 0 | OZD30: 0 | OZJ30: 0 | OZP30: 0 | OZV30: 0 | PAB30: 0 | PAH30: 0 | PAN30: 0 | PAT30: 0 | PAZ30: 0 | PBF30: 0 | PBL30: 0 | PBR30: 0 | PBX30: 0 | PCD30: 0 | PCJ30: 0 | PCP30: 0 | PCV30: 0 | PDB30: 0 | PDH30: 0 | PDN30: 0 | PDT30: 0 | PDZ30: 0 | PEF30: 0 | PEL30: 0 | PER30: 0 | PEX30: 0 | PFD30: 0 | PFJ30: 0 | PFP30: 0 | PFV30: 0 | PGB30: 0 | PGH30: 0 | PGN30: 0 | PGT30: 0 | PGZ30: 0 | PHF30: 0 | PHL30: 0 | PHR30: 0 | PHX30: 0 | PID30: 0 | PIJ30: 0 | PIP30: 0 | PIV30: 0 | PJB30: 0 | PJH30: 0 | PJN30: 0 | PJT30: 0 | PJZ30: 0 | PKF30: 0 | PKL30: 0 | PKR30: 0 | PKX30: 0 | PLD30: 0 | PLJ30: 0 | PLP30: 0 | PLV30: 0 | PMB30: 0 | PMH30: 0 | PMN30: 0 | PMT30: 0 | PMZ30: 0 | PNF30: 0 | PNL30: 0 | PNR30: 0 | PNX30: 0 | POD30: 0 | POJ30: 0 | POP30: 0 | POV30: 0 | PPB30: 0 | PPH30: 0 | PPN30: 0 | PPT30: 0 | PPZ30: 0 | PQF30: 0 | PQL30: 0 | PQR30: 0 | PQX30: 0 | PRD30: 0 | PRJ30: 0 | PRP30: 0 | PRV30: 0 | PSB30: 0 | PSH30: 0 | PSN30: 0 | PST30: 0 | PSZ30: 0 | PTF30: 0 | PTL30: 0 | PTR30: 0 | PTX30: 0 | PUD30: 0 | PUJ30: 0 | PUP30: 0 | PUV30: 0 | PVB30: 0 | PVH30: 0 | PVN30: 0 | PVT30: 0 | PVZ30: 0 | PWF30: 0 | PWL30: 0 | PWR30: 0 | PWX30: 0 | PXD30: 0 | PXJ30: 0 | PXP30: 0 | PXV30: 0 | PYB30: 0 | PYH30: 0 | PYN30: 0 | PYT30: 0 | PYZ30: 0 | PZF30: 0 | PZL30: 0 | PZR30: 0 | PZX30: 0 | QAD30: 0 | QAJ30: 0 | QAP30: 0 | QAV30: 0 | QBB30: 0 | QBH30: 0 | QBN30: 0 | QBT30: 0 | QBZ30: 0 | QCF30: 0 | QCL30: 0 | QCR30: 0 | QCX30: 0 | QDD30: 0 | QDJ30: 0 | QDP30: 0 | QDV30: 0 | QEB30: 0 | QEH30: 0 | QEN30: 0 | QET30: 0 | QEZ30: 0 | QFF30: 0 | QFL30: 0 | QFR30: 0 | QFX30: 0 | QGD30: 0 | QGJ30: 0 | QGP30: 0 | QGV30: 0 | QHB30: 0 | QHH30: 0 | QHN30: 0 | QHT30: 0 | QHZ30: 0 | QIF30: 0 | QIL30: 0 | QIR30: 0 | QIX30: 0 | QJD30: 0 | QJJ30: 0 | QJP30: 0 | QJV30: 0 | QKB30: 0 | QKH30: 0 | QKN30: 0 | QKT30: 0 | QKZ30: 0 | QLF30: 0 | QLL30: 0 | QLR30: 0 | QLX30: 0 | QMD30: 0 | QMJ30: 0 | QMP30: 0 | QMV30: 0 | QNB30: 0 | QNH30: 0 | QNN30: 0 | QNT30: 0 | QNZ30: 0 | QOF30: 0 | QOL30: 0 | QOR30: 0 | QOX30: 0 | QPD30: 0 | QPJ30: 0 | QPP30: 0 | QPV30: 0 | QQB30: 0 | QQH30: 0 | QQN30: 0 | QQT30: 0 | QQZ30: 0 | QRF30: 0 | QRL30: 0 | QRR30: 0 | QRX30: 0 | QSD30: 0 | QSJ30: 0 | QSP30: 0 | QSV30: 0 | QTB30: 0 | QTH30: 0 | QTN30: 0 | QTT30: 0 | QTZ30: 0 | QUF30: 0 | QUL30: 0 | QUR30: 0 | QUX30: 0 | QVD30: 0 | QVJ30: 0 | QVP30: 0 | QVV30: 0 | QWB30: 0 | QWH30: 0 | QWN30: 0 | QWT30: 0 | QWZ30: 0 | QXF30: 0 | QXL30: 0 | QXR30: 0 | QXX30: 0 | QYD30: 0 | QYJ30: 0 | QYP30: 0 | QYV30: 0 | QZB30: 0 | QZH30: 0 | QZN30: 0 | QZT30: 0 | QZZ30: 0 | RAF30: 0 | RAL30: 0 | RAR30: 0 | RAX30: 0 | RBD30: 0 | RBJ30: 0 | RBP30: 0 | RBV30: 0 | RCB30: 0 | RCH30: 0 | RCN30: 0 | RCT30: 0 | RCZ30: 0 | RDF30: 0 | RDL30: 0 | RDR30: 0 | RDX30: 0 | RED30: 0 | REJ30: 0 | REP30: 0 | REV30: 0 | RFB30: 0 | RFH30: 0 | RFN30: 0 | RFT30: 0 | RFZ30: 0 | RGF30: 0 | RGL30: 0 | RGR30: 0 | RGX30: 0 | RHD30: 0 | RHJ30: 0 | RHP30: 0 | RHV30: 0 | RIB30: 0 | RIH30: 0 | RIN30: 0 | RIT30: 0 | RIZ30: 0 | RJF30: 0 | RJL30: 0 | RJR30: 0 | RJX30: 0 | RKD30: 0 | RKJ30: 0 | RKP30: 0 | RKV30: 0 | RLB30: 0 | RLH30: 0 | RLN30: 0 | RLT30: 0 | RLZ30: 0 | RMF30: 0 | RML30: 0 | RMR30: 0 | RMX30: 0 | RND30: 0 | RNJ30: 0 | RNP30: 0 | RNV30: 0 | ROB30: 0 | ROH30: 0 | RON30: 0 | ROT30: 0 | ROZ30: 0 | RPF30: 0 | RPL30: 0 | RPR30: 0 | RPX30: 0 | RQD30: 0 | RQJ30: 0 | RQP30: 0 | RQV30: 0 | RRB30: 0 | RRH30: 0 | RRN30: 0 | RRT30: 0 | RRZ30: 0 | RSF30: 0 | RSL30: 0 | RSR30: 0 | RSX30: 0 | RTD30: 0 | RTJ30: 0 | RTP30: 0 | RTV30: 0 | RUB30: 0 | RUH30: 0 | RUN30: 0 | RUT30: 0 | RUZ30: 0 | RVF30: 0 | RVL30: 0 | RVR30: 0 | RVX30: 0 | RWD30: 0 | RWJ30: 0 | RWP30: 0 | RWV30: 0 | RXB30: 0 | RXH30: 0 | RXN30: 0 | RXT30: 0 | RXZ30: 0 | RYF30: 0 | RYL30: 0 | RYR30: 0 | RYX30: 0 | RZD30: 0 | RZJ30: 0 | RZP30: 0 | RZV30: 0 | SAB30: 0 | SAH30: 0 | SAN30: 0 | SAT30: 0 | SAZ30: 0 | SBF30: 0 | SBL30: 0 | SBR30: 0 | SBX30: 0 | SCD30: 0 | SCJ30: 0 | SCP30: 0 | SCV30: 0 | SDB30: 0 | SDH30: 0 | SDN30: 0 | SDT30: 0 | SDZ30: 0 | SEF30: 0 | SEL30: 0 | SER30: 0 | SEX30: 0 | SFD30: 0 | SFJ30: 0 | SFP30: 0 | SFV30: 0 | SGB30: 0 | SGH30: 0 | SGN30: 0 | SGT30: 0 | SGZ30: 0 | SHF30: 0 | SHL30: 0 | SHR30: 0 | SHX30: 0 | SID30: 0 | SIJ30: 0 | SIP30: 0 | SIV30: 0 | SJB30: 0 | SJH30: 0 | SJN30: 0 | SJT30: 0 | SJZ30: 0 | SKF30: 0 | SKL30: 0 | SKR30: 0 | SKX30: 0 | SLD30: 0 | SLJ30: 0 | SLP30: 0 | SLV30: 0 | SMB30: 0 | SMH30: 0 | SMN30: 0 | SMT30: 0 | SMZ30: 0 | SNF30: 0 | SNL30: 0 | SNR30: 0 | SNX30: 0 | SOD30: 0 | SOJ30: 0 | SOP30: 0 | SOV30: 0 | SPB30: 0 | SPH30: 0 | SPN30: 0 | SPT30: 0 | SPZ30: 0 | SQF30: 0 | SQL30: 0 | SQR30: 0 | SQX30: 0 | SRD30: 0 | SRJ30: 0 | SRP30: 0 | SRV30: 0 | SSB30: 0 | SSH30: 0 | SSN30: 0 | SST30: 0 | SSZ30: 0 | STF30: 0 | STL30: 0 | STR30: 0 | STX30: 0 | SUD30: 0 | SUJ30: 0 | SUP30: 0 | SUV30: 0 | SVB30: 0 | SVH30: 0 | SVN30: 0 | SVT30: 0 | SVZ30: 0 | SWF30: 0 | SWL30: 0 | SWR30: 0 | SWX30: 0 | SXD30: 0 | SXJ30: 0 | SXP30: 0 | SXV30: 0 | SYB30: 0 | SYH30: 0 | SYN30: 0 | SYT30: 0 | SYZ30: 0 | SZF30: 0 | SZL30: 0 | SZR30: 0 | SZX30: 0 | TAD30: 0 | TAJ30: 0 | TAP30: 0 | TAV30: 0 | TBB30: 0 | TBH30: 0 | TBN30: 0 | TBT30: 0 | TBZ30: 0 | TCF30: 0 | TCL30: 0 | TCR30: 0 | TCX30: 0 | TDD30: 0 | TDJ30: 0 | TDP30: 0 | TDV30: 0 | TEB30: 0 | TEH30: 0 | TEN30: 0 | TET30: 0 | TEZ30: 0 | TFF30: 0 | TFL30: 0 | TFR30: 0 | TFX30: 0 | TGD30: 0 | TGJ30: 0 | TGP30: 0 | TGV30: 0 | THB30: 0 | THH30: 0 | THN30: 0 | THT30: 0 | THZ30: 0 | TIF30: 0 | TIL30: 0 | TIR30: 0 | TIX30: 0 | TJD30: 0 | TJJ30: 0 | TJP30: 0 | TJV30: 0 | TKB30: 0 | TKH30: 0 | TKN30: 0 | TKT30: 0 | TKZ30: 0 | TLF30: 0 | TLL30: 0 | TLR30: 0 | TLX30: 0 | TMD30: 0 | TMJ30: 0 | TMP30: 0 | TMV30: 0 | TNB30: 0 | TNH30: 0 | TNN30: 0 | TNT30: 0 | TNZ30: 0 | TOF30: 0 | TOL30: 0 | TOR30: 0 | TOX30: 0 | TPD30: 0 | TPJ30: 0 | TPP30: 0 | TPV30: 0 | TQB30: 0 | TQH30: 0 | TQN30: 0 | TQT30: 0 | TQZ30: 0 | TRF30: 0 | TRL30: 0 | TRR30: 0 | TRX30: 0 | TSD30: 0 | TSJ30: 0 | TSP30: 0 | TSV30: 0 | TTB30: 0 | TTH30: 0 | TTN30: 0 | TTT30: 0 | TTZ30: 0 | TUF30: 0 | TUL30: 0 | TUR30: 0 | TUX30: 0 | TVD30: 0 | TVJ30: 0 | TVP30: 0 | TVV30: 0 | TWB30: 0 | TWH30: 0 | TWN30: 0 | TWT30: 0 | TWZ30: 0 | TXF30: 0 | TXL30: 0 | TXR30: 0 | TXX30: 0 | TYD30: 0 | TYJ30: 0 | TYP30: 0 | TYV30: 0 | TZB30: 0 | TZH30: 0 | TZN30: 0 | TZT30: 0 | TZZ30: 0 | UAF30: 0 | UAL30: 0 | UAR30: 0 | UAX30: 0 | UBD30: 0 | UBJ30: 0 | UBP30: 0 | UBV30: 0 | UCB30: 0 | UCH30: 0 | UCN30: 0 | UCT30: 0 | UCZ30: 0 | UDF30: 0 | UDL30: 0 | UDR30: 0 | UDX30: 0 | UED30: 0 | UEJ30: 0 | UEP30: 0 | UEV30: 0 | UFB30: 0 | UFH30: 0 | UFN30: 0 | UFT30: 0 | UFZ30: 0 | UGF30: 0 | UGL30: 0 | UGR30: 0 | UGX30: 0 | UHD30: 0 | UHJ30: 0 | UHP30: 0 | UHV30: 0 | UIB30: 0 | UIH30: 0 | UIN30: 0 | UIT30: 0 | UIZ30: 0 | UJF30: 0 | UJL30: 0 | UJR30: 0 | UJX30: 0 | UKD30: 0 | UKJ30: 0 | UKP30: 0 | UKV30: 0 | ULB30: 0 | ULH30: 0 | ULN30: 0 | ULT30: 0 | ULZ30: 0 | UMF30: 0 | UML30: 0 | UMR30: 0 | UMX30: 0 | UND30: 0 | UNJ30: 0 | UNP30: 0 | UNV30: 0 | UOB30: 0 | UOH30: 0 | UON30: 0 | UOT30: 0 | UOZ30: 0 | UPF30: 0 | UPL30: 0 | UPR30: 0 | UPX30: 0 | UQD30: 0 | UQJ30: 0 | UQP30: 0 | UQV30: 0 | URB30: 0 | URH30: 0 | URN30: 0 | URT30: 0 | URZ30: 0 | USF30: 0 | USL30: 0 | USR30: 0 | USX30: 0 | UTD30: 0 | UTJ30: 0 | UTP30: 0 | UTV30: 0 | UUB30: 0 | UUH30: 0 | UUN30: 0 | UUT30: 0 | UUZ30: 0 | UVF30: 0 | UVL30: 0 | UVR30: 0 | UVX30: 0 | UWD30: 0 | UWJ30: 0 | UWP30: 0 | UWV30: 0 | UXB30: 0 | UXH30: 0 | UXN30: 0 | UXT30: 0 | UXZ30: 0 | UYF30: 0 | UYL30: 0 | UYR30: 0 | UYX30: 0 | UZD30: 0 | UZJ30: 0 | UZP30: 0 | UZV30: 0 | VAB30: 0 | VAH30: 0 | VAN30: 0 | VAT30: 0 | VAZ30: 0 | VBF30: 0 | VBL30: 0 | VBR30: 0 | VBX30: 0 | VCD30: 0 | VCJ30: 0 | VCP30: 0 | VCV30: 0 | VDB30: 0 | VDH30: 0 | VDN30: 0 | VDT30: 0 | VDZ30: 0 | VEF30: 0 | VEL30: 0 | VER30: 0 | VEX30: 0 | VFD30: 0 | VFJ30: 0 | VFP30: 0 | VFV30: 0 | VGB30: 0 | VGH30: 0 | VGN30: 0 | VGT30: 0 | VGZ30: 0 | VHF30: 0 | VHL30: 0 | VHR30: 0 | VHX30: 0 | VID30: 0 | VIJ30: 0 | VIP30: 0 | VIV30: 0 | VJB30: 0 | VJH30: 0 | VJN30: 0 | VJT30: 0 | VJZ30: 0 | VKF30: 0 | VKL30: 0 | VKR30: 0 | VKX30: 0 | VLD30: 0 | VLJ30: 0 | VLP30: 0 | VLV30: 0 | VMB30: 0 | VMH30: 0 | VMN30: 0 | VMT30: 0 | VMZ30: 0 | VNF30: 0 | VNL30: 0 | VNR30: 0 | VNX30: 0 | VOD30: 0 | VOJ30: 0 | VOP30: 0 | VOV30: 0 | VPB30: 0 | VPH30: 0 | VPN30: 0 | VPT30: 0 | VPZ30: 0 | VQF30: 0 | VQL30: 0 | VQR30: 0 | VQX30: 0 | VRD30: 0 | VRJ30: 0 | VRP30: 0 | VRV30: 0 | VSB30: 0 | VSH30: 0 | VSN30: 0 | VST30: 0 | VSZ30: 0 | VTF30: 0 | VTL30: 0 | VTR30: 0 | VTX30: 0 | VUD30: 0 | VUJ30: 0 | VUP30: 0 | VUV30: 0 | VVB30: 0 | VVH30: 0 | VVN30: 0 | VVT30: 0 | VVZ30: 0 | VWF30: 0 | VWL30: 0 | VWR30: 0 | VWX30: 0 | VXD30: 0 | VXJ30: 0 | VXP30: 0 | VXV30: 0 | VYB30: 0 | VYH30: 0 | VYN30: 0 | VYT30: 0 | VYZ30: 0 | VZF30: 0 | VZL30: 0 | VZR30: 0 | VZX30: 0 | WAD30: 0 | WAJ30: 0 | WAP30: 0 | WAV30: 0 | WBB30: 0 | WBH30: 0 | WBN30: 0 | WBT30: 0 | WBZ30: 0 | WCF30: 0 | WCL30: 0 | WCR30: 0 | WCX30: 0 | WDD30: 0 | WDJ30: 0 | WDP30: 0 | WDV30: 0 | WEB30: 0 | WEH30: 0 | WEN30: 0 | WET30: 0 | WEZ30: 0 | WFF30: 0 | WFL30: 0 | WFR30: 0 | WFX30: 0 | WGD30: 0 | WGJ30: 0 | WGP30: 0 | WGV30: 0 | WHB30: 0 | WHH30: 0 | WHN30: 0 | WHT30: 0 | WHZ30: 0 | WIF30: 0 | WIL30: 0 | WIR30: 0 | WIX30: 0 | WJD30: 0 | WJJ30: 0 | WJP30: 0 | WJV30: 0 | WKB30: 0 | WKH30: 0 | WKN30: 0 | WKT30: 0 | WKZ30: 0 | WLF30: 0 | WLL30: 0 | WLR30: 0 | WLX30: 0 | WMD30: 0 | WMJ30: 0 | WMP30: 0 | WMV30: 0 | WNB30: 0 | WNH30: 0 | WNN30: 0 | WNT30: 0 | WNZ30: 0 | WOF30: 0 | WOL30: 0 | WOR30: 0 | WOX30: 0 | WPD30: 0 | WPJ30: 0 | WPP30: 0 | WPV30: 0 | WQB30: 0 | WQH30: 0 | WQN30: 0 | WQT30: 0 | WQZ30: 0 | WRF30: 0 | WRL30: 0 | WRR30: 0 | WRX30: 0 | WSD30: 0 | WSJ30: 0 | WSP30: 0 | WSV30: 0 | WTB30: 0 | WTH30: 0 | WTN30: 0 | WTT30: 0 | WTZ30: 0 | WUF30: 0 | WUL30: 0 | WUR30: 0 | WUX30: 0 | WVD30: 0 | WVJ30: 0 | WVP30: 0 | WVV30: 0 | WWB30: 0 | WWH30: 0 | WWN30: 0 | WWT30: 0 | WWZ30: 0 | WXF30: 0 | WXL30: 0 | WXR30: 0 | WXX30: 0 | WYD30: 0 | WYJ30: 0 | WYP30: 0 | WYV30: 0 | WZB30: 0 | WZH30: 0 | WZN30: 0 | WZT30: 0 | WZZ30: 0 | XAF30: 0 | XAL30: 0 | XAR30: 0 | XAX30: 0 | XBD30: 0 | XBJ30: 0 | XBP30: 0 | XBV30: 0 | XCB30: 0 | XCH30: 0 | XCN30: 0 | XCT30: 0 | XCZ30: 0 | XDF30: 0 | XDL30: 0 | XDR30: 0 | XDX30: 0 | XED30: 0 | XEJ30: 0 | XEP30: 0 | XEV30: 0 | XFB30: 0
E31: SWB | F31: Closing RCV - Real (Water) | G31: £m | H31: 2216.486862 | N31: 2272.858839 | T31: 2311.590708 | Z31: 2346.107857 | AF31: 2362.72204 | AL31: 0 | AR31: 0 | AX31: 0 | BD31: 0 | BJ31: 0 | BP31: 0 | BV31: 0 | CB31: 0 | CH31: 0 | CN31: 0 | CT31: 0 | CZ31: 0 | DF31: 0 | DL31: 0 | DR31: 0 | DX31: 0 | ED31: 0 | EJ31: 0 | EP31: 0 | EV31: 0 | FB31: 0 | FH31: 0 | FN31: 0 | FT31: 0 | FZ31: 0 | GF31: 0 | GL31: 0 | GR31: 0 | GX31: 0 | HD31: 0 | HJ31: 0 | HP31: 0 | HV31: 0 | IB31: 0 | IH31: 0 | IN31: 0 | IT31: 0 | IZ31: 0 | JF31: 0 | JL31: 0 | JR31: 0 | JX31: 0 | KD31: 0 | KJ31: 0 | KP31: 0 | KV31: 0 | LB31: 0 | LH31: 0 | LN31: 0 | LT31: 0 | LZ31: 0 | MF31: 0 | ML31: 0 | MR31: 0 | MX31: 0 | ND31: 0 | NJ31: 0 | NP31: 0 | NV31: 0 | OB31: 0 | OH31: 0 | ON31: 0 | OT31: 0 | OZ31: 0 | PF31: 0 | PL31: 0 | PR31: 0 | PX31: 0 | QD31: 0 | QJ31: 0 | QP31: 0 | QV31: 0 | RB31: 0 | RH31: 0 | RN31: 0 | RT31: 0 | RZ31: 0 | SF31: 0 | SL31: 0 | SR31: 0 | SX31: 0 | TD31: 0 | TJ31: 0 | TP31: 0 | TV31: 0 | UB31: 0 | UH31: 0 | UN31: 0 | UT31: 0 | UZ31: 0 | VF31: 0 | VL31: 0 | VR31: 0 | VX31: 0 | WD31: 0 | WJ31: 0 | WP31: 0 | WV31: 0 | XB31: 0 | XH31: 0 | XN31: 0 | XT31: 0 | XZ31: 0 | YF31: 0 | YL31: 0 | YR31: 0 | YX31: 0 | ZD31: 0 | ZJ31: 0 | ZP31: 0 | ZV31: 0 | AAB31: 0 | AAH31: 0 | AAN31: 0 | AAT31: 0 | AAZ31: 0 | ABF31: 0 | ABL31: 0 | ABR31: 0 | ABX31: 0 | ACD31: 0 | ACJ31: 0 | ACP31: 0 | ACV31: 0 | ADB31: 0 | ADH31: 0 | ADN31: 0 | ADT31: 0 | ADZ31: 0 | AEF31: 0 | AEL31: 0 | AER31: 0 | AEX31: 0 | AFD31: 0 | AFJ31: 0 | AFP31: 0 | AFV31: 0 | AGB31: 0 | AGH31: 0 | AGN31: 0 | AGT31: 0 | AGZ31: 0 | AHF31: 0 | AHL31: 0 | AHR31: 0 | AHX31: 0 | AID31: 0 | AIJ31: 0 | AIP31: 0 | AIV31: 0 | AJB31: 0 | AJH31: 0 | AJN31: 0 | AJT31: 0 | AJZ31: 0 | AKF31: 0 | AKL31: 0 | AKR31: 0 | AKX31: 0 | ALD31: 0 | ALJ31: 0 | ALP31: 0 | ALV31: 0 | AMB31: 0 | AMH31: 0 | AMN31: 0 | AMT31: 0 | AMZ31: 0 | ANF31: 0 | ANL31: 0 | ANR31: 0 | ANX31: 0 | AOD31: 0 | AOJ31: 0 | AOP31: 0 | AOV31: 0 | APB31: 0 | APH31: 0 | APN31: 0 | APT31: 0 | APZ31: 0 | AQF31: 0 | AQL31: 0 | AQR31: 0 | AQX31: 0 | ARD31: 0 | ARJ31: 0 | ARP31: 0 | ARV31: 0 | ASB31: 0 | ASH31: 0 | ASN31: 0 | AST31: 0 | ASZ31: 0 | ATF31: 0 | ATL31: 0 | ATR31: 0 | ATX31: 0 | AUD31: 0 | AUJ31: 0 | AUP31: 0 | AUV31: 0 | AVB31: 0 | AVH31: 0 | AVN31: 0 | AVT31: 0 | AVZ31: 0 | AWF31: 0 | AWL31: 0 | AWR31: 0 | AWX31: 0 | AXD31: 0 | AXJ31: 0 | AXP31: 0 | AXV31: 0 | AYB31: 0 | AYH31: 0 | AYN31: 0 | AYT31: 0 | AYZ31: 0 | AZF31: 0 | AZL31: 0 | AZR31: 0 | AZX31: 0 | BAD31: 0 | BAJ31: 0 | BAP31: 0 | BAV31: 0 | BBB31: 0 | BBH31: 0 | BBN31: 0 | BBT31: 0 | BBZ31: 0 | BCF31: 0 | BCL31: 0 | BCR31: 0 | BCX31: 0 | BDD31: 0 | BDJ31: 0 | BDP31: 0 | BDV31: 0 | BEB31: 0 | BEH31: 0 | BEN31: 0 | BET31: 0 | BEZ31: 0 | BFF31: 0 | BFL31: 0 | BFR31: 0 | BFX31: 0 | BGD31: 0 | BGJ31: 0 | BGP31: 0 | BGV31: 0 | BHB31: 0 | BHH31: 0 | BHN31: 0 | BHT31: 0 | BHZ31: 0 | BIF31: 0 | BIL31: 0 | BIR31: 0 | BIX31: 0 | BJD31: 0 | BJJ31: 0 | BJP31: 0 | BJV31: 0 | BKB31: 0 | BKH31: 0 | BKN31: 0 | BKT31: 0 | BKZ31: 0 | BLF31: 0 | BLL31: 0 | BLR31: 0 | BLX31: 0 | BMD31: 0 | BMJ31: 0 | BMP31: 0 | BMV31: 0 | BNB31: 0 | BNH31: 0 | BNN31: 0 | BNT31: 0 | BNZ31: 0 | BOF31: 0 | BOL31: 0 | BOR31: 0 | BOX31: 0 | BPD31: 0 | BPJ31: 0 | BPP31: 0 | BPV31: 0 | BQB31: 0 | BQH31: 0 | BQN31: 0 | BQT31: 0 | BQZ31: 0 | BRF31: 0 | BRL31: 0 | BRR31: 0 | BRX31: 0 | BSD31: 0 | BSJ31: 0 | BSP31: 0 | BSV31: 0 | BTB31: 0 | BTH31: 0 | BTN31: 0 | BTT31: 0 | BTZ31: 0 | BUF31: 0 | BUL31: 0 | BUR31: 0 | BUX31: 0 | BVD31: 0 | BVJ31: 0 | BVP31: 0 | BVV31: 0 | BWB31: 0 | BWH31: 0 | BWN31: 0 | BWT31: 0 | BWZ31: 0 | BXF31: 0 | BXL31: 0 | BXR31: 0 | BXX31: 0 | BYD31: 0 | BYJ31: 0 | BYP31: 0 | BYV31: 0 | BZB31: 0 | BZH31: 0 | BZN31: 0 | BZT31: 0 | BZZ31: 0 | CAF31: 0 | CAL31: 0 | CAR31: 0 | CAX31: 0 | CBD31: 0 | CBJ31: 0 | CBP31: 0 | CBV31: 0 | CCB31: 0 | CCH31: 0 | CCN31: 0 | CCT31: 0 | CCZ31: 0 | CDF31: 0 | CDL31: 0 | CDR31: 0 | CDX31: 0 | CED31: 0 | CEJ31: 0 | CEP31: 0 | CEV31: 0 | CFB31: 0 | CFH31: 0 | CFN31: 0 | CFT31: 0 | CFZ31: 0 | CGF31: 0 | CGL31: 0 | CGR31: 0 | CGX31: 0 | CHD31: 0 | CHJ31: 0 | CHP31: 0 | CHV31: 0 | CIB31: 0 | CIH31: 0 | CIN31: 0 | CIT31: 0 | CIZ31: 0 | CJF31: 0 | CJL31: 0 | CJR31: 0 | CJX31: 0 | CKD31: 0 | CKJ31: 0 | CKP31: 0 | CKV31: 0 | CLB31: 0 | CLH31: 0 | CLN31: 0 | CLT31: 0 | CLZ31: 0 | CMF31: 0 | CML31: 0 | CMR31: 0 | CMX31: 0 | CND31: 0 | CNJ31: 0 | CNP31: 0 | CNV31: 0 | COB31: 0 | COH31: 0 | CON31: 0 | COT31: 0 | COZ31: 0 | CPF31: 0 | CPL31: 0 | CPR31: 0 | CPX31: 0 | CQD31: 0 | CQJ31: 0 | CQP31: 0 | CQV31: 0 | CRB31: 0 | CRH31: 0 | CRN31: 0 | CRT31: 0 | CRZ31: 0 | CSF31: 0 | CSL31: 0 | CSR31: 0 | CSX31: 0 | CTD31: 0 | CTJ31: 0 | CTP31: 0 | CTV31: 0 | CUB31: 0 | CUH31: 0 | CUN31: 0 | CUT31: 0 | CUZ31: 0 | CVF31: 0 | CVL31: 0 | CVR31: 0 | CVX31: 0 | CWD31: 0 | CWJ31: 0 | CWP31: 0 | CWV31: 0 | CXB31: 0 | CXH31: 0 | CXN31: 0 | CXT31: 0 | CXZ31: 0 | CYF31: 0 | CYL31: 0 | CYR31: 0 | CYX31: 0 | CZD31: 0 | CZJ31: 0 | CZP31: 0 | CZV31: 0 | DAB31: 0 | DAH31: 0 | DAN31: 0 | DAT31: 0 | DAZ31: 0 | DBF31: 0 | DBL31: 0 | DBR31: 0 | DBX31: 0 | DCD31: 0 | DCJ31: 0 | DCP31: 0 | DCV31: 0 | DDB31: 0 | DDH31: 0 | DDN31: 0 | DDT31: 0 | DDZ31: 0 | DEF31: 0 | DEL31: 0 | DER31: 0 | DEX31: 0 | DFD31: 0 | DFJ31: 0 | DFP31: 0 | DFV31: 0 | DGB31: 0 | DGH31: 0 | DGN31: 0 | DGT31: 0 | DGZ31: 0 | DHF31: 0 | DHL31: 0 | DHR31: 0 | DHX31: 0 | DID31: 0 | DIJ31: 0 | DIP31: 0 | DIV31: 0 | DJB31: 0 | DJH31: 0 | DJN31: 0 | DJT31: 0 | DJZ31: 0 | DKF31: 0 | DKL31: 0 | DKR31: 0 | DKX31: 0 | DLD31: 0 | DLJ31: 0 | DLP31: 0 | DLV31: 0 | DMB31: 0 | DMH31: 0 | DMN31: 0 | DMT31: 0 | DMZ31: 0 | DNF31: 0 | DNL31: 0 | DNR31: 0 | DNX31: 0 | DOD31: 0 | DOJ31: 0 | DOP31: 0 | DOV31: 0 | DPB31: 0 | DPH31: 0 | DPN31: 0 | DPT31: 0 | DPZ31: 0 | DQF31: 0 | DQL31: 0 | DQR31: 0 | DQX31: 0 | DRD31: 0 | DRJ31: 0 | DRP31: 0 | DRV31: 0 | DSB31: 0 | DSH31: 0 | DSN31: 0 | DST31: 0 | DSZ31: 0 | DTF31: 0 | DTL31: 0 | DTR31: 0 | DTX31: 0 | DUD31: 0 | DUJ31: 0 | DUP31: 0 | DUV31: 0 | DVB31: 0 | DVH31: 0 | DVN31: 0 | DVT31: 0 | DVZ31: 0 | DWF31: 0 | DWL31: 0 | DWR31: 0 | DWX31: 0 | DXD31: 0 | DXJ31: 0 | DXP31: 0 | DXV31: 0 | DYB31: 0 | DYH31: 0 | DYN31: 0 | DYT31: 0 | DYZ31: 0 | DZF31: 0 | DZL31: 0 | DZR31: 0 | DZX31: 0 | EAD31: 0 | EAJ31: 0 | EAP31: 0 | EAV31: 0 | EBB31: 0 | EBH31: 0 | EBN31: 0 | EBT31: 0 | EBZ31: 0 | ECF31: 0 | ECL31: 0 | ECR31: 0 | ECX31: 0 | EDD31: 0 | EDJ31: 0 | EDP31: 0 | EDV31: 0 | EEB31: 0 | EEH31: 0 | EEN31: 0 | EET31: 0 | EEZ31: 0 | EFF31: 0 | EFL31: 0 | EFR31: 0 | EFX31: 0 | EGD31: 0 | EGJ31: 0 | EGP31: 0 | EGV31: 0 | EHB31: 0 | EHH31: 0 | EHN31: 0 | EHT31: 0 | EHZ31: 0 | EIF31: 0 | EIL31: 0 | EIR31: 0 | EIX31: 0 | EJD31: 0 | EJJ31: 0 | EJP31: 0 | EJV31: 0 | EKB31: 0 | EKH31: 0 | EKN31: 0 | EKT31: 0 | EKZ31: 0 | ELF31: 0 | ELL31: 0 | ELR31: 0 | ELX31: 0 | EMD31: 0 | EMJ31: 0 | EMP31: 0 | EMV31: 0 | ENB31: 0 | ENH31: 0 | ENN31: 0 | ENT31: 0 | ENZ31: 0 | EOF31: 0 | EOL31: 0 | EOR31: 0 | EOX31: 0 | EPD31: 0 | EPJ31: 0 | EPP31: 0 | EPV31: 0 | EQB31: 0 | EQH31: 0 | EQN31: 0 | EQT31: 0 | EQZ31: 0 | ERF31: 0 | ERL31: 0 | ERR31: 0 | ERX31: 0 | ESD31: 0 | ESJ31: 0 | ESP31: 0 | ESV31: 0 | ETB31: 0 | ETH31: 0 | ETN31: 0 | ETT31: 0 | ETZ31: 0 | EUF31: 0 | EUL31: 0 | EUR31: 0 | EUX31: 0 | EVD31: 0 | EVJ31: 0 | EVP31: 0 | EVV31: 0 | EWB31: 0 | EWH31: 0 | EWN31: 0 | EWT31: 0 | EWZ31: 0 | EXF31: 0 | EXL31: 0 | EXR31: 0 | EXX31: 0 | EYD31: 0 | EYJ31: 0 | EYP31: 0 | EYV31: 0 | EZB31: 0 | EZH31: 0 | EZN31: 0 | EZT31: 0 | EZZ31: 0 | FAF31: 0 | FAL31: 0 | FAR31: 0 | FAX31: 0 | FBD31: 0 | FBJ31: 0 | FBP31: 0 | FBV31: 0 | FCB31: 0 | FCH31: 0 | FCN31: 0 | FCT31: 0 | FCZ31: 0 | FDF31: 0 | FDL31: 0 | FDR31: 0 | FDX31: 0 | FED31: 0 | FEJ31: 0 | FEP31: 0 | FEV31: 0 | FFB31: 0 | FFH31: 0 | FFN31: 0 | FFT31: 0 | FFZ31: 0 | FGF31: 0 | FGL31: 0 | FGR31: 0 | FGX31: 0 | FHD31: 0 | FHJ31: 0 | FHP31: 0 | FHV31: 0 | FIB31: 0 | FIH31: 0 | FIN31: 0 | FIT31: 0 | FIZ31: 0 | FJF31: 0 | FJL31: 0 | FJR31: 0 | FJX31: 0 | FKD31: 0 | FKJ31: 0 | FKP31: 0 | FKV31: 0 | FLB31: 0 | FLH31: 0 | FLN31: 0 | FLT31: 0 | FLZ31: 0 | FMF31: 0 | FML31: 0 | FMR31: 0 | FMX31: 0 | FND31: 0 | FNJ31: 0 | FNP31: 0 | FNV31: 0 | FOB31: 0 | FOH31: 0 | FON31: 0 | FOT31: 0 | FOZ31: 0 | FPF31: 0 | FPL31: 0 | FPR31: 0 | FPX31: 0 | FQD31: 0 | FQJ31: 0 | FQP31: 0 | FQV31: 0 | FRB31: 0 | FRH31: 0 | FRN31: 0 | FRT31: 0 | FRZ31: 0 | FSF31: 0 | FSL31: 0 | FSR31: 0 | FSX31: 0 | FTD31: 0 | FTJ31: 0 | FTP31: 0 | FTV31: 0 | FUB31: 0 | FUH31: 0 | FUN31: 0 | FUT31: 0 | FUZ31: 0 | FVF31: 0 | FVL31: 0 | FVR31: 0 | FVX31: 0 | FWD31: 0 | FWJ31: 0 | FWP31: 0 | FWV31: 0 | FXB31: 0 | FXH31: 0 | FXN31: 0 | FXT31: 0 | FXZ31: 0 | FYF31: 0 | FYL31: 0 | FYR31: 0 | FYX31: 0 | FZD31: 0 | FZJ31: 0 | FZP31: 0 | FZV31: 0 | GAB31: 0 | GAH31: 0 | GAN31: 0 | GAT31: 0 | GAZ31: 0 | GBF31: 0 | GBL31: 0 | GBR31: 0 | GBX31: 0 | GCD31: 0 | GCJ31: 0 | GCP31: 0 | GCV31: 0 | GDB31: 0 | GDH31: 0 | GDN31: 0 | GDT31: 0 | GDZ31: 0 | GEF31: 0 | GEL31: 0 | GER31: 0 | GEX31: 0 | GFD31: 0 | GFJ31: 0 | GFP31: 0 | GFV31: 0 | GGB31: 0 | GGH31: 0 | GGN31: 0 | GGT31: 0 | GGZ31: 0 | GHF31: 0 | GHL31: 0 | GHR31: 0 | GHX31: 0 | GID31: 0 | GIJ31: 0 | GIP31: 0 | GIV31: 0 | GJB31: 0 | GJH31: 0 | GJN31: 0 | GJT31: 0 | GJZ31: 0 | GKF31: 0 | GKL31: 0 | GKR31: 0 | GKX31: 0 | GLD31: 0 | GLJ31: 0 | GLP31: 0 | GLV31: 0 | GMB31: 0 | GMH31: 0 | GMN31: 0 | GMT31: 0 | GMZ31: 0 | GNF31: 0 | GNL31: 0 | GNR31: 0 | GNX31: 0 | GOD31: 0 | GOJ31: 0 | GOP31: 0 | GOV31: 0 | GPB31: 0 | GPH31: 0 | GPN31: 0 | GPT31: 0 | GPZ31: 0 | GQF31: 0 | GQL31: 0 | GQR31: 0 | GQX31: 0 | GRD31: 0 | GRJ31: 0 | GRP31: 0 | GRV31: 0 | GSB31: 0 | GSH31: 0 | GSN31: 0 | GST31: 0 | GSZ31: 0 | GTF31: 0 | GTL31: 0 | GTR31: 0 | GTX31: 0 | GUD31: 0 | GUJ31: 0 | GUP31: 0 | GUV31: 0 | GVB31: 0 | GVH31: 0 | GVN31: 0 | GVT31: 0 | GVZ31: 0 | GWF31: 0 | GWL31: 0 | GWR31: 0 | GWX31: 0 | GXD31: 0 | GXJ31: 0 | GXP31: 0 | GXV31: 0 | GYB31: 0 | GYH31: 0 | GYN31: 0 | GYT31: 0 | GYZ31: 0 | GZF31: 0 | GZL31: 0 | GZR31: 0 | GZX31: 0 | HAD31: 0 | HAJ31: 0 | HAP31: 0 | HAV31: 0 | HBB31: 0 | HBH31: 0 | HBN31: 0 | HBT31: 0 | HBZ31: 0 | HCF31: 0 | HCL31: 0 | HCR31: 0 | HCX31: 0 | HDD31: 0 | HDJ31: 0 | HDP31: 0 | HDV31: 0 | HEB31: 0 | HEH31: 0 | HEN31: 0 | HET31: 0 | HEZ31: 0 | HFF31: 0 | HFL31: 0 | HFR31: 0 | HFX31: 0 | HGD31: 0 | HGJ31: 0 | HGP31: 0 | HGV31: 0 | HHB31: 0 | HHH31: 0 | HHN31: 0 | HHT31: 0 | HHZ31: 0 | HIF31: 0 | HIL31: 0 | HIR31: 0 | HIX31: 0 | HJD31: 0 | HJJ31: 0 | HJP31: 0 | HJV31: 0 | HKB31: 0 | HKH31: 0 | HKN31: 0 | HKT31: 0 | HKZ31: 0 | HLF31: 0 | HLL31: 0 | HLR31: 0 | HLX31: 0 | HMD31: 0 | HMJ31: 0 | HMP31: 0 | HMV31: 0 | HNB31: 0 | HNH31: 0 | HNN31: 0 | HNT31: 0 | HNZ31: 0 | HOF31: 0 | HOL31: 0 | HOR31: 0 | HOX31: 0 | HPD31: 0 | HPJ31: 0 | HPP31: 0 | HPV31: 0 | HQB31: 0 | HQH31: 0 | HQN31: 0 | HQT31: 0 | HQZ31: 0 | HRF31: 0 | HRL31: 0 | HRR31: 0 | HRX31: 0 | HSD31: 0 | HSJ31: 0 | HSP31: 0 | HSV31: 0 | HTB31: 0 | HTH31: 0 | HTN31: 0 | HTT31: 0 | HTZ31: 0 | HUF31: 0 | HUL31: 0 | HUR31: 0 | HUX31: 0 | HVD31: 0 | HVJ31: 0 | HVP31: 0 | HVV31: 0 | HWB31: 0 | HWH31: 0 | HWN31: 0 | HWT31: 0 | HWZ31: 0 | HXF31: 0 | HXL31: 0 | HXR31: 0 | HXX31: 0 | HYD31: 0 | HYJ31: 0 | HYP31: 0 | HYV31: 0 | HZB31: 0 | HZH31: 0 | HZN31: 0 | HZT31: 0 | HZZ31: 0 | IAF31: 0 | IAL31: 0 | IAR31: 0 | IAX31: 0 | IBD31: 0 | IBJ31: 0 | IBP31: 0 | IBV31: 0 | ICB31: 0 | ICH31: 0 | ICN31: 0 | ICT31: 0 | ICZ31: 0 | IDF31: 0 | IDL31: 0 | IDR31: 0 | IDX31: 0 | IED31: 0 | IEJ31: 0 | IEP31: 0 | IEV31: 0 | IFB31: 0 | IFH31: 0 | IFN31: 0 | IFT31: 0 | IFZ31: 0 | IGF31: 0 | IGL31: 0 | IGR31: 0 | IGX31: 0 | IHD31: 0 | IHJ31: 0 | IHP31: 0 | IHV31: 0 | IIB31: 0 | IIH31: 0 | IIN31: 0 | IIT31: 0 | IIZ31: 0 | IJF31: 0 | IJL31: 0 | IJR31: 0 | IJX31: 0 | IKD31: 0 | IKJ31: 0 | IKP31: 0 | IKV31: 0 | ILB31: 0 | ILH31: 0 | ILN31: 0 | ILT31: 0 | ILZ31: 0 | IMF31: 0 | IML31: 0 | IMR31: 0 | IMX31: 0 | IND31: 0 | INJ31: 0 | INP31: 0 | INV31: 0 | IOB31: 0 | IOH31: 0 | ION31: 0 | IOT31: 0 | IOZ31: 0 | IPF31: 0 | IPL31: 0 | IPR31: 0 | IPX31: 0 | IQD31: 0 | IQJ31: 0 | IQP31: 0 | IQV31: 0 | IRB31: 0 | IRH31: 0 | IRN31: 0 | IRT31: 0 | IRZ31: 0 | ISF31: 0 | ISL31: 0 | ISR31: 0 | ISX31: 0 | ITD31: 0 | ITJ31: 0 | ITP31: 0 | ITV31: 0 | IUB31: 0 | IUH31: 0 | IUN31: 0 | IUT31: 0 | IUZ31: 0 | IVF31: 0 | IVL31: 0 | IVR31: 0 | IVX31: 0 | IWD31: 0 | IWJ31: 0 | IWP31: 0 | IWV31: 0 | IXB31: 0 | IXH31: 0 | IXN31: 0 | IXT31: 0 | IXZ31: 0 | IYF31: 0 | IYL31: 0 | IYR31: 0 | IYX31: 0 | IZD31: 0 | IZJ31: 0 | IZP31: 0 | IZV31: 0 | JAB31: 0 | JAH31: 0 | JAN31: 0 | JAT31: 0 | JAZ31: 0 | JBF31: 0 | JBL31: 0 | JBR31: 0 | JBX31: 0 | JCD31: 0 | JCJ31: 0 | JCP31: 0 | JCV31: 0 | JDB31: 0 | JDH31: 0 | JDN31: 0 | JDT31: 0 | JDZ31: 0 | JEF31: 0 | JEL31: 0 | JER31: 0 | JEX31: 0 | JFD31: 0 | JFJ31: 0 | JFP31: 0 | JFV31: 0 | JGB31: 0 | JGH31: 0 | JGN31: 0 | JGT31: 0 | JGZ31: 0 | JHF31: 0 | JHL31: 0 | JHR31: 0 | JHX31: 0 | JID31: 0 | JIJ31: 0 | JIP31: 0 | JIV31: 0 | JJB31: 0 | JJH31: 0 | JJN31: 0 | JJT31: 0 | JJZ31: 0 | JKF31: 0 | JKL31: 0 | JKR31: 0 | JKX31: 0 | JLD31: 0 | JLJ31: 0 | JLP31: 0 | JLV31: 0 | JMB31: 0 | JMH31: 0 | JMN31: 0 | JMT31: 0 | JMZ31: 0 | JNF31: 0 | JNL31: 0 | JNR31: 0 | JNX31: 0 | JOD31: 0 | JOJ31: 0 | JOP31: 0 | JOV31: 0 | JPB31: 0 | JPH31: 0 | JPN31: 0 | JPT31: 0 | JPZ31: 0 | JQF31: 0 | JQL31: 0 | JQR31: 0 | JQX31: 0 | JRD31: 0 | JRJ31: 0 | JRP31: 0 | JRV31: 0 | JSB31: 0 | JSH31: 0 | JSN31: 0 | JST31: 0 | JSZ31: 0 | JTF31: 0 | JTL31: 0 | JTR31: 0 | JTX31: 0 | JUD31: 0 | JUJ31: 0 | JUP31: 0 | JUV31: 0 | JVB31: 0 | JVH31: 0 | JVN31: 0 | JVT31: 0 | JVZ31: 0 | JWF31: 0 | JWL31: 0 | JWR31: 0 | JWX31: 0 | JXD31: 0 | JXJ31: 0 | JXP31: 0 | JXV31: 0 | JYB31: 0 | JYH31: 0 | JYN31: 0 | JYT31: 0 | JYZ31: 0 | JZF31: 0 | JZL31: 0 | JZR31: 0 | JZX31: 0 | KAD31: 0 | KAJ31: 0 | KAP31: 0 | KAV31: 0 | KBB31: 0 | KBH31: 0 | KBN31: 0 | KBT31: 0 | KBZ31: 0 | KCF31: 0 | KCL31: 0 | KCR31: 0 | KCX31: 0 | KDD31: 0 | KDJ31: 0 | KDP31: 0 | KDV31: 0 | KEB31: 0 | KEH31: 0 | KEN31: 0 | KET31: 0 | KEZ31: 0 | KFF31: 0 | KFL31: 0 | KFR31: 0 | KFX31: 0 | KGD31: 0 | KGJ31: 0 | KGP31: 0 | KGV31: 0 | KHB31: 0 | KHH31: 0 | KHN31: 0 | KHT31: 0 | KHZ31: 0 | KIF31: 0 | KIL31: 0 | KIR31: 0 | KIX31: 0 | KJD31: 0 | KJJ31: 0 | KJP31: 0 | KJV31: 0 | KKB31: 0 | KKH31: 0 | KKN31: 0 | KKT31: 0 | KKZ31: 0 | KLF31: 0 | KLL31: 0 | KLR31: 0 | KLX31: 0 | KMD31: 0 | KMJ31: 0 | KMP31: 0 | KMV31: 0 | KNB31: 0 | KNH31: 0 | KNN31: 0 | KNT31: 0 | KNZ31: 0 | KOF31: 0 | KOL31: 0 | KOR31: 0 | KOX31: 0 | KPD31: 0 | KPJ31: 0 | KPP31: 0 | KPV31: 0 | KQB31: 0 | KQH31: 0 | KQN31: 0 | KQT31: 0 | KQZ31: 0 | KRF31: 0 | KRL31: 0 | KRR31: 0 | KRX31: 0 | KSD31: 0 | KSJ31: 0 | KSP31: 0 | KSV31: 0 | KTB31: 0 | KTH31: 0 | KTN31: 0 | KTT31: 0 | KTZ31: 0 | KUF31: 0 | KUL31: 0 | KUR31: 0 | KUX31: 0 | KVD31: 0 | KVJ31: 0 | KVP31: 0 | KVV31: 0 | KWB31: 0 | KWH31: 0 | KWN31: 0 | KWT31: 0 | KWZ31: 0 | KXF31: 0 | KXL31: 0 | KXR31: 0 | KXX31: 0 | KYD31: 0 | KYJ31: 0 | KYP31: 0 | KYV31: 0 | KZB31: 0 | KZH31: 0 | KZN31: 0 | KZT31: 0 | KZZ31: 0 | LAF31: 0 | LAL31: 0 | LAR31: 0 | LAX31: 0 | LBD31: 0 | LBJ31: 0 | LBP31: 0 | LBV31: 0 | LCB31: 0 | LCH31: 0 | LCN31: 0 | LCT31: 0 | LCZ31: 0 | LDF31: 0 | LDL31: 0 | LDR31: 0 | LDX31: 0 | LED31: 0 | LEJ31: 0 | LEP31: 0 | LEV31: 0 | LFB31: 0 | LFH31: 0 | LFN31: 0 | LFT31: 0 | LFZ31: 0 | LGF31: 0 | LGL31: 0 | LGR31: 0 | LGX31: 0 | LHD31: 0 | LHJ31: 0 | LHP31: 0 | LHV31: 0 | LIB31: 0 | LIH31: 0 | LIN31: 0 | LIT31: 0 | LIZ31: 0 | LJF31: 0 | LJL31: 0 | LJR31: 0 | LJX31: 0 | LKD31: 0 | LKJ31: 0 | LKP31: 0 | LKV31: 0 | LLB31: 0 | LLH31: 0 | LLN31: 0 | LLT31: 0 | LLZ31: 0 | LMF31: 0 | LML31: 0 | LMR31: 0 | LMX31: 0 | LND31: 0 | LNJ31: 0 | LNP31: 0 | LNV31: 0 | LOB31: 0 | LOH31: 0 | LON31: 0 | LOT31: 0 | LOZ31: 0 | LPF31: 0 | LPL31: 0 | LPR31: 0 | LPX31: 0 | LQD31: 0 | LQJ31: 0 | LQP31: 0 | LQV31: 0 | LRB31: 0 | LRH31: 0 | LRN31: 0 | LRT31: 0 | LRZ31: 0 | LSF31: 0 | LSL31: 0 | LSR31: 0 | LSX31: 0 | LTD31: 0 | LTJ31: 0 | LTP31: 0 | LTV31: 0 | LUB31: 0 | LUH31: 0 | LUN31: 0 | LUT31: 0 | LUZ31: 0 | LVF31: 0 | LVL31: 0 | LVR31: 0 | LVX31: 0 | LWD31: 0 | LWJ31: 0 | LWP31: 0 | LWV31: 0 | LXB31: 0 | LXH31: 0 | LXN31: 0 | LXT31: 0 | LXZ31: 0 | LYF31: 0 | LYL31: 0 | LYR31: 0 | LYX31: 0 | LZD31: 0 | LZJ31: 0 | LZP31: 0 | LZV31: 0 | MAB31: 0 | MAH31: 0 | MAN31: 0 | MAT31: 0 | MAZ31: 0 | MBF31: 0 | MBL31: 0 | MBR31: 0 | MBX31: 0 | MCD31: 0 | MCJ31: 0 | MCP31: 0 | MCV31: 0 | MDB31: 0 | MDH31: 0 | MDN31: 0 | MDT31: 0 | MDZ31: 0 | MEF31: 0 | MEL31: 0 | MER31: 0 | MEX31: 0 | MFD31: 0 | MFJ31: 0 | MFP31: 0 | MFV31: 0 | MGB31: 0 | MGH31: 0 | MGN31: 0 | MGT31: 0 | MGZ31: 0 | MHF31: 0 | MHL31: 0 | MHR31: 0 | MHX31: 0 | MID31: 0 | MIJ31: 0 | MIP31: 0 | MIV31: 0 | MJB31: 0 | MJH31: 0 | MJN31: 0 | MJT31: 0 | MJZ31: 0 | MKF31: 0 | MKL31: 0 | MKR31: 0 | MKX31: 0 | MLD31: 0 | MLJ31: 0 | MLP31: 0 | MLV31: 0 | MMB31: 0 | MMH31: 0 | MMN31: 0 | MMT31: 0 | MMZ31: 0 | MNF31: 0 | MNL31: 0 | MNR31: 0 | MNX31: 0 | MOD31: 0 | MOJ31: 0 | MOP31: 0 | MOV31: 0 | MPB31: 0 | MPH31: 0 | MPN31: 0 | MPT31: 0 | MPZ31: 0 | MQF31: 0 | MQL31: 0 | MQR31: 0 | MQX31: 0 | MRD31: 0 | MRJ31: 0 | MRP31: 0 | MRV31: 0 | MSB31: 0 | MSH31: 0 | MSN31: 0 | MST31: 0 | MSZ31: 0 | MTF31: 0 | MTL31: 0 | MTR31: 0 | MTX31: 0 | MUD31: 0 | MUJ31: 0 | MUP31: 0 | MUV31: 0 | MVB31: 0 | MVH31: 0 | MVN31: 0 | MVT31: 0 | MVZ31: 0 | MWF31: 0 | MWL31: 0 | MWR31: 0 | MWX31: 0 | MXD31: 0 | MXJ31: 0 | MXP31: 0 | MXV31: 0 | MYB31: 0 | MYH31: 0 | MYN31: 0 | MYT31: 0 | MYZ31: 0 | MZF31: 0 | MZL31: 0 | MZR31: 0 | MZX31: 0 | NAD31: 0 | NAJ31: 0 | NAP31: 0 | NAV31: 0 | NBB31: 0 | NBH31: 0 | NBN31: 0 | NBT31: 0 | NBZ31: 0 | NCF31: 0 | NCL31: 0 | NCR31: 0 | NCX31: 0 | NDD31: 0 | NDJ31: 0 | NDP31: 0 | NDV31: 0 | NEB31: 0 | NEH31: 0 | NEN31: 0 | NET31: 0 | NEZ31: 0 | NFF31: 0 | NFL31: 0 | NFR31: 0 | NFX31: 0 | NGD31: 0 | NGJ31: 0 | NGP31: 0 | NGV31: 0 | NHB31: 0 | NHH31: 0 | NHN31: 0 | NHT31: 0 | NHZ31: 0 | NIF31: 0 | NIL31: 0 | NIR31: 0 | NIX31: 0 | NJD31: 0 | NJJ31: 0 | NJP31: 0 | NJV31: 0 | NKB31: 0 | NKH31: 0 | NKN31: 0 | NKT31: 0 | NKZ31: 0 | NLF31: 0 | NLL31: 0 | NLR31: 0 | NLX31: 0 | NMD31: 0 | NMJ31: 0 | NMP31: 0 | NMV31: 0 | NNB31: 0 | NNH31: 0 | NNN31: 0 | NNT31: 0 | NNZ31: 0 | NOF31: 0 | NOL31: 0 | NOR31: 0 | NOX31: 0 | NPD31: 0 | NPJ31: 0 | NPP31: 0 | NPV31: 0 | NQB31: 0 | NQH31: 0 | NQN31: 0 | NQT31: 0 | NQZ31: 0 | NRF31: 0 | NRL31: 0 | NRR31: 0 | NRX31: 0 | NSD31: 0 | NSJ31: 0 | NSP31: 0 | NSV31: 0 | NTB31: 0 | NTH31: 0 | NTN31: 0 | NTT31: 0 | NTZ31: 0 | NUF31: 0 | NUL31: 0 | NUR31: 0 | NUX31: 0 | NVD31: 0 | NVJ31: 0 | NVP31: 0 | NVV31: 0 | NWB31: 0 | NWH31: 0 | NWN31: 0 | NWT31: 0 | NWZ31: 0 | NXF31: 0 | NXL31: 0 | NXR31: 0 | NXX31: 0 | NYD31: 0 | NYJ31: 0 | NYP31: 0 | NYV31: 0 | NZB31: 0 | NZH31: 0 | NZN31: 0 | NZT31: 0 | NZZ31: 0 | OAF31: 0 | OAL31: 0 | OAR31: 0 | OAX31: 0 | OBD31: 0 | OBJ31: 0 | OBP31: 0 | OBV31: 0 | OCB31: 0 | OCH31: 0 | OCN31: 0 | OCT31: 0 | OCZ31: 0 | ODF31: 0 | ODL31: 0 | ODR31: 0 | ODX31: 0 | OED31: 0 | OEJ31: 0 | OEP31: 0 | OEV31: 0 | OFB31: 0 | OFH31: 0 | OFN31: 0 | OFT31: 0 | OFZ31: 0 | OGF31: 0 | OGL31: 0 | OGR31: 0 | OGX31: 0 | OHD31: 0 | OHJ31: 0 | OHP31: 0 | OHV31: 0 | OIB31: 0 | OIH31: 0 | OIN31: 0 | OIT31: 0 | OIZ31: 0 | OJF31: 0 | OJL31: 0 | OJR31: 0 | OJX31: 0 | OKD31: 0 | OKJ31: 0 | OKP31: 0 | OKV31: 0 | OLB31: 0 | OLH31: 0 | OLN31: 0 | OLT31: 0 | OLZ31: 0 | OMF31: 0 | OML31: 0 | OMR31: 0 | OMX31: 0 | OND31: 0 | ONJ31: 0 | ONP31: 0 | ONV31: 0 | OOB31: 0 | OOH31: 0 | OON31: 0 | OOT31: 0 | OOZ31: 0 | OPF31: 0 | OPL31: 0 | OPR31: 0 | OPX31: 0 | OQD31: 0 | OQJ31: 0 | OQP31: 0 | OQV31: 0 | ORB31: 0 | ORH31: 0 | ORN31: 0 | ORT31: 0 | ORZ31: 0 | OSF31: 0 | OSL31: 0 | OSR31: 0 | OSX31: 0 | OTD31: 0 | OTJ31: 0 | OTP31: 0 | OTV31: 0 | OUB31: 0 | OUH31: 0 | OUN31: 0 | OUT31: 0 | OUZ31: 0 | OVF31: 0 | OVL31: 0 | OVR31: 0 | OVX31: 0 | OWD31: 0 | OWJ31: 0 | OWP31: 0 | OWV31: 0 | OXB31: 0 | OXH31: 0 | OXN31: 0 | OXT31: 0 | OXZ31: 0 | OYF31: 0 | OYL31: 0 | OYR31: 0 | OYX31: 0 | OZD31: 0 | OZJ31: 0 | OZP31: 0 | OZV31: 0 | PAB31: 0 | PAH31: 0 | PAN31: 0 | PAT31: 0 | PAZ31: 0 | PBF31: 0 | PBL31: 0 | PBR31: 0 | PBX31: 0 | PCD31: 0 | PCJ31: 0 | PCP31: 0 | PCV31: 0 | PDB31: 0 | PDH31: 0 | PDN31: 0 | PDT31: 0 | PDZ31: 0 | PEF31: 0 | PEL31: 0 | PER31: 0 | PEX31: 0 | PFD31: 0 | PFJ31: 0 | PFP31: 0 | PFV31: 0 | PGB31: 0 | PGH31: 0 | PGN31: 0 | PGT31: 0 | PGZ31: 0 | PHF31: 0 | PHL31: 0 | PHR31: 0 | PHX31: 0 | PID31: 0 | PIJ31: 0 | PIP31: 0 | PIV31: 0 | PJB31: 0 | PJH31: 0 | PJN31: 0 | PJT31: 0 | PJZ31: 0 | PKF31: 0 | PKL31: 0 | PKR31: 0 | PKX31: 0 | PLD31: 0 | PLJ31: 0 | PLP31: 0 | PLV31: 0 | PMB31: 0 | PMH31: 0 | PMN31: 0 | PMT31: 0 | PMZ31: 0 | PNF31: 0 | PNL31: 0 | PNR31: 0 | PNX31: 0 | POD31: 0 | POJ31: 0 | POP31: 0 | POV31: 0 | PPB31: 0 | PPH31: 0 | PPN31: 0 | PPT31: 0 | PPZ31: 0 | PQF31: 0 | PQL31: 0 | PQR31: 0 | PQX31: 0 | PRD31: 0 | PRJ31: 0 | PRP31: 0 | PRV31: 0 | PSB31: 0 | PSH31: 0 | PSN31: 0 | PST31: 0 | PSZ31: 0 | PTF31: 0 | PTL31: 0 | PTR31: 0 | PTX31: 0 | PUD31: 0 | PUJ31: 0 | PUP31: 0 | PUV31: 0 | PVB31: 0 | PVH31: 0 | PVN31: 0 | PVT31: 0 | PVZ31: 0 | PWF31: 0 | PWL31: 0 | PWR31: 0 | PWX31: 0 | PXD31: 0 | PXJ31: 0 | PXP31: 0 | PXV31: 0 | PYB31: 0 | PYH31: 0 | PYN31: 0 | PYT31: 0 | PYZ31: 0 | PZF31: 0 | PZL31: 0 | PZR31: 0 | PZX31: 0 | QAD31: 0 | QAJ31: 0 | QAP31: 0 | QAV31: 0 | QBB31: 0 | QBH31: 0 | QBN31: 0 | QBT31: 0 | QBZ31: 0 | QCF31: 0 | QCL31: 0 | QCR31: 0 | QCX31: 0 | QDD31: 0 | QDJ31: 0 | QDP31: 0 | QDV31: 0 | QEB31: 0 | QEH31: 0 | QEN31: 0 | QET31: 0 | QEZ31: 0 | QFF31: 0 | QFL31: 0 | QFR31: 0 | QFX31: 0 | QGD31: 0 | QGJ31: 0 | QGP31: 0 | QGV31: 0 | QHB31: 0 | QHH31: 0 | QHN31: 0 | QHT31: 0 | QHZ31: 0 | QIF31: 0 | QIL31: 0 | QIR31: 0 | QIX31: 0 | QJD31: 0 | QJJ31: 0 | QJP31: 0 | QJV31: 0 | QKB31: 0 | QKH31: 0 | QKN31: 0 | QKT31: 0 | QKZ31: 0 | QLF31: 0 | QLL31: 0 | QLR31: 0 | QLX31: 0 | QMD31: 0 | QMJ31: 0 | QMP31: 0 | QMV31: 0 | QNB31: 0 | QNH31: 0 | QNN31: 0 | QNT31: 0 | QNZ31: 0 | QOF31: 0 | QOL31: 0 | QOR31: 0 | QOX31: 0 | QPD31: 0 | QPJ31: 0 | QPP31: 0 | QPV31: 0 | QQB31: 0 | QQH31: 0 | QQN31: 0 | QQT31: 0 | QQZ31: 0 | QRF31: 0 | QRL31: 0 | QRR31: 0 | QRX31: 0 | QSD31: 0 | QSJ31: 0 | QSP31: 0 | QSV31: 0 | QTB31: 0 | QTH31: 0 | QTN31: 0 | QTT31: 0 | QTZ31: 0 | QUF31: 0 | QUL31: 0 | QUR31: 0 | QUX31: 0 | QVD31: 0 | QVJ31: 0 | QVP31: 0 | QVV31: 0 | QWB31: 0 | QWH31: 0 | QWN31: 0 | QWT31: 0 | QWZ31: 0 | QXF31: 0 | QXL31: 0 | QXR31: 0 | QXX31: 0 | QYD31: 0 | QYJ31: 0 | QYP31: 0 | QYV31: 0 | QZB31: 0 | QZH31: 0 | QZN31: 0 | QZT31: 0 | QZZ31: 0 | RAF31: 0 | RAL31: 0 | RAR31: 0 | RAX31: 0 | RBD31: 0 | RBJ31: 0 | RBP31: 0 | RBV31: 0 | RCB31: 0 | RCH31: 0 | RCN31: 0 | RCT31: 0 | RCZ31: 0 | RDF31: 0 | RDL31: 0 | RDR31: 0 | RDX31: 0 | RED31: 0 | REJ31: 0 | REP31: 0 | REV31: 0 | RFB31: 0 | RFH31: 0 | RFN31: 0 | RFT31: 0 | RFZ31: 0 | RGF31: 0 | RGL31: 0 | RGR31: 0 | RGX31: 0 | RHD31: 0 | RHJ31: 0 | RHP31: 0 | RHV31: 0 | RIB31: 0 | RIH31: 0 | RIN31: 0 | RIT31: 0 | RIZ31: 0 | RJF31: 0 | RJL31: 0 | RJR31: 0 | RJX31: 0 | RKD31: 0 | RKJ31: 0 | RKP31: 0 | RKV31: 0 | RLB31: 0 | RLH31: 0 | RLN31: 0 | RLT31: 0 | RLZ31: 0 | RMF31: 0 | RML31: 0 | RMR31: 0 | RMX31: 0 | RND31: 0 | RNJ31: 0 | RNP31: 0 | RNV31: 0 | ROB31: 0 | ROH31: 0 | RON31: 0 | ROT31: 0 | ROZ31: 0 | RPF31: 0 | RPL31: 0 | RPR31: 0 | RPX31: 0 | RQD31: 0 | RQJ31: 0 | RQP31: 0 | RQV31: 0 | RRB31: 0 | RRH31: 0 | RRN31: 0 | RRT31: 0 | RRZ31: 0 | RSF31: 0 | RSL31: 0 | RSR31: 0 | RSX31: 0 | RTD31: 0 | RTJ31: 0 | RTP31: 0 | RTV31: 0 | RUB31: 0 | RUH31: 0 | RUN31: 0 | RUT31: 0 | RUZ31: 0 | RVF31: 0 | RVL31: 0 | RVR31: 0 | RVX31: 0 | RWD31: 0 | RWJ31: 0 | RWP31: 0 | RWV31: 0 | RXB31: 0 | RXH31: 0 | RXN31: 0 | RXT31: 0 | RXZ31: 0 | RYF31: 0 | RYL31: 0 | RYR31: 0 | RYX31: 0 | RZD31: 0 | RZJ31: 0 | RZP31: 0 | RZV31: 0 | SAB31: 0 | SAH31: 0 | SAN31: 0 | SAT31: 0 | SAZ31: 0 | SBF31: 0 | SBL31: 0 | SBR31: 0 | SBX31: 0 | SCD31: 0 | SCJ31: 0 | SCP31: 0 | SCV31: 0 | SDB31: 0 | SDH31: 0 | SDN31: 0 | SDT31: 0 | SDZ31: 0 | SEF31: 0 | SEL31: 0 | SER31: 0 | SEX31: 0 | SFD31: 0 | SFJ31: 0 | SFP31: 0 | SFV31: 0 | SGB31: 0 | SGH31: 0 | SGN31: 0 | SGT31: 0 | SGZ31: 0 | SHF31: 0 | SHL31: 0 | SHR31: 0 | SHX31: 0 | SID31: 0 | SIJ31: 0 | SIP31: 0 | SIV31: 0 | SJB31: 0 | SJH31: 0 | SJN31: 0 | SJT31: 0 | SJZ31: 0 | SKF31: 0 | SKL31: 0 | SKR31: 0 | SKX31: 0 | SLD31: 0 | SLJ31: 0 | SLP31: 0 | SLV31: 0 | SMB31: 0 | SMH31: 0 | SMN31: 0 | SMT31: 0 | SMZ31: 0 | SNF31: 0 | SNL31: 0 | SNR31: 0 | SNX31: 0 | SOD31: 0 | SOJ31: 0 | SOP31: 0 | SOV31: 0 | SPB31: 0 | SPH31: 0 | SPN31: 0 | SPT31: 0 | SPZ31: 0 | SQF31: 0 | SQL31: 0 | SQR31: 0 | SQX31: 0 | SRD31: 0 | SRJ31: 0 | SRP31: 0 | SRV31: 0 | SSB31: 0 | SSH31: 0 | SSN31: 0 | SST31: 0 | SSZ31: 0 | STF31: 0 | STL31: 0 | STR31: 0 | STX31: 0 | SUD31: 0 | SUJ31: 0 | SUP31: 0 | SUV31: 0 | SVB31: 0 | SVH31: 0 | SVN31: 0 | SVT31: 0 | SVZ31: 0 | SWF31: 0 | SWL31: 0 | SWR31: 0 | SWX31: 0 | SXD31: 0 | SXJ31: 0 | SXP31: 0 | SXV31: 0 | SYB31: 0 | SYH31: 0 | SYN31: 0 | SYT31: 0 | SYZ31: 0 | SZF31: 0 | SZL31: 0 | SZR31: 0 | SZX31: 0 | TAD31: 0 | TAJ31: 0 | TAP31: 0 | TAV31: 0 | TBB31: 0 | TBH31: 0 | TBN31: 0 | TBT31: 0 | TBZ31: 0 | TCF31: 0 | TCL31: 0 | TCR31: 0 | TCX31: 0 | TDD31: 0 | TDJ31: 0 | TDP31: 0 | TDV31: 0 | TEB31: 0 | TEH31: 0 | TEN31: 0 | TET31: 0 | TEZ31: 0 | TFF31: 0 | TFL31: 0 | TFR31: 0 | TFX31: 0 | TGD31: 0 | TGJ31: 0 | TGP31: 0 | TGV31: 0 | THB31: 0 | THH31: 0 | THN31: 0 | THT31: 0 | THZ31: 0 | TIF31: 0 | TIL31: 0 | TIR31: 0 | TIX31: 0 | TJD31: 0 | TJJ31: 0 | TJP31: 0 | TJV31: 0 | TKB31: 0 | TKH31: 0 | TKN31: 0 | TKT31: 0 | TKZ31: 0 | TLF31: 0 | TLL31: 0 | TLR31: 0 | TLX31: 0 | TMD31: 0 | TMJ31: 0 | TMP31: 0 | TMV31: 0 | TNB31: 0 | TNH31: 0 | TNN31: 0 | TNT31: 0 | TNZ31: 0 | TOF31: 0 | TOL31: 0 | TOR31: 0 | TOX31: 0 | TPD31: 0 | TPJ31: 0 | TPP31: 0 | TPV31: 0 | TQB31: 0 | TQH31: 0 | TQN31: 0 | TQT31: 0 | TQZ31: 0 | TRF31: 0 | TRL31: 0 | TRR31: 0 | TRX31: 0 | TSD31: 0 | TSJ31: 0 | TSP31: 0 | TSV31: 0 | TTB31: 0 | TTH31: 0 | TTN31: 0 | TTT31: 0 | TTZ31: 0 | TUF31: 0 | TUL31: 0 | TUR31: 0 | TUX31: 0 | TVD31: 0 | TVJ31: 0 | TVP31: 0 | TVV31: 0 | TWB31: 0 | TWH31: 0 | TWN31: 0 | TWT31: 0 | TWZ31: 0 | TXF31: 0 | TXL31: 0 | TXR31: 0 | TXX31: 0 | TYD31: 0 | TYJ31: 0 | TYP31: 0 | TYV31: 0 | TZB31: 0 | TZH31: 0 | TZN31: 0 | TZT31: 0 | TZZ31: 0 | UAF31: 0 | UAL31: 0 | UAR31: 0 | UAX31: 0 | UBD31: 0 | UBJ31: 0 | UBP31: 0 | UBV31: 0 | UCB31: 0 | UCH31: 0 | UCN31: 0 | UCT31: 0 | UCZ31: 0 | UDF31: 0 | UDL31: 0 | UDR31: 0 | UDX31: 0 | UED31: 0 | UEJ31: 0 | UEP31: 0 | UEV31: 0 | UFB31: 0 | UFH31: 0 | UFN31: 0 | UFT31: 0 | UFZ31: 0 | UGF31: 0 | UGL31: 0 | UGR31: 0 | UGX31: 0 | UHD31: 0 | UHJ31: 0 | UHP31: 0 | UHV31: 0 | UIB31: 0 | UIH31: 0 | UIN31: 0 | UIT31: 0 | UIZ31: 0 | UJF31: 0 | UJL31: 0 | UJR31: 0 | UJX31: 0 | UKD31: 0 | UKJ31: 0 | UKP31: 0 | UKV31: 0 | ULB31: 0 | ULH31: 0 | ULN31: 0 | ULT31: 0 | ULZ31: 0 | UMF31: 0 | UML31: 0 | UMR31: 0 | UMX31: 0 | UND31: 0 | UNJ31: 0 | UNP31: 0 | UNV31: 0 | UOB31: 0 | UOH31: 0 | UON31: 0 | UOT31: 0 | UOZ31: 0 | UPF31: 0 | UPL31: 0 | UPR31: 0 | UPX31: 0 | UQD31: 0 | UQJ31: 0 | UQP31: 0 | UQV31: 0 | URB31: 0 | URH31: 0 | URN31: 0 | URT31: 0 | URZ31: 0 | USF31: 0 | USL31: 0 | USR31: 0 | USX31: 0 | UTD31: 0 | UTJ31: 0 | UTP31: 0 | UTV31: 0 | UUB31: 0 | UUH31: 0 | UUN31: 0 | UUT31: 0 | UUZ31: 0 | UVF31: 0 | UVL31: 0 | UVR31: 0 | UVX31: 0 | UWD31: 0 | UWJ31: 0 | UWP31: 0 | UWV31: 0 | UXB31: 0 | UXH31: 0 | UXN31: 0 | UXT31: 0 | UXZ31: 0 | UYF31: 0 | UYL31: 0 | UYR31: 0 | UYX31: 0 | UZD31: 0 | UZJ31: 0 | UZP31: 0 | UZV31: 0 | VAB31: 0 | VAH31: 0 | VAN31: 0 | VAT31: 0 | VAZ31: 0 | VBF31: 0 | VBL31: 0 | VBR31: 0 | VBX31: 0 | VCD31: 0 | VCJ31: 0 | VCP31: 0 | VCV31: 0 | VDB31: 0 | VDH31: 0 | VDN31: 0 | VDT31: 0 | VDZ31: 0 | VEF31: 0 | VEL31: 0 | VER31: 0 | VEX31: 0 | VFD31: 0 | VFJ31: 0 | VFP31: 0 | VFV31: 0 | VGB31: 0 | VGH31: 0 | VGN31: 0 | VGT31: 0 | VGZ31: 0 | VHF31: 0 | VHL31: 0 | VHR31: 0 | VHX31: 0 | VID31: 0 | VIJ31: 0 | VIP31: 0 | VIV31: 0 | VJB31: 0 | VJH31: 0 | VJN31: 0 | VJT31: 0 | VJZ31: 0 | VKF31: 0 | VKL31: 0 | VKR31: 0 | VKX31: 0 | VLD31: 0 | VLJ31: 0 | VLP31: 0 | VLV31: 0 | VMB31: 0 | VMH31: 0 | VMN31: 0 | VMT31: 0 | VMZ31: 0 | VNF31: 0 | VNL31: 0 | VNR31: 0 | VNX31: 0 | VOD31: 0 | VOJ31: 0 | VOP31: 0 | VOV31: 0 | VPB31: 0 | VPH31: 0 | VPN31: 0 | VPT31: 0 | VPZ31: 0 | VQF31: 0 | VQL31: 0 | VQR31: 0 | VQX31: 0 | VRD31: 0 | VRJ31: 0 | VRP31: 0 | VRV31: 0 | VSB31: 0 | VSH31: 0 | VSN31: 0 | VST31: 0 | VSZ31: 0 | VTF31: 0 | VTL31: 0 | VTR31: 0 | VTX31: 0 | VUD31: 0 | VUJ31: 0 | VUP31: 0 | VUV31: 0 | VVB31: 0 | VVH31: 0 | VVN31: 0 | VVT31: 0 | VVZ31: 0 | VWF31: 0 | VWL31: 0 | VWR31: 0 | VWX31: 0 | VXD31: 0 | VXJ31: 0 | VXP31: 0 | VXV31: 0 | VYB31: 0 | VYH31: 0 | VYN31: 0 | VYT31: 0 | VYZ31: 0 | VZF31: 0 | VZL31: 0 | VZR31: 0 | VZX31: 0 | WAD31: 0 | WAJ31: 0 | WAP31: 0 | WAV31: 0 | WBB31: 0 | WBH31: 0 | WBN31: 0 | WBT31: 0 | WBZ31: 0 | WCF31: 0 | WCL31: 0 | WCR31: 0 | WCX31: 0 | WDD31: 0 | WDJ31: 0 | WDP31: 0 | WDV31: 0 | WEB31: 0 | WEH31: 0 | WEN31: 0 | WET31: 0 | WEZ31: 0 | WFF31: 0 | WFL31: 0 | WFR31: 0 | WFX31: 0 | WGD31: 0 | WGJ31: 0 | WGP31: 0 | WGV31: 0 | WHB31: 0 | WHH31: 0 | WHN31: 0 | WHT31: 0 | WHZ31: 0 | WIF31: 0 | WIL31: 0 | WIR31: 0 | WIX31: 0 | WJD31: 0 | WJJ31: 0 | WJP31: 0 | WJV31: 0 | WKB31: 0 | WKH31: 0 | WKN31: 0 | WKT31: 0 | WKZ31: 0 | WLF31: 0 | WLL31: 0 | WLR31: 0 | WLX31: 0 | WMD31: 0 | WMJ31: 0 | WMP31: 0 | WMV31: 0 | WNB31: 0 | WNH31: 0 | WNN31: 0 | WNT31: 0 | WNZ31: 0 | WOF31: 0 | WOL31: 0 | WOR31: 0 | WOX31: 0 | WPD31: 0 | WPJ31: 0 | WPP31: 0 | WPV31: 0 | WQB31: 0 | WQH31: 0 | WQN31: 0 | WQT31: 0 | WQZ31: 0 | WRF31: 0 | WRL31: 0 | WRR31: 0 | WRX31: 0 | WSD31: 0 | WSJ31: 0 | WSP31: 0 | WSV31: 0 | WTB31: 0 | WTH31: 0 | WTN31: 0 | WTT31: 0 | WTZ31: 0 | WUF31: 0 | WUL31: 0 | WUR31: 0 | WUX31: 0 | WVD31: 0 | WVJ31: 0 | WVP31: 0 | WVV31: 0 | WWB31: 0 | WWH31: 0 | WWN31: 0 | WWT31: 0 | WWZ31: 0 | WXF31: 0 | WXL31: 0 | WXR31: 0 | WXX31: 0 | WYD31: 0 | WYJ31: 0 | WYP31: 0 | WYV31: 0 | WZB31: 0 | WZH31: 0 | WZN31: 0 | WZT31: 0 | WZZ31: 0 | XAF31: 0 | XAL31: 0 | XAR31: 0 | XAX31: 0 | XBD31: 0 | XBJ31: 0 | XBP31: 0 | XBV31: 0 | XCB31: 0 | XCH31: 0 | XCN31: 0 | XCT31: 0 | XCZ31: 0 | XDF31: 0 | XDL31: 0 | XDR31: 0 | XDX31: 0 | XED31: 0 | XEJ31: 0 | XEP31: 0 | XEV31: 0 | XFB31: 0
... 29 more rows

Sheet Inp_Var
A1: =RIGHT(CELL("filename", A1), LEN(CELL("filename", A1)) - SEARCH("]", CELL("filename", A1))) -> 
E3: Company | F3: Measure | G3: Unit | H3: Constant | J3: 2025-26 | K3: 2026-27 | L3: 2027-28 | M3: 2028-29 | N3: 2029-30
A7: Regulated Equity
B9: Water RE
E11: ANH | F11: Regulated Equity (Water) | G11: £m | J11: ='RCV to RE'!H40 -> 2044.813376 | K11: ='RCV to RE'!N40 -> 2214.017213 | L11: ='RCV to RE'!T40 -> 2420.534178 | M11: ='RCV to RE'!Z40 -> 2600.289818 | N11: ='RCV to RE'!AF40 -> 2762.981867
E12: SVE | F12: Regulated Equity (Water) | G12: £m | J12: ='RCV to RE'!H41 -> 2847.008761 | K12: ='RCV to RE'!N41 -> 2975.010923 | L12: ='RCV to RE'!T41 -> 3128.340488 | M12: ='RCV to RE'!Z41 -> 3245.324313 | N12: ='RCV to RE'!AF41 -> 3310.98245
E13: SWB | F13: Regulated Equity (Water) | G13: £m | J13: ='RCV to RE'!H42 -> 997.4190881 | K13: ='RCV to RE'!N42 -> 1022.786478 | L13: ='RCV to RE'!T42 -> 1040.215818 | M13: ='RCV to RE'!Z42 -> 1055.748536 | N13: ='RCV to RE'!AF42 -> 1063.224918
E14: TMS | F14: Regulated Equity (Water) | G14: £m | J14: ='RCV to RE'!H43 -> 4207.160073 | K14: ='RCV to RE'!N43 -> 4472.178035 | L14: ='RCV to RE'!T43 -> 4744.447001 | M14: ='RCV to RE'!Z43 -> 5003.866712 | N14: ='RCV to RE'!AF43 -> 5348.971071
E15: UUW | F15: Regulated Equity (Water) | G15: £m | J15: ='RCV to RE'!H44 -> 2127.137337 | K15: ='RCV to RE'!N44 -> 2171.854475 | L15: ='RCV to RE'!T44 -> 2240.783088 | M15: ='RCV to RE'!Z44 -> 2279.023279 | N15: ='RCV to RE'!AF44 -> 2290.49436
E16: AFW | F16: Regulated Equity (Water) | G16: £m | J16: ='RCV to RE'!H45 -> 824.8910038 | K16: ='RCV to RE'!N45 -> 877.9188868 | L16: ='RCV to RE'!T45 -> 926.4326283 | M16: ='RCV to RE'!Z45 -> 963.7681826 | N16: ='RCV to RE'!AF45 -> 978.8202268
B18: Wastewater RE
E20: ANH | F20: Regulated Equity (Wastewater) | G20: £m | J20: ='RCV to RE'!H80 -> 2771.54756 | K20: ='RCV to RE'!N80 -> 2977.530475 | L20: ='RCV to RE'!T80 -> 3211.9554 | M20: ='RCV to RE'!Z80 -> 3468.955586 | N20: ='RCV to RE'!AF80 -> 3574.25624
E21: SVE | F21: Regulated Equity (Wastewater) | G21: £m | J21: ='RCV to RE'!H81 -> 3131.577829 | K21: ='RCV to RE'!N81 -> 3559.286369 | L21: ='RCV to RE'!T81 -> 3904.50648 | M21: ='RCV to RE'!Z81 -> 4214.221276 | N21: ='RCV to RE'!AF81 -> 4423.551351
E22: SWB | F22: Regulated Equity (Wastewater) | G22: £m | J22: ='RCV to RE'!H82 -> 1094.607821 | K22: ='RCV to RE'!N82 -> 1178.186677 | L22: ='RCV to RE'!T82 -> 1246.675664 | M22: ='RCV to RE'!Z82 -> 1316.546594 | N22: ='RCV to RE'!AF82 -> 1349.927725
E23: TMS | F23: Regulated Equity (Wastewater) | G23: £m | J23: ='RCV to RE'!H83 -> 4005.498756 | K23: ='RCV to RE'!N83 -> 4240.419451 | L23: ='RCV to RE'!T83 -> 4531.808674 | M23: ='RCV to RE'!Z83 -> 4975.9418 | N23: ='RCV to RE'!AF83 -> 5674.132097
E24: UUW | F24: Regulated Equity (Wastewater) | G24: £m | J24: ='RCV to RE'!H84 -> 4356.108029 | K24: ='RCV to RE'!N84 -> 4724.853745 | L24: ='RCV to RE'!T84 -> 5177.83681 | M24: ='RCV to RE'!Z84 -> 5518.120682 | N24: ='RCV to RE'!AF84 -> 5583.166024
E25: AFW | F25: Regulated Equity (Wastewater) | G25: £m
B27: Appointee RE
E29: ANH | F29: Regulated Equity (Wastewater) | G29: £m | J29: ='RCV to RE'!H125 -> 4816.360936 | K29: ='RCV to RE'!N125 -> 5191.547688 | L29: ='RCV to RE'!T125 -> 5632.489578 | M29: ='RCV to RE'!Z125 -> 6069.245404 | N29: ='RCV to RE'!AF125 -> 6337.238107
E30: SVE | F30: Regulated Equity (Wastewater) | G30: £m | J30: ='RCV to RE'!H126 -> 5978.58659 | K30: ='RCV to RE'!N126 -> 6534.297292 | L30: ='RCV to RE'!T126 -> 7032.846968 | M30: ='RCV to RE'!Z126 -> 7459.54559 | N30: ='RCV to RE'!AF126 -> 7734.533801
E31: SWB | F31: Regulated Equity (Wastewater) | G31: £m | J31: ='RCV to RE'!H127 -> 2092.026909 | K31: ='RCV to RE'!N127 -> 2200.973154 | L31: ='RCV to RE'!T127 -> 2286.891482 | M31: ='RCV to RE'!Z127 -> 2372.295129 | N31: ='RCV to RE'!AF127 -> 2413.152643
E32: TMS | F32: Regulated Equity (Wastewater) | G32: £m | J32: ='RCV to RE'!H128 -> 8953.155787 | K32: ='RCV to RE'!N128 -> 9464.02597 | L32: ='RCV to RE'!T128 -> 10039.07698 | M32: ='RCV to RE'!Z128 -> 10747.37754 | N32: ='RCV to RE'!AF128 -> 11793.64367
E33: UUW | F33: Regulated Equity (Wastewater) | G33: £m | J33: ='RCV to RE'!H129 -> 6483.245367 | K33: ='RCV to RE'!N129 -> 6896.70822 | L33: ='RCV to RE'!T129 -> 7418.619898 | M33: ='RCV to RE'!Z129 -> 7797.143961 | N33: ='RCV to RE'!AF129 -> 7873.660384
E34: AFW | F34: Regulated Equity (Wastewater) | G34: £m | J34: ='RCV to RE'!H130 -> 824.8910038 | K34: ='RCV to RE'!N130 -> 877.9188868 | L34: ='RCV to RE'!T130 -> 926.4326283 | M34: ='RCV to RE'!Z130 -> 963.7681826 | N34: ='RCV to RE'!AF130 -> 978.8202268
A36: Baseline for Greenhouse Gas Emissions unit conversion
B38: Embedded GHG (except SWB)
E40: ANH | F40: Cumulative baseline (embedded GHG) | G40: tCO2e | J40: 1029.051 | K40: 8346.747 | L40: 11090.883 | M40: 38189.226 | N40: 114224.661
E41: SVE | F41: Cumulative baseline (embedded GHG) | G41: tCO2e | J41: 156329.19 | K41: 355631.36 | L41: 595815.01 | M41: 869108.45 | N41: 1095986.74
E42: UUW | F42: Cumulative baseline (embedded GHG) | G42: tCO2e | J42: 11862 | K42: 13723 | L42: 13723 | M42: 28468 | N42: 134925
B44: Embedded GHG (SWB only)
E46: SWB | F46: Total capital delivery spend (embedded GHG) | G46: £m | J46: 381.724 | K46: 392.014 | L46: 363.177 | M46: 382.109 | N46: 293.931
E48: SWB | F48: Baseline (embedded GHG) | G48: tCO2e / £m | H48: 385.56
A50: Year 5 PCLs converted to cumulative across all years
B52: Year 5 PCLs
E54: TMS | F54: PCL (Streetworks) | G54: Nr | J54: =Inp_Fountain!K31 -> 0 | K54: =Inp_Fountain!L31 -> 0 | L54: =Inp_Fountain!M31 -> 0 | M54: =Inp_Fountain!N31 -> 0 | N54: =Inp_Fountain!O31 -> 22
B56: Converted PCLs
F58: Number of years | H58: 5
E60: TMS | F60: PCL (Streetworks) | G60: Nr | J60: =$N$54/$H$58 -> 4.4 | K60: =J60+$N$54/$H$58 -> 8.8 | L60: =K60+$N$54/$H$58 -> 13.2 | M60: =L60+$N$54/$H$58 -> 17.6 | N60: =M60+$N$54/$H$58 -> 22
A62: END

Sheet Inp_Fountain
A1: =RIGHT(CELL("filename", A1), LEN(CELL("filename", A1)) - SEARCH("]", CELL("filename", A1))) -> 
E3: Company | F3: Performance Commitment | G3: Measure | H3: Code Reference | I3: Constant | K3: 2025-26 | L3: 2026-27 | M3: 2027-28 | N3: 2028-29 | O3: 2029-30
A7: PR24 Deadbands
E9: ANH | F9: Embedded GHG | G9: Deadband | H9: C_ODIRISK_LCC_DDBND_PR24 | O9: =SUMIFS(F_Inputs!K$7:K$374,F_Inputs!$A$7:$A$374,$E9,F_Inputs!$B$7:$B$374,$H9) -> 0
E10: HDD | F10: Embedded GHG | G10: Deadband
E11: SVE | F11: Embedded GHG | G11: Deadband | H11: C_ODIRISK_CC_DDBND_PR24 | O11: =SUMIFS(F_Inputs!K$7:K$374,F_Inputs!$A$7:$A$374,$E11,F_Inputs!$B$7:$B$374,$H11) -> 0
E12: SWB | F12: Embedded GHG | G12: Deadband | H12: C_ODIRISK_EGG_DDBND_PR24 | O12: =SUMIFS(F_Inputs!K$7:K$374,F_Inputs!$A$7:$A$374,$E12,F_Inputs!$B$7:$B$374,$H12) -> 0
E13: TMS | F13: Embedded GHG | G13: Deadband
E14: NWT | F14: Embedded GHG | G14: Deadband | H14: C_ODIRISK_EGG_DDBND_PR24 | O14: =SUMIFS(F_Inputs!K$7:K$374,F_Inputs!$A$7:$A$374,$E14,F_Inputs!$B$7:$B$374,$H14) -> 0
E15: AFW | F15: Embedded GHG | G15: Deadband
A17: PR24 Performance Commitment Levels (PCLs)
B19: Greenhouse Gas Emissions bespoke PCs
E21: ANH | F21: Embedded GHG | G21: PCL | H21: C_PCL_LCC_PR24 | O21: =SUMIFS(F_Inputs!K$7:K$374,F_Inputs!$A$7:$A$374,$E21,F_Inputs!$B$7:$B$374,$H21) -> 0.05
E22: HDD | F22: Embedded GHG | G22: PCL
E23: SVE | F23: Embedded GHG | G23: PCL | H23: C_PCL_CC_PR24 | O23: =SUMIFS(F_Inputs!K$7:K$374,F_Inputs!$A$7:$A$374,$E23,F_Inputs!$B$7:$B$374,$H23) -> 0.05
E24: SWB | F24: Embedded GHG | G24: PCL | H24: C_PCL_EGG_PR24 | O24: =SUMIFS(F_Inputs!K$7:K$374,F_Inputs!$A$7:$A$374,$E24,F_Inputs!$B$7:$B$374,$H24) -> 0.05
E25: TMS | F25: Embedded GHG | G25: PCL
E26: NWT | F26: Embedded GHG | G26: PCL | H26: C_PCL_EGG_PR24 | O26: =SUMIFS(F_Inputs!K$7:K$374,F_Inputs!$A$7:$A$374,$E26,F_Inputs!$B$7:$B$374,$H26) -> 0.05
E27: AFW | F27: Embedded GHG | G27: PCL
B29: All other bespoke PCs
E31: TMS | F31: Streetworks | G31: PCL | H31: C_PCL_SWC_PR24 | K31: =SUMIFS(F_Inputs!G$7:G$374,F_Inputs!$A$7:$A$374,$E31,F_Inputs!$B$7:$B$374,$H31) -> 0 | L31: =SUMIFS(F_Inputs!H$7:H$374,F_Inputs!$A$7:$A$374,$E31,F_Inputs!$B$7:$B$374,$H31) -> 0 | M31: =SUMIFS(F_Inputs!I$7:I$374,F_Inputs!$A$7:$A$374,$E31,F_Inputs!$B$7:$B$374,$H31) -> 0 | N31: =SUMIFS(F_Inputs!J$7:J$374,F_Inputs!$A$7:$A$374,$E31,F_Inputs!$B$7:$B$374,$H31) -> 0 | O31: =SUMIFS(F_Inputs!K$7:K$374,F_Inputs!$A$7:$A$374,$E31,F_Inputs!$B$7:$B$374,$H31) -> 22
E32: NWT | F32: Wonderful Windermere | G32: PCL | H32: C_PCL_WW_PR24 | K32: =SUMIFS(F_Inputs!G$7:G$374,F_Inputs!$A$7:$A$374,$E32,F_Inputs!$B$7:$B$374,$H32) -> 9.5 | L32: =SUMIFS(F_Inputs!H$7:H$374,F_Inputs!$A$7:$A$374,$E32,F_Inputs!$B$7:$B$374,$H32) -> 38 | M32: =SUMIFS(F_Inputs!I$7:I$374,F_Inputs!$A$7:$A$374,$E32,F_Inputs!$B$7:$B$374,$H32) -> 38 | N32: =SUMIFS(F_Inputs!J$7:J$374,F_Inputs!$A$7:$A$374,$E32,F_Inputs!$B$7:$B$374,$H32) -> 57.7 | O32: =SUMIFS(F_Inputs!K$7:K$374,F_Inputs!$A$7:$A$374,$E32,F_Inputs!$B$7:$B$374,$H32) -> 77.4
E33: AFW | F33: Low Pressure | G33: PCL | H33: C_PCL_LPR_PR24 | K33: =SUMIFS(F_Inputs!G$7:G$374,F_Inputs!$A$7:$A$374,$E33,F_Inputs!$B$7:$B$374,$H33) -> 01:51:12.981 | L33: =SUMIFS(F_Inputs!H$7:H$374,F_Inputs!$A$7:$A$374,$E33,F_Inputs!$B$7:$B$374,$H33) -> 01:49:21.671 | M33: =SUMIFS(F_Inputs!I$7:I$374,F_Inputs!$A$7:$A$374,$E33,F_Inputs!$B$7:$B$374,$H33) -> 01:43:37.085 | N33: =SUMIFS(F_Inputs!J$7:J$374,F_Inputs!$A$7:$A$374,$E33,F_Inputs!$B$7:$B$374,$H33) -> 01:41:45.543 | O33: =SUMIFS(F_Inputs!K$7:K$374,F_Inputs!$A$7:$A$374,$E33,F_Inputs!$B$7:$B$374,$H33) -> 01:39:54
A35: PR24 ODI Rates
B37: Greenhouse Gas Emissions bespoke PCs (Outperformance)
E39: ANH | F39: Embedded GHG | G39: ODI Rate | H39: C_ODIRATE_LCC_OUT_PR24 | I39: =SUMIFS(F_Inputs!F$7:F$374,F_Inputs!$A$7:$A$374,$E39,F_Inputs!$B$7:$B$374,$H39) -> 0.000188
E40: HDD | F40: Embedded GHG | G40: ODI Rate
E41: SVE | F41: Embedded GHG | G41: ODI Rate | H41: C_ODIRATE_CC_OUT_PR24 | I41: =SUMIFS(F_Inputs!F$7:F$374,F_Inputs!$A$7:$A$374,$E41,F_Inputs!$B$7:$B$374,$H41) -> 0.000188
E42: SWB | F42: Embedded GHG | G42: ODI Rate | H42: C_ODIRATE_EGG_OUT_PR24 | I42: =SUMIFS(F_Inputs!F$7:F$374,F_Inputs!$A$7:$A$374,$E42,F_Inputs!$B$7:$B$374,$H42) -> 0.000188
E43: TMS | F43: Embedded GHG | G43: ODI Rate
E44: NWT | F44: Embedded GHG | G44: ODI Rate | H44: C_ODIRATE_EGG_OUT_PR24 | I44: =SUMIFS(F_Inputs!F$7:F$374,F_Inputs!$A$7:$A$374,$E44,F_Inputs!$B$7:$B$374,$H44) -> 0.000188
E45: AFW | F45: Embedded GHG | G45: ODI Rate
B47: Greenhouse Gas Emissions bespoke PCs (Underperformance)
E49: ANH | F49: Embedded GHG | G49: ODI Rate | H49: C_ODIRATE_LCC_UNDER_PR24 | I49: =SUMIFS(F_Inputs!F$7:F$374,F_Inputs!$A$7:$A$374,$E49,F_Inputs!$B$7:$B$374,$H49) -> 9.4e-05
E50: HDD | F50: Embedded GHG | G50: ODI Rate
E51: SVE | F51: Embedded GHG | G51: ODI Rate | H51: C_ODIRATE_CC_UNDER_PR24 | I51: =SUMIFS(F_Inputs!F$7:F$374,F_Inputs!$A$7:$A$374,$E51,F_Inputs!$B$7:$B$374,$H51) -> 9.4e-05
E52: SWB | F52: Embedded GHG | G52: ODI Rate | H52: C_ODIRATE_EGG_UNDER_PR24 | I52: =SUMIFS(F_Inputs!F$7:F$374,F_Inputs!$A$7:$A$374,$E52,F_Inputs!$B$7:$B$374,$H52) -> 9.4e-05
E53: TMS | F53: Embedded GHG | G53: ODI Rate
E54: NWT | F54: Embedded GHG | G54: ODI Rate | H54: C_ODIRATE_EGG_UNDER_PR24 | I54: =SUMIFS(F_Inputs!F$7:F$374,F_Inputs!$A$7:$A$374,$E54,F_Inputs!$B$7:$B$374,$H54) -> 9.4e-05
E55: AFW | F55: Embedded GHG | G55: ODI Rate
B57: All other bespoke PCs
E59: TMS | F59: Streetworks | G59: ODI Rate | H59: C_ODIRATE_SWC_PR24 | I59: =SUMIFS(F_Inputs!F$7:F$374,F_Inputs!$A$7:$A$374,$E59,F_Inputs!$B$7:$B$374,$H59) -> 0.12355
E60: NWT | F60: Wonderful Windermere | G60: ODI Rate | H60: C_ODIRATE_WW_PR24 | I60: =SUMIFS(F_Inputs!F$7:F$374,F_Inputs!$A$7:$A$374,$E60,F_Inputs!$B$7:$B$374,$H60) -> 0.000661
E61: AFW | F61: Low Pressure | G61: ODI Rate | H61: C_ODIRATE_LPR_PR24 | I61: =SUMIFS(F_Inputs!F$7:F$374,F_Inputs!$A$7:$A$374,$E61,F_Inputs!$B$7:$B$374,$H61) -> 0.03015263852
A63: PR24 Risk Protections - Caps
B65: Greenhouse Gas Emissions bespoke PCs
E67: ANH | F67: Embedded GHG | G67: Caps | H67: C_ODIRISK_LCC_CAP_PR24 | I67: =SUMIFS(F_Inputs!F$7:F$374,F_Inputs!$A$7:$A$374,$E67,F_Inputs!$B$7:$B$374,$H67) -> 0.005
E68: SVE | F68: Embedded GHG | G68: Caps | H68: C_ODIRISK_CC_CAP_PR24 | I68: =SUMIFS(F_Inputs!F$7:F$374,F_Inputs!$A$7:$A$374,$E68,F_Inputs!$B$7:$B$374,$H68) -> 0.005
E69: SWB | F69: Embedded GHG | G69: Caps | H69: C_ODIRISK_EGG_CAP_PR24 | I69: =SUMIFS(F_Inputs!F$7:F$374,F_Inputs!$A$7:$A$374,$E69,F_Inputs!$B$7:$B$374,$H69) -> 0.005
E70: TMS | F70: Embedded GHG | G70: Caps
E71: NWT | F71: Embedded GHG | G71: Caps | H71: C_ODIRISK_EGG_CAP_PR24 | I71: =SUMIFS(F_Inputs!F$7:F$374,F_Inputs!$A$7:$A$374,$E71,F_Inputs!$B$7:$B$374,$H71) -> 0.005
E72: AFW | F72: Embedded GHG | G72: Caps
B74: All other bespoke PCs
E76: TMS | F76: Streetworks | G76: Caps | H76: C_ODIRISK_SWC_CAP_PR24 | I76: =SUMIFS(F_Inputs!F$7:F$374,F_Inputs!$A$7:$A$374,$E76,F_Inputs!$B$7:$B$374,$H76) -> 0.005
E77: NWT | F77: Wonderful Windermere | G77: Caps | H77: C_ODIRISK_WW_CAP_PR24 | I77: =SUMIFS(F_Inputs!F$7:F$374,F_Inputs!$A$7:$A$374,$E77,F_Inputs!$B$7:$B$374,$H77) -> 1899.9
E78: AFW | F78: Low Pressure
A80: PR24 Risk Protections - Collars
B82: Greenhouse Gas Emissions bespoke PCs
E84: ANH | F84: Embedded GHG | G84: Collars | H84: C_ODIRISK_LCC_COLL_PR24 | I84: =SUMIFS(F_Inputs!F$7:F$374,F_Inputs!$A$7:$A$374,$E84,F_Inputs!$B$7:$B$374,$H84) -> -0.005
E85: SVE | F85: Embedded GHG | G85: Collars | H85: C_ODIRISK_CC_COLL_PR24 | I85: =SUMIFS(F_Inputs!F$7:F$374,F_Inputs!$A$7:$A$374,$E85,F_Inputs!$B$7:$B$374,$H85) -> -0.005
E86: SWB | F86: Embedded GHG | G86: Collars | H86: C_ODIRISK_EGG_COLL_PR24 | I86: =SUMIFS(F_Inputs!F$7:F$374,F_Inputs!$A$7:$A$374,$E86,F_Inputs!$B$7:$B$374,$H86) -> -0.005
E87: TMS | F87: Embedded GHG | G87: Collars
E88: NWT | F88: Embedded GHG | G88: Collars | H88: C_ODIRISK_EGG_COLL_PR24 | I88: =SUMIFS(F_Inputs!F$7:F$374,F_Inputs!$A$7:$A$374,$E88,F_Inputs!$B$7:$B$374,$H88) -> -0.005
E89: AFW | F89: Embedded GHG | G89: Collars
B91: All other bespoke PCs
E93: TMS | F93: Streetworks
E94: NWT | F94: Wonderful Windermere | G94: Collars | H94: C_ODIRISK_WW_COLL_PR24 | I94: =SUMIFS(F_Inputs!F$7:F$374,F_Inputs!$A$7:$A$374,$E94,F_Inputs!$B$7:$B$374,$H94) -> 0
E95: AFW | F95: Low Pressure | G95: Collars | H95: C_ODIRISK_LPR_COLL_PR24 | I95: =SUMIFS(F_Inputs!F$7:F$374,F_Inputs!$A$7:$A$374,$E95,F_Inputs!$B$7:$B$374,$H95) -> -0.005
A97: END

Sheet Conversion by PC
A1: =RIGHT(CELL("filename", A1), LEN(CELL("filename", A1)) - SEARCH("]", CELL("filename", A1))) -> 
E3: Company | F3: Measure | G3: Unit | H3: Constant | J3: 2025-26 | K3: 2026-27 | L3: 2027-28 | M3: 2028-29 | N3: 2029-30
A7: Low Pressure
F9: Times to minutes converter | H9: 1440
B11: PCL
E13: AFW | F13: PCL (Low Pressure) | G13: hh:mm:ss | J13: =Inp_Fountain!K33 -> 01:51:12.981 | K13: =Inp_Fountain!L33 -> 01:49:21.671 | L13: =Inp_Fountain!M33 -> 01:43:37.085 | M13: =Inp_Fountain!N33 -> 01:41:45.543 | N13: =Inp_Fountain!O33 -> 01:39:54
E15: AFW | F15: PCL (Low Pressure) | G15: Minutes | J15: =J13*$H$9 -> 111.2163577 | K15: =K13*$H$9 -> 109.3611795 | L15: =L13*$H$9 -> 103.6180886 | M15: =M13*$H$9 -> 101.7590443 | N15: =N13*$H$9 -> 99.9
B17: P10 performance
E19: AFW | F19: P10 performance (Low Pressure) | G19: hh:mm:ss | J19: 02:15:58 | K19: 02:15:58 | L19: 02:15:58 | M19: 02:15:58 | N19: 02:15:58
E21: AFW | F21: P10 performance (Low Pressure) | G21: Minutes | J21: =J19*$H$9 -> 135.9666667 | K21: =K19*$H$9 -> 135.9666667 | L21: =L19*$H$9 -> 135.9666667 | M21: =M19*$H$9 -> 135.9666667 | N21: =N19*$H$9 -> 135.9666667
B23: P90 performance
E25: AFW | F25: P90 performance (Low Pressure) | G25: hh:mm:ss | J25: 01:52:49 | K25: 01:45:03 | L25: 01:35:57 | M25: 01:29:46 | N25: 01:24:13
E27: AFW | F27: P90 performance (Low Pressure) | G27: Minutes | J27: =J25*$H$9 -> 112.8166667 | K27: =K25*$H$9 -> 105.05 | L27: =L25*$H$9 -> 95.95 | M27: =M25*$H$9 -> 89.76666667 | N27: =N25*$H$9 -> 84.21666667
A29: Embedded GHG (except SWB)
B31: Baseline
E33: ANH | F33: Cumulative baseline (Embedded GHG) | G33: tCO2e | J33: =IF(Inp_Var!J40="", "", Inp_Var!J40) -> 1029.051 | K33: =IF(Inp_Var!K40="", "", Inp_Var!K40) -> 8346.747 | L33: =IF(Inp_Var!L40="", "", Inp_Var!L40) -> 11090.883 | M33: =IF(Inp_Var!M40="", "", Inp_Var!M40) -> 38189.226 | N33: =IF(Inp_Var!N40="", "", Inp_Var!N40) -> 114224.661
E34: SVE | F34: Cumulative baseline (Embedded GHG) | G34: tCO2e | J34: =IF(Inp_Var!J41="", "", Inp_Var!J41) -> 156329.19 | K34: =IF(Inp_Var!K41="", "", Inp_Var!K41) -> 355631.36 | L34: =IF(Inp_Var!L41="", "", Inp_Var!L41) -> 595815.01 | M34: =IF(Inp_Var!M41="", "", Inp_Var!M41) -> 869108.45 | N34: =IF(Inp_Var!N41="", "", Inp_Var!N41) -> 1095986.74
E35: SWB | F35: Cumulative baseline (Embedded GHG) | G35: tCO2e
E36: UUW | F36: Cumulative baseline (Embedded GHG) | G36: tCO2e | J36: =IF(Inp_Var!J42="", "", Inp_Var!J42) -> 11862 | K36: =IF(Inp_Var!K42="", "", Inp_Var!K42) -> 13723 | L36: =IF(Inp_Var!L42="", "", Inp_Var!L42) -> 13723 | M36: =IF(Inp_Var!M42="", "", Inp_Var!M42) -> 28468 | N36: =IF(Inp_Var!N42="", "", Inp_Var!N42) -> 134925
B38: PCL
E40: ANH | F40: Cumulative PCL (Embedded GHG) | G40: % | J40: =IF(Inp_Fountain!K21="", "", Inp_Fountain!K21) ->  | K40: =IF(Inp_Fountain!L21="", "", Inp_Fountain!L21) ->  | L40: =IF(Inp_Fountain!M21="", "", Inp_Fountain!M21) ->  | M40: =IF(Inp_Fountain!N21="", "", Inp_Fountain!N21) ->  | N40: =IF(Inp_Fountain!O21="", "", Inp_Fountain!O21) -> 0.05
E41: SVE | F41: Cumulative PCL (Embedded GHG) | G41: % | J41: =IF(Inp_Fountain!K23="", "", Inp_Fountain!K23) ->  | K41: =IF(Inp_Fountain!L23="", "", Inp_Fountain!L23) ->  | L41: =IF(Inp_Fountain!M23="", "", Inp_Fountain!M23) ->  | M41: =IF(Inp_Fountain!N23="", "", Inp_Fountain!N23) ->  | N41: =IF(Inp_Fountain!O23="", "", Inp_Fountain!O23) -> 0.05
E42: SWB | F42: Cumulative PCL (Embedded GHG) | G42: %
E43: UUW | F43: Cumulative PCL (Embedded GHG) | G43: % | N43: =IF(Inp_Fountain!O26="", "", Inp_Fountain!O26) -> 0.05
E45: ANH | F45: Cumulative PCL (Embedded GHG) | G45: tCO2e reduction | J45: =IF(J40="", "", J40*J33) ->  | K45: =IF(K40="", "", K40*K33) ->  | N45: 5711.23305
E46: SVE | F46: Cumulative PCL (Embedded GHG) | G46: tCO2e reduction | J46: =IF(J41="", "", J41*J34) ->  | N46: 54799.337
E47: SWB | F47: Cumulative PCL (Embedded GHG) | G47: tCO2e reduction | J47: =IF(J42="", "", J42*J35) ->  | K47: =IF(K42="", "", K42*K35) -> 
E48: UUW | F48: Cumulative PCL (Embedded GHG) | G48: tCO2e reduction | J48: =IF(J43="", "", J43*J36) ->  | K48: =IF(K43="", "", K43*K36) ->  | N48: 6746.25
B50: Deadband
E52: ANH | F52: Cumulative deadband (Embedded GHG) | G52: % | J52: =IF(Inp_Fountain!K9="", "", Inp_Fountain!K9) ->  | K52: =IF(Inp_Fountain!L9="", "", Inp_Fountain!L9) ->  | L52: =IF(Inp_Fountain!M9="", "", Inp_Fountain!M9) ->  | M52: =IF(Inp_Fountain!N9="", "", Inp_Fountain!N9) ->  | N52: =IF(Inp_Fountain!O9="", "", Inp_Fountain!O9) -> 0
E53: SVE | F53: Cumulative deadband (Embedded GHG) | G53: % | J53: =IF(Inp_Fountain!K11="", "", Inp_Fountain!K11) ->  | K53: =IF(Inp_Fountain!L11="", "", Inp_Fountain!L11) ->  | L53: =IF(Inp_Fountain!M11="", "", Inp_Fountain!M11) ->  | M53: =IF(Inp_Fountain!N11="", "", Inp_Fountain!N11) ->  | N53: =IF(Inp_Fountain!O11="", "", Inp_Fountain!O11) -> 0
E54: SWB | F54: Cumulative deadband (Embedded GHG) | G54: %
E55: UUW | F55: Cumulative deadband (Embedded GHG) | G55: % | J55: =IF(Inp_Fountain!K14="", "", Inp_Fountain!K14) ->  | K55: =IF(Inp_Fountain!L14="", "", Inp_Fountain!L14) ->  | L55: =IF(Inp_Fountain!M14="", "", Inp_Fountain!M14) ->  | M55: =IF(Inp_Fountain!N14="", "", Inp_Fountain!N14) ->  | N55: =IF(Inp_Fountain!O14="", "", Inp_Fountain!O14) -> 0
E57: ANH | F57: Cumulative deadband (Embedded GHG) | G57: tCO2e reduction | J57: =IF(J52="", "", (J52*J33)) ->  | K57: =IF(K52="", "", (K52*K33)) ->  | N57: 0
E58: SVE | F58: Cumulative deadband (Embedded GHG) | G58: tCO2e reduction | J58: =IF(J53="", "", (J53*J34)) ->  | N58: 0
E59: SWB | F59: Cumulative deadband (Embedded GHG) | G59: tCO2e reduction | J59: =IF(J54="", "", (J54*J35)) -> 
E60: UUW | F60: Cumulative deadband (Embedded GHG) | G60: tCO2e reduction | J60: =IF(J55="", "", (J55*J36)) ->  | N60: 0
B62: P10 performance
E64: ANH | F64: Cumulative P10 performance (Embedded GHG) | G64: % | N64: 0
E65: SVE | F65: Cumulative P10 performance (Embedded GHG) | G65: % | N65: 0
E66: SWB | F66: Cumulative P10 performance (Embedded GHG) | G66: %
E67: UUW | F67: Cumulative P10 performance (Embedded GHG) | G67: % | N67: 0
E69: ANH | F69: Cumulative P10 performance (Embedded GHG) | G69: tCO2e reduction | J69: =IF(J64="", "", (J64*J33/#REF!)) ->  | K69: =IF(K64="", "", (K64*K33/#REF!)) ->  | L69: =IF(L64="", "", (L64*L33/#REF!)) ->  | M69: =IF(M64="", "", (M64*M33/#REF!)) ->  | N69: =IF(N64="","",(N64*N33)) -> 0
E70: SVE | F70: Cumulative P10 performance (Embedded GHG) | G70: tCO2e reduction | J70: =IF(J65="", "", (J65*J34/#REF!)) ->  | K70: =IF(K65="", "", (K65*K34/#REF!)) ->  | L70: =IF(L65="", "", (L65*L34/#REF!)) ->  | M70: =IF(M65="", "", (M65*M34/#REF!)) ->  | N70: =IF(N65="","",(N65*N34)) -> 0
E71: SWB | F71: Cumulative P10 performance (Embedded GHG) | G71: tCO2e reduction | J71: =IF(J66="", "", (J66*J35/100)) -> 
E72: UUW | F72: Cumulative P10 performance (Embedded GHG) | G72: tCO2e reduction | J72: =IF(J67="", "", (J67*J36/100)) ->  | K72: =IF(K67="", "", (K67*K36/100)) ->  | L72: =IF(L67="", "", (L67*L36/100)) ->  | N72: 0
B74: P90 performance
E76: ANH | F76: Cumulative P90 performance (Embedded GHG) | G76: % | N76: 0.3
E77: SVE | F77: Cumulative P90 performance (Embedded GHG) | G77: % | N77: 0.3
E78: SWB | F78: Cumulative P90 performance (Embedded GHG) | G78: %
E79: UUW | F79: Cumulative P90 performance (Embedded GHG) | G79: % | N79: 0.3
E81: ANH | F81: Cumulative P90 performance (Embedded GHG) | G81: tCO2e reduction | J81: =IF(J76="", "", (J76*J33/#REF!)) ->  | K81: =IF(K76="", "", (K76*K33/#REF!)) ->  | L81: =IF(L76="", "", (L76*L33/#REF!)) ->  | M81: =IF(M76="", "", (M76*M33/#REF!)) ->  | N81: =IF(N76="", "", (N76*N33)) -> 34267.3983
E82: SVE | F82: Cumulative P90 performance (Embedded GHG) | G82: tCO2e reduction | J82: =IF(J77="", "", (J77*J34/#REF!)) ->  | K82: =IF(K77="", "", (K77*K34/#REF!)) ->  | L82: =IF(L77="", "", (L77*L34/#REF!)) ->  | M82: =IF(M77="", "", (M77*M34/#REF!)) ->  | N82: =IF(N77="", "", (N77*N34)) -> 328796.022
E83: SWB | F83: Cumulative P90 performance (Embedded GHG) | G83: tCO2e reduction | J83: =IF(J78="", "", (J78*J35/#REF!)) ->  | K83: =IF(K78="", "", (K78*K35/#REF!)) ->  | L83: =IF(L78="", "", (L78*L35/#REF!)) ->  | M83: =IF(M78="", "", (M78*M35/#REF!)) -> 
E84: UUW | F84: Cumulative P90 performance (Embedded GHG) | G84: tCO2e reduction | J84: =IF(J79="", "", (J79*J36/#REF!)) ->  | K84: =IF(K79="", "", (K79*K36/#REF!)) ->  | L84: =IF(L79="", "", (L79*L36/#REF!)) ->  | M84: =IF(M79="", "", (M79*M36/#REF!)) ->  | N84: 40477.5
A86: Embedded GHG (SWB only)
E88: SWB | F88: Total capital delivery spend (embedded GHG) | G88: £m | J88: =Inp_Var!J46 -> 381.724 | K88: =Inp_Var!K46 -> 392.014 | L88: =Inp_Var!L46 -> 363.177 | M88: =Inp_Var!M46 -> 382.109 | N88: =Inp_Var!N46 -> 293.931
J89: =IF(Inp_Var!J47="", "", Inp_Var!J47) ->  | K89: =IF(Inp_Var!K47="", "", Inp_Var!K47) ->  | L89: =IF(Inp_Var!L47="", "", Inp_Var!L47) ->  | M89: =IF(Inp_Var!M47="", "", Inp_Var!M47) ->  | N89: =IF(Inp_Var!N47="", "", Inp_Var!N47) -> 
E90: SWB | F90: Baseline (embedded GHG) | G90: tCO2e / £m | H90: =Inp_Var!H48 -> 385.56
E92: SWB | F92: Cumulative total capital delivery spend (embedded GHG) | G92: £m | J92: =J88 -> 381.724 | K92: =J92+K88 -> 773.738 | L92: =K92+L88 -> 1136.915 | M92: =L92+M88 -> 1519.024 | N92: 1812.955
E94: SWB | F94: Baseline conversion (Embedded GHG) | G94: tCO2e | N94: =N92*H90 -> 699002.9298
B96: PCL
E98: SWB | F98: PCL (Embedded GHG) | G98: % | N98: =Inp_Fountain!O24 -> 0.05
E100: SWB | F100: PCL (Embedded GHG) | G100: tCO2e reduction | J100: =IF(J98="", "", (J98*J$94/#REF!)) ->  | K100: =IF(K98="", "", (K98*K$94/#REF!)) ->  | L100: =IF(L98="", "", (L98*L$94/#REF!)) ->  | M100: =IF(M98="", "", (M98*M$94/#REF!)) ->  | N100: =IF(N98="", "", (N98*N$94)) -> 34950.14649 | O100: =IF(O98="", "", (O98*O$94/100)) -> 
B102: Deadband
E104: SWB | F104: Deadband (Embedded GHG) | G104: % | N104: =Inp_Fountain!O12 -> 0
E106: SWB | F106: Deadband (Embedded GHG) | G106: tCO2e reduction | J106: =IF(J104="", "", (J104*J$94/#REF!)) ->  | K106: =IF(K104="", "", (K104*K$94/#REF!)) ->  | L106: =IF(L104="", "", (L104*L$94/#REF!)) ->  | M106: =IF(M104="", "", (M104*M$94/#REF!)) ->  | N106: =IF(N104="", "", (N104*N$94)) -> 0 | O106: =IF(O104="", "", (O104*O$94/100)) -> 
B108: P10 performance
E110: SWB | F110: P10 performance (Embedded GHG) | G110: % | N110: 0
E112: SWB | F112: P10 performance (Embedded GHG) | G112: tCO2e reduction | J112: =IF(J110="", "", (J110*J$94/#REF!)) ->  | K112: =IF(K110="", "", (K110*K$94/#REF!)) ->  | L112: =IF(L110="", "", (L110*L$94/#REF!)) ->  | M112: =IF(M110="", "", (M110*M$94/#REF!)) ->  | N112: =IF(N110="", "", (N110*N$94)) -> 0 | O112: =IF(O110="", "", (O110*O$94/100)) -> 
B114: P90 performance
E116: SWB | F116: P90 performance (Embedded GHG) | G116: % | N116: 0.3
E118: SWB | F118: P10 performance (Embedded GHG) | G118: tCO2e reduction | J118: =IF(J116="", "", (J116*J$94/#REF!)) ->  | K118: =IF(K116="", "", (K116*K$94/#REF!)) ->  | L118: =IF(L116="", "", (L116*L$94/#REF!)) ->  | M118: =IF(M116="", "", (M116*M$94/#REF!)) ->  | N118: =IF(N116="", "", (N116*N$94)) -> 209700.8789 | O118: =IF(O116="", "", (O116*O$94/100)) -> 
A120: END

Sheet Inp_Cons
A1: =RIGHT(CELL("filename", A1), LEN(CELL("filename", A1)) - SEARCH("]", CELL("filename", A1))) -> 
E3: Company | F3: Measure | G3: Units | H3: All PCs | J3: Low Pressure | K3: Streetworks | L3: Embedded GHG | M3: Embedded GHG (Outperformance) | N3: Embedded GHG (Underperformance) | O3: Wonderful Windermere
A7: PR24 ODI Rates
E9: ANH | F9: PR24 ODI Rates | G9: £m | M9: =Inp_Fountain!I39 -> 0.000188 | N9: =Inp_Fountain!I49 -> 9.4e-05
E10: SVE | F10: PR24 ODI Rates | G10: £m | M10: =Inp_Fountain!I41 -> 0.000188 | N10: =Inp_Fountain!I51 -> 9.4e-05
E11: SWB | F11: PR24 ODI Rates | G11: £m | M11: =Inp_Fountain!I42 -> 0.000188 | N11: =Inp_Fountain!I52 -> 9.4e-05
E12: TMS | F12: PR24 ODI Rates | G12: £m | K12: =Inp_Fountain!$I$59 -> 0.12355 | M12: =Inp_Fountain!I43 ->  | N12: =Inp_Fountain!I53 -> 
E13: UUW | F13: PR24 ODI Rates | G13: £m | M13: =Inp_Fountain!I44 -> 0.000188 | N13: =Inp_Fountain!I54 -> 9.4e-05 | O13: =Inp_Fountain!$I$60 -> 0.000661
E14: AFW | F14: PR24 ODI Rates | G14: £m | J14: =Inp_Fountain!$I$61 -> 0.03015263852 | M14: =Inp_Fountain!I45 ->  | N14: =Inp_Fountain!I55 -> 
A16: Price Control Allocation
B18: Water PCA
E20: ANH | F20: PCA Water | G20: % | L20: 0.387
E21: SVE | F21: PCA Water | G21: % | L21: 0.289
E22: SWB | F22: PCA Water | G22: % | L22: =SUM( 5%, 30%) -> 0.35
E23: TMS | F23: PCA Water | G23: % | K23: 1
E24: UUW | F24: PCA Water | G24: % | L24: 0 | O24: 0
E25: AFW | F25: PCA Water | G25: % | J25: 1
B27: Wastewater PCA
E29: ANH | F29: PCA Wastewater | G29: % | L29: 0.613
E30: SVE | F30: PCA Wastewater | G30: % | L30: 0.711
E31: SWB | F31: PCA Wastewater | G31: % | L31: =SUM( 60%,5%) -> 0.65
E32: TMS | F32: PCA Wastewater | G32: % | K32: 0
E33: UUW | F33: PCA Wastewater | G33: % | L33: 1 | O33: 1
E34: AFW | F34: PCA Wastewater | G34: % | J34: 0
A36: Apply Caps/Collars/Enhanced ODIs?
F38: Apply Payment Caps | J38: N | K38: Y | L38: Y | O38: Y
F39: Apply Payment Collars | J39: Y | K39: N | L39: Y | O39: Y
A41: Risk Protections
F43: Payment Caps | J43: =INDEX(Inp_Fountain!$I$67:$I$78,MATCH(Inp_Cons!J$3,Inp_Fountain!$F$67:$F$78,0)) ->  | K43: =INDEX(Inp_Fountain!$I$67:$I$78,MATCH(Inp_Cons!K$3,Inp_Fountain!$F$67:$F$78,0)) -> 0.005 | L43: =INDEX(Inp_Fountain!$I$67:$I$78,MATCH(Inp_Cons!L$3,Inp_Fountain!$F$67:$F$78,0)) -> 0.005 | O43: =INDEX(Inp_Fountain!$I$67:$I$78,MATCH(Inp_Cons!O$3,Inp_Fountain!$F$67:$F$78,0)) -> 1899.9
F44: Payment Collars | J44: =INDEX(Inp_Fountain!$I$84:$I$95,MATCH(Inp_Cons!J$3,Inp_Fountain!$F$84:$F$95,0)) -> -0.005 | K44: =INDEX(Inp_Fountain!$I$84:$I$95,MATCH(Inp_Cons!K$3,Inp_Fountain!$F$84:$F$95,0)) ->  | L44: =INDEX(Inp_Fountain!$I$84:$I$95,MATCH(Inp_Cons!L$3,Inp_Fountain!$F$84:$F$95,0)) -> -0.005 | O44: =INDEX(Inp_Fountain!$I$84:$I$95,MATCH(Inp_Cons!O$3,Inp_Fountain!$F$84:$F$95,0)) -> 0
A46: 5 Year View assumption: 2 Years of P10/P90 & 3 Years of performing at the PCL
F48: 5-year view assumption multiplier | H48: 0.4
A50: RCV to RE Calculations
F52: Notional Gearing | H52: 0.55
A54: END

Sheet Inp_Converted
A1: =RIGHT(CELL("filename", A1), LEN(CELL("filename", A1)) - SEARCH("]", CELL("filename", A1))) -> 
E3: Company | F3: Measure | G3: All PCs | I3: Low Pressure | N3: Streetworks | S3: Embedded GHG | X3: Wonderful Windermere
G4: Year | I4: 2025-26 | J4: 2026-27 | K4: 2027-28 | L4: 2028-29 | M4: 2029-30 | N4: 2025-26 | O4: 2026-27 | P4: 2027-28 | Q4: 2028-29 | R4: 2029-30 | S4: 2025-26 | T4: 2026-27 | U4: 2027-28 | V4: 2028-29 | W4: 2029-30 | X4: 2025-26 | Y4: 2026-27 | Z4: 2027-28 | AA4: 2028-29 | AB4: 2029-30
G5: Unit | I5: Minutes | J5: Minutes | K5: Minutes | L5: Minutes | M5: Minutes | N5: Nr | O5: Nr | P5: Nr | Q5: Nr | R5: Nr | S5: tCO2e reduction | T5: tCO2e reduction | U5: tCO2e reduction | V5: tCO2e reduction | W5: tCO2e reduction | X5: Kg | Y5: Kg | Z5: Kg | AA5: Kg | AB5: Kg
A7: P10 performance
E9: ANH | F9: P10 performance | S9: ='Conversion by PC'!J69 ->  | T9: ='Conversion by PC'!K69 ->  | U9: ='Conversion by PC'!L69 ->  | V9: ='Conversion by PC'!M69 ->  | W9: ='Conversion by PC'!N69 -> 0
E10: SVE | F10: P10 performance | S10: ='Conversion by PC'!J70 ->  | T10: ='Conversion by PC'!K70 ->  | U10: ='Conversion by PC'!L70 ->  | V10: ='Conversion by PC'!M70 ->  | W10: ='Conversion by PC'!N70 -> 0
E11: SWB | F11: P10 performance | S11: ='Conversion by PC'!J112 ->  | T11: ='Conversion by PC'!K112 ->  | U11: ='Conversion by PC'!L112 ->  | V11: ='Conversion by PC'!M112 ->  | W11: ='Conversion by PC'!N112 -> 0
E12: TMS | F12: P10 performance | N12: 0 | O12: 0 | P12: 0 | Q12: 0 | R12: 0
E13: UUW | F13: P10 performance | S13: ='Conversion by PC'!J72 ->  | T13: ='Conversion by PC'!K72 ->  | U13: ='Conversion by PC'!L72 ->  | V13: ='Conversion by PC'!M72 ->  | W13: ='Conversion by PC'!N72 -> 0 | X13: 0 | Y13: 0 | Z13: 0 | AA13: 0 | AB13: 0
E14: AFW | F14: P10 performance | I14: ='Conversion by PC'!J21 -> 135.9666667 | J14: ='Conversion by PC'!K21 -> 135.9666667 | K14: ='Conversion by PC'!L21 -> 135.9666667 | L14: ='Conversion by PC'!M21 -> 135.9666667 | M14: ='Conversion by PC'!N21 -> 135.9666667
A16: P90 performance
E18: ANH | F18: P90 performance | S18: ='Conversion by PC'!J81 ->  | T18: ='Conversion by PC'!K81 ->  | U18: ='Conversion by PC'!L81 ->  | V18: ='Conversion by PC'!M81 ->  | W18: ='Conversion by PC'!N81 -> 34267.3983
E19: SVE | F19: P90 performance | S19: ='Conversion by PC'!J82 ->  | T19: ='Conversion by PC'!K82 ->  | U19: ='Conversion by PC'!L82 ->  | V19: ='Conversion by PC'!M82 ->  | W19: ='Conversion by PC'!N82 -> 328796.022
E20: SWB | F20: P90 performance | S20: ='Conversion by PC'!J118 ->  | T20: ='Conversion by PC'!K118 ->  | U20: ='Conversion by PC'!L118 ->  | V20: ='Conversion by PC'!M118 ->  | W20: ='Conversion by PC'!N118 -> 209700.8789
E21: TMS | F21: P90 performance | N21: 20 | O21: 20 | P21: 20 | Q21: 20 | R21: 20
E22: UUW | F22: P90 performance | S22: ='Conversion by PC'!J84 ->  | T22: ='Conversion by PC'!K84 ->  | U22: ='Conversion by PC'!L84 ->  | V22: ='Conversion by PC'!M84 ->  | W22: ='Conversion by PC'!N84 -> 40477.5 | X22: 1899.9 | Y22: 1899.9 | Z22: 1899.9 | AA22: 1899.9 | AB22: 1899.9
E23: AFW | F23: P90 performance | I23: ='Conversion by PC'!J27 -> 112.8166667 | J23: ='Conversion by PC'!K27 -> 105.05 | K23: ='Conversion by PC'!L27 -> 95.95 | L23: ='Conversion by PC'!M27 -> 89.76666667 | M23: ='Conversion by PC'!N27 -> 84.21666667
A25: Performance Commitment Level (PCL)
E27: ANH | F27: PCL | S27: ='Conversion by PC'!J45 ->  | T27: ='Conversion by PC'!K45 ->  | U27: ='Conversion by PC'!L45 ->  | V27: ='Conversion by PC'!M45 ->  | W27: ='Conversion by PC'!N45 -> 5711.23305
E28: SVE | F28: PCL | S28: ='Conversion by PC'!J46 ->  | T28: ='Conversion by PC'!K46 ->  | U28: ='Conversion by PC'!L46 ->  | V28: ='Conversion by PC'!M46 ->  | W28: ='Conversion by PC'!N46 -> 54799.337
E29: SWB | F29: PCL | S29: ='Conversion by PC'!J100 ->  | T29: ='Conversion by PC'!K100 ->  | U29: ='Conversion by PC'!L100 ->  | V29: ='Conversion by PC'!M100 ->  | W29: ='Conversion by PC'!N100 -> 34950.14649
E30: TMS | F30: PCL | N30: =Inp_Var!J60 -> 4.4 | O30: =Inp_Var!K60 -> 8.8 | P30: =Inp_Var!L60 -> 13.2 | Q30: =Inp_Var!M60 -> 17.6 | R30: =Inp_Var!N60 -> 22
E31: UUW | F31: PCL | S31: ='Conversion by PC'!J48 ->  | T31: ='Conversion by PC'!K48 ->  | U31: ='Conversion by PC'!L48 ->  | V31: ='Conversion by PC'!M48 ->  | W31: ='Conversion by PC'!N48 -> 6746.25 | X31: =Inp_Fountain!K32 -> 9.5 | Y31: =Inp_Fountain!L32 -> 38 | Z31: =Inp_Fountain!M32 -> 38 | AA31: =Inp_Fountain!N32 -> 57.7 | AB31: =Inp_Fountain!O32 -> 77.4
E32: AFW | F32: PCL | I32: ='Conversion by PC'!J15 -> 111.2163577 | J32: ='Conversion by PC'!K15 -> 109.3611795 | K32: ='Conversion by PC'!L15 -> 103.6180886 | L32: ='Conversion by PC'!M15 -> 101.7590443 | M32: ='Conversion by PC'!N15 -> 99.9
A34: Deadbands
E36: ANH | F36: Deadband | S36: ='Conversion by PC'!J57 ->  | T36: ='Conversion by PC'!K57 ->  | U36: ='Conversion by PC'!L57 ->  | V36: ='Conversion by PC'!M57 ->  | W36: ='Conversion by PC'!N57 -> 0
E37: SVE | F37: Deadband | S37: ='Conversion by PC'!J58 ->  | T37: ='Conversion by PC'!K58 ->  | U37: ='Conversion by PC'!L58 ->  | V37: ='Conversion by PC'!M58 ->  | W37: ='Conversion by PC'!N58 -> 0
E38: SWB | F38: Deadband | S38: ='Conversion by PC'!J106 ->  | T38: ='Conversion by PC'!K106 ->  | U38: ='Conversion by PC'!L106 ->  | V38: ='Conversion by PC'!M106 ->  | W38: ='Conversion by PC'!N106 -> 0
E39: TMS | F39: Deadband
E40: UUW | F40: Deadband | S40: ='Conversion by PC'!J60 ->  | T40: ='Conversion by PC'!K60 ->  | U40: ='Conversion by PC'!L60 ->  | V40: ='Conversion by PC'!M60 ->  | W40: ='Conversion by PC'!N60 -> 0
E41: AFW | F41: Deadband
A43: END

Sheet Performance_P10
A1: =RIGHT(CELL("filename", A1), LEN(CELL("filename", A1)) - SEARCH("]", CELL("filename", A1))) -> 
E3: Company | F3: PC | G3: Low Pressure | H3: Low Pressure | I3: Low Pressure | J3: Low Pressure | K3: Low Pressure | L3: Streetworks | M3: Streetworks | N3: Streetworks | O3: Streetworks | P3: Streetworks | Q3: Embedded GHG | R3: Embedded GHG | S3: Embedded GHG | T3: Embedded GHG | U3: Embedded GHG | V3: Wonderful Windermere | W3: Wonderful Windermere | X3: Wonderful Windermere | Y3: Wonderful Windermere | Z3: Wonderful Windermere
F4: Direction of Improvement | G4: Down | H4: Down | I4: Down | J4: Down | K4: Down | L4: Up | M4: Up | N4: Up | O4: Up | P4: Up | Q4: Up | R4: Up | S4: Up | T4: Up | U4: Up | V4: Up | W4: Up | X4: Up | Y4: Up | Z4: Up
F5: Year | G5: 2025-26 | H5: 2026-27 | I5: 2027-28 | J5: 2028-29 | K5: 2029-30 | L5: 2025-26 | M5: 2026-27 | N5: 2027-28 | O5: 2028-29 | P5: 2029-30 | Q5: 2025-26 | R5: 2026-27 | S5: 2027-28 | T5: 2028-29 | U5: 2029-30 | V5: 2025-26 | W5: 2026-27 | X5: 2027-28 | Y5: 2028-29 | Z5: 2029-30
A7: P10 Performance
E9: ANH | G9: =IF(Inp_Converted!I9="","",Inp_Converted!I9) ->  | H9: =IF(Inp_Converted!J9="","",Inp_Converted!J9) ->  | I9: =IF(Inp_Converted!K9="","",Inp_Converted!K9) ->  | J9: =IF(Inp_Converted!L9="","",Inp_Converted!L9) ->  | K9: =IF(Inp_Converted!M9="","",Inp_Converted!M9) ->  | L9: =IF(Inp_Converted!N9="","",Inp_Converted!N9) ->  | M9: =IF(Inp_Converted!O9="","",Inp_Converted!O9) ->  | N9: =IF(Inp_Converted!P9="","",Inp_Converted!P9) ->  | O9: =IF(Inp_Converted!Q9="","",Inp_Converted!Q9) ->  | P9: =IF(Inp_Converted!R9="","",Inp_Converted!R9) ->  | Q9: =IF(Inp_Converted!S9="","",Inp_Converted!S9) ->  | R9: =IF(Inp_Converted!T9="","",Inp_Converted!T9) ->  | S9: =IF(Inp_Converted!U9="","",Inp_Converted!U9) ->  | T9: =IF(Inp_Converted!V9="","",Inp_Converted!V9) ->  | U9: =IF(Inp_Converted!W9="","",Inp_Converted!W9) -> 0 | V9: =IF(Inp_Converted!X9="","",Inp_Converted!X9) ->  | W9: =IF(Inp_Converted!Y9="","",Inp_Converted!Y9) ->  | X9: =IF(Inp_Converted!Z9="","",Inp_Converted!Z9) ->  | Y9: =IF(Inp_Converted!AA9="","",Inp_Converted!AA9) ->  | Z9: =IF(Inp_Converted!AB9="","",Inp_Converted!AB9) -> 
E10: SVE | G10: =IF(Inp_Converted!I10="","",Inp_Converted!I10) ->  | H10: =IF(Inp_Converted!J10="","",Inp_Converted!J10) ->  | I10: =IF(Inp_Converted!K10="","",Inp_Converted!K10) ->  | J10: =IF(Inp_Converted!L10="","",Inp_Converted!L10) ->  | K10: =IF(Inp_Converted!M10="","",Inp_Converted!M10) ->  | L10: =IF(Inp_Converted!N10="","",Inp_Converted!N10) ->  | M10: =IF(Inp_Converted!O10="","",Inp_Converted!O10) ->  | N10: =IF(Inp_Converted!P10="","",Inp_Converted!P10) ->  | O10: =IF(Inp_Converted!Q10="","",Inp_Converted!Q10) ->  | P10: =IF(Inp_Converted!R10="","",Inp_Converted!R10) ->  | Q10: =IF(Inp_Converted!S10="","",Inp_Converted!S10) ->  | R10: =IF(Inp_Converted!T10="","",Inp_Converted!T10) ->  | S10: =IF(Inp_Converted!U10="","",Inp_Converted!U10) ->  | T10: =IF(Inp_Converted!V10="","",Inp_Converted!V10) ->  | U10: =IF(Inp_Converted!W10="","",Inp_Converted!W10) -> 0 | V10: =IF(Inp_Converted!X10="","",Inp_Converted!X10) ->  | W10: =IF(Inp_Converted!Y10="","",Inp_Converted!Y10) ->  | X10: =IF(Inp_Converted!Z10="","",Inp_Converted!Z10) ->  | Y10: =IF(Inp_Converted!AA10="","",Inp_Converted!AA10) ->  | Z10: =IF(Inp_Converted!AB10="","",Inp_Converted!AB10) -> 
E11: SWB | G11: =IF(Inp_Converted!I11="","",Inp_Converted!I11) ->  | H11: =IF(Inp_Converted!J11="","",Inp_Converted!J11) ->  | I11: =IF(Inp_Converted!K11="","",Inp_Converted!K11) ->  | J11: =IF(Inp_Converted!L11="","",Inp_Converted!L11) ->  | K11: =IF(Inp_Converted!M11="","",Inp_Converted!M11) ->  | L11: =IF(Inp_Converted!N11="","",Inp_Converted!N11) ->  | M11: =IF(Inp_Converted!O11="","",Inp_Converted!O11) ->  | N11: =IF(Inp_Converted!P11="","",Inp_Converted!P11) ->  | O11: =IF(Inp_Converted!Q11="","",Inp_Converted!Q11) ->  | P11: =IF(Inp_Converted!R11="","",Inp_Converted!R11) ->  | Q11: =IF(Inp_Converted!S11="","",Inp_Converted!S11) ->  | R11: =IF(Inp_Converted!T11="","",Inp_Converted!T11) ->  | S11: =IF(Inp_Converted!U11="","",Inp_Converted!U11) ->  | T11: =IF(Inp_Converted!V11="","",Inp_Converted!V11) ->  | U11: =IF(Inp_Converted!W11="","",Inp_Converted!W11) -> 0 | V11: =IF(Inp_Converted!X11="","",Inp_Converted!X11) ->  | W11: =IF(Inp_Converted!Y11="","",Inp_Converted!Y11) ->  | X11: =IF(Inp_Converted!Z11="","",Inp_Converted!Z11) ->  | Y11: =IF(Inp_Converted!AA11="","",Inp_Converted!AA11) ->  | Z11: =IF(Inp_Converted!AB11="","",Inp_Converted!AB11) -> 
E12: TMS | G12: =IF(Inp_Converted!I12="","",Inp_Converted!I12) ->  | H12: =IF(Inp_Converted!J12="","",Inp_Converted!J12) ->  | I12: =IF(Inp_Converted!K12="","",Inp_Converted!K12) ->  | J12: =IF(Inp_Converted!L12="","",Inp_Converted!L12) ->  | K12: =IF(Inp_Converted!M12="","",Inp_Converted!M12) ->  | L12: =IF(Inp_Converted!N12="","",Inp_Converted!N12) -> 0 | M12: =IF(Inp_Converted!O12="","",Inp_Converted!O12) -> 0 | N12: =IF(Inp_Converted!P12="","",Inp_Converted!P12) -> 0 | O12: =IF(Inp_Converted!Q12="","",Inp_Converted!Q12) -> 0 | P12: =IF(Inp_Converted!R12="","",Inp_Converted!R12) -> 0 | Q12: =IF(Inp_Converted!S12="","",Inp_Converted!S12) ->  | R12: =IF(Inp_Converted!T12="","",Inp_Converted!T12) ->  | S12: =IF(Inp_Converted!U12="","",Inp_Converted!U12) ->  | T12: =IF(Inp_Converted!V12="","",Inp_Converted!V12) ->  | U12: =IF(Inp_Converted!W12="","",Inp_Converted!W12) ->  | V12: =IF(Inp_Converted!X12="","",Inp_Converted!X12) ->  | W12: =IF(Inp_Converted!Y12="","",Inp_Converted!Y12) ->  | X12: =IF(Inp_Converted!Z12="","",Inp_Converted!Z12) ->  | Y12: =IF(Inp_Converted!AA12="","",Inp_Converted!AA12) ->  | Z12: =IF(Inp_Converted!AB12="","",Inp_Converted!AB12) -> 
E13: UUW | G13: =IF(Inp_Converted!I13="","",Inp_Converted!I13) ->  | H13: =IF(Inp_Converted!J13="","",Inp_Converted!J13) ->  | I13: =IF(Inp_Converted!K13="","",Inp_Converted!K13) ->  | J13: =IF(Inp_Converted!L13="","",Inp_Converted!L13) ->  | K13: =IF(Inp_Converted!M13="","",Inp_Converted!M13) ->  | L13: =IF(Inp_Converted!N13="","",Inp_Converted!N13) ->  | M13: =IF(Inp_Converted!O13="","",Inp_Converted!O13) ->  | N13: =IF(Inp_Converted!P13="","",Inp_Converted!P13) ->  | O13: =IF(Inp_Converted!Q13="","",Inp_Converted!Q13) ->  | P13: =IF(Inp_Converted!R13="","",Inp_Converted!R13) ->  | Q13: =IF(Inp_Converted!S13="","",Inp_Converted!S13) ->  | R13: =IF(Inp_Converted!T13="","",Inp_Converted!T13) ->  | S13: =IF(Inp_Converted!U13="","",Inp_Converted!U13) ->  | T13: =IF(Inp_Converted!V13="","",Inp_Converted!V13) ->  | U13: =IF(Inp_Converted!W13="","",Inp_Converted!W13) -> 0 | V13: =IF(Inp_Converted!X13="","",Inp_Converted!X13) -> 0 | W13: =IF(Inp_Converted!Y13="","",Inp_Converted!Y13) -> 0 | X13: =IF(Inp_Converted!Z13="","",Inp_Converted!Z13) -> 0 | Y13: =IF(Inp_Converted!AA13="","",Inp_Converted!AA13) -> 0 | Z13: =IF(Inp_Converted!AB13="","",Inp_Converted!AB13) -> 0
E14: AFW | G14: =IF(Inp_Converted!I14="","",Inp_Converted!I14) -> 135.9666667 | H14: =IF(Inp_Converted!J14="","",Inp_Converted!J14) -> 135.9666667 | I14: =IF(Inp_Converted!K14="","",Inp_Converted!K14) -> 135.9666667 | J14: =IF(Inp_Converted!L14="","",Inp_Converted!L14) -> 135.9666667 | K14: =IF(Inp_Converted!M14="","",Inp_Converted!M14) -> 135.9666667 | L14: =IF(Inp_Converted!N14="","",Inp_Converted!N14) ->  | M14: =IF(Inp_Converted!O14="","",Inp_Converted!O14) ->  | N14: =IF(Inp_Converted!P14="","",Inp_Converted!P14) ->  | O14: =IF(Inp_Converted!Q14="","",Inp_Converted!Q14) ->  | P14: =IF(Inp_Converted!R14="","",Inp_Converted!R14) ->  | Q14: =IF(Inp_Converted!S14="","",Inp_Converted!S14) ->  | R14: =IF(Inp_Converted!T14="","",Inp_Converted!T14) ->  | S14: =IF(Inp_Converted!U14="","",Inp_Converted!U14) ->  | T14: =IF(Inp_Converted!V14="","",Inp_Converted!V14) ->  | U14: =IF(Inp_Converted!W14="","",Inp_Converted!W14) ->  | V14: =IF(Inp_Converted!X14="","",Inp_Converted!X14) ->  | W14: =IF(Inp_Converted!Y14="","",Inp_Converted!Y14) ->  | X14: =IF(Inp_Converted!Z14="","",Inp_Converted!Z14) ->  | Y14: =IF(Inp_Converted!AA14="","",Inp_Converted!AA14) ->  | Z14: =IF(Inp_Converted!AB14="","",Inp_Converted!AB14) -> 
A16: PCL
E18: ANH | G18: =IF(Inp_Converted!I27="","",Inp_Converted!I27) ->  | H18: =IF(Inp_Converted!J27="","",Inp_Converted!J27) ->  | I18: =IF(Inp_Converted!K27="","",Inp_Converted!K27) ->  | J18: =IF(Inp_Converted!L27="","",Inp_Converted!L27) ->  | K18: =IF(Inp_Converted!M27="","",Inp_Converted!M27) ->  | L18: =IF(Inp_Converted!N27="","",Inp_Converted!N27) ->  | M18: =IF(Inp_Converted!O27="","",Inp_Converted!O27) ->  | N18: =IF(Inp_Converted!P27="","",Inp_Converted!P27) ->  | O18: =IF(Inp_Converted!Q27="","",Inp_Converted!Q27) ->  | P18: =IF(Inp_Converted!R27="","",Inp_Converted!R27) ->  | Q18: =IF(Inp_Converted!S27="","",Inp_Converted!S27) ->  | R18: =IF(Inp_Converted!T27="","",Inp_Converted!T27) ->  | S18: =IF(Inp_Converted!U27="","",Inp_Converted!U27) ->  | T18: =IF(Inp_Converted!V27="","",Inp_Converted!V27) ->  | U18: =IF(Inp_Converted!W27="","",Inp_Converted!W27) -> 5711.23305 | V18: =IF(Inp_Converted!X27="","",Inp_Converted!X27) ->  | W18: =IF(Inp_Converted!Y27="","",Inp_Converted!Y27) ->  | X18: =IF(Inp_Converted!Z27="","",Inp_Converted!Z27) ->  | Y18: =IF(Inp_Converted!AA27="","",Inp_Converted!AA27) ->  | Z18: =IF(Inp_Converted!AB27="","",Inp_Converted!AB27) -> 
E19: SVE | G19: =IF(Inp_Converted!I28="","",Inp_Converted!I28) ->  | H19: =IF(Inp_Converted!J28="","",Inp_Converted!J28) ->  | I19: =IF(Inp_Converted!K28="","",Inp_Converted!K28) ->  | J19: =IF(Inp_Converted!L28="","",Inp_Converted!L28) ->  | K19: =IF(Inp_Converted!M28="","",Inp_Converted!M28) ->  | L19: =IF(Inp_Converted!N28="","",Inp_Converted!N28) ->  | M19: =IF(Inp_Converted!O28="","",Inp_Converted!O28) ->  | N19: =IF(Inp_Converted!P28="","",Inp_Converted!P28) ->  | O19: =IF(Inp_Converted!Q28="","",Inp_Converted!Q28) ->  | P19: =IF(Inp_Converted!R28="","",Inp_Converted!R28) ->  | Q19: =IF(Inp_Converted!S28="","",Inp_Converted!S28) ->  | R19: =IF(Inp_Converted!T28="","",Inp_Converted!T28) ->  | S19: =IF(Inp_Converted!U28="","",Inp_Converted!U28) ->  | T19: =IF(Inp_Converted!V28="","",Inp_Converted!V28) ->  | U19: =IF(Inp_Converted!W28="","",Inp_Converted!W28) -> 54799.337 | V19: =IF(Inp_Converted!X28="","",Inp_Converted!X28) ->  | W19: =IF(Inp_Converted!Y28="","",Inp_Converted!Y28) ->  | X19: =IF(Inp_Converted!Z28="","",Inp_Converted!Z28) ->  | Y19: =IF(Inp_Converted!AA28="","",Inp_Converted!AA28) ->  | Z19: =IF(Inp_Converted!AB28="","",Inp_Converted!AB28) -> 
E20: SWB | G20: =IF(Inp_Converted!I29="","",Inp_Converted!I29) ->  | H20: =IF(Inp_Converted!J29="","",Inp_Converted!J29) ->  | I20: =IF(Inp_Converted!K29="","",Inp_Converted!K29) ->  | J20: =IF(Inp_Converted!L29="","",Inp_Converted!L29) ->  | K20: =IF(Inp_Converted!M29="","",Inp_Converted!M29) ->  | L20: =IF(Inp_Converted!N29="","",Inp_Converted!N29) ->  | M20: =IF(Inp_Converted!O29="","",Inp_Converted!O29) ->  | N20: =IF(Inp_Converted!P29="","",Inp_Converted!P29) ->  | O20: =IF(Inp_Converted!Q29="","",Inp_Converted!Q29) ->  | P20: =IF(Inp_Converted!R29="","",Inp_Converted!R29) ->  | Q20: =IF(Inp_Converted!S29="","",Inp_Converted!S29) ->  | R20: =IF(Inp_Converted!T29="","",Inp_Converted!T29) ->  | S20: =IF(Inp_Converted!U29="","",Inp_Converted!U29) ->  | T20: =IF(Inp_Converted!V29="","",Inp_Converted!V29) ->  | U20: =IF(Inp_Converted!W29="","",Inp_Converted!W29) -> 34950.14649 | V20: =IF(Inp_Converted!X29="","",Inp_Converted!X29) ->  | W20: =IF(Inp_Converted!Y29="","",Inp_Converted!Y29) ->  | X20: =IF(Inp_Converted!Z29="","",Inp_Converted!Z29) ->  | Y20: =IF(Inp_Converted!AA29="","",Inp_Converted!AA29) ->  | Z20: =IF(Inp_Converted!AB29="","",Inp_Converted!AB29) -> 
E21: TMS | G21: =IF(Inp_Converted!I30="","",Inp_Converted!I30) ->  | H21: =IF(Inp_Converted!J30="","",Inp_Converted!J30) ->  | I21: =IF(Inp_Converted!K30="","",Inp_Converted!K30) ->  | J21: =IF(Inp_Converted!L30="","",Inp_Converted!L30) ->  | K21: =IF(Inp_Converted!M30="","",Inp_Converted!M30) ->  | L21: =IF(Inp_Converted!N30="","",Inp_Converted!N30) -> 4.4 | M21: =IF(Inp_Converted!O30="","",Inp_Converted!O30) -> 8.8 | N21: =IF(Inp_Converted!P30="","",Inp_Converted!P30) -> 13.2 | O21: =IF(Inp_Converted!Q30="","",Inp_Converted!Q30) -> 17.6 | P21: =IF(Inp_Converted!R30="","",Inp_Converted!R30) -> 22 | Q21: =IF(Inp_Converted!S30="","",Inp_Converted!S30) ->  | R21: =IF(Inp_Converted!T30="","",Inp_Converted!T30) ->  | S21: =IF(Inp_Converted!U30="","",Inp_Converted!U30) ->  | T21: =IF(Inp_Converted!V30="","",Inp_Converted!V30) ->  | U21: =IF(Inp_Converted!W30="","",Inp_Converted!W30) ->  | V21: =IF(Inp_Converted!X30="","",Inp_Converted!X30) ->  | W21: =IF(Inp_Converted!Y30="","",Inp_Converted!Y30) ->  | X21: =IF(Inp_Converted!Z30="","",Inp_Converted!Z30) ->  | Y21: =IF(Inp_Converted!AA30="","",Inp_Converted!AA30) ->  | Z21: =IF(Inp_Converted!AB30="","",Inp_Converted!AB30) -> 
E22: UUW | G22: =IF(Inp_Converted!I31="","",Inp_Converted!I31) ->  | H22: =IF(Inp_Converted!J31="","",Inp_Converted!J31) ->  | I22: =IF(Inp_Converted!K31="","",Inp_Converted!K31) ->  | J22: =IF(Inp_Converted!L31="","",Inp_Converted!L31) ->  | K22: =IF(Inp_Converted!M31="","",Inp_Converted!M31) ->  | L22: =IF(Inp_Converted!N31="","",Inp_Converted!N31) ->  | M22: =IF(Inp_Converted!O31="","",Inp_Converted!O31) ->  | N22: =IF(Inp_Converted!P31="","",Inp_Converted!P31) ->  | O22: =IF(Inp_Converted!Q31="","",Inp_Converted!Q31) ->  | P22: =IF(Inp_Converted!R31="","",Inp_Converted!R31) ->  | Q22: =IF(Inp_Converted!S31="","",Inp_Converted!S31) ->  | R22: =IF(Inp_Converted!T31="","",Inp_Converted!T31) ->  | S22: =IF(Inp_Converted!U31="","",Inp_Converted!U31) ->  | T22: =IF(Inp_Converted!V31="","",Inp_Converted!V31) ->  | U22: =IF(Inp_Converted!W31="","",Inp_Converted!W31) -> 6746.25 | V22: =IF(Inp_Converted!X31="","",Inp_Converted!X31) -> 9.5 | W22: =IF(Inp_Converted!Y31="","",Inp_Converted!Y31) -> 38 | X22: =IF(Inp_Converted!Z31="","",Inp_Converted!Z31) -> 38 | Y22: =IF(Inp_Converted!AA31="","",Inp_Converted!AA31) -> 57.7 | Z22: =IF(Inp_Converted!AB31="","",Inp_Converted!AB31) -> 77.4
E23: AFW | G23: =IF(Inp_Converted!I32="","",Inp_Converted!I32) -> 111.2163577 | H23: =IF(Inp_Converted!J32="","",Inp_Converted!J32) -> 109.3611795 | I23: =IF(Inp_Converted!K32="","",Inp_Converted!K32) -> 103.6180886 | J23: =IF(Inp_Converted!L32="","",Inp_Converted!L32) -> 101.7590443 | K23: =IF(Inp_Converted!M32="","",Inp_Converted!M32) -> 99.9 | L23: =IF(Inp_Converted!N32="","",Inp_Converted!N32) ->  | M23: =IF(Inp_Converted!O32="","",Inp_Converted!O32) ->  | N23: =IF(Inp_Converted!P32="","",Inp_Converted!P32) ->  | O23: =IF(Inp_Converted!Q32="","",Inp_Converted!Q32) ->  | P23: =IF(Inp_Converted!R32="","",Inp_Converted!R32) ->  | Q23: =IF(Inp_Converted!S32="","",Inp_Converted!S32) ->  | R23: =IF(Inp_Converted!T32="","",Inp_Converted!T32) ->  | S23: =IF(Inp_Converted!U32="","",Inp_Converted!U32) ->  | T23: =IF(Inp_Converted!V32="","",Inp_Converted!V32) ->  | U23: =IF(Inp_Converted!W32="","",Inp_Converted!W32) ->  | V23: =IF(Inp_Converted!X32="","",Inp_Converted!X32) ->  | W23: =IF(Inp_Converted!Y32="","",Inp_Converted!Y32) ->  | X23: =IF(Inp_Converted!Z32="","",Inp_Converted!Z32) ->  | Y23: =IF(Inp_Converted!AA32="","",Inp_Converted!AA32) ->  | Z23: =IF(Inp_Converted!AB32="","",Inp_Converted!AB32) -> 
A25: P10 Performance difference to PCL [For Wonderful Windermere, we convert cumulative performance to improvements from the previous year.]
E27: ANH | G27: =IF(G9="","",IF(G$4="Down",G18-G9,G9-G18)) ->  | U27: -5711.23305
E28: SVE | G28: =IF(G10="","",IF(G$4="Down",G19-G10,G10-G19)) ->  | U28: -54799.337
E29: SWB | G29: =IF(G11="","",IF(G$4="Down",G20-G11,G11-G20)) ->  | U29: -34950.14649
E30: TMS | G30: =IF(G12="","",IF(G$4="Down",G21-G12,G12-G21)) ->  | L30: -4.4 | M30: -8.8 | N30: -13.2 | O30: -17.6 | P30: -22
E31: UUW | G31: =IF(G13="","",IF(G$4="Down",G22-G13,G13-G22)) ->  | U31: -6746.25 | V31: -9.5 | W31: =IF(W13="","",IF(W$4="Down",W22-W13,W13-W22))-IF(V13="","",IF(V$4="Down",V22-V13,V13-V22)) -> -28.5 | X31: =IF(X13="","",IF(X$4="Down",X22-X13,X13-X22))-IF(W13="","",IF(W$4="Down",W22-W13,W13-W22)) -> 0 | Y31: =IF(Y13="","",IF(Y$4="Down",Y22-Y13,Y13-Y22))-IF(X13="","",IF(X$4="Down",X22-X13,X13-X22)) -> -19.7 | Z31: =IF(Z13="","",IF(Z$4="Down",Z22-Z13,Z13-Z22))-IF(Y13="","",IF(Y$4="Down",Y22-Y13,Y13-Y22)) -> -19.7
E32: AFW | G32: =IF(G14="","",IF(G$4="Down",G23-G14,G14-G23)) -> -24.75030899 | H32: -26.60548713 | I32: -32.34857804 | J32: -34.20762235 | K32: -36.06666667 | W32: =IF(W14="","",IF(W$4="Down",W23-W14,W14-W23)) ->  | X32: =IF(X14="","",IF(X$4="Down",X23-X14,X14-X23)) ->  | Y32: =IF(Y14="","",IF(Y$4="Down",Y23-Y14,Y14-Y23)) ->  | Z32: =IF(Z14="","",IF(Z$4="Down",Z23-Z14,Z14-Z23)) -> 
L33: =IF(L15="","",IF(#REF!="Down",L24-L15,L15-L24)) ->  | M33: =IF(M15="","",IF(#REF!="Down",M24-M15,M15-M24)) ->  | N33: =IF(N15="","",IF(#REF!="Down",N24-N15,N15-N24)) ->  | O33: =IF(O15="","",IF(#REF!="Down",O24-O15,O15-O24)) ->  | P33: =IF(P15="","",IF(#REF!="Down",P24-P15,P15-P24)) -> 
A34: END

Sheet Performance_P90
A1: =RIGHT(CELL("filename", A1), LEN(CELL("filename", A1)) - SEARCH("]", CELL("filename", A1))) -> 
E3: Company | F3: PC | G3: Low Pressure | H3: Low Pressure | I3: Low Pressure | J3: Low Pressure | K3: Low Pressure | L3: Streetworks | M3: Streetworks | N3: Streetworks | O3: Streetworks | P3: Streetworks | Q3: Embedded GHG | R3: Embedded GHG | S3: Embedded GHG | T3: Embedded GHG | U3: Embedded GHG | V3: Wonderful Windermere | W3: Wonderful Windermere | X3: Wonderful Windermere | Y3: Wonderful Windermere | Z3: Wonderful Windermere
F4: Direction of Improvement | G4: Down | H4: Down | I4: Down | J4: Down | K4: Down | L4: Up | M4: Up | N4: Up | O4: Up | P4: Up | Q4: Up | R4: Up | S4: Up | T4: Up | U4: Up | V4: Up | W4: Up | X4: Up | Y4: Up | Z4: Up
F5: Year | G5: 2025-26 | H5: 2026-27 | I5: 2027-28 | J5: 2028-29 | K5: 2029-30 | L5: 2025-26 | M5: 2026-27 | N5: 2027-28 | O5: 2028-29 | P5: 2029-30 | Q5: 2025-26 | R5: 2026-27 | S5: 2027-28 | T5: 2028-29 | U5: 2029-30 | V5: 2025-26 | W5: 2026-27 | X5: 2027-28 | Y5: 2028-29 | Z5: 2029-30
A7: P90 Performance
E9: ANH | G9: =IF(Inp_Converted!I18="","",Inp_Converted!I18) ->  | H9: =IF(Inp_Converted!J18="","",Inp_Converted!J18) ->  | I9: =IF(Inp_Converted!K18="","",Inp_Converted!K18) ->  | J9: =IF(Inp_Converted!L18="","",Inp_Converted!L18) ->  | K9: =IF(Inp_Converted!M18="","",Inp_Converted!M18) ->  | L9: =IF(Inp_Converted!N18="","",Inp_Converted!N18) ->  | M9: =IF(Inp_Converted!O18="","",Inp_Converted!O18) ->  | N9: =IF(Inp_Converted!P18="","",Inp_Converted!P18) ->  | O9: =IF(Inp_Converted!Q18="","",Inp_Converted!Q18) ->  | P9: =IF(Inp_Converted!R18="","",Inp_Converted!R18) ->  | Q9: =IF(Inp_Converted!S18="","",Inp_Converted!S18) ->  | R9: =IF(Inp_Converted!T18="","",Inp_Converted!T18) ->  | S9: =IF(Inp_Converted!U18="","",Inp_Converted!U18) ->  | T9: =IF(Inp_Converted!V18="","",Inp_Converted!V18) ->  | U9: =IF(Inp_Converted!W18="","",Inp_Converted!W18) -> 34267.3983 | V9: =IF(Inp_Converted!X18="","",Inp_Converted!X18) ->  | W9: =IF(Inp_Converted!Y18="","",Inp_Converted!Y18) ->  | X9: =IF(Inp_Converted!Z18="","",Inp_Converted!Z18) ->  | Y9: =IF(Inp_Converted!AA18="","",Inp_Converted!AA18) ->  | Z9: =IF(Inp_Converted!AB18="","",Inp_Converted!AB18) -> 
E10: SVE | G10: =IF(Inp_Converted!I19="","",Inp_Converted!I19) ->  | H10: =IF(Inp_Converted!J19="","",Inp_Converted!J19) ->  | I10: =IF(Inp_Converted!K19="","",Inp_Converted!K19) ->  | J10: =IF(Inp_Converted!L19="","",Inp_Converted!L19) ->  | K10: =IF(Inp_Converted!M19="","",Inp_Converted!M19) ->  | L10: =IF(Inp_Converted!N19="","",Inp_Converted!N19) ->  | M10: =IF(Inp_Converted!O19="","",Inp_Converted!O19) ->  | N10: =IF(Inp_Converted!P19="","",Inp_Converted!P19) ->  | O10: =IF(Inp_Converted!Q19="","",Inp_Converted!Q19) ->  | P10: =IF(Inp_Converted!R19="","",Inp_Converted!R19) ->  | Q10: =IF(Inp_Converted!S19="","",Inp_Converted!S19) ->  | R10: =IF(Inp_Converted!T19="","",Inp_Converted!T19) ->  | S10: =IF(Inp_Converted!U19="","",Inp_Converted!U19) ->  | T10: =IF(Inp_Converted!V19="","",Inp_Converted!V19) ->  | U10: =IF(Inp_Converted!W19="","",Inp_Converted!W19) -> 328796.022 | V10: =IF(Inp_Converted!X19="","",Inp_Converted!X19) ->  | W10: =IF(Inp_Converted!Y19="","",Inp_Converted!Y19) ->  | X10: =IF(Inp_Converted!Z19="","",Inp_Converted!Z19) ->  | Y10: =IF(Inp_Converted!AA19="","",Inp_Converted!AA19) ->  | Z10: =IF(Inp_Converted!AB19="","",Inp_Converted!AB19) -> 
